Workbook

Sheet Controllo_UPLOAD
A1: ID_ATO | B1: ID_Aeeg_Gestore | D1: SONO PRESENTI ATO E GESTORE ? | E1: il file può essere caricato ?
A2: =idato -> 1202 | B2: =Codice_ARERA -> 13989 | D2: =IF(A2*B2>0,"SI","NO") -> SI | E2: SI
D3: PRECOMPILATO
D4: 0
D5: 1 = precompilato; 0 = deve fornire tutti i dati
D7: Tipo_file
D8: RDT
D10: SI
D13: Versione_file
D14: Tool

Sheet Menu
B1: RACCOLTA DATI TARIFFARI | F1: Per la compilazione seguire l'ordine dei fogli | K1: RACCOLTA DATI "Qualità tecnica e contrattuale, PdI e POS"
B2: ATO | E2: GESTORE
B3: ID_ATO | C3: ATO | D3: campo_vuoto | E3: ID_Aeeg_Gestore | F3: Gestore | H3: DATA CALCOLO
B4: 1202 | C4: ATO 2 - LAZIO CENTRALE ROMA | E4: 13989 | F4: ACEA ATO2 S.P.A. | H4: Preview_RDT2022
F6: Indicare la natura dei dati forniti per l'anno 2021
F7: dati consuntivi
B8: Sono presenti Errori | C8: elenco schede: | G8: foglio | I8: nomi delle tabelle | K8: Sono presenti Errori | L8: elenco schede: | P8: foglio | R8: nomi delle tabelle
C9: Dati tecnici | G9: Dati_tecnici | H9: scrittura | L9: QT-Acquedotto | P9: QT-Acquedotto | Q9: lettura/scrittura
C10: Dati di conto economico | G10: Dati_conto_economico | H10: scrittura | L10: QT-Fognatura | P10: QT-Fognatura | Q10: lettura/scrittura
C11: Altri dati economico finanziari | G11: Altri_dati_eco_fin | H11: scrittura | L11: QT-Depurazione | P11: QT-Depurazione | Q11: lettura/scrittura
C12: Finanziamenti | G12: finanziamenti | H12: scrittura | I12: finanziamenti | L12: QT-Altri dati | P12: QT-Altri dati | Q12: lettura/scrittura
C13: Elenco soggetti proprietari | G13: soggetti_proprietari | H13: lettura/scrittura | I13: Elenco_Proprietari | L13: Riepilogo RQTI | P13: Riepilogo_RQTI | Q13: lettura/scrittura
C14: Corrispettivi su infrastrutture di terzi | G14: Corrispettivi_proprietari | H14: lettura/scrittura | I14: Corrispettivi_Proprietari | L14: Programma degli Interventi: legenda | P14: PdI-legenda | Q14: lettura
C15: Servizi all'ingrosso: soggetti | G15: Soggetti_Scambio | H15: scrittura | I15: Soggetti_Elenco | L15: Programma degli Interventi: cronoprogramma_investimenti | P15: PdI-crono_inv | Q15: lettura/scrittura | R15: crono_investimenti
C16: Servizi all'ingrosso: vendita | G16: Vendita_Servizi_ingrosso | H16: scrittura | I16: Vendita_Servizi | L16: Programma degli Interventi: POS - Piano Opere Strategiche | P16: POS-Piano_Opere_Strategiche | Q16: lettura/scrittura | R16: crono_pos
C17: Servizi all'ingrosso: acquisto | G17: Acquisto_Servizi_ingrosso | H17: scrittura | I17: Acquisto_Servizi | L17: Programma degli Interventi: cronoprogramma_gestionale | P17: PdI-crono_ges | Q17: lettura/scrittura | R17: crono_gestionale
C18: Nuovi investimenti | G18: Nuovi_Investimenti | H18: scrittura | I18: Nuovi_Investimenti | L18: Programma degli Interventi: riepilogo | P18: PdI-riepilogo | Q18: lettura
C19: Dismissioni | G19: Dismissioni | H19: scrittura | I19: Dismissioni | L19: Riepilogo RQSII | P19: Riepilogo_RQSII | Q19: lettura/scrittura
C20: Ammortamento finanziario | G20: Ammortamento_Finanziario | H20: lettura/scrittura
C21: Informazioni su aggregazioni (anche ai fini dello schema di convergenza) | G21: Info_eventuali_aggregazioni | H21: scrittura | I21: Info_Soggetti_Aggregati
C22: Elenco Bacini Tariffari | G22: Elenco_Bacini_Tariffari | H22: scrittura | I22: BaciniTariffariElenco
C23: Bacini Tariffari e Comuni per Bacino Tariffario | G23: Bacini_Tariffari_Comuni | H23: scrittura | I23: Bacini_Tariffari_Comuni
C24: Struttura dei corrispettivi | G24: Struttura_corrispettivi | H24: scrittura
C25: Ricavi tariffari - Collettamento e depurazione reflui industriali | G25: Ricavi_Coll_Dep | H25: lettura/scrittura
C26: Ricavi tariffari totali per Bacino Tariffario | G26: Ricavi_bacini_tariffari | H26: lettura/scrittura | I26: Bacini_Tariffari_Ricavi
C28: Informazioni per completamento proposta tariffaria | G28: Input_per_calcoli_finali | H28: lettura/scrittura
C29: Ulteriori specificazioni del VRG | G29: VRG_ult_spec | H29: lettura/scrittura
C30: Dati anni precedenti | G30: Dati_Anni_precedenti | H30: lettura
C31: Vite utili anni precedenti | G31: vite_utili_precedenti
C32: Immobilizzazioni ante 2019 | G32: IMN_cespiti_ante2019 | H32: lettura | I32: IMN_cespiti_ante2019
C33: Conferma investimenti 2019 | G33: Conferma_investimenti_2019 | H33: lettura/scrittura | I33: Investimenti2019
C34: Immobilizzazioni dei proprietari | G34: IMN_Proprietari | H34: lettura | I34: cespiti_proprietari
C35: DCUIT | G35: dcuit | H35: calcolo
C36: Storico Piano Tariffario | G36: Storico_Piano_tariffario | H36: lettura
G37: Storico_Ambiti_Tariffari_Comuni | H37: lettura/scrittura | I37: Storico_Ambiti_Tariffari_Comuni
G38: Storico_Articolaz tariff QV | H38: lettura/scrittura
G39: Storico_Articolaz tariff QF | H39: lettura/scrittura
G40: Storico_Ricavi_ambiti_tariffari | H40: lettura/scrittura | I40: Storico_Ambiti_Tariffari_Ricavi
G41: Storico_Piano_Tariffario | H41: lettura
C42: Ricostruzione immobilizzazioni del gestore | G42: IMN_consolidamento | H42: lettura
C43: Calcolo IMN gestore | G43: IMN_gestore | H43: lettura
C44: Riepilogo valore delle immobilizzazioni del gestore | G44: IMN_riepilogo | H44: lettura
C45: FRAMEWORK SCHEMI | G45: framework_schemi | H45: calcolo
C46: VRG TETA | G46: vrg_teta | H46: calcolo
C47: CAPEX | G47: capex | H47: calcolo
C48: FoNI | G48: FoNI | H48: calcolo
C49: OPEX | G49: opex | H49: calcolo
C50: ERC | G50: erc | H50: calcolo
C51: RC | G51: rc | H51: calcolo
C52: Schema di convergenza | G52: Schema di convergenza | H52: calcolo
C53: PEF - Piano tariffario | G53: piano_tariffario | H53: lettura/scrittura
C54: PEF - Conto economico | G54: conto_economico | H54: scrittura
C55: PEF - Stato patrimoniale | G55: Stato_patrimoniale | H55: scrittura
C56: PEF - Rendiconto finanziario | G56: rendiconto_finanziario | H56: scrittura
C57: Elenco Gestori | G57: TT_Gestori | H57: fogli di supporto
C58: Tabelle di supporto anagrafica territorio | G58: TT_Comuni_ATO | H58: fogli di supporto
C59: Tabelle di riferimento (per i menu) | G59: TT_Tabelle_Riferimento | H59: fogli di supporto
C60: Parametri | G60: TT_parametri | H60: sola lettura
C61: QT-Acquedotto | G61: QT-Acquedotto | H61: lettura/scrittura
C62: QT-Fognatura | G62: QT-Fognatura | H62: lettura/scrittura
C63: QT-Depurazione | G63: QT-Depurazione | H63: lettura/scrittura
C64: QT-Altri dati | G64: QT-Altri dati | H64: lettura/scrittura
C65: Riepilogo RQTI | G65: Riepilogo_RQTI | H65: lettura/scrittura
C66: Programma degli Interventi: legenda | G66: PdI-legenda | H66: lettura
C67: Programma degli Interventi: cronoprogramma_investimenti | G67: PdI-crono_inv | H67: lettura/scrittura | I67: crono_investimenti
C68: Programma degli Interventi: POS - Piano Opere Strategiche | G68: POS-Piano_Opere_Strategiche | H68: lettura/scrittura | I68: crono_pos
C69: Programma degli Interventi: cronoprogramma_gestionale | G69: PdI-crono_ges | H69: lettura/scrittura | I69: crono_gestionale
C70: Programma degli Interventi: riepilogo | G70: PdI-riepilogo | H70: lettura
C71: Riepilogo RQSII | G71: Riepilogo_RQSII | H71: lettura/scrittura

Sheet Dati_tecnici
B1: DATI TECNICI
B2: FORNITURA ELETTRICA | E2: ANNO 2020 | F2: ANNO 2021 | G2: ANNO 2019 | M2: Errore compilazione | N2: Errore dati EE | O2: Errore dati pop | P2: Sono presenti errori
C3: Consumo di energia elettrica | D3: kWh | E3: 365544339 | F3: 351522302.3 | G3: 357040512.4 | M3: =+COUNTA(E3:F3,E5:F5,E7:F7,E9:F9,E32,E33,E34,E35,E36,E37,G3,G5,G9)<>17 -> FALSE | N3: =+MIN(E3:F3,E5:F5,E7:F7,G3,G5)<=0 -> FALSE | O3: =+OR(COUNT(E12,E20,E26)=0,COUNT(F12,F20,F26)=0) -> FALSE | P3: =+OR(M3:O3) -> FALSE
C4: di cui, in salvaguardia | D4: kWh | E4: 3616387.176 | F4: 1660866
C5: Costo energia elettrica a bilancio | D5: Euro | E5: 59153833.55 | F5: 47571281.95 | G5: 58629042.93
C6: di cui, in salvaguardia | D6: Euro | E6: 630912 | F6: 313117.15
C7: Costo medio della fornitura elettrica | D7: Euro/kWh | E7: 0.1618239629 | F7: 0.1353293423
C8: Costo medio della fornitura elettrica per l'acquisto in regime di salvaguardia | D8: Euro/kWh | E8: 0.1744591962 | F8: 0.1885264374
C9: Si esclude di avere acquistato energia elettrica in regime di salvaguardia per almeno 4 mesi | D9: SI/NO | E9: NO | F9: NO | G9: NO
B10: SERVIZIO ACQUEDOTTO
C11: Numero di comuni serviti (ComA) | D11: N | E11: 90 | F11: 91
C12: Popolazione residente servita (PRA) | D12: N | E12: 3705295 | F12: 3705995.09
C13: Volume di acqua fatturato (A20) | D13: m3 | E13: 352969536.6 | F13: 351590204
C14: Utenze totali (UtT) | D14: N | E14: 688817 | F14: 695727
C15: Popolazione fluttuante (PFA) | D15: N | E15: 781.208 | F15: 781947
C16: Superficie (SUA) | D16: km2 | E16: 4.501 | F16: 4513.38
C17: Lunghezza rete (L) | D17: km | E17: 15389.24635 | F17: 15468.28528
B18: SERVIZIO FOGNATURA
C19: Numero di comuni serviti (ComF) | D19: N | E19: 80 | F19: 81
C20: Popolazione residente servita (PRF) | D20: N | E20: 3374703 | F20: 3381502
C21: Lunghezza rete fognaria (LL) | D21: km | E21: 7011.39412 | F21: 7135.026228
C22: Popolazione fluttuante (PFF) | D22: N | E22: 766015 | F22: 766415
C23: Superficie (SUF) | D23: km2 | E23: 4216 | F23: 4232.13
B24: SERVIZIO DEPURAZIONE
C25: Numero di comuni serviti (ComD) | D25: N | E25: 88 | F25: 88
C26: Popolazione residente servita (PRD) | D26: N | E26: 3358628 | F26: 3365915
C27: Popolazione fluttuante (PFD) | D27: N | E27: 766294 | F27: 776294
C28: Superficie (SUD) | D28: km2 | E28: 4404 | F28: 4404.29
C29: Abitanti Equivalenti serviti da depurazione | D29: A.E. | E29: 3739149 | F29: 3781787
B31: TERRITORIO GESTITO E AFFIDAMENTO
C32: Tipo affidamento | D32: - | E32: Affidamento del SII
C33: Data inizio affidamento | D33: gg/mm/aaaa | E33: 2003-01-01
C34: Data fine affidamento | D34: gg/mm/aaaa | E34: 2032-12-31
C35: Presenza Carta dei servizi | D35: SI/NO | E35: SI
C36: Presenza di un consumo minimo impegnato per la fatturazione delle utenze | D36: SI/NO | E36: NO
C37: Versamento delle componenti perequative a CSEA | D37: SI/NO | E37: SI

Sheet Dati_conto_economico
B1: DATI DI CONTO ECONOMICO | Q1: Sono presenti errori | R1: errore_voci_di_cui | S1: mancata_compilazione
C2: ANNO 2020 | I2: ANNO 2021 | Q2: =+OR(R2:S2) -> FALSE | R2: =+OR(P:P) -> FALSE | S2: =SUM(C:M)=0 -> FALSE
C3: Totale SII | D3: di cui ERC | E3: SII escluso ERC | F3: Altre attività idriche (c.d. Attività b) | G3: Attività diverse | I3: Totale SII | J3: di cui ERC | K3: SII escluso ERC | L3: Altre attività idriche (c.d. Attività b) | M3: Attività diverse | O3: n_riga | P3: errore compilazione
A4: VALORE DELLA PRODUZIONE (Euro) | C4: =C5+C7+C8+C9+C11 -> 754737741.2 | E4: =+C4-D4 -> 754737741.2 | F4: =F5+F7+F8+F9+F11 -> 11287345.06 | G4: =G5+G7+G8+G9+G11 -> 4802049.4 | I4: =I5+I7+I8+I9+I11 -> 757729750.9 | K4: =+I4-J4 -> 757729750.9 | L4: =L5+L7+L8+L9+L11 -> 13032952.1 | M4: =M5+M7+M8+M9+M11 -> 4677440.8 | O4: 0 | P4: =OR(C13>C4,F13>F4,G13>G4,I13>I4,L13>L4,M13>M4) -> FALSE
B5: A1) Ricavi delle vendite e delle prestazioni | C5: 658914557.3 | E5: =+C5-D5 -> 658914557.3 | F5: 5509401.38 | G5: 4000000 | I5: 683376915.4 | K5: =+I5-J5 -> 683376915.4 | L5: 5339605.35 | M5: 4000000 | O5: 1
B6: di cui da altre imprese del gruppo | C6: 5304036.47 | E6: =+C6-D6 -> 5304036.47 | F6: 394686.44 | G6: 0 | I6: 5329721.08 | K6: =+I6-J6 -> 5329721.08 | L6: 393588.28 | M6: 0 | O6: 2 | P6: =OR(C6>C5,F6>F5,G6>G5,I6>I5,L6>L5,M6>M5) -> FALSE
B7: A2) Variazioni rimanenze di prodotti in corso di lavorazione, semilavorati e finiti | C7: 0 | E7: 0 | F7: 0 | G7: 0 | I7: 0 | K7: 0 | L7: 0 | M7: 0 | O7: 3
B8: A3) Variazioni dei lavori in corso su ordinazione | C8: 0 | E8: 0 | F8: 0 | G8: 0 | I8: 0 | K8: 0 | L8: 0 | M8: 0 | O8: 4
B9: A4) Incrementi di immobilizzazioni per lavori interni (inclusi costi del personale) | C9: 61816283.47 | E9: 61816283.47 | F9: 81330.4 | G9: 0 | I9: 67182712.26 | K9: 67182712.26 | L9: 90354.04 | M9: 19620.69 | O9: 5
B10: di cui per realizzazione allacciamenti idrici e fognari | C10: 3012270.49 | E10: 3012270.49 | I10: 3269929.9 | K10: 3269929.9 | O10: 6 | P10: =OR(C10>C9,F10>F9,G10>G9,I10>I9,L10>L9,M10>M9) -> FALSE
B11: A5) Altri ricavi e proventi | C11: 34006900.38 | E11: 34006900.38 | F11: 5696613.28 | G11: 802049.4 | I11: 7170123.19 | K11: 7170123.19 | L11: 7602992.71 | M11: 657820.11 | O11: 7
B12: di cui da altre imprese del gruppo | C12: 266695.29 | E12: 266695.29 | F12: 4024459.54 | G12: 0 | I12: 1936144.19 | K12: 1936144.19 | L12: 3919466.39 | M12: 0 | O12: 8 | P12: =OR(C12>C11,F12>F11,G12>G11,I12>I11,L12>L11,M12>M11) -> FALSE
A13: ULTERIORI SPECIFICAZIONI DEI RICAVI (Euro) | C13: =SUM(C14:C40) -> 692921457.7 | E13: =+C13-D13 -> 692921457.7 | F13: =SUM(F14:F40) -> 11206014.66 | G13: =SUM(G14:G40) -> 4802049.4 | I13: =SUM(I14:I40) -> 690547038.6 | K13: =+I13-J13 -> 690547038.6 | L13: =SUM(L14:L40) -> 12942598.06 | M13: =SUM(M14:M40) -> 4657820.11 | O13: 9
B14: Ricavi da articolazione tariffaria | C14: 647558363.3 | E14: =+C14-D14 -> 647558363.3 | I14: 668558276.6 | K14: =+I14-J14 -> 668558276.6 | O14: 10
B15: Vendita di acqua all’ingrosso | C15: 7700581.11 | E15: 7700581.11 | I15: 8979461.82 | K15: 8979461.82 | O15: 11
B16: Acquedotto (utenti non allacciati alla pubblica fognatura) | C16: 0 | E16: 0 | I16: 0 | K16: 0 | O16: 13
B17: Vendita di acqua non potabile o ad uso industriale | C17: 0 | E17: 0 | F17: 3088079.24 | I17: 0 | K17: 0 | L17: 3252068.9 | O17: 14
B18: Vendita di acqua forfetaria | C18: 0 | E18: 0 | I18: 0 | K18: 0 | O18: 15
B19: Fornitura bocche antincendio | C19: 0 | E19: 0 | I19: -6.039613254e-14 | K19: -6.039613254e-14 | O19: 16
B20: Fognatura e depurazione civile (approvvigionamento autonomo) | C20: 0 | E20: 0 | I20: 0 | K20: 0 | O20: 17
B21: Fognatura e depurazione di acque reflue industriali | C21: 0 | E21: 0 | I21: 9430.85 | K21: 9430.85 | O21: 18
B22: Contributi di allacciamento | C22: 2270591.01 | E22: 2270591.01 | I22: 2429285.74 | K22: 2429285.74 | O22: 19
B23: Prestazioni e servizi accessori (v. comma 1.1 All. A del. 580/2019/R/IDR) | C23: 1854958.04 | E23: 1854958.04 | F23: 0 | I23: 3800010.89 | K23: =+I23-J23 -> 3800010.89 | L23: 0 | O23: 20
B24: Vendita di acqua con autobotte (v. comma 1.1 All. A del. 580/2019/R/IDR) | C24: 0 | E24: 0 | F24: 112946.35 | I24: 0 | K24: =+I24-J24 -> 0 | L24: 126075.72 | O24: 22
B25: Trattamento percolati | F25: 0 | L25: 0 | O25: 23
B26: Trattamento bottini | F26: 0 | L26: 0 | O26: 24
B27: Gestione fognature bianche (v. comma 1.1 All. A del. 580/2019/R/IDR) | C27: 0 | E27: 0 | G27: 0 | I27: 0 | K27: 0 | M27: 0 | O27: 25
B28: Pulizia e manutenzione caditoie stradali (v. comma 1.1 All. A del. 580/2019/R/IDR) | C28: 0 | E28: 0 | G28: 0 | I28: 0 | K28: 0 | M28: 0 | O28: 26
B29: Installazione/gestione bocche antincendio | F29: 0 | L29: 0 | O29: 27
B30: Vendita di servizi a terzi | F30: 779242.83 | G30: 4000000 | L30: 733133.72 | M30: 4000000 | O30: 28
B31: Lavori conto terzi | C31: 0 | E31: 0 | F31: 1349510.34 | G31: 0 | I31: 0 | K31: 0 | L31: 1075532.68 | M31: 0 | O31: 29
B32: Spurgo pozzi neri | F32: 0 | L32: 0 | O32: 30
B33: Rilascio autorizzazioni allo scarico | F33: 0 | L33: 0 | O33: 31
B34: Lottizzazioni | F34: 183564.31 | G34: 0 | L34: 159094.24 | M34: 0 | O34: 32
B35: Riuso delle acque di depurazione | F35: 0 | L35: 0 | O35: 33
B36: Case dell’acqua | F36: 0 | L36: 0 | O36: 34
B37: Proventi straordinari | C37: 32873328.67 | E37: 32873328.67 | F37: 273739.73 | G37: 0 | I37: 4356592.78 | K37: 4356592.78 | L37: 68293.35 | M37: 0 | O37: 35
B38: Contributi in conto esercizio | C38: 0 | E38: 0 | F38: 0 | G38: 0 | I38: 0 | K38: 0 | L38: 109515.54 | M38: 0 | O38: 36
B39: Rimborsi e indennizzi | C39: 663635.56 | E39: 663635.56 | F39: 4005352.93 | G39: 0 | I39: 2413979.92 | K39: 2413979.92 | L39: 3970885.73 | M39: 0 | O39: 37
B40: Ricavi da altre attività (non inclusi nelle suddette voci) | F40: 1413578.93 | G40: 802049.4 | L40: 3447998.18 | M40: 657820.11 | O40: 38
O41: 39
A42: COSTI DELLA PRODUZIONE (Euro) | C42: =C43+C46++C59+C62+C65+SUM(C69:C72) -> 573170832.1 | D42: =D43+D46++D59+D62+D65+SUM(D69:D72) -> 23749466.46 | E42: =+C42-D42 -> 549421365.7 | F42: =F43+F46++F59+F62+F65+SUM(F69:F72) -> 4901219.34 | G42: =G43+G46++G59+G62+G65+SUM(G69:G72) -> 1600000 | I42: =I43+I46++I59+I62+I65+SUM(I69:I72) -> 571668095.4 | J42: =J43+J46++J59+J62+J65+SUM(J69:J72) -> 23929725.49 | K42: =+I42-J42 -> 547738369.9 | L42: =L43+L46++L59+L62+L65+SUM(L69:L72) -> 5728797.55 | M42: =M43+M46++M59+M62+M65+SUM(M69:M72) -> 1600000 | O42: 40 | P42: =+OR(C42<(C43+C46+C59+C62+C65+SUM(C69:C72)),D42<(D43+D46+D59+D62+D65+SUM(D69:D72)),F42<(F43+F46+F59+F62+F65+SUM(F69:F72)),G42<(G43+G46+G59+G62+G65+SUM(G69:G72)),I42<(I43+I46+I59+I62+I65+SUM(I69:I72)),J42<(J43+J46+J59+J62+J65+SUM(J69:J72)),L42<(L43+L46+L59+L62+L65+SUM(L69:L72)),M42<(M43+M46+M59+M62+M65+SUM(M69:M72))) -> FALSE
B43: B6) Per materie prime, sussidiarie, di consumo e merci | C43: 28902367.58 | D43: 0 | E43: =+C43-D43 -> 28902367.58 | F43: 65223.78 | G43: 119411.0991 | I43: 24478804.83 | J43: 0 | K43: =+I43-J43 -> 24478804.83 | L43: 6408.28 | M43: 107472.5068 | O43: 41
B44: di cui per materiali per manutenzioni | C44: 18110805.84 | D44: 0 | E44: =+C44-D44 -> 18110805.84 | F44: 62567.08 | G44: 74914.83871 | I44: 13289372.86 | J44: 0 | K44: =+I44-J44 -> 13289372.86 | L44: 2069.68 | M44: 58339.89036 | O44: 44
B45: di cui per reagenti | C45: 8324461.168 | D45: 0 | E45: =+C45-D45 -> 8324461.168 | F45: 2656.7 | G45: 34326.30226 | I45: 8836460.927 | J45: 0 | K45: =+I45-J45 -> 8836460.927 | L45: 4338.6 | M45: 38804.76281 | O45: 45
B46: B7) Per servizi | C46: =+SUM(C47:C58) -> 184924189 | D46: =+SUM(D47:D58) -> 6916508.12 | E46: =+C46-D46 -> 178007680.9 | F46: =+SUM(F47:F58) -> 573132.17 | G46: =+SUM(G47:G58) -> 764662.7819 | I46: =+SUM(I47:I58) -> 164437200.4 | J46: =+SUM(J47:J58) -> 6916508.12 | K46: =+I46-J46 -> 157520692.3 | L46: 979578.79 | M46: 726060.9022 | O46: 46
B47: energia elettrica da altre imprese del gruppo | C47: 58208087.85 | E47: =+C47-D47 -> 58208087.85 | F47: 1230.74 | G47: 239952.2495 | I47: 46817066.42 | K47: =+I47-J47 -> 46817066.42 | L47: 975.03 | M47: 205497.5897 | O47: 47
B48: energia elettrica da altre imprese | C48: 950220.8901 | E48: 950220.8901 | F48: 0 | G48: 3917.029878 | I48: 809292.268 | K48: 809292.268 | L48: 0 | M48: 3552.212037 | O48: 48
B49: ricerca perdite (da terzi) | C49: 0 | D49: 0 | E49: 0 | F49: 0 | G49: 0 | I49: 0 | J49: 0 | K49: 0 | L49: 0 | M49: 0 | O49: 49
B50: ricerca perdite (da altre imprese del gruppo) | C50: 0 | D50: 0 | E50: 0 | F50: 0 | G50: 0 | I50: 0 | J50: 0 | K50: 0 | L50: 0 | M50: 0 | O50: 50
B51: smaltimento rifiuti (da terzi) | C51: 382065.4 | D51: 0 | E51: 382065.4 | F51: 1394.45 | G51: 1580.710028 | I51: 747686.004 | J51: 0 | K51: 747686.004 | L51: 4114.86 | M51: 3299.866049 | O51: 51
B52: smaltimento rifiuti (da altre imprese del gruppo) | C52: 0 | D52: 0 | E52: 0 | F52: 0 | G52: 0 | I52: 0 | J52: 0 | K52: 0 | L52: 0 | M52: 0 | O52: 52
B53: trasporto e smaltimento fanghi (da terzi) | C53: 0 | D53: 0 | E53: 0 | F53: 0 | G53: 0 | I53: 0 | J53: 0 | K53: 0 | L53: 0 | M53: 0 | O53: 53
B54: trasporto e smaltimento fanghi (da altre imprese del gruppo) | C54: 27695880.47 | D54: 0 | E54: 27695880.47 | F54: 0 | G54: 114168.8132 | I54: 21017697.63 | J54: 0 | K54: 21017697.63 | L54: 1588.99 | M54: 92259.57777 | O54: 54
B55: manutenzioni ordinarie (da terzi) | C55: 8042539.414 | D55: 0 | E55: 8042539.414 | F55: 137501.25 | G55: 33720.01607 | I55: 8953846.153 | J55: 0 | K55: 8953846.153 | L55: 511420.84 | M55: 41545.72666 | O55: 55
B56: manutenzioni ordinarie (da altre imprese del gruppo) | C56: 0 | D56: 0 | E56: 0 | F56: 0 | G56: 0 | I56: 0 | J56: 0 | K56: 0 | L56: 0 | M56: 0 | O56: 56
B57: altri servizi da altre imprese del gruppo | C57: 62902005.4 | D57: 0 | E57: 62902005.4 | F57: 126949.92 | G57: 259819.9047 | I57: 56443178.44 | J57: 0 | K57: 56443178.44 | L57: 157782.34 | M57: 248437.582 | O57: 57
B58: altri servizi da altre imprese | C58: 26743389.57 | D58: 6916508.12 | E58: 19826881.45 | F58: 306055.81 | G58: 111504.0585 | I58: 29648433.48 | J58: 6916508.12 | K58: 22731925.36 | L58: 303696.73 | M58: 131468.348 | O58: 58
B59: B8) Per godimento beni di terzi | C59: 44789151.24 | D59: 7369625.47 | E59: 37419525.77 | F59: 553.65 | G59: 184633.5037 | I59: 44993028.19 | J59: 7400935.07 | K59: 37592093.12 | L59: 0 | M59: 197487.0917 | O59: 59 | P59: =OR(C59<SUM(C60:C61),D59<SUM(D60:D61),F59<SUM(F60:F61),G59<SUM(G60:G61),I59<SUM(I60:I61),J59<SUM(J60:J61),L59<SUM(L60:L61),M59<SUM(M60:M61)) -> FALSE
B60: di cui per uso impianti di altre imprese del gruppo | C60: 1060121.24 | D60: 1060121.24 | E60: 0 | F60: 0 | G60: 0 | I60: 1056541.72 | J60: 1056541.72 | K60: 0 | L60: 0 | M60: 0
B61: di cui altre spese verso altre imprese del gruppo | C61: 70164.19 | D61: 0 | E61: 70164.19 | F61: 0 | G61: 0 | I61: 62333.31 | J61: 0 | K61: 62333.31 | L61: 0 | M61: 0
B62: B9) Per il personale | C62: 88280453.79 | D62: 0 | E62: 88280453.79 | F62: 4212386.96 | G62: 381276.8426 | I62: 95981975.43 | J62: 0 | K62: 95981975.43 | L62: 4144941.66 | M62: 439485.2814 | O62: 74 | P62: =+OR(C62<(C63+C64),D62<(D63+D64),F62<(F63+F64),G62<(G63+G64),I62<(I63+I64),J62<(J63+J64),L62<(L63+L64),M62<(M63+M64)) -> FALSE
B63: di cui per salari e stipendi | C63: 63149279.32 | D63: 0 | E63: 63149279.32 | F63: 3973953.087 | G63: 276697.4601 | I63: 70630444.95 | J63: 0 | K63: 70630444.95 | L63: 3923245.898 | M63: 310016.9453 | O63: 75
B64: di cui per trattamento di fine rapporto (inclusa rivalutazione) | C64: 3802400.21 | D64: 0 | E64: 3802400.21 | F64: 224937.7931 | G64: 16601.617 | I64: 4647802.504 | J64: 0 | K64: 4647802.504 | L64: 211397.7641 | M64: 20400.51617 | O64: 76
B65: B10) Ammortamenti e svalutazioni | C65: 189893886.5 | D65: 0 | E65: 189893886.5 | F65: 38816.64 | G65: 0 | I65: 212872586.6 | J65: 0 | K65: 212872586.6 | L65: 0 | M65: 0 | O65: 77 | P65: =OR(C65<SUM(C66:C68),D65<SUM(D66:D68),F65<SUM(F66:F68),G65<SUM(G66:G68),I65<SUM(I66:I68),J65<SUM(J66:J68),L65<SUM(L66:L68),M65<SUM(M66:M68)) -> FALSE
B66: di cui per altre svalutazioni delle immobilizzazioni | C66: 3798401.82 | D66: 0 | E66: 3798401.82 | F66: 0 | G66: 0 | I66: 3311115.71 | J66: 0 | K66: 3311115.71 | L66: 0 | M66: 0 | O66: 78
B67: di cui per svalutazione dei crediti compresi nell'attivo circolante e delle disponibilità liquide | C67: 16989923.97 | D67: 0 | E67: 16989923.97 | F67: 0 | G67: 0 | I67: 20674206.38 | J67: 0 | K67: 20674206.38 | L67: 0 | M67: 0 | O67: 79
B68: di cui per Immobilizzazioni immateriali: avviamenti, capitalizzazione concessione, etc. | C68: 43426951.36 | D68: 0 | E68: 43426951.36 | F68: 525.44 | G68: 0 | I68: 37203499.63 | J68: 0 | K68: 37203499.63 | L68: 0 | M68: 0 | O68: 80
B69: B11) Variazione delle rimanenze di materie prime, sussidiarie, di consumo e merci | C69: -2629491.234 | E69: -2629491.234 | F69: -8499.27 | G69: -10874.40587 | I69: -1341947.768 | K69: -1341947.768 | L69: 926838.31 | M69: -1822.032497 | O69: 81
B70: B12) Accantonamenti per rischi | C70: 9726163.688 | E70: 9726163.688 | F70: -5882.82 | G70: 40069.24177 | I70: 7592600.109 | K70: 7592600.109 | L70: -550097.39 | M70: 30911.53088 | O70: 82
B71: B13) Altri accantonamenti | C71: 0 | E71: 0 | F71: 0 | G71: 0 | I71: 0 | K71: 0 | L71: 0 | M71: 0 | O71: 83
B72: B14) Oneri diversi di gestione | C72: 29284111.56 | D72: 9463332.87 | E72: 19820778.69 | F72: 25488.23 | G72: 120820.9368 | I72: 22653847.56 | J72: 9612282.3 | K72: 13041565.26 | L72: 221127.9 | M72: 100404.7195 | O72: 84
A73: ULTERIORI SPECIFICAZIONI DEI COSTI (Euro) | C73: =SUM(C74:C91)+C92+C96 -> 88860360.4 | D73: =SUM(D74:D91)+D92+D96 -> 23749466.46 | E73: 65110893.94 | F73: =SUM(F74:F91)+F92+F96 -> 60522.65 | G73: =SUM(G74:G91)+G92+G96 -> 0 | I73: =SUM(I74:I91)+I92+I96 -> 77924255.02 | J73: =SUM(J74:J91)+J92+J96 -> 23929725.49 | K73: 53994529.53 | L73: =SUM(L74:L91)+L92+L96 -> 311767.34 | M73: =SUM(M74:M91)+M92+M96 -> 0 | O73: 85
B74: Accantonamenti e rettifiche in eccesso rispetto all'applicazione di norme tributarie | C74: 0 | E74: 0 | F74: 0 | G74: 0 | I74: 0 | K74: 0 | L74: 0 | M74: 0 | O74: 86
B75: Rettifiche di valori di attività finanziarie | C75: 0 | E75: 0 | F75: 0 | G75: 0 | I75: 0 | K75: 0 | L75: 0 | M75: 0 | O75: 87
B76: Costi connessi all'erogazione di liberalità | C76: 11755 | E76: 11755 | F76: 0 | G76: 0 | I76: 36507 | K76: 36507 | L76: 0 | M76: 0 | O76: 88
B77: Costi pubblicitari e di marketing (incluse le imposte connesse) | C77: 303259.06 | E77: 303259.06 | F77: 0 | G77: 0 | I77: 561101.85 | K77: 561101.85 | L77: 0 | M77: 0 | O77: 89
B78: Oneri per sanzioni, penalità, risarcimenti automatici e simili | C78: 1303158.24 | E78: 1303158.24 | F78: 0 | G78: 0 | I78: 976019.49 | K78: 976019.49 | L78: 0 | M78: 0 | O78: 90
B79: Oneri straordinari | C79: 14482213.62 | E79: 14482213.62 | F79: 25488.23 | G79: 0 | I79: 3889217.26 | K79: 3889217.26 | L79: 221127.9 | M79: 0 | O79: 91
B80: Spese processuali in cui la parte è risultata soccombente | C80: 487647.81 | E80: 487647.81 | F80: 0 | G80: 0 | I80: 288675.86 | K80: 288675.86 | L80: 0 | M80: 0 | O80: 92
B81: Contributi associativi | C81: 261996.95 | E81: 261996.95 | F81: 0 | G81: 0 | I81: 229110.6 | K81: 229110.6 | L81: 0 | M81: 0 | O81: 93
B82: Spese di viaggio e di rappresentanza | C82: 93792.81 | E82: 93792.81 | F82: 0 | G82: 0 | I82: 226759.3 | K82: 226759.3 | L82: 0 | M82: 0 | O82: 94
B83: Spese di funzionamento Ente di governo dell'ambito | C83: 1540169.232 | E83: 1540169.232 | F83: 0 | G83: 0 | I83: 1535491.051 | K83: 1535491.051 | L83: 0 | M83: 0 | O83: 95
B84: Canoni di affitto immobili non industriali | C84: 1193387.6 | E84: 1193387.6 | F84: 0 | G84: 0 | I84: 1169310.68 | K84: 1169310.68 | L84: 0 | M84: 0 | O84: 96
B85: Costi di realizzazione degli allacciamenti idrici e fognari | C85: 3012270.49 | E85: 3012270.49 | I85: 3269929.9 | K85: 3269929.9 | O85: 97
B86: Gestione fognature bianche (* solo se già incluse nel SII; v. v. comma 1.1 All. A del. 580/2019/R/IDR) | C86: 0 | E86: 0 | I86: 0 | K86: 0 | O86: 98
B87: Pulizia e manutenzione caditoie stradali (* solo se già incluse nel SII; v. v. comma 1.1 All. A del. 580/2019/R/IDR) | C87: 0 | E87: 0 | I87: 0 | K87: 0 | O87: 99
B88: Perdite su crediti per la sola quota parte eccedente l'utilizzo del fondo | C88: 0 | E88: 0 | F88: 0 | G88: 0 | I88: 0 | K88: 0 | L88: 0 | M88: 0 | O88: 100
B89: Costi di strutturazione dei progetti di finanziamento (non capitalizzati) | C89: 0 | E89: 0 | F89: 0 | G89: 0 | I89: 0 | K89: 0 | L89: 0 | M89: 0 | O89: 101
B90: di cui della voce B7): lavorazioni eseguite da terzi di tipo labour intensive (ad esempio gestione call center) e consulenze | C90: 9203027.46 | E90: 9203027.46 | F90: 34854.42 | G90: 0 | I90: 8580747.04 | K90: 8580747.04 | L90: 90639.44 | M90: 0 | O90: 102 | P90: =OR(C90>C46,F90>F46,G90>G46,I90>I46,L90>L46,M90>M46) -> FALSE
B91: Trasporto e smaltimento fanghi non già inclusi nella voce B7) | C91: 0 | D91: 0 | E91: 0 | F91: 0 | G91: 0 | I91: 0 | J91: 0 | K91: 0 | L91: 0 | M91: 0 | O91: 103
B92: Uso infrastrutture di terzi | C92: =+SUM(C93:C95) -> 32578196.02 | D92: =+SUM(D93:D95) -> 0 | E92: 32578196.02 | F92: =+SUM(F93:F95) -> 0 | G92: =+SUM(G93:G95) -> 0 | I92: =+SUM(I93:I95) -> 32556892.69 | J92: =+SUM(J93:J95) -> 0 | K92: 32556892.69 | L92: =+SUM(L93:L95) -> 0 | M92: =+SUM(M93:M95) -> 0 | O92: 104
B93: rimborso mutui di comuni, aziende speciali, società patrimoniali | C93: 1734074.44 | E93: 1734074.44 | F93: 0 | G93: 0 | I93: 1592988.93 | K93: =+I93-J93 -> 1592988.93 | L93: 0 | M93: 0 | O93: 105
B94: altri corrispettivi a comuni, aziende speciali, società patrimoniali | C94: 30844121.58 | E94: 30844121.58 | F94: 0 | G94: 0 | I94: 30963903.76 | K94: =+I94-J94 -> 30963903.76 | L94: 0 | M94: 0 | O94: 106
B95: corrispettivi a gestori preesistenti, altri proprietari | C95: 0 | E95: 0 | F95: 0 | G95: 0 | I95: 0 | K95: =+I95-J95 -> 0 | L95: 0 | M95: 0 | O95: 107
B96: Oneri locali | C96: =+SUM(C97:C102) -> 24389486.11 | D96: =+SUM(D97:D102) -> 23749466.46 | E96: 640019.65 | F96: =+SUM(F97:F102) -> 180 | G96: =+SUM(G97:G102) -> 0 | I96: =+SUM(I97:I102) -> 24604492.3 | J96: =+SUM(J97:J102) -> 23929725.49 | K96: =+I96-J96 -> 674766.81 | L96: =+SUM(L97:L102) -> 0 | M96: =+SUM(M97:M102) -> 0 | O96: 108
B97: canoni di derivazione/sottensione idrica | C97: 8063226.59 | D97: 8063226.59 | E97: 0 | F97: 0 | G97: 0 | I97: 8065445.19 | J97: 8065445.19 | K97: =+I97-J97 -> 0 | L97: 0 | M97: 0 | O97: 109
B98: contributi per consorzi di bonifica | C98: 6222907 | D98: 6222907 | E98: 0 | F98: 0 | G98: 0 | I98: 6251998 | J98: 6251998 | K98: 0 | L98: 0 | M98: 0 | O98: 110
B99: contributi a comunità montane | C99: 0 | D99: 0 | E99: 0 | F99: 0 | G99: 0 | I99: 0 | J99: 0 | K99: 0 | L99: 0 | M99: 0 | O99: 111
B100: canoni per restituzione acque | C100: 0 | D100: 0 | E100: 0 | F100: 0 | G100: 0 | I100: 0 | J100: 0 | K100: 0 | L100: 0 | M100: 0 | O100: 112
B101: oneri per la gestione di aree di salvaguardia | C101: 9463332.87 | D101: 9463332.87 | E101: 0 | F101: 0 | G101: 0 | I101: 9612282.3 | J101: 9612282.3 | K101: 0 | L101: 0 | M101: 0 | O101: 113
B102: altri oneri locali (TOSAP, COSAP, TARSU) | C102: 640019.65 | E102: 640019.65 | F102: 180 | G102: 0 | I102: 674766.81 | K102: 674766.81 | L102: 0 | M102: 0 | O102: 114
A106: ULTERIORI SPECIFICAZIONI DELLE ALTRE ATTIVITÀ IDRICHE (Euro) | D106: ANNO 2020 | J106: ANNO 2021
A108: Altre attività idriche relative ai seguenti obiettivi di sostenibilità energetica ed ambientale | D108: Ricavi | F108: Costi | J108: Ricavi | L108: Costi
B110: a) efficienza energetica nelle attività e nelle infrastrutture qualora non riconducibile al servizio idrico integrato
B111: b) riduzione dell’utilizzo della plastica mediante la promozione del consumo di acqua potabile anche tramite l’installazione di fontanelle
B112: c) recupero di energia - elettrica e termica - e di materie prime mediante impianti o specifici trattamenti integrati nelle infrastrutture idriche, nonché diffusione di energia da fonti rinnovabili per l’alimentazione degli impianti del servizio idrico integrato
B113: d) riuso dell’acqua trattata (ad esempio ai fini agricoli e industriali) al fine di promuovere una maggiore razionalizzazione della risorsa in particolare in contesti caratterizzati da fenomeni di siccità
O114: 115 | P114: =+OR(SUM(D110:D113)>F4,SUM(J110:J113)>L4,SUM(F110:F113)>F42,SUM(L110:L113)>L42) -> FALSE

Sheet Altri_dati_eco_fin
B1: FONTI DI FINANZIAMENTO
E2: ANNO 2020 | F2: ANNO 2021 | M2: errore nei dati per morosità | N2: errore nei dati in valore assoluto | O2: errore nelle voci "di cui" | P2: Sono presenti errori
C3: Mezzi Propri | D3: Euro | E3: 787962817.9 | F3: 847936950 | M3: =+OR(E31*F31=0,E31="",F31="") -> FALSE | N3: =+OR(E17:F19="",E24:F26="",E27:F27="",E31:F32="",E48:F52="",E56:F57="",E68:F72="",E65="",F74="",E73="") -> FALSE | O3: =OR(E6>E5,F6>F5,E12>E11,F12>F11,ABS(E50)>ABS(E49),ABS(F50)>ABS(F49)) -> FALSE | P3: =+OR(M3:O3) -> FALSE
B4: MEZZI DI TERZI
C5: Finanziamenti a medio-lungo termine | D5: Euro | E5: 1109117617 | F5: 1310193597
C6: di cui verso società controllate e collegate e verso controllanti | D6: Euro | E6: 1098187583 | F6: 1299991828
C7: Tasso medio finanziamenti a medio-lungo termine | D7: % | E7: 0.0337 | F7: 0.0262
C8: Prestiti obbligazionari | D8: Euro | E8: 0 | F8: 0
C9: Tasso medio Prestiti obbligazionari | D9: % | E9: 0 | F9: 0
C10: Altre passitivtà consolidate | D10: Euro | E10: 150606420.9 | F10: 155238600.5
C11: Finanziamenti a breve termine | D11: Euro | E11: 52202496.12 | F11: 47443372.83
C12: di cui verso società controllate e collegate e verso controllanti | D12: Euro | E12: 37294310.22 | F12: 31236626.38
C13: Tasso medio Finanziamenti a breve termine | D13: % | E13: 0.0337 | F13: 0.0262
C14: Altre passività correnti | D14: Euro | E14: 425322229.1 | F14: 362371593.1
C15: Debiti tributari | D15: Euro | E15: 9970303.62 | F15: 8499105.598
B16: TFR, FONDO RISCHI E ALTRI
C17: TFR | D17: Euro | E17: 26741667.39 | F17: 26729541.14
C18: Fondo di quiescenza | D18: Euro | E18: 0 | F18: 0
C19: Fondo rischi e oneri | D19: Euro | E19: 17826213.27 | F19: 17706556.34
C20: Fondo rischi su crediti | D20: Euro | E20: 0 | F20: 0
C21: Fondo svalutazione crediti | D21: Euro | E21: 118794320.8 | F21: 110501361.3
C22: Valore Deposito cauzionale | D22: Euro | E22: 66292589.95 | F22: 67716353.2
C23: Fondo imposte e tasse (anche differite) | D23: Euro | E23: 15884204.4 | F23: 13470779.56
C24: Fondo sentenza Corte Costituzionale 335/2008 | D24: Euro | E24: 0 | F24: 0
C25: Fondo per il ripristino di beni di terzi | D25: Euro | E25: 0 | F25: 0
C26: Fondo vincolato al finanziamento della spesa per investimenti comma 9.1 lett. f) MTI-3 | D26: Euro | E26: 0 | F26: 0
C27: Fondo per il finanziamento di tariffe sociali o di solidarietà | D27: Euro | E27: 0 | F27: 0
B29: ALTRI DATI ECONOMICO FINANZIARI
B30: MOROSITA' | E30: ANNO 2020 | F30: ANNO 2021
C31: Unpaid Ratio (UR) a 24 mesi effettivamente rilevato | D31: % | E31: 0.0420995216 | F31: 0.03478413299
C32: Rimborsi dagli utenti finali relativi alla gestione della morosità | D32: Euro | E32: 0 | F32: 60
C33: Percentuale al fatturato per COdil (comma 28.4 MTI-3) | D33: %
B34: IMPOSTE
C35: IRES | D35: Euro | E35: 39783001.25 | F35: 39929483.91
C36: IRAP | D36: Euro | E36: 11545545.2 | F36: 12094868.21
C37: Imposte differite | D37: Euro | E37: 2682551.713 | F37: 2916980.61
C38: Imposte anticipate | D38: Euro | E38: -3604062.346 | F38: 321963.556
C39: Aliquota media di tassazione, IRAP inclusa | D39: % | E39: 0.3018613424 | F39: 0.3118435249
B40: ALTRI IMPORTI IN BOLLETTA
C41: Ui1 (importo fatturato componente Ui1) | D41: Euro | E41: 3601117 | F41: 3684265
C42: Ui2 (importo fatturato componente Ui2) | D42: Euro | E42: 8090455 | F42: 8267495
C43: Ui3 (importo fatturato componente Ui3) | D43: Euro | E43: 3754598 | F43: 4303909
C44: Ui4 (importo fatturato componente Ui4) | D44: Euro | E44: 3475253 | F44: 3697649
C45: Componente [(1+γOPi,j)*max{0;ΔOpex}] (importo fatturato) | D45: Euro | E45: 3475253 | F45: 3699997
C46: Altre componenti perequative | D46: Euro
B47: ALTRI DATI PER CALCOLO RC
C48: Contributo versato ad ARERA | D48: Euro | E48: 173382.79 | F48: 186916.16
C49: Costi per variazioni sistemiche o per eventi eccezionali | D49: Euro | E49: 10937930.89 | F49: 13460643.96
C50: di cui: per eventi eccezionali | D50: Euro | E50: 0 | F50: 2088027
C51: Costo delle forniture all’ingrosso transfrontaliere | D51: Euro | E51: 0 | F51: 0
C52: Rimborsi effettuati ai sensi sentenza CC 335/2008 ed eccedenti la quota riconosciuta in tariffa | D52: Euro | E52: 0 | F52: 0
C53: RCARC - comma 27-bis.1 MTI-3 | D53: Euro | E53: -13871331.36 | F53: 313912.8111
C54: Fattore correttivo del Cong - comma 27-bis.2 MTI-3 | D54: Euro
C55: Σtarifnew,a*vscalnew,a-2 (ai fini del calcolo del ΔTG,TOT) | D55: Euro | E55: 0 | F55: 0
C56: FONInoninv - riportare il dato in eccedenza rispetto alle componenti DCUITFoNI e AMMFoNI - comma 27.1 lett. e) MTI-3 | D56: Euro | E56: 0 | F56: 0
C57: FoNIspesa ai sensi del comma 35.3 MTI-3 | D57: Euro | E57: 55238975.45 | F57: 69489618.49
E59: ANNO 2020 | F59: ANNO 2021 | G59: ANNO 2022 | H59: ANNO 2023
C60: COVID: Rinvio di quota parte degli oneri ammissibili a riconoscimento tariffario nel 2020 e successivo recupero entro il 2023 | D60: Euro | E60: =+Dati_Anni_precedenti!E74 -> 0 | F60: =+Dati_Anni_precedenti!F75 -> 0 | G60: 0 | H60: 0 | J60: ATTENZIONE: la somma dei quattro anni deve essere nulla
B63: ALTRI DATI PER IL CALCOLO DELLA COMPONENTE CAPEX
C64: DCUIT capex (dettagliare nella relazione le motivazioni della collocazione tra i capex) | D64: Euro | G64: 0 | H64: 0
C65: Ammortamento finanziario ammissibile ai sensi del comma 10.7 lettera a) MTI-3 | D65: SI/NO | E65: SI
B66: ALTRI DATI PER IL CALCOLO DELLA COMPONENTE OPEX
C67: OpexQT effettivamente sostenuti dal gestore (al lordo degli ERC) (commi 18.8, 26.1 e 27.1 MTI-3) | D67: Euro | E67: ='PdI-riepilogo'!D39+'PdI-riepilogo'!E39+'PdI-riepilogo'!F39 -> 1624897.364 | F67: ='PdI-riepilogo'!I39+'PdI-riepilogo'!G39+'PdI-riepilogo'!H39 -> 1746960.403
C68: OpexQC effettivamente sostenuti dal gestore (commi 18.9 lett. a) e 27.1 MTI-3) | D68: Euro | E68: 0 | F68: 0
C69: OpexQC effettivamente sostenuti dal gestore (commi 18.9 lett. b) e 27.1 MTI-3) | D69: Euro | E69: 580465.8176 | F69: 1655271.6
C70: Opsocial effettivamente sostenuti dal gestore (commi 18.10 e 27.1 MTI-3) | D70: Euro | E70: 143311.06 | F70: 858396
C71: Opsocial effettivamente sostenuti dal gestore (comma 7.3 lett. a) REMSI e 27.1 MTI-3) | D71: Euro | E71: 0 | F71: 1230.36
C72: Opmis effettivamente sostenuti dal gestore (commi 18.11 e 27.1 MTI-3) | D72: Euro | E72: 0 | F72: 0
C73: Opcovid effettivamente sostenuti dal gestore (commi 18.12 e 27.1 MTI-3) | D73: Euro | E73: 2379761 | F73: .
C74: COΔfanghi (rispetto condizionalità comma 22.2 MTI-3) | D74: SI/NO | F74: SI
E76: ANNO 2020 | F76: ANNO 2021 | G76: ANNO 2022 | H76: ANNO 2023
C77: Opexqc - comma 18.9 lettera b) MTI-3 | D77: Euro | G77: 2021016 | H77: 2050441
C78: Opsocial - scostamento da destinare all'emergenza COVID (comma 27.1 MTI-3) | D78: Euro
C79: Opsocial per il mantenimento o l'introduzione di eventuali agevolazioni migliorative | D79: Euro | G79: 2500000 | H79: 3500000
C80: Opsocial - comma 7.3 lett. a) REMSI | D80: Euro | G80: 0 | H80: 0
C81: Opmis - comma 18.11 MTI-3 | D81: Euro | G81: 0 | H81: 0
C82: Opmis - comma 18.11 MTI-3 - incentivi all'utenza | D82: Euro | G82: 0 | H82: 125000
C83: OpCOVID - comma 18.12 MTI-3 | D83: Euro
C84: OpexpEE - comma 20.2 MTI-3 | D84: Euro | G84: 0 | H84: 0
B86: ALTRI DATI RELATIVI ALLA GESTIONE
B87: CONSISTENZA DEL PERSONALE | E87: ANNO 2020 | F87: ANNO 2021
C88: Dirigenti | D88: N. | E88: 11 | F88: 9
C89: Quadri | D89: N. | E89: 77 | F89: 86
C90: Impiegati | D90: N. | E90: 882 | F90: 932
C91: Operai | D91: N. | E91: 582 | F91: 562
C92: Collaboratori | D92: N. | E92: 0 | F92: 0
B93: COSTI DEL PERSONALE | E93: ANNO 2020 | F93: ANNO 2021
C94: Dirigenti | D94: Euro | E94: 1346817.38 | F94: 2056056.827
C95: Quadri | D95: Euro | E95: 7474324.403 | F95: 8127625.477
C96: Impiegati | D96: Euro | E96: 50671779.68 | F96: 56528975.1
C97: Operai | D97: Euro | E97: 32533100.28 | F97: 33368960.75
C98: Collaboratori | D98: Euro | E98: 0 | F98: 0
B99: SPESA IN RICERCA E SVILUPPO | E99: ANNO 2020 | F99: ANNO 2021
C100: Totale spesa in ricerca e sviluppo | D100: Euro | E100: 577800 | F100: 808066.67

Sheet Finanziamenti
B1: Finanziamenti (capitale di terzi)
A7: n_riga | B7: Importo finanziato (€) | C7: Soggetto finanziatore | D7: Data di sottoscrizione del finanziamento (gg/mm/aaaa) | E7: Data di scadenza del finanziamento (gg/mm/aaaa) | F7: Garanzie richieste | G7: Quota capitale 2020 (€) | H7: Tasso medio d'interesse 2020 (€) | I7: Quota interessi 2020 (€) | J7: Debito residuo (€) 2020 | K7: Quota capitale 2021 (€) | L7: Tasso medio d'interesse 2021 (€) | M7: Quota interessi 2021 (€) | N7: Debito residuo (€) 2021
A8: =+ROW()-7 -> 1 | B8: 1298578622 | C8: società capogruppo | D8: 2007-03-15 | E8: 2032-12-31 | F8: nessuna | H8: 0.0337 | I8: 37803233.84 | J8: 1098187582 | L8: 0.0262 | M8: 34054093.63 | N8: 1299991828

Sheet Soggetti_proprietari
B1: ELENCO SOGGETTI PROPRIETARI
C3: Elenco proprietari infrastrutture per calcolo Mutui/Altri corrispettivi ed eventuale Stratificazione di terzi | O3: Sono presenti Errori
O4: =+OR(O5:Q5) -> FALSE
O5: =OR(INDEX(Elenco_Proprietari,0,15)=TRUE) -> FALSE | P5: =OR(INDEX(Elenco_Proprietari,0,16)) -> FALSE | Q5: =OR(INDEX(Elenco_Proprietari,0,17)) -> FALSE
A7: N_riga | B7: Key_Prop | C7: Soggetto Proprietario | D7: Tipologia di proprietario | E7: P. IVA Proprietario | F7: Codice Istat Comune proprietario | G7: Proprietario ai fini dei corrispettivi AC/MT | H7: Proprietario non più presente ai fini della RAB di terzi | I7: Fusione | J7: Numero Cespiti | K7: Key_Prop_bis | L7: New_Key_prop | M7: Proprietario risultante dalla fusione | N7: per costruzione | O7: Errore Proprietari duplicati | P7: Errore PIVA o CodiceISTAT | Q7: Errore tipologia
A8: =+ROW(A8)-7 -> 1 | B8: =idato & "_" & idgestore & "-" & IF($D8="Comune",$F8,"") & "-" &IF($D8="Comune","",$E8) -> 1202_13989-058001- | C8: Affile | D8: Comune | F8: 058001 | G8: SI | H8: 0 | K8: =B8 -> 1202_13989-058001- | L8: =IF(I8="SI",VLOOKUP(M8,C:K,9,0),K8) -> 1202_13989-058001- | M8: Nuovo comune | N8: =+IF(H8="SI",L8,0) -> 0 | O8: =IF(COUNTIF(B:B,B8)>1,IF(COUNTA(C8:H8)=0,FALSE,TRUE),FALSE) -> FALSE | P8: =IF(COUNTA(E8:F8)<1,IF(COUNTA(C8:H8)=0,FALSE,TRUE),FALSE) -> FALSE | Q8: =IF(COUNTA(D8)<1,IF(COUNTA(C8:H8)=0,FALSE,TRUE),FALSE) -> FALSE
A9: =+ROW(A9)-7 -> 2 | B9: 1202_13989-058002- | C9: Agosta | D9: Comune | F9: 058002 | G9: SI | H9: 0 | K9: =B9 -> 1202_13989-058002- | L9: =IF(I9="SI",VLOOKUP(M9,C:K,9,0),K9) -> 1202_13989-058002- | M9: Nuovo comune | N9: =+IF(H9="SI",L9,0) -> 0 | O9: =IF(COUNTIF(B:B,B9)>1,IF(COUNTA(C9:H9)=0,FALSE,TRUE),FALSE) -> FALSE | P9: =IF(COUNTA(E9:F9)<1,IF(COUNTA(C9:H9)=0,FALSE,TRUE),FALSE) -> FALSE | Q9: =IF(COUNTA(D9)<1,IF(COUNTA(C9:H9)=0,FALSE,TRUE),FALSE) -> FALSE
A10: 3 | B10: 1202_13989-058003- | C10: Albano Laziale | D10: Comune | F10: 058003 | G10: SI | H10: 0 | K10: 1202_13989-058003- | L10: 1202_13989-058003- | M10: Nuovo comune | N10: 0 | O10: FALSE | P10: FALSE | Q10: FALSE
A11: 4 | B11: 1202_13989-058004- | C11: Allumiere | D11: Comune | F11: 058004 | G11: SI | H11: 0 | K11: 1202_13989-058004- | L11: 1202_13989-058004- | M11: Nuovo comune | N11: 0 | O11: FALSE | P11: FALSE | Q11: FALSE
A12: 5 | B12: 1202_13989-058005- | C12: Anguillara Sabazia | D12: Comune | F12: 058005 | G12: SI | H12: 0 | K12: 1202_13989-058005- | L12: 1202_13989-058005- | M12: Nuovo comune | N12: 0 | O12: FALSE | P12: FALSE | Q12: FALSE
A13: 6 | B13: 1202_13989-058006- | C13: Anticoli Corrado | D13: Comune | F13: 058006 | G13: SI | H13: 0 | K13: 1202_13989-058006- | L13: 1202_13989-058006- | M13: Nuovo comune | N13: 0 | O13: FALSE | P13: FALSE | Q13: FALSE
A14: 7 | B14: 1202_13989-058008- | C14: Arcinazzo Romano | D14: Comune | F14: 058008 | G14: SI | H14: 0 | K14: 1202_13989-058008- | L14: 1202_13989-058008- | M14: Nuovo comune | N14: 0 | O14: FALSE | P14: FALSE | Q14: FALSE
A15: 8 | B15: 1202_13989-058117- | C15: Ardea | D15: Comune | F15: 058117 | G15: SI | H15: 0 | K15: 1202_13989-058117- | L15: 1202_13989-058117- | M15: Nuovo comune | N15: 0 | O15: FALSE | P15: FALSE | Q15: FALSE
A16: 9 | B16: 1202_13989-058009- | C16: Ariccia | D16: Comune | F16: 058009 | G16: SI | H16: 0 | K16: 1202_13989-058009- | L16: 1202_13989-058009- | M16: Nuovo comune | N16: 0 | O16: FALSE | P16: FALSE | Q16: FALSE
A17: 10 | B17: 1202_13989-058010- | C17: Arsoli | D17: Comune | F17: 058010 | G17: SI | H17: 0 | K17: 1202_13989-058010- | L17: 1202_13989-058010- | M17: Nuovo comune | N17: 0 | O17: FALSE | P17: FALSE | Q17: FALSE
A18: 11 | B18: 1202_13989-058011- | C18: Artena | D18: Comune | F18: 058011 | G18: SI | H18: 0 | K18: 1202_13989-058011- | L18: 1202_13989-058011- | M18: Nuovo comune | N18: 0 | O18: FALSE | P18: FALSE | Q18: FALSE
A19: 12 | B19: 1202_13989-058012- | C19: Bellegra | D19: Comune | F19: 058012 | G19: SI | H19: 0 | K19: 1202_13989-058012- | L19: 1202_13989-058012- | M19: Nuovo comune | N19: 0 | O19: FALSE | P19: FALSE | Q19: FALSE
A20: 13 | B20: 1202_13989-058013- | C20: Bracciano | D20: Comune | F20: 058013 | G20: SI | H20: 0 | K20: 1202_13989-058013- | L20: 1202_13989-058013- | M20: Nuovo comune | N20: 0 | O20: FALSE | P20: FALSE | Q20: FALSE
A21: 14 | B21: 1202_13989-058014- | C21: Camerata Nuova | D21: Comune | F21: 058014 | G21: SI | H21: 0 | K21: 1202_13989-058014- | L21: 1202_13989-058014- | M21: Nuovo comune | N21: 0 | O21: FALSE | P21: FALSE | Q21: FALSE
A22: 15 | B22: 1202_13989-058015- | C22: Campagnano di Roma | D22: Comune | F22: 058015 | G22: SI | H22: 0 | K22: 1202_13989-058015- | L22: 1202_13989-058015- | M22: Nuovo comune | N22: 0 | O22: FALSE | P22: FALSE | Q22: FALSE
A23: 16 | B23: 1202_13989-058016- | C23: Canale Monterano | D23: Comune | F23: 058016 | G23: SI | H23: 0 | K23: 1202_13989-058016- | L23: 1202_13989-058016- | M23: Nuovo comune | N23: 0 | O23: FALSE | P23: FALSE | Q23: FALSE
A24: 17 | B24: 1202_13989-058017- | C24: Canterano | D24: Comune | F24: 058017 | G24: SI | H24: 0 | K24: 1202_13989-058017- | L24: 1202_13989-058017- | M24: Nuovo comune | N24: 0 | O24: FALSE | P24: FALSE | Q24: FALSE
A25: 18 | B25: 1202_13989-058018- | C25: Capena | D25: Comune | F25: 058018 | G25: SI | H25: 0 | K25: 1202_13989-058018- | L25: 1202_13989-058018- | M25: Nuovo comune | N25: 0 | O25: FALSE | P25: FALSE | Q25: FALSE
A26: 19 | B26: 1202_13989-058019- | C26: Capranica Prenestina | D26: Comune | F26: 058019 | G26: SI | H26: 0 | K26: 1202_13989-058019- | L26: 1202_13989-058019- | M26: Nuovo comune | N26: 0 | O26: FALSE | P26: FALSE | Q26: FALSE
A27: 20 | B27: 1202_13989-058020- | C27: Carpineto Romano | D27: Comune | F27: 058020 | G27: SI | H27: 0 | K27: 1202_13989-058020- | L27: 1202_13989-058020- | M27: Nuovo comune | N27: 0 | O27: FALSE | P27: FALSE | Q27: FALSE
A28: 21 | B28: 1202_13989-058021- | C28: Casape | D28: Comune | F28: 058021 | G28: SI | H28: 0 | K28: 1202_13989-058021- | L28: 1202_13989-058021- | M28: Nuovo comune | N28: 0 | O28: FALSE | P28: FALSE | Q28: FALSE
A29: 22 | B29: 1202_13989-058022- | C29: Castel Gandolfo | D29: Comune | F29: 058022 | G29: SI | H29: 0 | K29: 1202_13989-058022- | L29: 1202_13989-058022- | M29: Nuovo comune | N29: 0 | O29: FALSE | P29: FALSE | Q29: FALSE
A30: 23 | B30: 1202_13989-058023- | C30: Castel Madama | D30: Comune | F30: 058023 | G30: SI | H30: 0 | K30: 1202_13989-058023- | L30: 1202_13989-058023- | M30: Nuovo comune | N30: 0 | O30: FALSE | P30: FALSE | Q30: FALSE
A31: 24 | B31: 1202_13989-058025- | C31: Castel San Pietro Romano | D31: Comune | F31: 058025 | G31: SI | H31: 0 | K31: 1202_13989-058025- | L31: 1202_13989-058025- | M31: Nuovo comune | N31: 0 | O31: FALSE | P31: FALSE | Q31: FALSE
A32: 25 | B32: 1202_13989-058024- | C32: Castelnuovo di Porto | D32: Comune | F32: 058024 | G32: SI | H32: 0 | K32: 1202_13989-058024- | L32: 1202_13989-058024- | M32: Nuovo comune | N32: 0 | O32: FALSE | P32: FALSE | Q32: FALSE
A33: 26 | B33: 1202_13989-058026- | C33: Cave | D33: Comune | F33: 058026 | G33: SI | H33: 0 | K33: 1202_13989-058026- | L33: 1202_13989-058026- | M33: Nuovo comune | N33: 0 | O33: FALSE | P33: FALSE | Q33: FALSE
A34: 27 | B34: 1202_13989-058027- | C34: Cerreto Laziale | D34: Comune | F34: 058027 | G34: SI | H34: 0 | K34: 1202_13989-058027- | L34: 1202_13989-058027- | M34: Nuovo comune | N34: 0 | O34: FALSE | P34: FALSE | Q34: FALSE
A35: 28 | B35: 1202_13989-058028- | C35: Cervara di Roma | D35: Comune | F35: 058028 | G35: SI | H35: 0 | K35: 1202_13989-058028- | L35: 1202_13989-058028- | M35: Nuovo comune | N35: 0 | O35: FALSE | P35: FALSE | Q35: FALSE
A36: 29 | B36: 1202_13989-058029- | C36: Cerveteri | D36: Comune | F36: 058029 | G36: SI | H36: 0 | K36: 1202_13989-058029- | L36: 1202_13989-058029- | M36: Nuovo comune | N36: 0 | O36: FALSE | P36: FALSE | Q36: FALSE
A37: 30 | B37: 1202_13989-058118- | C37: Ciampino | D37: Comune | F37: 058118 | G37: SI | H37: 0 | K37: 1202_13989-058118- | L37: 1202_13989-058118- | M37: Nuovo comune | N37: 0 | O37: FALSE | P37: FALSE | Q37: FALSE
A38: 31 | B38: 1202_13989-058030- | C38: Ciciliano | D38: Comune | F38: 058030 | G38: SI | H38: 0 | K38: 1202_13989-058030- | L38: 1202_13989-058030- | M38: Nuovo comune | N38: 0 | O38: FALSE | P38: FALSE | Q38: FALSE
A39: 32 | B39: 1202_13989-058031- | C39: Cineto Romano | D39: Comune | F39: 058031 | G39: SI | H39: 0 | K39: 1202_13989-058031- | L39: 1202_13989-058031- | M39: Nuovo comune | N39: 0 | O39: FALSE | P39: FALSE | Q39: FALSE
A40: 33 | B40: =idato & "_" & idgestore & "-" & IF($D40="Comune",$F40,"") & "-" &IF($D40="Comune","",$E40) -> 1202_13989-058032- | C40: Civitavecchia | D40: Comune | F40: 058032 | G40: SI | H40: 0 | K40: 1202_13989-058032- | L40: 1202_13989-058032- | M40: Nuovo comune | N40: 0 | O40: FALSE | P40: FALSE | Q40: FALSE
A41: 34 | B41: 1202_13989-058033- | C41: Civitella San Paolo | D41: Comune | F41: 058033 | G41: SI | H41: 0 | K41: 1202_13989-058033- | L41: 1202_13989-058033- | M41: Nuovo comune | N41: 0 | O41: FALSE | P41: FALSE | Q41: FALSE
A42: 35 | B42: 1202_13989-058034- | C42: Colleferro | D42: Comune | F42: 058034 | G42: SI | H42: 0 | K42: 1202_13989-058034- | L42: 1202_13989-058034- | M42: Nuovo comune | N42: 0 | O42: FALSE | P42: FALSE | Q42: FALSE
A43: 36 | B43: 1202_13989-058035- | C43: Colonna | D43: Comune | F43: 058035 | G43: SI | H43: 0 | K43: 1202_13989-058035- | L43: 1202_13989-058035- | M43: Nuovo comune | N43: 0 | O43: FALSE | P43: FALSE | Q43: FALSE
A44: 37 | B44: 1202_13989-058036- | C44: Fiano Romano | D44: Comune | F44: 058036 | G44: SI | H44: 0 | K44: 1202_13989-058036- | L44: 1202_13989-058036- | M44: Nuovo comune | N44: 0 | O44: FALSE | P44: FALSE | Q44: FALSE
A45: 38 | B45: 1202_13989-058037- | C45: Filacciano | D45: Comune | F45: 058037 | G45: SI | H45: 0 | K45: 1202_13989-058037- | L45: 1202_13989-058037- | M45: Nuovo comune | N45: 0 | O45: FALSE | P45: FALSE | Q45: FALSE
A46: 39 | B46: 1202_13989-060034- | C46: Filettino | D46: Comune | F46: 060034 | G46: SI | H46: 0 | K46: 1202_13989-060034- | L46: 1202_13989-060034- | M46: Nuovo comune | N46: 0 | O46: FALSE | P46: FALSE | Q46: FALSE
A47: 40 | B47: 1202_13989-058120- | C47: Fiumicino | D47: Comune | F47: 058120 | G47: SI | H47: 0 | K47: 1202_13989-058120- | L47: 1202_13989-058120- | M47: Nuovo comune | N47: 0 | O47: FALSE | P47: FALSE | Q47: FALSE
A48: 41 | B48: 1202_13989-058122- | C48: Fonte Nuova | D48: Comune | F48: 058122 | G48: SI | H48: 0 | K48: 1202_13989-058122- | L48: 1202_13989-058122- | M48: Nuovo comune | N48: 0 | O48: FALSE | P48: FALSE | Q48: FALSE
A49: 42 | B49: 1202_13989-058038- | C49: Formello | D49: Comune | F49: 058038 | G49: SI | H49: 0 | K49: 1202_13989-058038- | L49: 1202_13989-058038- | M49: Nuovo comune | N49: 0 | O49: FALSE | P49: FALSE | Q49: FALSE
A50: 43 | B50: 1202_13989-058039- | C50: Frascati | D50: Comune | F50: 058039 | G50: SI | H50: 0 | K50: 1202_13989-058039- | L50: 1202_13989-058039- | M50: Nuovo comune | N50: 0 | O50: FALSE | P50: FALSE | Q50: FALSE
A51: 44 | B51: 1202_13989-058040- | C51: Gallicano nel Lazio | D51: Comune | F51: 058040 | G51: SI | H51: 0 | K51: 1202_13989-058040- | L51: 1202_13989-058040- | M51: Nuovo comune | N51: 0 | O51: FALSE | P51: FALSE | Q51: FALSE
A52: 45 | B52: 1202_13989-058041- | C52: Gavignano | D52: Comune | F52: 058041 | G52: SI | H52: 0 | K52: 1202_13989-058041- | L52: 1202_13989-058041- | M52: Nuovo comune | N52: 0 | O52: FALSE | P52: FALSE | Q52: FALSE
A53: 46 | B53: 1202_13989-058042- | C53: Genazzano | D53: Comune | F53: 058042 | G53: SI | H53: 0 | K53: 1202_13989-058042- | L53: 1202_13989-058042- | M53: Nuovo comune | N53: 0 | O53: FALSE | P53: FALSE | Q53: FALSE
A54: 47 | B54: 1202_13989-058043- | C54: Genzano di Roma | D54: Comune | F54: 058043 | G54: SI | H54: 0 | K54: 1202_13989-058043- | L54: 1202_13989-058043- | M54: Nuovo comune | N54: 0 | O54: FALSE | P54: FALSE | Q54: FALSE
A55: 48 | B55: 1202_13989-058044- | C55: Gerano | D55: Comune | F55: 058044 | G55: SI | H55: 0 | K55: 1202_13989-058044- | L55: 1202_13989-058044- | M55: Nuovo comune | N55: 0 | O55: FALSE | P55: FALSE | Q55: FALSE
A56: 49 | B56: 1202_13989-058045- | C56: Gorga | D56: Comune | F56: 058045 | G56: SI | H56: 0 | K56: 1202_13989-058045- | L56: 1202_13989-058045- | M56: Nuovo comune | N56: 0 | O56: FALSE | P56: FALSE | Q56: FALSE
A57: 50 | B57: 1202_13989-058046- | C57: Grottaferrata | D57: Comune | F57: 058046 | G57: SI | H57: 0 | K57: 1202_13989-058046- | L57: 1202_13989-058046- | M57: Nuovo comune | N57: 0 | O57: FALSE | P57: FALSE | Q57: FALSE
A58: 51 | B58: 1202_13989-058047- | C58: Guidonia Montecelio | D58: Comune | F58: 058047 | G58: SI | H58: 0 | K58: 1202_13989-058047- | L58: 1202_13989-058047- | M58: Nuovo comune | N58: 0 | O58: FALSE | P58: FALSE | Q58: FALSE
A59: 52 | B59: 1202_13989-058048- | C59: Jenne | D59: Comune | F59: 058048 | G59: SI | H59: 0 | K59: 1202_13989-058048- | L59: 1202_13989-058048- | M59: Nuovo comune | N59: 0 | O59: FALSE | P59: FALSE | Q59: FALSE
A60: 53 | B60: 1202_13989-058049- | C60: Labico | D60: Comune | F60: 058049 | G60: SI | H60: 0 | K60: 1202_13989-058049- | L60: 1202_13989-058049- | M60: Nuovo comune | N60: 0 | O60: FALSE | P60: FALSE | Q60: FALSE
A61: 54 | B61: 1202_13989-058116- | C61: Ladispoli | D61: Comune | F61: 058116 | G61: SI | H61: 0 | K61: 1202_13989-058116- | L61: 1202_13989-058116- | M61: Nuovo comune | N61: 0 | O61: FALSE | P61: FALSE | Q61: FALSE
A62: 55 | B62: 1202_13989-058050- | C62: Lanuvio | D62: Comune | F62: 058050 | G62: SI | H62: 0 | K62: 1202_13989-058050- | L62: 1202_13989-058050- | M62: Nuovo comune | N62: 0 | O62: FALSE | P62: FALSE | Q62: FALSE
A63: 56 | B63: 1202_13989-058115- | C63: Lariano | D63: Comune | F63: 058115 | G63: SI | H63: 0 | K63: 1202_13989-058115- | L63: 1202_13989-058115- | M63: Nuovo comune | N63: 0 | O63: FALSE | P63: FALSE | Q63: FALSE
A64: 57 | B64: 1202_13989-058051- | C64: Licenza | D64: Comune | F64: 058051 | G64: SI | H64: 0 | K64: 1202_13989-058051- | L64: 1202_13989-058051- | M64: Nuovo comune | N64: 0 | O64: FALSE | P64: FALSE | Q64: FALSE
A65: 58 | B65: 1202_13989-058053- | C65: Mandela | D65: Comune | F65: 058053 | G65: SI | H65: 0 | K65: 1202_13989-058053- | L65: 1202_13989-058053- | M65: Nuovo comune | N65: 0 | O65: FALSE | P65: FALSE | Q65: FALSE
A66: 59 | B66: 1202_13989-058054- | C66: Manziana | D66: Comune | F66: 058054 | G66: SI | H66: 0 | K66: 1202_13989-058054- | L66: 1202_13989-058054- | M66: Nuovo comune | N66: 0 | O66: FALSE | P66: FALSE | Q66: FALSE
A67: 60 | B67: 1202_13989-058055- | C67: Marano Equo | D67: Comune | F67: 058055 | G67: SI | H67: 0 | K67: 1202_13989-058055- | L67: 1202_13989-058055- | M67: Nuovo comune | N67: 0 | O67: FALSE | P67: FALSE | Q67: FALSE
A68: 61 | B68: 1202_13989-058056- | C68: Marcellina | D68: Comune | F68: 058056 | G68: SI | H68: 0 | K68: 1202_13989-058056- | L68: 1202_13989-058056- | M68: Nuovo comune | N68: 0 | O68: FALSE | P68: FALSE | Q68: FALSE
A69: 62 | B69: 1202_13989-058057- | C69: Marino | D69: Comune | F69: 058057 | G69: SI | H69: 0 | K69: 1202_13989-058057- | L69: 1202_13989-058057- | M69: Nuovo comune | N69: 0 | O69: FALSE | P69: FALSE | Q69: FALSE
A70: 63 | B70: 1202_13989-058059- | C70: Mentana | D70: Comune | F70: 058059 | G70: SI | H70: 0 | K70: 1202_13989-058059- | L70: 1202_13989-058059- | M70: Nuovo comune | N70: 0 | O70: FALSE | P70: FALSE | Q70: FALSE
A71: 64 | B71: 1202_13989-058064- | C71: Monte Porzio Catone | D71: Comune | F71: 058064 | G71: SI | H71: 0 | K71: 1202_13989-058064- | L71: 1202_13989-058064- | M71: Nuovo comune | N71: 0 | O71: FALSE | P71: FALSE | Q71: FALSE
A72: 65 | B72: =idato & "_" & idgestore & "-" & IF($D72="Comune",$F72,"") & "-" &IF($D72="Comune","",$E72) -> 1202_13989-058060- | C72: Monte Compatri | D72: Comune | F72: 058060 | G72: SI | H72: 0 | K72: 1202_13989-058060- | L72: 1202_13989-058060- | M72: Nuovo comune | N72: 0 | O72: FALSE | P72: FALSE | Q72: FALSE
A73: =+ROW(A73)-7 -> 66 | B73: 1202_13989-058062- | C73: Montelanico | D73: Comune | F73: 058062 | G73: SI | H73: 0 | K73: =B73 -> 1202_13989-058062- | L73: =IF(I73="SI",VLOOKUP(M73,C:K,9,0),K73) -> 1202_13989-058062- | M73: Nuovo comune | N73: =+IF(H73="SI",L73,0) -> 0 | O73: =IF(COUNTIF(B:B,B73)>1,IF(COUNTA(C73:H73)=0,FALSE,TRUE),FALSE) -> FALSE | P73: =IF(COUNTA(E73:F73)<1,IF(COUNTA(C73:H73)=0,FALSE,TRUE),FALSE) -> FALSE | Q73: =IF(COUNTA(D73)<1,IF(COUNTA(C73:H73)=0,FALSE,TRUE),FALSE) -> FALSE
A74: 67 | B74: 1202_13989-058065- | C74: Monterotondo | D74: Comune | F74: 058065 | G74: SI | H74: 0 | K74: 1202_13989-058065- | L74: 1202_13989-058065- | M74: Nuovo comune | N74: 0 | O74: FALSE | P74: FALSE | Q74: FALSE
A75: 68 | B75: 1202_13989-058068- | C75: Morlupo | D75: Comune | F75: 058068 | G75: SI | H75: 0 | K75: 1202_13989-058068- | L75: 1202_13989-058068- | M75: Nuovo comune | N75: 0 | O75: FALSE | P75: FALSE | Q75: FALSE
A76: 69 | B76: 1202_13989-058069- | C76: Nazzano | D76: Comune | F76: 058069 | G76: SI | H76: 0 | K76: 1202_13989-058069- | L76: 1202_13989-058069- | M76: Nuovo comune | N76: 0 | O76: FALSE | P76: FALSE | Q76: FALSE
A77: 70 | B77: 1202_13989-058070- | C77: Nemi | D77: Comune | F77: 058070 | G77: SI | H77: 0 | K77: 1202_13989-058070- | L77: 1202_13989-058070- | M77: Nuovo comune | N77: 0 | O77: FALSE | P77: FALSE | Q77: FALSE
A78: 71 | B78: 1202_13989-058073- | C78: Olevano Romano | D78: Comune | F78: 058073 | G78: SI | H78: 0 | K78: 1202_13989-058073- | L78: 1202_13989-058073- | M78: Nuovo comune | N78: 0 | O78: FALSE | P78: FALSE | Q78: FALSE
A79: 72 | B79: 1202_13989-056041- | C79: Oriolo Romano | D79: Comune | F79: 056041 | G79: SI | H79: SI | K79: 1202_13989-056041- | L79: 1202_13989-056041- | M79: Nuovo comune | N79: 1202_13989-056041- | O79: FALSE | P79: FALSE | Q79: FALSE
A80: 73 | B80: 1202_13989-058074- | C80: Palestrina | D80: Comune | F80: 058074 | G80: SI | H80: 0 | K80: 1202_13989-058074- | L80: 1202_13989-058074- | M80: Nuovo comune | N80: 0 | O80: FALSE | P80: FALSE | Q80: FALSE
A81: 74 | B81: 1202_13989-058076- | C81: Percile | D81: Comune | F81: 058076 | G81: SI | H81: 0 | K81: 1202_13989-058076- | L81: 1202_13989-058076- | M81: Nuovo comune | N81: 0 | O81: FALSE | P81: FALSE | Q81: FALSE
A82: 75 | B82: 1202_13989-058077- | C82: Pisoniano | D82: Comune | F82: 058077 | G82: SI | H82: 0 | K82: 1202_13989-058077- | L82: 1202_13989-058077- | M82: Nuovo comune | N82: 0 | O82: FALSE | P82: FALSE | Q82: FALSE
A83: 76 | B83: 1202_13989-058078- | C83: Poli | D83: Comune | F83: 058078 | G83: SI | H83: 0 | K83: 1202_13989-058078- | L83: 1202_13989-058078- | M83: Nuovo comune | N83: 0 | O83: FALSE | P83: FALSE | Q83: FALSE
A84: 77 | B84: 1202_13989-058079- | C84: Pomezia | D84: Comune | F84: 058079 | G84: SI | H84: 0 | K84: 1202_13989-058079- | L84: 1202_13989-058079- | M84: Nuovo comune | N84: 0 | O84: FALSE | P84: FALSE | Q84: FALSE
A85: 78 | B85: 1202_13989-058080- | C85: Ponzano Romano | D85: Comune | F85: 058080 | G85: SI | H85: 0 | K85: 1202_13989-058080- | L85: 1202_13989-058080- | M85: Nuovo comune | N85: 0 | O85: FALSE | P85: FALSE | Q85: FALSE
A86: 79 | B86: 1202_13989-058081- | C86: Riano | D86: Comune | F86: 058081 | G86: SI | H86: 0 | K86: 1202_13989-058081- | L86: 1202_13989-058081- | M86: Nuovo comune | N86: 0 | O86: FALSE | P86: FALSE | Q86: FALSE
A87: 80 | B87: 1202_13989-058082- | C87: Rignano Flaminio | D87: Comune | F87: 058082 | G87: SI | H87: 0 | K87: 1202_13989-058082- | L87: 1202_13989-058082- | M87: Nuovo comune | N87: 0 | O87: FALSE | P87: FALSE | Q87: FALSE
A88: 81 | B88: 1202_13989-058083- | C88: Riofreddo | D88: Comune | F88: 058083 | G88: SI | H88: 0 | K88: 1202_13989-058083- | L88: 1202_13989-058083- | M88: Nuovo comune | N88: 0 | O88: FALSE | P88: FALSE | Q88: FALSE
A89: 82 | B89: 1202_13989-058084- | C89: Rocca Canterano | D89: Comune | F89: 058084 | G89: SI | H89: 0 | K89: 1202_13989-058084- | L89: 1202_13989-058084- | M89: Nuovo comune | N89: 0 | O89: FALSE | P89: FALSE | Q89: FALSE
A90: 83 | B90: 1202_13989-058085- | C90: Rocca di Cave | D90: Comune | F90: 058085 | G90: SI | H90: 0 | K90: 1202_13989-058085- | L90: 1202_13989-058085- | M90: Nuovo comune | N90: 0 | O90: FALSE | P90: FALSE | Q90: FALSE
A91: 84 | B91: 1202_13989-058086- | C91: Rocca di Papa | D91: Comune | F91: 058086 | G91: SI | H91: 0 | K91: 1202_13989-058086- | L91: 1202_13989-058086- | M91: Nuovo comune | N91: 0 | O91: FALSE | P91: FALSE | Q91: FALSE
A92: 85 | B92: 1202_13989-058088- | C92: Rocca Priora | D92: Comune | F92: 058088 | G92: SI | H92: 0 | K92: 1202_13989-058088- | L92: 1202_13989-058088- | M92: Nuovo comune | N92: 0 | O92: FALSE | P92: FALSE | Q92: FALSE
A93: 86 | B93: 1202_13989-058089- | C93: Rocca Santo Stefano | D93: Comune | F93: 058089 | G93: SI | H93: 0 | K93: 1202_13989-058089- | L93: 1202_13989-058089- | M93: Nuovo comune | N93: 0 | O93: FALSE | P93: FALSE | Q93: FALSE
A94: 87 | B94: 1202_13989-058087- | C94: Roccagiovine | D94: Comune | F94: 058087 | G94: SI | H94: 0 | K94: 1202_13989-058087- | L94: 1202_13989-058087- | M94: Nuovo comune | N94: 0 | O94: FALSE | P94: FALSE | Q94: FALSE
A95: 88 | B95: 1202_13989-058090- | C95: Roiate | D95: Comune | F95: 058090 | G95: SI | H95: 0 | K95: 1202_13989-058090- | L95: 1202_13989-058090- | M95: Nuovo comune | N95: 0 | O95: FALSE | P95: FALSE | Q95: FALSE
A96: 89 | B96: 1202_13989-058091- | C96: Roma | D96: Comune | F96: 058091 | G96: SI | H96: 0 | K96: 1202_13989-058091- | L96: 1202_13989-058091- | M96: Nuovo comune | N96: 0 | O96: FALSE | P96: FALSE | Q96: FALSE
A97: 90 | B97: 1202_13989-058092- | C97: Roviano | D97: Comune | F97: 058092 | G97: SI | H97: 0 | K97: 1202_13989-058092- | L97: 1202_13989-058092- | M97: Nuovo comune | N97: 0 | O97: FALSE | P97: FALSE | Q97: FALSE
A98: 91 | B98: 1202_13989-058093- | C98: Sacrofano | D98: Comune | F98: 058093 | G98: SI | H98: 0 | K98: 1202_13989-058093- | L98: 1202_13989-058093- | M98: Nuovo comune | N98: 0 | O98: FALSE | P98: FALSE | Q98: FALSE
A99: 92 | B99: 1202_13989-058094- | C99: Sambuci | D99: Comune | F99: 058094 | G99: SI | H99: 0 | K99: 1202_13989-058094- | L99: 1202_13989-058094- | M99: Nuovo comune | N99: 0 | O99: FALSE | P99: FALSE | Q99: FALSE
A100: 93 | B100: 1202_13989-058119- | C100: San Cesareo | D100: Comune | F100: 058119 | G100: SI | H100: 0 | K100: 1202_13989-058119- | L100: 1202_13989-058119- | M100: Nuovo comune | N100: 0 | O100: FALSE | P100: FALSE | Q100: FALSE
A101: 94 | B101: 1202_13989-058095- | C101: San Gregorio da Sassola | D101: Comune | F101: 058095 | G101: SI | H101: 0 | K101: 1202_13989-058095- | L101: 1202_13989-058095- | M101: Nuovo comune | N101: 0 | O101: FALSE | P101: FALSE | Q101: FALSE
A102: 95 | B102: 1202_13989-058096- | C102: San Polo dei Cavalieri | D102: Comune | F102: 058096 | G102: SI | H102: 0 | K102: 1202_13989-058096- | L102: 1202_13989-058096- | M102: Nuovo comune | N102: 0 | O102: FALSE | P102: FALSE | Q102: FALSE
A103: 96 | B103: 1202_13989-058100- | C103: San Vito Romano | D103: Comune | F103: 058100 | G103: SI | H103: 0 | K103: 1202_13989-058100- | L103: 1202_13989-058100- | M103: Nuovo comune | N103: 0 | O103: FALSE | P103: FALSE | Q103: FALSE
A104: 97 | B104: 1202_13989-058097- | C104: Santa Marinella | D104: Comune | F104: 058097 | G104: SI | H104: 0 | K104: 1202_13989-058097- | L104: 1202_13989-058097- | M104: Nuovo comune | N104: 0 | O104: FALSE | P104: FALSE | Q104: FALSE
A105: 98 | B105: 1202_13989-058098- | C105: Sant'Angelo Romano | D105: Comune | F105: 058098 | G105: SI | H105: 0 | K105: 1202_13989-058098- | L105: 1202_13989-058098- | M105: Nuovo comune | N105: 0 | O105: FALSE | P105: FALSE | Q105: FALSE
A106: 99 | B106: 1202_13989-058099- | C106: Sant'Oreste | D106: Comune | F106: 058099 | G106: SI | H106: 0 | K106: 1202_13989-058099- | L106: 1202_13989-058099- | M106: Nuovo comune | N106: 0 | O106: FALSE | P106: FALSE | Q106: FALSE
A107: 100 | B107: 1202_13989-058101- | C107: Saracinesco | D107: Comune | F107: 058101 | G107: SI | H107: 0 | K107: 1202_13989-058101- | L107: 1202_13989-058101- | M107: Nuovo comune | N107: 0 | O107: FALSE | P107: FALSE | Q107: FALSE
A108: 101 | B108: 1202_13989-058102- | C108: Segni | D108: Comune | F108: 058102 | G108: SI | H108: 0 | K108: 1202_13989-058102- | L108: 1202_13989-058102- | M108: Nuovo comune | N108: 0 | O108: FALSE | P108: FALSE | Q108: FALSE
A109: 102 | B109: 1202_13989-058103- | C109: Subiaco | D109: Comune | F109: 058103 | G109: SI | H109: 0 | K109: 1202_13989-058103- | L109: 1202_13989-058103- | M109: Nuovo comune | N109: 0 | O109: FALSE | P109: FALSE | Q109: FALSE
A110: 103 | B110: 1202_13989-058104- | C110: Tivoli | D110: Comune | F110: 058104 | G110: SI | H110: 0 | K110: 1202_13989-058104- | L110: 1202_13989-058104- | M110: Nuovo comune | N110: 0 | O110: FALSE | P110: FALSE | Q110: FALSE
A111: 104 | B111: 1202_13989-058105- | C111: Tolfa | D111: Comune | F111: 058105 | G111: SI | H111: 0 | K111: 1202_13989-058105- | L111: 1202_13989-058105- | M111: Nuovo comune | N111: 0 | O111: FALSE | P111: FALSE | Q111: FALSE
A112: 105 | B112: 1202_13989-058106- | C112: Torrita Tiberina | D112: Comune | F112: 058106 | G112: SI | H112: 0 | K112: 1202_13989-058106- | L112: 1202_13989-058106- | M112: Nuovo comune | N112: 0 | O112: FALSE | P112: FALSE | Q112: FALSE
A113: 106 | B113: 1202_13989-060080- | C113: Trevi nel Lazio | D113: Comune | F113: 060080 | G113: SI | H113: 0 | K113: 1202_13989-060080- | L113: 1202_13989-060080- | M113: Nuovo comune | N113: 0 | O113: FALSE | P113: FALSE | Q113: FALSE
A114: 107 | B114: 1202_13989-058107- | C114: Trevignano Romano | D114: Comune | F114: 058107 | G114: SI | H114: 0 | K114: 1202_13989-058107- | L114: 1202_13989-058107- | M114: Nuovo comune | N114: 0 | O114: FALSE | P114: FALSE | Q114: FALSE
A115: 108 | B115: 1202_13989-058108- | C115: Vallepietra | D115: Comune | F115: 058108 | G115: SI | H115: 0 | K115: 1202_13989-058108- | L115: 1202_13989-058108- | M115: Nuovo comune | N115: 0 | O115: FALSE | P115: FALSE | Q115: FALSE
A116: 109 | B116: 1202_13989-058110- | C116: Valmontone | D116: Comune | F116: 058110 | G116: SI | H116: 0 | K116: 1202_13989-058110- | L116: 1202_13989-058110- | M116: Nuovo comune | N116: 0 | O116: FALSE | P116: FALSE | Q116: FALSE
A117: 110 | B117: 1202_13989-056056- | C117: Vejano | D117: Comune | F117: 056056 | G117: SI | H117: 0 | K117: 1202_13989-056056- | L117: 1202_13989-056056- | M117: Nuovo comune | N117: 0 | O117: FALSE | P117: FALSE | Q117: FALSE
A118: 111 | B118: 1202_13989-058111- | C118: Velletri | D118: Comune | F118: 058111 | G118: SI | H118: 0 | K118: 1202_13989-058111- | L118: 1202_13989-058111- | M118: Nuovo comune | N118: 0 | O118: FALSE | P118: FALSE | Q118: FALSE
A119: 112 | B119: 1202_13989-058112- | C119: Vicovaro | D119: Comune | F119: 058112 | G119: SI | H119: 0 | K119: 1202_13989-058112- | L119: 1202_13989-058112- | M119: Nuovo comune | N119: 0 | O119: FALSE | P119: FALSE | Q119: FALSE
A120: 113 | B120: 1202_13989-058114- | C120: Zagarolo | D120: Comune | F120: 058114 | G120: SI | H120: 0 | K120: 1202_13989-058114- | L120: 1202_13989-058114- | M120: Nuovo comune | N120: 0 | O120: FALSE | P120: FALSE | Q120: FALSE

Sheet Corrispettivi_proprietari
B1: COSTI ASSOCIATI AI SOGGETTI PROPRIETARI
C3: Imputare per ciascun soggetto proprietario il valore dei Mutui MT e altri corrispettivi AC
U4: Sono presenti errori
U5: =OR(INDEX(Corrispettivi_Proprietari,0,COLUMN($U$8)-COLUMN($A$8)+1)) -> FALSE
G6: Rimborso della rata dei mutui (MT) | J6: Altri corrispettivi (AC) | O6: MT - controllo Anno deliberazione e Tipologia Proprietario | R6: AC - controllo Anno deliberazione e Tipologia Proprietario
A7: N_riga | B7: Key_Prop | C7: Soggetto Proprietario | D7: Tipologia di proprietario | E7: P. IVA Proprietario | F7: Codice Istat Comune proprietario | G7: Anno di deliberazione | H7: previsto 2022 (€) | I7: previsto 2023 (€) | J7: Anno di deliberazione | K7: Canoni connessi alla stipula di ulteriori contratti di finanziamento (tipo contratti di locazione finanziaria di opere di pubblica utilità) | L7: previsto 2022 (€) | M7: previsto 2023 (€) | O7: MT 2022 | P7: MT 2023 | R7: AC 2022 | S7: AC 2023 | U7: Errore duplicazione soggetto
A8: =+ROW(A8)-7 -> 1 | B8: =IFERROR(IF(VLOOKUP(C8,Soggetti_proprietari!C:K,9,0)=0,"",VLOOKUP(C8,Soggetti_proprietari!C:K,9,0)),"") -> 1202_13989-058001- | C8: Affile | D8: =IFERROR(IF(VLOOKUP(C8,Soggetti_proprietari!C:K,2,0)=0,"",VLOOKUP(C8,Soggetti_proprietari!C:K,2,0)),"") -> Comune | E8: =IFERROR(IF(VLOOKUP(C8,Soggetti_proprietari!C:K,3,0)=0,"",VLOOKUP(C8,Soggetti_proprietari!C:K,3,0)),"") ->  | F8: =IFERROR(IF(VLOOKUP(C8,Soggetti_proprietari!C:K,4,0)=0,"",VLOOKUP(C8,Soggetti_proprietari!C:K,4,0)),"") -> 058001 | G8: 0 | H8: 0 | I8: 0 | J8: 2002 | K8: 0 | L8: 10325.51 | M8: 10325.51 | O8: =+IF(AND($G8<=2019,$G8<>"",$D8<>"Altra società privata",$B8<>""),H8,0) -> 0 | P8: =+IF(AND($G8<=2019,$G8<>"",$D8<>"Altra società privata",$B8<>""),I8,0) -> 0 | R8: =+IF(AND($J8<=2006,$J8<>"",$D8<>"Altra società privata",$B8<>""),L8,IF($K8="SI",L8,0)) -> 10325.51 | S8: =+IF(AND($J8<=2006,$J8<>"",$D8<>"Altra società privata",$B8<>""),M8,IF($K8="SI",M8,0)) -> 10325.51 | U8: =IF(COUNTIF(B:B,B8)>1,IF(AND(G8="",H8="",I8="",J8="",L8="",M8="",C8=""),FALSE,TRUE),FALSE) -> FALSE
A9: =+ROW(A9)-7 -> 2 | B9: =IFERROR(IF(VLOOKUP(C9,Soggetti_proprietari!C:K,9,0)=0,"",VLOOKUP(C9,Soggetti_proprietari!C:K,9,0)),"") -> 1202_13989-058002- | C9: Agosta | D9: =IFERROR(IF(VLOOKUP(C9,Soggetti_proprietari!C:K,2,0)=0,"",VLOOKUP(C9,Soggetti_proprietari!C:K,2,0)),"") -> Comune | E9: =IFERROR(IF(VLOOKUP(C9,Soggetti_proprietari!C:K,3,0)=0,"",VLOOKUP(C9,Soggetti_proprietari!C:K,3,0)),"") ->  | F9: =IFERROR(IF(VLOOKUP(C9,Soggetti_proprietari!C:K,4,0)=0,"",VLOOKUP(C9,Soggetti_proprietari!C:K,4,0)),"") -> 058002 | G9: 0 | H9: 0 | I9: 0 | J9: 2002 | K9: 0 | L9: 3986.869151 | M9: 10544.98 | O9: =+IF(AND($G9<=2019,$G9<>"",$D9<>"Altra società privata",$B9<>""),H9,0) -> 0 | P9: =+IF(AND($G9<=2019,$G9<>"",$D9<>"Altra società privata",$B9<>""),I9,0) -> 0 | R9: =+IF(AND($J9<=2006,$J9<>"",$D9<>"Altra società privata",$B9<>""),L9,IF($K9="SI",L9,0)) -> 3986.869151 | S9: =+IF(AND($J9<=2006,$J9<>"",$D9<>"Altra società privata",$B9<>""),M9,IF($K9="SI",M9,0)) -> 10544.98 | U9: =IF(COUNTIF(B:B,B9)>1,IF(AND(G9="",H9="",I9="",J9="",L9="",M9="",C9=""),FALSE,TRUE),FALSE) -> FALSE
A10: 3 | B10: =IFERROR(IF(VLOOKUP(C10,Soggetti_proprietari!C:K,9,0)=0,"",VLOOKUP(C10,Soggetti_proprietari!C:K,9,0)),"") -> 1202_13989-058003- | C10: Albano Laziale | D10: =IFERROR(IF(VLOOKUP(C10,Soggetti_proprietari!C:K,2,0)=0,"",VLOOKUP(C10,Soggetti_proprietari!C:K,2,0)),"") -> Comune | E10: =IFERROR(IF(VLOOKUP(C10,Soggetti_proprietari!C:K,3,0)=0,"",VLOOKUP(C10,Soggetti_proprietari!C:K,3,0)),"") ->  | F10: =IFERROR(IF(VLOOKUP(C10,Soggetti_proprietari!C:K,4,0)=0,"",VLOOKUP(C10,Soggetti_proprietari!C:K,4,0)),"") -> 058003 | G10: 0 | H10: 0 | I10: 0 | J10: 2002 | K10: 0 | L10: 201341.03 | M10: 201341.03 | O10: 0 | P10: 0 | R10: 201341.03 | S10: 201341.03 | U10: FALSE
A11: 4 | B11: =IFERROR(IF(VLOOKUP(C11,Soggetti_proprietari!C:K,9,0)=0,"",VLOOKUP(C11,Soggetti_proprietari!C:K,9,0)),"") -> 1202_13989-058004- | C11: Allumiere | D11: =IFERROR(IF(VLOOKUP(C11,Soggetti_proprietari!C:K,2,0)=0,"",VLOOKUP(C11,Soggetti_proprietari!C:K,2,0)),"") -> Comune | E11: =IFERROR(IF(VLOOKUP(C11,Soggetti_proprietari!C:K,3,0)=0,"",VLOOKUP(C11,Soggetti_proprietari!C:K,3,0)),"") ->  | F11: =IFERROR(IF(VLOOKUP(C11,Soggetti_proprietari!C:K,4,0)=0,"",VLOOKUP(C11,Soggetti_proprietari!C:K,4,0)),"") -> 058004 | G11: 0 | H11: 0 | I11: 0 | J11: 2002 | K11: 0 | L11: 25415.22 | M11: 25415.22 | O11: 0 | P11: 0 | R11: 25415.22 | S11: 25415.22 | U11: FALSE
A12: 5 | B12: =IFERROR(IF(VLOOKUP(C12,Soggetti_proprietari!C:K,9,0)=0,"",VLOOKUP(C12,Soggetti_proprietari!C:K,9,0)),"") -> 1202_13989-058005- | C12: Anguillara Sabazia | D12: =IFERROR(IF(VLOOKUP(C12,Soggetti_proprietari!C:K,2,0)=0,"",VLOOKUP(C12,Soggetti_proprietari!C:K,2,0)),"") -> Comune | E12: =IFERROR(IF(VLOOKUP(C12,Soggetti_proprietari!C:K,3,0)=0,"",VLOOKUP(C12,Soggetti_proprietari!C:K,3,0)),"") ->  | F12: =IFERROR(IF(VLOOKUP(C12,Soggetti_proprietari!C:K,4,0)=0,"",VLOOKUP(C12,Soggetti_proprietari!C:K,4,0)),"") -> 058005 | G12: 0 | H12: 0 | I12: 0 | J12: 2002 | K12: 0 | L12: 20753.44685 | M12: 81451.7 | O12: 0 | P12: 0 | R12: 20753.44685 | S12: 81451.7 | U12: FALSE
A13: 6 | B13: =IFERROR(IF(VLOOKUP(C13,Soggetti_proprietari!C:K,9,0)=0,"",VLOOKUP(C13,Soggetti_proprietari!C:K,9,0)),"") -> 1202_13989-058006- | C13: Anticoli Corrado | D13: =IFERROR(IF(VLOOKUP(C13,Soggetti_proprietari!C:K,2,0)=0,"",VLOOKUP(C13,Soggetti_proprietari!C:K,2,0)),"") -> Comune | E13: =IFERROR(IF(VLOOKUP(C13,Soggetti_proprietari!C:K,3,0)=0,"",VLOOKUP(C13,Soggetti_proprietari!C:K,3,0)),"") ->  | F13: =IFERROR(IF(VLOOKUP(C13,Soggetti_proprietari!C:K,4,0)=0,"",VLOOKUP(C13,Soggetti_proprietari!C:K,4,0)),"") -> 058006 | G13: 0 | H13: 0 | I13: 0 | J13: 2002 | K13: 0 | L13: 1499.649205 | M13: 5885.72 | O13: 0 | P13: 0 | R13: 1499.649205 | S13: 5885.72 | U13: FALSE
A14: 7 | B14: =IFERROR(IF(VLOOKUP(C14,Soggetti_proprietari!C:K,9,0)=0,"",VLOOKUP(C14,Soggetti_proprietari!C:K,9,0)),"") -> 1202_13989-058008- | C14: Arcinazzo Romano | D14: =IFERROR(IF(VLOOKUP(C14,Soggetti_proprietari!C:K,2,0)=0,"",VLOOKUP(C14,Soggetti_proprietari!C:K,2,0)),"") -> Comune | E14: =IFERROR(IF(VLOOKUP(C14,Soggetti_proprietari!C:K,3,0)=0,"",VLOOKUP(C14,Soggetti_proprietari!C:K,3,0)),"") ->  | F14: =IFERROR(IF(VLOOKUP(C14,Soggetti_proprietari!C:K,4,0)=0,"",VLOOKUP(C14,Soggetti_proprietari!C:K,4,0)),"") -> 058008 | G14: 0 | H14: 0 | I14: 0 | J14: 2002 | K14: 0 | L14: 8391.41 | M14: 8391.41 | O14: 0 | P14: 0 | R14: 8391.41 | S14: 8391.41 | U14: FALSE
A15: 8 | B15: =IFERROR(IF(VLOOKUP(C15,Soggetti_proprietari!C:K,9,0)=0,"",VLOOKUP(C15,Soggetti_proprietari!C:K,9,0)),"") -> 1202_13989-058117- | C15: Ardea | D15: =IFERROR(IF(VLOOKUP(C15,Soggetti_proprietari!C:K,2,0)=0,"",VLOOKUP(C15,Soggetti_proprietari!C:K,2,0)),"") -> Comune | E15: =IFERROR(IF(VLOOKUP(C15,Soggetti_proprietari!C:K,3,0)=0,"",VLOOKUP(C15,Soggetti_proprietari!C:K,3,0)),"") ->  | F15: =IFERROR(IF(VLOOKUP(C15,Soggetti_proprietari!C:K,4,0)=0,"",VLOOKUP(C15,Soggetti_proprietari!C:K,4,0)),"") -> 058117 | G15: 0 | H15: 0 | I15: 0 | J15: 2002 | K15: 0 | L15: 0 | M15: 0 | O15: 0 | P15: 0 | R15: 0 | S15: 0 | U15: FALSE
A16: 9 | B16: =IFERROR(IF(VLOOKUP(C16,Soggetti_proprietari!C:K,9,0)=0,"",VLOOKUP(C16,Soggetti_proprietari!C:K,9,0)),"") -> 1202_13989-058009- | C16: Ariccia | D16: =IFERROR(IF(VLOOKUP(C16,Soggetti_proprietari!C:K,2,0)=0,"",VLOOKUP(C16,Soggetti_proprietari!C:K,2,0)),"") -> Comune | E16: =IFERROR(IF(VLOOKUP(C16,Soggetti_proprietari!C:K,3,0)=0,"",VLOOKUP(C16,Soggetti_proprietari!C:K,3,0)),"") ->  | F16: =IFERROR(IF(VLOOKUP(C16,Soggetti_proprietari!C:K,4,0)=0,"",VLOOKUP(C16,Soggetti_proprietari!C:K,4,0)),"") -> 058009 | G16: 2002 | H16: 224416.25 | I16: 224194.91 | J16: 2002 | K16: 0 | L16: 0 | M16: 0 | O16: 224416.25 | P16: 224194.91 | R16: 0 | S16: 0 | U16: FALSE
A17: 10 | B17: =IFERROR(IF(VLOOKUP(C17,Soggetti_proprietari!C:K,9,0)=0,"",VLOOKUP(C17,Soggetti_proprietari!C:K,9,0)),"") -> 1202_13989-058010- | C17: Arsoli | D17: =IFERROR(IF(VLOOKUP(C17,Soggetti_proprietari!C:K,2,0)=0,"",VLOOKUP(C17,Soggetti_proprietari!C:K,2,0)),"") -> Comune | E17: =IFERROR(IF(VLOOKUP(C17,Soggetti_proprietari!C:K,3,0)=0,"",VLOOKUP(C17,Soggetti_proprietari!C:K,3,0)),"") ->  | F17: =IFERROR(IF(VLOOKUP(C17,Soggetti_proprietari!C:K,4,0)=0,"",VLOOKUP(C17,Soggetti_proprietari!C:K,4,0)),"") -> 058010 | G17: 0 | H17: 0 | I17: 0 | J17: 2002 | K17: 0 | L17: 10083.47 | M17: 10939.8743 | O17: 0 | P17: 0 | R17: 10083.47 | S17: 10939.8743 | U17: FALSE
A18: 11 | B18: =IFERROR(IF(VLOOKUP(C18,Soggetti_proprietari!C:K,9,0)=0,"",VLOOKUP(C18,Soggetti_proprietari!C:K,9,0)),"") -> 1202_13989-058011- | C18: Artena | D18: =IFERROR(IF(VLOOKUP(C18,Soggetti_proprietari!C:K,2,0)=0,"",VLOOKUP(C18,Soggetti_proprietari!C:K,2,0)),"") -> Comune | E18: =IFERROR(IF(VLOOKUP(C18,Soggetti_proprietari!C:K,3,0)=0,"",VLOOKUP(C18,Soggetti_proprietari!C:K,3,0)),"") ->  | F18: =IFERROR(IF(VLOOKUP(C18,Soggetti_proprietari!C:K,4,0)=0,"",VLOOKUP(C18,Soggetti_proprietari!C:K,4,0)),"") -> 058011 | G18: 0 | H18: 0 | I18: 0 | J18: 2002 | K18: 0 | L18: 66445.59 | M18: 66445.59 | O18: 0 | P18: 0 | R18: 66445.59 | S18: 66445.59 | U18: FALSE
A19: 12 | B19: =IFERROR(IF(VLOOKUP(C19,Soggetti_proprietari!C:K,9,0)=0,"",VLOOKUP(C19,Soggetti_proprietari!C:K,9,0)),"") -> 1202_13989-058012- | C19: Bellegra | D19: =IFERROR(IF(VLOOKUP(C19,Soggetti_proprietari!C:K,2,0)=0,"",VLOOKUP(C19,Soggetti_proprietari!C:K,2,0)),"") -> Comune | E19: =IFERROR(IF(VLOOKUP(C19,Soggetti_proprietari!C:K,3,0)=0,"",VLOOKUP(C19,Soggetti_proprietari!C:K,3,0)),"") ->  | F19: =IFERROR(IF(VLOOKUP(C19,Soggetti_proprietari!C:K,4,0)=0,"",VLOOKUP(C19,Soggetti_proprietari!C:K,4,0)),"") -> 058012 | G19: 0 | H19: 0 | I19: 0 | J19: 2002 | K19: 0 | L19: 18564.82 | M19: 18564.82 | O19: 0 | P19: 0 | R19: 18564.82 | S19: 18564.82 | U19: FALSE
A20: 13 | B20: =IFERROR(IF(VLOOKUP(C20,Soggetti_proprietari!C:K,9,0)=0,"",VLOOKUP(C20,Soggetti_proprietari!C:K,9,0)),"") -> 1202_13989-058013- | C20: Bracciano | D20: =IFERROR(IF(VLOOKUP(C20,Soggetti_proprietari!C:K,2,0)=0,"",VLOOKUP(C20,Soggetti_proprietari!C:K,2,0)),"") -> Comune | E20: =IFERROR(IF(VLOOKUP(C20,Soggetti_proprietari!C:K,3,0)=0,"",VLOOKUP(C20,Soggetti_proprietari!C:K,3,0)),"") ->  | F20: =IFERROR(IF(VLOOKUP(C20,Soggetti_proprietari!C:K,4,0)=0,"",VLOOKUP(C20,Soggetti_proprietari!C:K,4,0)),"") -> 058013 | G20: 2002 | H20: 210300.36 | I20: 210300.36 | J20: 2002 | K20: 0 | L20: 0 | M20: 0 | O20: 210300.36 | P20: 210300.36 | R20: 0 | S20: 0 | U20: FALSE
A21: 14 | B21: =IFERROR(IF(VLOOKUP(C21,Soggetti_proprietari!C:K,9,0)=0,"",VLOOKUP(C21,Soggetti_proprietari!C:K,9,0)),"") -> 1202_13989-058014- | C21: Camerata Nuova | D21: =IFERROR(IF(VLOOKUP(C21,Soggetti_proprietari!C:K,2,0)=0,"",VLOOKUP(C21,Soggetti_proprietari!C:K,2,0)),"") -> Comune | E21: =IFERROR(IF(VLOOKUP(C21,Soggetti_proprietari!C:K,3,0)=0,"",VLOOKUP(C21,Soggetti_proprietari!C:K,3,0)),"") ->  | F21: =IFERROR(IF(VLOOKUP(C21,Soggetti_proprietari!C:K,4,0)=0,"",VLOOKUP(C21,Soggetti_proprietari!C:K,4,0)),"") -> 058014 | G21: 0 | H21: 0 | I21: 0 | J21: 2002 | K21: 0 | L21: 0 | M21: 0 | O21: 0 | P21: 0 | R21: 0 | S21: 0 | U21: FALSE
A22: 15 | B22: =IFERROR(IF(VLOOKUP(C22,Soggetti_proprietari!C:K,9,0)=0,"",VLOOKUP(C22,Soggetti_proprietari!C:K,9,0)),"") -> 1202_13989-058015- | C22: Campagnano di Roma | D22: =IFERROR(IF(VLOOKUP(C22,Soggetti_proprietari!C:K,2,0)=0,"",VLOOKUP(C22,Soggetti_proprietari!C:K,2,0)),"") -> Comune | E22: =IFERROR(IF(VLOOKUP(C22,Soggetti_proprietari!C:K,3,0)=0,"",VLOOKUP(C22,Soggetti_proprietari!C:K,3,0)),"") ->  | F22: =IFERROR(IF(VLOOKUP(C22,Soggetti_proprietari!C:K,4,0)=0,"",VLOOKUP(C22,Soggetti_proprietari!C:K,4,0)),"") -> 058015 | G22: 0 | H22: 0 | I22: 0 | J22: 2002 | K22: 0 | L22: 11782.94458 | M22: 46244.89 | O22: 0 | P22: 0 | R22: 11782.94458 | S22: 46244.89 | U22: FALSE
A23: 16 | B23: =IFERROR(IF(VLOOKUP(C23,Soggetti_proprietari!C:K,9,0)=0,"",VLOOKUP(C23,Soggetti_proprietari!C:K,9,0)),"") -> 1202_13989-058016- | C23: Canale Monterano | D23: =IFERROR(IF(VLOOKUP(C23,Soggetti_proprietari!C:K,2,0)=0,"",VLOOKUP(C23,Soggetti_proprietari!C:K,2,0)),"") -> Comune | E23: =IFERROR(IF(VLOOKUP(C23,Soggetti_proprietari!C:K,3,0)=0,"",VLOOKUP(C23,Soggetti_proprietari!C:K,3,0)),"") ->  | F23: =IFERROR(IF(VLOOKUP(C23,Soggetti_proprietari!C:K,4,0)=0,"",VLOOKUP(C23,Soggetti_proprietari!C:K,4,0)),"") -> 058016 | G23: 0 | H23: 0 | I23: 0 | J23: 2002 | K23: 0 | L23: 5135.205205 | M23: 20154.3 | O23: 0 | P23: 0 | R23: 5135.205205 | S23: 20154.3 | U23: FALSE
A24: 17 | B24: =IFERROR(IF(VLOOKUP(C24,Soggetti_proprietari!C:K,9,0)=0,"",VLOOKUP(C24,Soggetti_proprietari!C:K,9,0)),"") -> 1202_13989-058017- | C24: Canterano | D24: =IFERROR(IF(VLOOKUP(C24,Soggetti_proprietari!C:K,2,0)=0,"",VLOOKUP(C24,Soggetti_proprietari!C:K,2,0)),"") -> Comune | E24: =IFERROR(IF(VLOOKUP(C24,Soggetti_proprietari!C:K,3,0)=0,"",VLOOKUP(C24,Soggetti_proprietari!C:K,3,0)),"") ->  | F24: =IFERROR(IF(VLOOKUP(C24,Soggetti_proprietari!C:K,4,0)=0,"",VLOOKUP(C24,Soggetti_proprietari!C:K,4,0)),"") -> 058017 | G24: 0 | H24: 0 | I24: 0 | J24: 2002 | K24: 0 | L24: 2358.72 | M24: 2358.72 | O24: 0 | P24: 0 | R24: 2358.72 | S24: 2358.72 | U24: FALSE
A25: 18 | B25: =IFERROR(IF(VLOOKUP(C25,Soggetti_proprietari!C:K,9,0)=0,"",VLOOKUP(C25,Soggetti_proprietari!C:K,9,0)),"") -> 1202_13989-058018- | C25: Capena | D25: =IFERROR(IF(VLOOKUP(C25,Soggetti_proprietari!C:K,2,0)=0,"",VLOOKUP(C25,Soggetti_proprietari!C:K,2,0)),"") -> Comune | E25: =IFERROR(IF(VLOOKUP(C25,Soggetti_proprietari!C:K,3,0)=0,"",VLOOKUP(C25,Soggetti_proprietari!C:K,3,0)),"") ->  | F25: =IFERROR(IF(VLOOKUP(C25,Soggetti_proprietari!C:K,4,0)=0,"",VLOOKUP(C25,Soggetti_proprietari!C:K,4,0)),"") -> 058018 | G25: 0 | H25: 0 | I25: 0 | J25: 2002 | K25: 0 | L25: 36148.77189 | M25: 36148.77 | O25: 0 | P25: 0 | R25: 36148.77189 | S25: 36148.77 | U25: FALSE
A26: 19 | B26: =IFERROR(IF(VLOOKUP(C26,Soggetti_proprietari!C:K,9,0)=0,"",VLOOKUP(C26,Soggetti_proprietari!C:K,9,0)),"") -> 1202_13989-058019- | C26: Capranica Prenestina | D26: =IFERROR(IF(VLOOKUP(C26,Soggetti_proprietari!C:K,2,0)=0,"",VLOOKUP(C26,Soggetti_proprietari!C:K,2,0)),"") -> Comune | E26: =IFERROR(IF(VLOOKUP(C26,Soggetti_proprietari!C:K,3,0)=0,"",VLOOKUP(C26,Soggetti_proprietari!C:K,3,0)),"") ->  | F26: =IFERROR(IF(VLOOKUP(C26,Soggetti_proprietari!C:K,4,0)=0,"",VLOOKUP(C26,Soggetti_proprietari!C:K,4,0)),"") -> 058019 | G26: 0 | H26: 0 | I26: 0 | J26: 2002 | K26: 0 | L26: 1925.72 | M26: 1925.72 | O26: 0 | P26: 0 | R26: 1925.72 | S26: 1925.72 | U26: FALSE
A27: 20 | B27: =IFERROR(IF(VLOOKUP(C27,Soggetti_proprietari!C:K,9,0)=0,"",VLOOKUP(C27,Soggetti_proprietari!C:K,9,0)),"") -> 1202_13989-058020- | C27: Carpineto Romano | D27: =IFERROR(IF(VLOOKUP(C27,Soggetti_proprietari!C:K,2,0)=0,"",VLOOKUP(C27,Soggetti_proprietari!C:K,2,0)),"") -> Comune | E27: =IFERROR(IF(VLOOKUP(C27,Soggetti_proprietari!C:K,3,0)=0,"",VLOOKUP(C27,Soggetti_proprietari!C:K,3,0)),"") ->  | F27: =IFERROR(IF(VLOOKUP(C27,Soggetti_proprietari!C:K,4,0)=0,"",VLOOKUP(C27,Soggetti_proprietari!C:K,4,0)),"") -> 058020 | G27: 0 | H27: 0 | I27: 0 | J27: 2002 | K27: 0 | L27: 29914.4 | M27: 29914.4 | O27: 0 | P27: 0 | R27: 29914.4 | S27: 29914.4 | U27: FALSE
A28: 21 | B28: =IFERROR(IF(VLOOKUP(C28,Soggetti_proprietari!C:K,9,0)=0,"",VLOOKUP(C28,Soggetti_proprietari!C:K,9,0)),"") -> 1202_13989-058021- | C28: Casape | D28: =IFERROR(IF(VLOOKUP(C28,Soggetti_proprietari!C:K,2,0)=0,"",VLOOKUP(C28,Soggetti_proprietari!C:K,2,0)),"") -> Comune | E28: =IFERROR(IF(VLOOKUP(C28,Soggetti_proprietari!C:K,3,0)=0,"",VLOOKUP(C28,Soggetti_proprietari!C:K,3,0)),"") ->  | F28: =IFERROR(IF(VLOOKUP(C28,Soggetti_proprietari!C:K,4,0)=0,"",VLOOKUP(C28,Soggetti_proprietari!C:K,4,0)),"") -> 058021 | G28: 0 | H28: 0 | I28: 0 | J28: 2002 | K28: 0 | L28: 4782.22 | M28: 4782.22 | O28: 0 | P28: 0 | R28: 4782.22 | S28: 4782.22 | U28: FALSE
A29: 22 | B29: =IFERROR(IF(VLOOKUP(C29,Soggetti_proprietari!C:K,9,0)=0,"",VLOOKUP(C29,Soggetti_proprietari!C:K,9,0)),"") -> 1202_13989-058022- | C29: Castel Gandolfo | D29: =IFERROR(IF(VLOOKUP(C29,Soggetti_proprietari!C:K,2,0)=0,"",VLOOKUP(C29,Soggetti_proprietari!C:K,2,0)),"") -> Comune | E29: =IFERROR(IF(VLOOKUP(C29,Soggetti_proprietari!C:K,3,0)=0,"",VLOOKUP(C29,Soggetti_proprietari!C:K,3,0)),"") ->  | F29: =IFERROR(IF(VLOOKUP(C29,Soggetti_proprietari!C:K,4,0)=0,"",VLOOKUP(C29,Soggetti_proprietari!C:K,4,0)),"") -> 058022 | G29: 0 | H29: 0 | I29: 0 | J29: 2002 | K29: 0 | L29: 46289.96 | M29: 46289.96 | O29: 0 | P29: 0 | R29: 46289.96 | S29: 46289.96 | U29: FALSE
A30: 23 | B30: =IFERROR(IF(VLOOKUP(C30,Soggetti_proprietari!C:K,9,0)=0,"",VLOOKUP(C30,Soggetti_proprietari!C:K,9,0)),"") -> 1202_13989-058023- | C30: Castel Madama | D30: =IFERROR(IF(VLOOKUP(C30,Soggetti_proprietari!C:K,2,0)=0,"",VLOOKUP(C30,Soggetti_proprietari!C:K,2,0)),"") -> Comune | E30: =IFERROR(IF(VLOOKUP(C30,Soggetti_proprietari!C:K,3,0)=0,"",VLOOKUP(C30,Soggetti_proprietari!C:K,3,0)),"") ->  | F30: =IFERROR(IF(VLOOKUP(C30,Soggetti_proprietari!C:K,4,0)=0,"",VLOOKUP(C30,Soggetti_proprietari!C:K,4,0)),"") -> 058023 | G30: 2002 | H30: 22124.71 | I30: 14268.53 | J30: 2002 | K30: 0 | L30: 17183.18 | M30: 25039.36 | O30: 22124.71 | P30: 14268.53 | R30: 17183.18 | S30: 25039.36 | U30: FALSE
A31: 24 | B31: =IFERROR(IF(VLOOKUP(C31,Soggetti_proprietari!C:K,9,0)=0,"",VLOOKUP(C31,Soggetti_proprietari!C:K,9,0)),"") -> 1202_13989-058025- | C31: Castel San Pietro Romano | D31: =IFERROR(IF(VLOOKUP(C31,Soggetti_proprietari!C:K,2,0)=0,"",VLOOKUP(C31,Soggetti_proprietari!C:K,2,0)),"") -> Comune | E31: =IFERROR(IF(VLOOKUP(C31,Soggetti_proprietari!C:K,3,0)=0,"",VLOOKUP(C31,Soggetti_proprietari!C:K,3,0)),"") ->  | F31: =IFERROR(IF(VLOOKUP(C31,Soggetti_proprietari!C:K,4,0)=0,"",VLOOKUP(C31,Soggetti_proprietari!C:K,4,0)),"") -> 058025 | G31: 0 | H31: 0 | I31: 0 | J31: 2002 | K31: 0 | L31: 4506.89 | M31: 4506.89 | O31: 0 | P31: 0 | R31: 4506.89 | S31: 4506.89 | U31: FALSE
A32: 25 | B32: =IFERROR(IF(VLOOKUP(C32,Soggetti_proprietari!C:K,9,0)=0,"",VLOOKUP(C32,Soggetti_proprietari!C:K,9,0)),"") -> 1202_13989-058024- | C32: Castelnuovo di Porto | D32: =IFERROR(IF(VLOOKUP(C32,Soggetti_proprietari!C:K,2,0)=0,"",VLOOKUP(C32,Soggetti_proprietari!C:K,2,0)),"") -> Comune | E32: =IFERROR(IF(VLOOKUP(C32,Soggetti_proprietari!C:K,3,0)=0,"",VLOOKUP(C32,Soggetti_proprietari!C:K,3,0)),"") ->  | F32: =IFERROR(IF(VLOOKUP(C32,Soggetti_proprietari!C:K,4,0)=0,"",VLOOKUP(C32,Soggetti_proprietari!C:K,4,0)),"") -> 058024 | G32: 0 | H32: 0 | I32: 0 | J32: 2002 | K32: 0 | L32: 41248.02 | M32: 41248.02 | O32: 0 | P32: 0 | R32: 41248.02 | S32: 41248.02 | U32: FALSE
A33: 26 | B33: =IFERROR(IF(VLOOKUP(C33,Soggetti_proprietari!C:K,9,0)=0,"",VLOOKUP(C33,Soggetti_proprietari!C:K,9,0)),"") -> 1202_13989-058026- | C33: Cave | D33: =IFERROR(IF(VLOOKUP(C33,Soggetti_proprietari!C:K,2,0)=0,"",VLOOKUP(C33,Soggetti_proprietari!C:K,2,0)),"") -> Comune | E33: =IFERROR(IF(VLOOKUP(C33,Soggetti_proprietari!C:K,3,0)=0,"",VLOOKUP(C33,Soggetti_proprietari!C:K,3,0)),"") ->  | F33: =IFERROR(IF(VLOOKUP(C33,Soggetti_proprietari!C:K,4,0)=0,"",VLOOKUP(C33,Soggetti_proprietari!C:K,4,0)),"") -> 058026 | G33: 0 | H33: 0 | I33: 0 | J33: 2002 | K33: 0 | L33: 55437.83 | M33: 55437.83 | O33: 0 | P33: 0 | R33: 55437.83 | S33: 55437.83 | U33: FALSE
A34: 27 | B34: =IFERROR(IF(VLOOKUP(C34,Soggetti_proprietari!C:K,9,0)=0,"",VLOOKUP(C34,Soggetti_proprietari!C:K,9,0)),"") -> 1202_13989-058027- | C34: Cerreto Laziale | D34: =IFERROR(IF(VLOOKUP(C34,Soggetti_proprietari!C:K,2,0)=0,"",VLOOKUP(C34,Soggetti_proprietari!C:K,2,0)),"") -> Comune | E34: =IFERROR(IF(VLOOKUP(C34,Soggetti_proprietari!C:K,3,0)=0,"",VLOOKUP(C34,Soggetti_proprietari!C:K,3,0)),"") ->  | F34: =IFERROR(IF(VLOOKUP(C34,Soggetti_proprietari!C:K,4,0)=0,"",VLOOKUP(C34,Soggetti_proprietari!C:K,4,0)),"") -> 058027 | G34: 0 | H34: 0 | I34: 0 | J34: 2002 | K34: 0 | L34: 3848.251699 | M34: 6649.97 | O34: 0 | P34: 0 | R34: 3848.251699 | S34: 6649.97 | U34: FALSE
A35: 28 | B35: =IFERROR(IF(VLOOKUP(C35,Soggetti_proprietari!C:K,9,0)=0,"",VLOOKUP(C35,Soggetti_proprietari!C:K,9,0)),"") -> 1202_13989-058028- | C35: Cervara di Roma | D35: =IFERROR(IF(VLOOKUP(C35,Soggetti_proprietari!C:K,2,0)=0,"",VLOOKUP(C35,Soggetti_proprietari!C:K,2,0)),"") -> Comune | E35: =IFERROR(IF(VLOOKUP(C35,Soggetti_proprietari!C:K,3,0)=0,"",VLOOKUP(C35,Soggetti_proprietari!C:K,3,0)),"") ->  | F35: =IFERROR(IF(VLOOKUP(C35,Soggetti_proprietari!C:K,4,0)=0,"",VLOOKUP(C35,Soggetti_proprietari!C:K,4,0)),"") -> 058028 | G35: 0 | H35: 0 | I35: 0 | J35: 2002 | K35: 0 | L35: 2866.15 | M35: 2866.15 | O35: 0 | P35: 0 | R35: 2866.15 | S35: 2866.15 | U35: FALSE
A36: 29 | B36: =IFERROR(IF(VLOOKUP(C36,Soggetti_proprietari!C:K,9,0)=0,"",VLOOKUP(C36,Soggetti_proprietari!C:K,9,0)),"") -> 1202_13989-058029- | C36: Cerveteri | D36: =IFERROR(IF(VLOOKUP(C36,Soggetti_proprietari!C:K,2,0)=0,"",VLOOKUP(C36,Soggetti_proprietari!C:K,2,0)),"") -> Comune | E36: =IFERROR(IF(VLOOKUP(C36,Soggetti_proprietari!C:K,3,0)=0,"",VLOOKUP(C36,Soggetti_proprietari!C:K,3,0)),"") ->  | F36: =IFERROR(IF(VLOOKUP(C36,Soggetti_proprietari!C:K,4,0)=0,"",VLOOKUP(C36,Soggetti_proprietari!C:K,4,0)),"") -> 058029 | G36: 0 | H36: 0 | I36: 0 | J36: 2002 | K36: 0 | L36: 144165.41 | M36: 144165.41 | O36: 0 | P36: 0 | R36: 144165.41 | S36: 144165.41 | U36: FALSE
A37: 30 | B37: =IFERROR(IF(VLOOKUP(C37,Soggetti_proprietari!C:K,9,0)=0,"",VLOOKUP(C37,Soggetti_proprietari!C:K,9,0)),"") -> 1202_13989-058118- | C37: Ciampino | D37: =IFERROR(IF(VLOOKUP(C37,Soggetti_proprietari!C:K,2,0)=0,"",VLOOKUP(C37,Soggetti_proprietari!C:K,2,0)),"") -> Comune | E37: =IFERROR(IF(VLOOKUP(C37,Soggetti_proprietari!C:K,3,0)=0,"",VLOOKUP(C37,Soggetti_proprietari!C:K,3,0)),"") ->  | F37: =IFERROR(IF(VLOOKUP(C37,Soggetti_proprietari!C:K,4,0)=0,"",VLOOKUP(C37,Soggetti_proprietari!C:K,4,0)),"") -> 058118 | G37: 0 | H37: 0 | I37: 0 | J37: 2002 | K37: 0 | L37: 204556.04 | M37: 215021.38 | O37: 0 | P37: 0 | R37: 204556.04 | S37: 215021.38 | U37: FALSE
A38: 31 | B38: =IFERROR(IF(VLOOKUP(C38,Soggetti_proprietari!C:K,9,0)=0,"",VLOOKUP(C38,Soggetti_proprietari!C:K,9,0)),"") -> 1202_13989-058030- | C38: Ciciliano | D38: =IFERROR(IF(VLOOKUP(C38,Soggetti_proprietari!C:K,2,0)=0,"",VLOOKUP(C38,Soggetti_proprietari!C:K,2,0)),"") -> Comune | E38: =IFERROR(IF(VLOOKUP(C38,Soggetti_proprietari!C:K,3,0)=0,"",VLOOKUP(C38,Soggetti_proprietari!C:K,3,0)),"") ->  | F38: =IFERROR(IF(VLOOKUP(C38,Soggetti_proprietari!C:K,4,0)=0,"",VLOOKUP(C38,Soggetti_proprietari!C:K,4,0)),"") -> 058030 | G38: 0 | H38: 0 | I38: 0 | J38: 2002 | K38: 0 | L38: 6763.74 | M38: 6763.74 | O38: 0 | P38: 0 | R38: 6763.74 | S38: 6763.74 | U38: FALSE
A39: 32 | B39: =IFERROR(IF(VLOOKUP(C39,Soggetti_proprietari!C:K,9,0)=0,"",VLOOKUP(C39,Soggetti_proprietari!C:K,9,0)),"") -> 1202_13989-058031- | C39: Cineto Romano | D39: =IFERROR(IF(VLOOKUP(C39,Soggetti_proprietari!C:K,2,0)=0,"",VLOOKUP(C39,Soggetti_proprietari!C:K,2,0)),"") -> Comune | E39: =IFERROR(IF(VLOOKUP(C39,Soggetti_proprietari!C:K,3,0)=0,"",VLOOKUP(C39,Soggetti_proprietari!C:K,3,0)),"") ->  | F39: =IFERROR(IF(VLOOKUP(C39,Soggetti_proprietari!C:K,4,0)=0,"",VLOOKUP(C39,Soggetti_proprietari!C:K,4,0)),"") -> 058031 | G39: 0 | H39: 0 | I39: 0 | J39: 2002 | K39: 0 | L39: 0 | M39: 0 | O39: 0 | P39: 0 | R39: 0 | S39: 0 | U39: FALSE
A40: 33 | B40: =IFERROR(IF(VLOOKUP(C40,Soggetti_proprietari!C:K,9,0)=0,"",VLOOKUP(C40,Soggetti_proprietari!C:K,9,0)),"") -> 1202_13989-058032- | C40: Civitavecchia | D40: =IFERROR(IF(VLOOKUP(C40,Soggetti_proprietari!C:K,2,0)=0,"",VLOOKUP(C40,Soggetti_proprietari!C:K,2,0)),"") -> Comune | E40: =IFERROR(IF(VLOOKUP(C40,Soggetti_proprietari!C:K,3,0)=0,"",VLOOKUP(C40,Soggetti_proprietari!C:K,3,0)),"") ->  | F40: =IFERROR(IF(VLOOKUP(C40,Soggetti_proprietari!C:K,4,0)=0,"",VLOOKUP(C40,Soggetti_proprietari!C:K,4,0)),"") -> 058032 | G40: 0 | H40: 0 | I40: 0 | J40: 2002 | K40: 0 | L40: 314286.81 | M40: 314307.77 | O40: 0 | P40: 0 | R40: 314286.81 | S40: 314307.77 | U40: FALSE
A41: 34 | B41: =IFERROR(IF(VLOOKUP(C41,Soggetti_proprietari!C:K,9,0)=0,"",VLOOKUP(C41,Soggetti_proprietari!C:K,9,0)),"") -> 1202_13989-058033- | C41: Civitella San Paolo | D41: =IFERROR(IF(VLOOKUP(C41,Soggetti_proprietari!C:K,2,0)=0,"",VLOOKUP(C41,Soggetti_proprietari!C:K,2,0)),"") -> Comune | E41: =IFERROR(IF(VLOOKUP(C41,Soggetti_proprietari!C:K,3,0)=0,"",VLOOKUP(C41,Soggetti_proprietari!C:K,3,0)),"") ->  | F41: =IFERROR(IF(VLOOKUP(C41,Soggetti_proprietari!C:K,4,0)=0,"",VLOOKUP(C41,Soggetti_proprietari!C:K,4,0)),"") -> 058033 | G41: 0 | H41: 0 | I41: 0 | J41: 2002 | K41: 0 | L41: 2462.89989 | M41: 9666.22 | O41: 0 | P41: 0 | R41: 2462.89989 | S41: 9666.22 | U41: FALSE
A42: 35 | B42: =IFERROR(IF(VLOOKUP(C42,Soggetti_proprietari!C:K,9,0)=0,"",VLOOKUP(C42,Soggetti_proprietari!C:K,9,0)),"") -> 1202_13989-058034- | C42: Colleferro | D42: =IFERROR(IF(VLOOKUP(C42,Soggetti_proprietari!C:K,2,0)=0,"",VLOOKUP(C42,Soggetti_proprietari!C:K,2,0)),"") -> Comune | E42: =IFERROR(IF(VLOOKUP(C42,Soggetti_proprietari!C:K,3,0)=0,"",VLOOKUP(C42,Soggetti_proprietari!C:K,3,0)),"") ->  | F42: =IFERROR(IF(VLOOKUP(C42,Soggetti_proprietari!C:K,4,0)=0,"",VLOOKUP(C42,Soggetti_proprietari!C:K,4,0)),"") -> 058034 | G42: 0 | H42: 0 | I42: 0 | J42: 2002 | K42: 0 | L42: 121093.32 | M42: 127288.5 | O42: 0 | P42: 0 | R42: 121093.32 | S42: 127288.5 | U42: FALSE
A43: 36 | B43: =IFERROR(IF(VLOOKUP(C43,Soggetti_proprietari!C:K,9,0)=0,"",VLOOKUP(C43,Soggetti_proprietari!C:K,9,0)),"") -> 1202_13989-058035- | C43: Colonna | D43: =IFERROR(IF(VLOOKUP(C43,Soggetti_proprietari!C:K,2,0)=0,"",VLOOKUP(C43,Soggetti_proprietari!C:K,2,0)),"") -> Comune | E43: =IFERROR(IF(VLOOKUP(C43,Soggetti_proprietari!C:K,3,0)=0,"",VLOOKUP(C43,Soggetti_proprietari!C:K,3,0)),"") ->  | F43: =IFERROR(IF(VLOOKUP(C43,Soggetti_proprietari!C:K,4,0)=0,"",VLOOKUP(C43,Soggetti_proprietari!C:K,4,0)),"") -> 058035 | G43: 0 | H43: 0 | I43: 0 | J43: 2002 | K43: 0 | L43: 19369.72 | M43: 19369.72 | O43: 0 | P43: 0 | R43: 19369.72 | S43: 19369.72 | U43: FALSE
A44: 37 | B44: =IFERROR(IF(VLOOKUP(C44,Soggetti_proprietari!C:K,9,0)=0,"",VLOOKUP(C44,Soggetti_proprietari!C:K,9,0)),"") -> 1202_13989-058036- | C44: Fiano Romano | D44: =IFERROR(IF(VLOOKUP(C44,Soggetti_proprietari!C:K,2,0)=0,"",VLOOKUP(C44,Soggetti_proprietari!C:K,2,0)),"") -> Comune | E44: =IFERROR(IF(VLOOKUP(C44,Soggetti_proprietari!C:K,3,0)=0,"",VLOOKUP(C44,Soggetti_proprietari!C:K,3,0)),"") ->  | F44: =IFERROR(IF(VLOOKUP(C44,Soggetti_proprietari!C:K,4,0)=0,"",VLOOKUP(C44,Soggetti_proprietari!C:K,4,0)),"") -> 058036 | G44: 2002 | H44: 7058.25 | I44: 0 | J44: 2002 | K44: 0 | L44: 34996.73 | M44: 42054.98 | O44: 7058.25 | P44: 0 | R44: 34996.73 | S44: 42054.98 | U44: FALSE
A45: 38 | B45: =IFERROR(IF(VLOOKUP(C45,Soggetti_proprietari!C:K,9,0)=0,"",VLOOKUP(C45,Soggetti_proprietari!C:K,9,0)),"") -> 1202_13989-058037- | C45: Filacciano | D45: =IFERROR(IF(VLOOKUP(C45,Soggetti_proprietari!C:K,2,0)=0,"",VLOOKUP(C45,Soggetti_proprietari!C:K,2,0)),"") -> Comune | E45: =IFERROR(IF(VLOOKUP(C45,Soggetti_proprietari!C:K,3,0)=0,"",VLOOKUP(C45,Soggetti_proprietari!C:K,3,0)),"") ->  | F45: =IFERROR(IF(VLOOKUP(C45,Soggetti_proprietari!C:K,4,0)=0,"",VLOOKUP(C45,Soggetti_proprietari!C:K,4,0)),"") -> 058037 | G45: 0 | H45: 0 | I45: 0 | J45: 2002 | K45: 0 | L45: 2800.72 | M45: 2800.72 | O45: 0 | P45: 0 | R45: 2800.72 | S45: 2800.72 | U45: FALSE
A46: 39 | B46: =IFERROR(IF(VLOOKUP(C46,Soggetti_proprietari!C:K,9,0)=0,"",VLOOKUP(C46,Soggetti_proprietari!C:K,9,0)),"") -> 1202_13989-060034- | C46: Filettino | D46: =IFERROR(IF(VLOOKUP(C46,Soggetti_proprietari!C:K,2,0)=0,"",VLOOKUP(C46,Soggetti_proprietari!C:K,2,0)),"") -> Comune | E46: =IFERROR(IF(VLOOKUP(C46,Soggetti_proprietari!C:K,3,0)=0,"",VLOOKUP(C46,Soggetti_proprietari!C:K,3,0)),"") ->  | F46: =IFERROR(IF(VLOOKUP(C46,Soggetti_proprietari!C:K,4,0)=0,"",VLOOKUP(C46,Soggetti_proprietari!C:K,4,0)),"") -> 060034 | G46: 0 | H46: 0 | I46: 0 | J46: 2002 | K46: 0 | L46: 0 | M46: 0 | O46: 0 | P46: 0 | R46: 0 | S46: 0 | U46: FALSE
A47: 40 | B47: =IFERROR(IF(VLOOKUP(C47,Soggetti_proprietari!C:K,9,0)=0,"",VLOOKUP(C47,Soggetti_proprietari!C:K,9,0)),"") -> 1202_13989-058120- | C47: Fiumicino | D47: =IFERROR(IF(VLOOKUP(C47,Soggetti_proprietari!C:K,2,0)=0,"",VLOOKUP(C47,Soggetti_proprietari!C:K,2,0)),"") -> Comune | E47: =IFERROR(IF(VLOOKUP(C47,Soggetti_proprietari!C:K,3,0)=0,"",VLOOKUP(C47,Soggetti_proprietari!C:K,3,0)),"") ->  | F47: =IFERROR(IF(VLOOKUP(C47,Soggetti_proprietari!C:K,4,0)=0,"",VLOOKUP(C47,Soggetti_proprietari!C:K,4,0)),"") -> 058120 | G47: 0 | H47: 0 | I47: 0 | J47: 2002 | K47: 0 | L47: 281488.97 | M47: 281488.97 | O47: 0 | P47: 0 | R47: 281488.97 | S47: 281488.97 | U47: FALSE
A48: 41 | B48: =IFERROR(IF(VLOOKUP(C48,Soggetti_proprietari!C:K,9,0)=0,"",VLOOKUP(C48,Soggetti_proprietari!C:K,9,0)),"") -> 1202_13989-058122- | C48: Fonte Nuova | D48: =IFERROR(IF(VLOOKUP(C48,Soggetti_proprietari!C:K,2,0)=0,"",VLOOKUP(C48,Soggetti_proprietari!C:K,2,0)),"") -> Comune | E48: =IFERROR(IF(VLOOKUP(C48,Soggetti_proprietari!C:K,3,0)=0,"",VLOOKUP(C48,Soggetti_proprietari!C:K,3,0)),"") ->  | F48: =IFERROR(IF(VLOOKUP(C48,Soggetti_proprietari!C:K,4,0)=0,"",VLOOKUP(C48,Soggetti_proprietari!C:K,4,0)),"") -> 058122 | G48: 0 | H48: 0 | I48: 0 | J48: 2002 | K48: 0 | L48: 116479.59 | M48: 116479.59 | O48: 0 | P48: 0 | R48: 116479.59 | S48: 116479.59 | U48: FALSE
A49: 42 | B49: =IFERROR(IF(VLOOKUP(C49,Soggetti_proprietari!C:K,9,0)=0,"",VLOOKUP(C49,Soggetti_proprietari!C:K,9,0)),"") -> 1202_13989-058038- | C49: Formello | D49: =IFERROR(IF(VLOOKUP(C49,Soggetti_proprietari!C:K,2,0)=0,"",VLOOKUP(C49,Soggetti_proprietari!C:K,2,0)),"") -> Comune | E49: =IFERROR(IF(VLOOKUP(C49,Soggetti_proprietari!C:K,3,0)=0,"",VLOOKUP(C49,Soggetti_proprietari!C:K,3,0)),"") ->  | F49: =IFERROR(IF(VLOOKUP(C49,Soggetti_proprietari!C:K,4,0)=0,"",VLOOKUP(C49,Soggetti_proprietari!C:K,4,0)),"") -> 058038 | G49: 0 | H49: 0 | I49: 0 | J49: 2002 | K49: 0 | L49: 50409.75 | M49: 50409.75 | O49: 0 | P49: 0 | R49: 50409.75 | S49: 50409.75 | U49: FALSE
A50: 43 | B50: =IFERROR(IF(VLOOKUP(C50,Soggetti_proprietari!C:K,9,0)=0,"",VLOOKUP(C50,Soggetti_proprietari!C:K,9,0)),"") -> 1202_13989-058039- | C50: Frascati | D50: =IFERROR(IF(VLOOKUP(C50,Soggetti_proprietari!C:K,2,0)=0,"",VLOOKUP(C50,Soggetti_proprietari!C:K,2,0)),"") -> Comune | E50: =IFERROR(IF(VLOOKUP(C50,Soggetti_proprietari!C:K,3,0)=0,"",VLOOKUP(C50,Soggetti_proprietari!C:K,3,0)),"") ->  | F50: =IFERROR(IF(VLOOKUP(C50,Soggetti_proprietari!C:K,4,0)=0,"",VLOOKUP(C50,Soggetti_proprietari!C:K,4,0)),"") -> 058039 | G50: 2002 | H50: 148844.92 | I50: 148844.92 | J50: 2002 | K50: 0 | L50: 0 | M50: 0 | O50: 148844.92 | P50: 148844.92 | R50: 0 | S50: 0 | U50: FALSE
A51: 44 | B51: =IFERROR(IF(VLOOKUP(C51,Soggetti_proprietari!C:K,9,0)=0,"",VLOOKUP(C51,Soggetti_proprietari!C:K,9,0)),"") -> 1202_13989-058040- | C51: Gallicano nel Lazio | D51: =IFERROR(IF(VLOOKUP(C51,Soggetti_proprietari!C:K,2,0)=0,"",VLOOKUP(C51,Soggetti_proprietari!C:K,2,0)),"") -> Comune | E51: =IFERROR(IF(VLOOKUP(C51,Soggetti_proprietari!C:K,3,0)=0,"",VLOOKUP(C51,Soggetti_proprietari!C:K,3,0)),"") ->  | F51: =IFERROR(IF(VLOOKUP(C51,Soggetti_proprietari!C:K,4,0)=0,"",VLOOKUP(C51,Soggetti_proprietari!C:K,4,0)),"") -> 058040 | G51: 0 | H51: 0 | I51: 0 | J51: 2002 | K51: 0 | L51: 24783 | M51: 24783 | O51: 0 | P51: 0 | R51: 24783 | S51: 24783 | U51: FALSE
A52: 45 | B52: =IFERROR(IF(VLOOKUP(C52,Soggetti_proprietari!C:K,9,0)=0,"",VLOOKUP(C52,Soggetti_proprietari!C:K,9,0)),"") -> 1202_13989-058041- | C52: Gavignano | D52: =IFERROR(IF(VLOOKUP(C52,Soggetti_proprietari!C:K,2,0)=0,"",VLOOKUP(C52,Soggetti_proprietari!C:K,2,0)),"") -> Comune | E52: =IFERROR(IF(VLOOKUP(C52,Soggetti_proprietari!C:K,3,0)=0,"",VLOOKUP(C52,Soggetti_proprietari!C:K,3,0)),"") ->  | F52: =IFERROR(IF(VLOOKUP(C52,Soggetti_proprietari!C:K,4,0)=0,"",VLOOKUP(C52,Soggetti_proprietari!C:K,4,0)),"") -> 058041 | G52: 0 | H52: 0 | I52: 0 | J52: 2002 | K52: 0 | L52: 10113.21 | M52: 10113.21 | O52: 0 | P52: 0 | R52: 10113.21 | S52: 10113.21 | U52: FALSE
A53: 46 | B53: =IFERROR(IF(VLOOKUP(C53,Soggetti_proprietari!C:K,9,0)=0,"",VLOOKUP(C53,Soggetti_proprietari!C:K,9,0)),"") -> 1202_13989-058042- | C53: Genazzano | D53: =IFERROR(IF(VLOOKUP(C53,Soggetti_proprietari!C:K,2,0)=0,"",VLOOKUP(C53,Soggetti_proprietari!C:K,2,0)),"") -> Comune | E53: =IFERROR(IF(VLOOKUP(C53,Soggetti_proprietari!C:K,3,0)=0,"",VLOOKUP(C53,Soggetti_proprietari!C:K,3,0)),"") ->  | F53: =IFERROR(IF(VLOOKUP(C53,Soggetti_proprietari!C:K,4,0)=0,"",VLOOKUP(C53,Soggetti_proprietari!C:K,4,0)),"") -> 058042 | G53: 2002 | H53: 29827.22 | I53: 29827.22 | J53: 2002 | K53: 0 | L53: 2264.54 | M53: 2264.54 | O53: 29827.22 | P53: 29827.22 | R53: 2264.54 | S53: 2264.54 | U53: FALSE
A54: 47 | B54: =IFERROR(IF(VLOOKUP(C54,Soggetti_proprietari!C:K,9,0)=0,"",VLOOKUP(C54,Soggetti_proprietari!C:K,9,0)),"") -> 1202_13989-058043- | C54: Genzano di Roma | D54: =IFERROR(IF(VLOOKUP(C54,Soggetti_proprietari!C:K,2,0)=0,"",VLOOKUP(C54,Soggetti_proprietari!C:K,2,0)),"") -> Comune | E54: =IFERROR(IF(VLOOKUP(C54,Soggetti_proprietari!C:K,3,0)=0,"",VLOOKUP(C54,Soggetti_proprietari!C:K,3,0)),"") ->  | F54: =IFERROR(IF(VLOOKUP(C54,Soggetti_proprietari!C:K,4,0)=0,"",VLOOKUP(C54,Soggetti_proprietari!C:K,4,0)),"") -> 058043 | G54: 0 | H54: 0 | I54: 0 | J54: 2002 | K54: 0 | L54: 130973.79 | M54: 130973.79 | O54: 0 | P54: 0 | R54: 130973.79 | S54: 130973.79 | U54: FALSE
A55: 48 | B55: =IFERROR(IF(VLOOKUP(C55,Soggetti_proprietari!C:K,9,0)=0,"",VLOOKUP(C55,Soggetti_proprietari!C:K,9,0)),"") -> 1202_13989-058044- | C55: Gerano | D55: =IFERROR(IF(VLOOKUP(C55,Soggetti_proprietari!C:K,2,0)=0,"",VLOOKUP(C55,Soggetti_proprietari!C:K,2,0)),"") -> Comune | E55: =IFERROR(IF(VLOOKUP(C55,Soggetti_proprietari!C:K,3,0)=0,"",VLOOKUP(C55,Soggetti_proprietari!C:K,3,0)),"") ->  | F55: =IFERROR(IF(VLOOKUP(C55,Soggetti_proprietari!C:K,4,0)=0,"",VLOOKUP(C55,Soggetti_proprietari!C:K,4,0)),"") -> 058044 | G55: 0 | H55: 0 | I55: 0 | J55: 2002 | K55: 0 | L55: 7164.29 | M55: 7164.29 | O55: 0 | P55: 0 | R55: 7164.29 | S55: 7164.29 | U55: FALSE
A56: 49 | B56: =IFERROR(IF(VLOOKUP(C56,Soggetti_proprietari!C:K,9,0)=0,"",VLOOKUP(C56,Soggetti_proprietari!C:K,9,0)),"") -> 1202_13989-058045- | C56: Gorga | D56: =IFERROR(IF(VLOOKUP(C56,Soggetti_proprietari!C:K,2,0)=0,"",VLOOKUP(C56,Soggetti_proprietari!C:K,2,0)),"") -> Comune | E56: =IFERROR(IF(VLOOKUP(C56,Soggetti_proprietari!C:K,3,0)=0,"",VLOOKUP(C56,Soggetti_proprietari!C:K,3,0)),"") ->  | F56: =IFERROR(IF(VLOOKUP(C56,Soggetti_proprietari!C:K,4,0)=0,"",VLOOKUP(C56,Soggetti_proprietari!C:K,4,0)),"") -> 058045 | G56: 0 | H56: 0 | I56: 0 | J56: 2002 | K56: 0 | L56: 4422.4 | M56: 4422.4 | O56: 0 | P56: 0 | R56: 4422.4 | S56: 4422.4 | U56: FALSE
A57: 50 | B57: =IFERROR(IF(VLOOKUP(C57,Soggetti_proprietari!C:K,9,0)=0,"",VLOOKUP(C57,Soggetti_proprietari!C:K,9,0)),"") -> 1202_13989-058046- | C57: Grottaferrata | D57: =IFERROR(IF(VLOOKUP(C57,Soggetti_proprietari!C:K,2,0)=0,"",VLOOKUP(C57,Soggetti_proprietari!C:K,2,0)),"") -> Comune | E57: =IFERROR(IF(VLOOKUP(C57,Soggetti_proprietari!C:K,3,0)=0,"",VLOOKUP(C57,Soggetti_proprietari!C:K,3,0)),"") ->  | F57: =IFERROR(IF(VLOOKUP(C57,Soggetti_proprietari!C:K,4,0)=0,"",VLOOKUP(C57,Soggetti_proprietari!C:K,4,0)),"") -> 058046 | G57: 2002 | H57: 33332.3 | I57: 33332.3 | J57: 2002 | K57: 0 | L57: 70693.4 | M57: 70693.4 | O57: 33332.3 | P57: 33332.3 | R57: 70693.4 | S57: 70693.4 | U57: FALSE
A58: 51 | B58: =IFERROR(IF(VLOOKUP(C58,Soggetti_proprietari!C:K,9,0)=0,"",VLOOKUP(C58,Soggetti_proprietari!C:K,9,0)),"") -> 1202_13989-058047- | C58: Guidonia Montecelio | D58: =IFERROR(IF(VLOOKUP(C58,Soggetti_proprietari!C:K,2,0)=0,"",VLOOKUP(C58,Soggetti_proprietari!C:K,2,0)),"") -> Comune | E58: =IFERROR(IF(VLOOKUP(C58,Soggetti_proprietari!C:K,3,0)=0,"",VLOOKUP(C58,Soggetti_proprietari!C:K,3,0)),"") ->  | F58: =IFERROR(IF(VLOOKUP(C58,Soggetti_proprietari!C:K,4,0)=0,"",VLOOKUP(C58,Soggetti_proprietari!C:K,4,0)),"") -> 058047 | G58: 0 | H58: 0 | I58: 0 | J58: 2002 | K58: 0 | L58: 382119.16 | M58: 382119.16 | O58: 0 | P58: 0 | R58: 382119.16 | S58: 382119.16 | U58: FALSE
A59: 52 | B59: =IFERROR(IF(VLOOKUP(C59,Soggetti_proprietari!C:K,9,0)=0,"",VLOOKUP(C59,Soggetti_proprietari!C:K,9,0)),"") -> 1202_13989-058048- | C59: Jenne | D59: =IFERROR(IF(VLOOKUP(C59,Soggetti_proprietari!C:K,2,0)=0,"",VLOOKUP(C59,Soggetti_proprietari!C:K,2,0)),"") -> Comune | E59: =IFERROR(IF(VLOOKUP(C59,Soggetti_proprietari!C:K,3,0)=0,"",VLOOKUP(C59,Soggetti_proprietari!C:K,3,0)),"") ->  | F59: =IFERROR(IF(VLOOKUP(C59,Soggetti_proprietari!C:K,4,0)=0,"",VLOOKUP(C59,Soggetti_proprietari!C:K,4,0)),"") -> 058048 | G59: 0 | H59: 0 | I59: 0 | J59: 2002 | K59: 0 | L59: 2938.62 | M59: 2939.53 | O59: 0 | P59: 0 | R59: 2938.62 | S59: 2939.53 | U59: FALSE
A60: 53 | B60: =IFERROR(IF(VLOOKUP(C60,Soggetti_proprietari!C:K,9,0)=0,"",VLOOKUP(C60,Soggetti_proprietari!C:K,9,0)),"") -> 1202_13989-058049- | C60: Labico | D60: =IFERROR(IF(VLOOKUP(C60,Soggetti_proprietari!C:K,2,0)=0,"",VLOOKUP(C60,Soggetti_proprietari!C:K,2,0)),"") -> Comune | E60: =IFERROR(IF(VLOOKUP(C60,Soggetti_proprietari!C:K,3,0)=0,"",VLOOKUP(C60,Soggetti_proprietari!C:K,3,0)),"") ->  | F60: =IFERROR(IF(VLOOKUP(C60,Soggetti_proprietari!C:K,4,0)=0,"",VLOOKUP(C60,Soggetti_proprietari!C:K,4,0)),"") -> 058049 | G60: 0 | H60: 0 | I60: 0 | J60: 2002 | K60: 0 | L60: 11254.95501 | M60: 19449.2 | O60: 0 | P60: 0 | R60: 11254.95501 | S60: 19449.2 | U60: FALSE
A61: 54 | B61: =IFERROR(IF(VLOOKUP(C61,Soggetti_proprietari!C:K,9,0)=0,"",VLOOKUP(C61,Soggetti_proprietari!C:K,9,0)),"") -> 1202_13989-058116- | C61: Ladispoli | D61: =IFERROR(IF(VLOOKUP(C61,Soggetti_proprietari!C:K,2,0)=0,"",VLOOKUP(C61,Soggetti_proprietari!C:K,2,0)),"") -> Comune | E61: =IFERROR(IF(VLOOKUP(C61,Soggetti_proprietari!C:K,3,0)=0,"",VLOOKUP(C61,Soggetti_proprietari!C:K,3,0)),"") ->  | F61: =IFERROR(IF(VLOOKUP(C61,Soggetti_proprietari!C:K,4,0)=0,"",VLOOKUP(C61,Soggetti_proprietari!C:K,4,0)),"") -> 058116 | G61: 0 | H61: 0 | I61: 0 | J61: 2002 | K61: 0 | L61: 39037.55005 | M61: 153211.89 | O61: 0 | P61: 0 | R61: 39037.55005 | S61: 153211.89 | U61: FALSE
A62: 55 | B62: =IFERROR(IF(VLOOKUP(C62,Soggetti_proprietari!C:K,9,0)=0,"",VLOOKUP(C62,Soggetti_proprietari!C:K,9,0)),"") -> 1202_13989-058050- | C62: Lanuvio | D62: =IFERROR(IF(VLOOKUP(C62,Soggetti_proprietari!C:K,2,0)=0,"",VLOOKUP(C62,Soggetti_proprietari!C:K,2,0)),"") -> Comune | E62: =IFERROR(IF(VLOOKUP(C62,Soggetti_proprietari!C:K,3,0)=0,"",VLOOKUP(C62,Soggetti_proprietari!C:K,3,0)),"") ->  | F62: =IFERROR(IF(VLOOKUP(C62,Soggetti_proprietari!C:K,4,0)=0,"",VLOOKUP(C62,Soggetti_proprietari!C:K,4,0)),"") -> 058050 | G62: 2002 | H62: 48296.4 | I62: 48296.4 | J62: 2002 | K62: 0 | L62: 5665.21 | M62: 5665.21 | O62: 48296.4 | P62: 48296.4 | R62: 5665.21 | S62: 5665.21 | U62: FALSE
A63: 56 | B63: =IFERROR(IF(VLOOKUP(C63,Soggetti_proprietari!C:K,9,0)=0,"",VLOOKUP(C63,Soggetti_proprietari!C:K,9,0)),"") -> 1202_13989-058115- | C63: Lariano | D63: =IFERROR(IF(VLOOKUP(C63,Soggetti_proprietari!C:K,2,0)=0,"",VLOOKUP(C63,Soggetti_proprietari!C:K,2,0)),"") -> Comune | E63: =IFERROR(IF(VLOOKUP(C63,Soggetti_proprietari!C:K,3,0)=0,"",VLOOKUP(C63,Soggetti_proprietari!C:K,3,0)),"") ->  | F63: =IFERROR(IF(VLOOKUP(C63,Soggetti_proprietari!C:K,4,0)=0,"",VLOOKUP(C63,Soggetti_proprietari!C:K,4,0)),"") -> 058115 | G63: 2002 | H63: 61848.47 | I63: 61848.47 | J63: 2002 | K63: 0 | L63: 0 | M63: 0 | O63: 61848.47 | P63: 61848.47 | R63: 0 | S63: 0 | U63: FALSE
A64: 57 | B64: =IFERROR(IF(VLOOKUP(C64,Soggetti_proprietari!C:K,9,0)=0,"",VLOOKUP(C64,Soggetti_proprietari!C:K,9,0)),"") -> 1202_13989-058051- | C64: Licenza | D64: =IFERROR(IF(VLOOKUP(C64,Soggetti_proprietari!C:K,2,0)=0,"",VLOOKUP(C64,Soggetti_proprietari!C:K,2,0)),"") -> Comune | E64: =IFERROR(IF(VLOOKUP(C64,Soggetti_proprietari!C:K,3,0)=0,"",VLOOKUP(C64,Soggetti_proprietari!C:K,3,0)),"") ->  | F64: =IFERROR(IF(VLOOKUP(C64,Soggetti_proprietari!C:K,4,0)=0,"",VLOOKUP(C64,Soggetti_proprietari!C:K,4,0)),"") -> 058051 | G64: 0 | H64: 0 | I64: 0 | J64: 2002 | K64: 0 | L64: 1498.036356 | M64: 5879.39 | O64: 0 | P64: 0 | R64: 1498.036356 | S64: 5879.39 | U64: FALSE
A65: 58 | B65: =IFERROR(IF(VLOOKUP(C65,Soggetti_proprietari!C:K,9,0)=0,"",VLOOKUP(C65,Soggetti_proprietari!C:K,9,0)),"") -> 1202_13989-058053- | C65: Mandela | D65: =IFERROR(IF(VLOOKUP(C65,Soggetti_proprietari!C:K,2,0)=0,"",VLOOKUP(C65,Soggetti_proprietari!C:K,2,0)),"") -> Comune | E65: =IFERROR(IF(VLOOKUP(C65,Soggetti_proprietari!C:K,3,0)=0,"",VLOOKUP(C65,Soggetti_proprietari!C:K,3,0)),"") ->  | F65: =IFERROR(IF(VLOOKUP(C65,Soggetti_proprietari!C:K,4,0)=0,"",VLOOKUP(C65,Soggetti_proprietari!C:K,4,0)),"") -> 058053 | G65: 0 | H65: 0 | I65: 0 | J65: 2002 | K65: 0 | L65: 0 | M65: 0 | O65: 0 | P65: 0 | R65: 0 | S65: 0 | U65: FALSE
A66: 59 | B66: =IFERROR(IF(VLOOKUP(C66,Soggetti_proprietari!C:K,9,0)=0,"",VLOOKUP(C66,Soggetti_proprietari!C:K,9,0)),"") -> 1202_13989-058054- | C66: Manziana | D66: =IFERROR(IF(VLOOKUP(C66,Soggetti_proprietari!C:K,2,0)=0,"",VLOOKUP(C66,Soggetti_proprietari!C:K,2,0)),"") -> Comune | E66: =IFERROR(IF(VLOOKUP(C66,Soggetti_proprietari!C:K,3,0)=0,"",VLOOKUP(C66,Soggetti_proprietari!C:K,3,0)),"") ->  | F66: =IFERROR(IF(VLOOKUP(C66,Soggetti_proprietari!C:K,4,0)=0,"",VLOOKUP(C66,Soggetti_proprietari!C:K,4,0)),"") -> 058054 | G66: 2002 | H66: 34740.27 | I66: 38040.9 | J66: 2002 | K66: 0 | L66: 0 | M66: 0 | O66: 34740.27 | P66: 38040.9 | R66: 0 | S66: 0 | U66: FALSE
A67: 60 | B67: =IFERROR(IF(VLOOKUP(C67,Soggetti_proprietari!C:K,9,0)=0,"",VLOOKUP(C67,Soggetti_proprietari!C:K,9,0)),"") -> 1202_13989-058055- | C67: Marano Equo | D67: =IFERROR(IF(VLOOKUP(C67,Soggetti_proprietari!C:K,2,0)=0,"",VLOOKUP(C67,Soggetti_proprietari!C:K,2,0)),"") -> Comune | E67: =IFERROR(IF(VLOOKUP(C67,Soggetti_proprietari!C:K,3,0)=0,"",VLOOKUP(C67,Soggetti_proprietari!C:K,3,0)),"") ->  | F67: =IFERROR(IF(VLOOKUP(C67,Soggetti_proprietari!C:K,4,0)=0,"",VLOOKUP(C67,Soggetti_proprietari!C:K,4,0)),"") -> 058055 | G67: 0 | H67: 0 | I67: 0 | J67: 2002 | K67: 0 | L67: 3512.357644 | M67: 4893.17 | O67: 0 | P67: 0 | R67: 3512.357644 | S67: 4893.17 | U67: FALSE
A68: 61 | B68: =IFERROR(IF(VLOOKUP(C68,Soggetti_proprietari!C:K,9,0)=0,"",VLOOKUP(C68,Soggetti_proprietari!C:K,9,0)),"") -> 1202_13989-058056- | C68: Marcellina | D68: =IFERROR(IF(VLOOKUP(C68,Soggetti_proprietari!C:K,2,0)=0,"",VLOOKUP(C68,Soggetti_proprietari!C:K,2,0)),"") -> Comune | E68: =IFERROR(IF(VLOOKUP(C68,Soggetti_proprietari!C:K,3,0)=0,"",VLOOKUP(C68,Soggetti_proprietari!C:K,3,0)),"") ->  | F68: =IFERROR(IF(VLOOKUP(C68,Soggetti_proprietari!C:K,4,0)=0,"",VLOOKUP(C68,Soggetti_proprietari!C:K,4,0)),"") -> 058056 | G68: 0 | H68: 0 | I68: 0 | J68: 2002 | K68: 0 | L68: 31801.75 | M68: 31801.75 | O68: 0 | P68: 0 | R68: 31801.75 | S68: 31801.75 | U68: FALSE
A69: 62 | B69: =IFERROR(IF(VLOOKUP(C69,Soggetti_proprietari!C:K,9,0)=0,"",VLOOKUP(C69,Soggetti_proprietari!C:K,9,0)),"") -> 1202_13989-058057- | C69: Marino | D69: =IFERROR(IF(VLOOKUP(C69,Soggetti_proprietari!C:K,2,0)=0,"",VLOOKUP(C69,Soggetti_proprietari!C:K,2,0)),"") -> Comune | E69: =IFERROR(IF(VLOOKUP(C69,Soggetti_proprietari!C:K,3,0)=0,"",VLOOKUP(C69,Soggetti_proprietari!C:K,3,0)),"") ->  | F69: =IFERROR(IF(VLOOKUP(C69,Soggetti_proprietari!C:K,4,0)=0,"",VLOOKUP(C69,Soggetti_proprietari!C:K,4,0)),"") -> 058057 | G69: 0 | H69: 0 | I69: 0 | J69: 2002 | K69: 0 | L69: 210008.83 | M69: 210008.83 | O69: 0 | P69: 0 | R69: 210008.83 | S69: 210008.83 | U69: FALSE
A70: 63 | B70: =IFERROR(IF(VLOOKUP(C70,Soggetti_proprietari!C:K,9,0)=0,"",VLOOKUP(C70,Soggetti_proprietari!C:K,9,0)),"") -> 1202_13989-058059- | C70: Mentana | D70: =IFERROR(IF(VLOOKUP(C70,Soggetti_proprietari!C:K,2,0)=0,"",VLOOKUP(C70,Soggetti_proprietari!C:K,2,0)),"") -> Comune | E70: =IFERROR(IF(VLOOKUP(C70,Soggetti_proprietari!C:K,3,0)=0,"",VLOOKUP(C70,Soggetti_proprietari!C:K,3,0)),"") ->  | F70: =IFERROR(IF(VLOOKUP(C70,Soggetti_proprietari!C:K,4,0)=0,"",VLOOKUP(C70,Soggetti_proprietari!C:K,4,0)),"") -> 058059 | G70: 0 | H70: 0 | I70: 0 | J70: 2002 | K70: 0 | L70: 105653.36 | M70: 105653.36 | O70: 0 | P70: 0 | R70: 105653.36 | S70: 105653.36 | U70: FALSE
A71: 64 | B71: =IFERROR(IF(VLOOKUP(C71,Soggetti_proprietari!C:K,9,0)=0,"",VLOOKUP(C71,Soggetti_proprietari!C:K,9,0)),"") -> 1202_13989-058064- | C71: Monte Porzio Catone | D71: =IFERROR(IF(VLOOKUP(C71,Soggetti_proprietari!C:K,2,0)=0,"",VLOOKUP(C71,Soggetti_proprietari!C:K,2,0)),"") -> Comune | E71: =IFERROR(IF(VLOOKUP(C71,Soggetti_proprietari!C:K,3,0)=0,"",VLOOKUP(C71,Soggetti_proprietari!C:K,3,0)),"") ->  | F71: =IFERROR(IF(VLOOKUP(C71,Soggetti_proprietari!C:K,4,0)=0,"",VLOOKUP(C71,Soggetti_proprietari!C:K,4,0)),"") -> 058064 | G71: 2002 | H71: 25370.1 | I71: 25370.1 | J71: 2002 | K71: 0 | L71: 20285.27 | M71: 20285.27 | O71: 25370.1 | P71: 25370.1 | R71: 20285.27 | S71: 20285.27 | U71: FALSE
A72: 65 | B72: =IFERROR(IF(VLOOKUP(C72,Soggetti_proprietari!C:K,9,0)=0,"",VLOOKUP(C72,Soggetti_proprietari!C:K,9,0)),"") -> 1202_13989-058060- | C72: Monte Compatri | D72: =IFERROR(IF(VLOOKUP(C72,Soggetti_proprietari!C:K,2,0)=0,"",VLOOKUP(C72,Soggetti_proprietari!C:K,2,0)),"") -> Comune | E72: =IFERROR(IF(VLOOKUP(C72,Soggetti_proprietari!C:K,3,0)=0,"",VLOOKUP(C72,Soggetti_proprietari!C:K,3,0)),"") ->  | F72: =IFERROR(IF(VLOOKUP(C72,Soggetti_proprietari!C:K,4,0)=0,"",VLOOKUP(C72,Soggetti_proprietari!C:K,4,0)),"") -> 058060 | G72: 0 | H72: 0 | I72: 0 | J72: 2002 | K72: 0 | L72: 46820.7 | M72: 46820.7 | O72: 0 | P72: 0 | R72: 46820.7 | S72: 46820.7 | U72: FALSE
A73: =+ROW(A73)-7 -> 66 | B73: =IFERROR(IF(VLOOKUP(C73,Soggetti_proprietari!C:K,9,0)=0,"",VLOOKUP(C73,Soggetti_proprietari!C:K,9,0)),"") -> 1202_13989-058062- | C73: Montelanico | D73: =IFERROR(IF(VLOOKUP(C73,Soggetti_proprietari!C:K,2,0)=0,"",VLOOKUP(C73,Soggetti_proprietari!C:K,2,0)),"") -> Comune | E73: =IFERROR(IF(VLOOKUP(C73,Soggetti_proprietari!C:K,3,0)=0,"",VLOOKUP(C73,Soggetti_proprietari!C:K,3,0)),"") ->  | F73: =IFERROR(IF(VLOOKUP(C73,Soggetti_proprietari!C:K,4,0)=0,"",VLOOKUP(C73,Soggetti_proprietari!C:K,4,0)),"") -> 058062 | G73: 0 | H73: 0 | I73: 0 | J73: 2002 | K73: 0 | L73: 11227.5 | M73: 11227.5 | O73: =+IF(AND($G73<=2019,$G73<>"",$D73<>"Altra società privata",$B73<>""),H73,0) -> 0 | P73: =+IF(AND($G73<=2019,$G73<>"",$D73<>"Altra società privata",$B73<>""),I73,0) -> 0 | R73: =+IF(AND($J73<=2006,$J73<>"",$D73<>"Altra società privata",$B73<>""),L73,IF($K73="SI",L73,0)) -> 11227.5 | S73: =+IF(AND($J73<=2006,$J73<>"",$D73<>"Altra società privata",$B73<>""),M73,IF($K73="SI",M73,0)) -> 11227.5 | U73: =IF(COUNTIF(B:B,B73)>1,IF(AND(G73="",H73="",I73="",J73="",L73="",M73="",C73=""),FALSE,TRUE),FALSE) -> FALSE
A74: 67 | B74: =IFERROR(IF(VLOOKUP(C74,Soggetti_proprietari!C:K,9,0)=0,"",VLOOKUP(C74,Soggetti_proprietari!C:K,9,0)),"") -> 1202_13989-058065- | C74: Monterotondo | D74: =IFERROR(IF(VLOOKUP(C74,Soggetti_proprietari!C:K,2,0)=0,"",VLOOKUP(C74,Soggetti_proprietari!C:K,2,0)),"") -> Comune | E74: =IFERROR(IF(VLOOKUP(C74,Soggetti_proprietari!C:K,3,0)=0,"",VLOOKUP(C74,Soggetti_proprietari!C:K,3,0)),"") ->  | F74: =IFERROR(IF(VLOOKUP(C74,Soggetti_proprietari!C:K,4,0)=0,"",VLOOKUP(C74,Soggetti_proprietari!C:K,4,0)),"") -> 058065 | G74: 0 | H74: 0 | I74: 0 | J74: 2002 | K74: 0 | L74: 193597.9 | M74: 193597.9 | O74: 0 | P74: 0 | R74: 193597.9 | S74: 193597.9 | U74: FALSE
A75: 68 | B75: =IFERROR(IF(VLOOKUP(C75,Soggetti_proprietari!C:K,9,0)=0,"",VLOOKUP(C75,Soggetti_proprietari!C:K,9,0)),"") -> 1202_13989-058068- | C75: Morlupo | D75: =IFERROR(IF(VLOOKUP(C75,Soggetti_proprietari!C:K,2,0)=0,"",VLOOKUP(C75,Soggetti_proprietari!C:K,2,0)),"") -> Comune | E75: =IFERROR(IF(VLOOKUP(C75,Soggetti_proprietari!C:K,3,0)=0,"",VLOOKUP(C75,Soggetti_proprietari!C:K,3,0)),"") ->  | F75: =IFERROR(IF(VLOOKUP(C75,Soggetti_proprietari!C:K,4,0)=0,"",VLOOKUP(C75,Soggetti_proprietari!C:K,4,0)),"") -> 058068 | G75: 0 | H75: 0 | I75: 0 | J75: 2002 | K75: 0 | L75: 40372.78 | M75: 40375.86 | O75: 0 | P75: 0 | R75: 40372.78 | S75: 40375.86 | U75: FALSE
A76: 69 | B76: =IFERROR(IF(VLOOKUP(C76,Soggetti_proprietari!C:K,9,0)=0,"",VLOOKUP(C76,Soggetti_proprietari!C:K,9,0)),"") -> 1202_13989-058069- | C76: Nazzano | D76: =IFERROR(IF(VLOOKUP(C76,Soggetti_proprietari!C:K,2,0)=0,"",VLOOKUP(C76,Soggetti_proprietari!C:K,2,0)),"") -> Comune | E76: =IFERROR(IF(VLOOKUP(C76,Soggetti_proprietari!C:K,3,0)=0,"",VLOOKUP(C76,Soggetti_proprietari!C:K,3,0)),"") ->  | F76: =IFERROR(IF(VLOOKUP(C76,Soggetti_proprietari!C:K,4,0)=0,"",VLOOKUP(C76,Soggetti_proprietari!C:K,4,0)),"") -> 058069 | G76: 0 | H76: 0 | I76: 0 | J76: 2002 | K76: 0 | L76: 7471.43 | M76: 7471.43 | O76: 0 | P76: 0 | R76: 7471.43 | S76: 7471.43 | U76: FALSE
A77: 70 | B77: =IFERROR(IF(VLOOKUP(C77,Soggetti_proprietari!C:K,9,0)=0,"",VLOOKUP(C77,Soggetti_proprietari!C:K,9,0)),"") -> 1202_13989-058070- | C77: Nemi | D77: =IFERROR(IF(VLOOKUP(C77,Soggetti_proprietari!C:K,2,0)=0,"",VLOOKUP(C77,Soggetti_proprietari!C:K,2,0)),"") -> Comune | E77: =IFERROR(IF(VLOOKUP(C77,Soggetti_proprietari!C:K,3,0)=0,"",VLOOKUP(C77,Soggetti_proprietari!C:K,3,0)),"") ->  | F77: =IFERROR(IF(VLOOKUP(C77,Soggetti_proprietari!C:K,4,0)=0,"",VLOOKUP(C77,Soggetti_proprietari!C:K,4,0)),"") -> 058070 | G77: 0 | H77: 0 | I77: 0 | J77: 2002 | K77: 0 | L77: 10396.29 | M77: 10396.29 | O77: 0 | P77: 0 | R77: 10396.29 | S77: 10396.29 | U77: FALSE
A78: 71 | B78: =IFERROR(IF(VLOOKUP(C78,Soggetti_proprietari!C:K,9,0)=0,"",VLOOKUP(C78,Soggetti_proprietari!C:K,9,0)),"") -> 1202_13989-058073- | C78: Olevano Romano | D78: =IFERROR(IF(VLOOKUP(C78,Soggetti_proprietari!C:K,2,0)=0,"",VLOOKUP(C78,Soggetti_proprietari!C:K,2,0)),"") -> Comune | E78: =IFERROR(IF(VLOOKUP(C78,Soggetti_proprietari!C:K,3,0)=0,"",VLOOKUP(C78,Soggetti_proprietari!C:K,3,0)),"") ->  | F78: =IFERROR(IF(VLOOKUP(C78,Soggetti_proprietari!C:K,4,0)=0,"",VLOOKUP(C78,Soggetti_proprietari!C:K,4,0)),"") -> 058073 | G78: 0 | H78: 0 | I78: 0 | J78: 2002 | K78: 0 | L78: 37529.6 | M78: 37529.6 | O78: 0 | P78: 0 | R78: 37529.6 | S78: 37529.6 | U78: FALSE
A79: 72 | B79: =IFERROR(IF(VLOOKUP(C79,Soggetti_proprietari!C:K,9,0)=0,"",VLOOKUP(C79,Soggetti_proprietari!C:K,9,0)),"") -> 1202_13989-056041- | C79: Oriolo Romano | D79: =IFERROR(IF(VLOOKUP(C79,Soggetti_proprietari!C:K,2,0)=0,"",VLOOKUP(C79,Soggetti_proprietari!C:K,2,0)),"") -> Comune | E79: =IFERROR(IF(VLOOKUP(C79,Soggetti_proprietari!C:K,3,0)=0,"",VLOOKUP(C79,Soggetti_proprietari!C:K,3,0)),"") ->  | F79: =IFERROR(IF(VLOOKUP(C79,Soggetti_proprietari!C:K,4,0)=0,"",VLOOKUP(C79,Soggetti_proprietari!C:K,4,0)),"") -> 056041 | G79: 0 | H79: 0 | I79: 0 | J79: 2002 | K79: 0 | L79: 16422.3 | M79: 16422.3 | O79: 0 | P79: 0 | R79: 16422.3 | S79: 16422.3 | U79: FALSE
A80: 73 | B80: =IFERROR(IF(VLOOKUP(C80,Soggetti_proprietari!C:K,9,0)=0,"",VLOOKUP(C80,Soggetti_proprietari!C:K,9,0)),"") -> 1202_13989-058074- | C80: Palestrina | D80: =IFERROR(IF(VLOOKUP(C80,Soggetti_proprietari!C:K,2,0)=0,"",VLOOKUP(C80,Soggetti_proprietari!C:K,2,0)),"") -> Comune | E80: =IFERROR(IF(VLOOKUP(C80,Soggetti_proprietari!C:K,3,0)=0,"",VLOOKUP(C80,Soggetti_proprietari!C:K,3,0)),"") ->  | F80: =IFERROR(IF(VLOOKUP(C80,Soggetti_proprietari!C:K,4,0)=0,"",VLOOKUP(C80,Soggetti_proprietari!C:K,4,0)),"") -> 058074 | G80: 0 | H80: 0 | I80: 0 | J80: 2002 | K80: 0 | L80: 102661.58 | M80: 102661.58 | O80: 0 | P80: 0 | R80: 102661.58 | S80: 102661.58 | U80: FALSE
A81: 74 | B81: =IFERROR(IF(VLOOKUP(C81,Soggetti_proprietari!C:K,9,0)=0,"",VLOOKUP(C81,Soggetti_proprietari!C:K,9,0)),"") -> 1202_13989-058076- | C81: Percile | D81: =IFERROR(IF(VLOOKUP(C81,Soggetti_proprietari!C:K,2,0)=0,"",VLOOKUP(C81,Soggetti_proprietari!C:K,2,0)),"") -> Comune | E81: =IFERROR(IF(VLOOKUP(C81,Soggetti_proprietari!C:K,3,0)=0,"",VLOOKUP(C81,Soggetti_proprietari!C:K,3,0)),"") ->  | F81: =IFERROR(IF(VLOOKUP(C81,Soggetti_proprietari!C:K,4,0)=0,"",VLOOKUP(C81,Soggetti_proprietari!C:K,4,0)),"") -> 058076 | G81: 0 | H81: 0 | I81: 0 | J81: 2002 | K81: 0 | L81: 1516.43 | M81: 1516.43 | O81: 0 | P81: 0 | R81: 1516.43 | S81: 1516.43 | U81: FALSE
A82: 75 | B82: =IFERROR(IF(VLOOKUP(C82,Soggetti_proprietari!C:K,9,0)=0,"",VLOOKUP(C82,Soggetti_proprietari!C:K,9,0)),"") -> 1202_13989-058077- | C82: Pisoniano | D82: =IFERROR(IF(VLOOKUP(C82,Soggetti_proprietari!C:K,2,0)=0,"",VLOOKUP(C82,Soggetti_proprietari!C:K,2,0)),"") -> Comune | E82: =IFERROR(IF(VLOOKUP(C82,Soggetti_proprietari!C:K,3,0)=0,"",VLOOKUP(C82,Soggetti_proprietari!C:K,3,0)),"") ->  | F82: =IFERROR(IF(VLOOKUP(C82,Soggetti_proprietari!C:K,4,0)=0,"",VLOOKUP(C82,Soggetti_proprietari!C:K,4,0)),"") -> 058077 | G82: 0 | H82: 0 | I82: 0 | J82: 2002 | K82: 0 | L82: 4941.79 | M82: 4941.79 | O82: 0 | P82: 0 | R82: 4941.79 | S82: 4941.79 | U82: FALSE
A83: 76 | B83: =IFERROR(IF(VLOOKUP(C83,Soggetti_proprietari!C:K,9,0)=0,"",VLOOKUP(C83,Soggetti_proprietari!C:K,9,0)),"") -> 1202_13989-058078- | C83: Poli | D83: =IFERROR(IF(VLOOKUP(C83,Soggetti_proprietari!C:K,2,0)=0,"",VLOOKUP(C83,Soggetti_proprietari!C:K,2,0)),"") -> Comune | E83: =IFERROR(IF(VLOOKUP(C83,Soggetti_proprietari!C:K,3,0)=0,"",VLOOKUP(C83,Soggetti_proprietari!C:K,3,0)),"") ->  | F83: =IFERROR(IF(VLOOKUP(C83,Soggetti_proprietari!C:K,4,0)=0,"",VLOOKUP(C83,Soggetti_proprietari!C:K,4,0)),"") -> 058078 | G83: 0 | H83: 0 | I83: 0 | J83: 2002 | K83: 0 | L83: 12990.56 | M83: 12990.56 | O83: 0 | P83: 0 | R83: 12990.56 | S83: 12990.56 | U83: FALSE
A84: 77 | B84: =IFERROR(IF(VLOOKUP(C84,Soggetti_proprietari!C:K,9,0)=0,"",VLOOKUP(C84,Soggetti_proprietari!C:K,9,0)),"") -> 1202_13989-058079- | C84: Pomezia | D84: =IFERROR(IF(VLOOKUP(C84,Soggetti_proprietari!C:K,2,0)=0,"",VLOOKUP(C84,Soggetti_proprietari!C:K,2,0)),"") -> Comune | E84: =IFERROR(IF(VLOOKUP(C84,Soggetti_proprietari!C:K,3,0)=0,"",VLOOKUP(C84,Soggetti_proprietari!C:K,3,0)),"") ->  | F84: =IFERROR(IF(VLOOKUP(C84,Soggetti_proprietari!C:K,4,0)=0,"",VLOOKUP(C84,Soggetti_proprietari!C:K,4,0)),"") -> 058079 | G84: 2002 | H84: 66937.74 | I84: 66937.74 | J84: 2002 | K84: 0 | L84: 198846.26 | M84: 198846.26 | O84: 66937.74 | P84: 66937.74 | R84: 198846.26 | S84: 198846.26 | U84: FALSE
A85: 78 | B85: =IFERROR(IF(VLOOKUP(C85,Soggetti_proprietari!C:K,9,0)=0,"",VLOOKUP(C85,Soggetti_proprietari!C:K,9,0)),"") -> 1202_13989-058080- | C85: Ponzano Romano | D85: =IFERROR(IF(VLOOKUP(C85,Soggetti_proprietari!C:K,2,0)=0,"",VLOOKUP(C85,Soggetti_proprietari!C:K,2,0)),"") -> Comune | E85: =IFERROR(IF(VLOOKUP(C85,Soggetti_proprietari!C:K,3,0)=0,"",VLOOKUP(C85,Soggetti_proprietari!C:K,3,0)),"") ->  | F85: =IFERROR(IF(VLOOKUP(C85,Soggetti_proprietari!C:K,4,0)=0,"",VLOOKUP(C85,Soggetti_proprietari!C:K,4,0)),"") -> 058080 | G85: 0 | H85: 0 | I85: 0 | J85: 2002 | K85: 0 | L85: 5821.19 | M85: 5822.98 | O85: 0 | P85: 0 | R85: 5821.19 | S85: 5822.98 | U85: FALSE
A86: 79 | B86: =IFERROR(IF(VLOOKUP(C86,Soggetti_proprietari!C:K,9,0)=0,"",VLOOKUP(C86,Soggetti_proprietari!C:K,9,0)),"") -> 1202_13989-058081- | C86: Riano | D86: =IFERROR(IF(VLOOKUP(C86,Soggetti_proprietari!C:K,2,0)=0,"",VLOOKUP(C86,Soggetti_proprietari!C:K,2,0)),"") -> Comune | E86: =IFERROR(IF(VLOOKUP(C86,Soggetti_proprietari!C:K,3,0)=0,"",VLOOKUP(C86,Soggetti_proprietari!C:K,3,0)),"") ->  | F86: =IFERROR(IF(VLOOKUP(C86,Soggetti_proprietari!C:K,4,0)=0,"",VLOOKUP(C86,Soggetti_proprietari!C:K,4,0)),"") -> 058081 | G86: 2002 | H86: 53544.06 | I86: 53544.06 | J86: 2002 | K86: 0 | L86: 0 | M86: 0 | O86: 53544.06 | P86: 53544.06 | R86: 0 | S86: 0 | U86: FALSE
A87: 80 | B87: =IFERROR(IF(VLOOKUP(C87,Soggetti_proprietari!C:K,9,0)=0,"",VLOOKUP(C87,Soggetti_proprietari!C:K,9,0)),"") -> 1202_13989-058082- | C87: Rignano Flaminio | D87: =IFERROR(IF(VLOOKUP(C87,Soggetti_proprietari!C:K,2,0)=0,"",VLOOKUP(C87,Soggetti_proprietari!C:K,2,0)),"") -> Comune | E87: =IFERROR(IF(VLOOKUP(C87,Soggetti_proprietari!C:K,3,0)=0,"",VLOOKUP(C87,Soggetti_proprietari!C:K,3,0)),"") ->  | F87: =IFERROR(IF(VLOOKUP(C87,Soggetti_proprietari!C:K,4,0)=0,"",VLOOKUP(C87,Soggetti_proprietari!C:K,4,0)),"") -> 058082 | G87: 0 | H87: 0 | I87: 0 | J87: 2002 | K87: 0 | L87: 39791.04 | M87: 39780.51 | O87: 0 | P87: 0 | R87: 39791.04 | S87: 39780.51 | U87: FALSE
A88: 81 | B88: =IFERROR(IF(VLOOKUP(C88,Soggetti_proprietari!C:K,9,0)=0,"",VLOOKUP(C88,Soggetti_proprietari!C:K,9,0)),"") -> 1202_13989-058083- | C88: Riofreddo | D88: =IFERROR(IF(VLOOKUP(C88,Soggetti_proprietari!C:K,2,0)=0,"",VLOOKUP(C88,Soggetti_proprietari!C:K,2,0)),"") -> Comune | E88: =IFERROR(IF(VLOOKUP(C88,Soggetti_proprietari!C:K,3,0)=0,"",VLOOKUP(C88,Soggetti_proprietari!C:K,3,0)),"") ->  | F88: =IFERROR(IF(VLOOKUP(C88,Soggetti_proprietari!C:K,4,0)=0,"",VLOOKUP(C88,Soggetti_proprietari!C:K,4,0)),"") -> 058083 | G88: 0 | H88: 0 | I88: 0 | J88: 2002 | K88: 0 | L88: 0 | M88: 0 | O88: 0 | P88: 0 | R88: 0 | S88: 0 | U88: FALSE
A89: 82 | B89: =IFERROR(IF(VLOOKUP(C89,Soggetti_proprietari!C:K,9,0)=0,"",VLOOKUP(C89,Soggetti_proprietari!C:K,9,0)),"") -> 1202_13989-058084- | C89: Rocca Canterano | D89: =IFERROR(IF(VLOOKUP(C89,Soggetti_proprietari!C:K,2,0)=0,"",VLOOKUP(C89,Soggetti_proprietari!C:K,2,0)),"") -> Comune | E89: =IFERROR(IF(VLOOKUP(C89,Soggetti_proprietari!C:K,3,0)=0,"",VLOOKUP(C89,Soggetti_proprietari!C:K,3,0)),"") ->  | F89: =IFERROR(IF(VLOOKUP(C89,Soggetti_proprietari!C:K,4,0)=0,"",VLOOKUP(C89,Soggetti_proprietari!C:K,4,0)),"") -> 058084 | G89: 0 | H89: 0 | I89: 0 | J89: 2002 | K89: 0 | L89: 1580.29 | M89: 1580.29 | O89: 0 | P89: 0 | R89: 1580.29 | S89: 1580.29 | U89: FALSE
A90: 83 | B90: =IFERROR(IF(VLOOKUP(C90,Soggetti_proprietari!C:K,9,0)=0,"",VLOOKUP(C90,Soggetti_proprietari!C:K,9,0)),"") -> 1202_13989-058085- | C90: Rocca di Cave | D90: =IFERROR(IF(VLOOKUP(C90,Soggetti_proprietari!C:K,2,0)=0,"",VLOOKUP(C90,Soggetti_proprietari!C:K,2,0)),"") -> Comune | E90: =IFERROR(IF(VLOOKUP(C90,Soggetti_proprietari!C:K,3,0)=0,"",VLOOKUP(C90,Soggetti_proprietari!C:K,3,0)),"") ->  | F90: =IFERROR(IF(VLOOKUP(C90,Soggetti_proprietari!C:K,4,0)=0,"",VLOOKUP(C90,Soggetti_proprietari!C:K,4,0)),"") -> 058085 | G90: 0 | H90: 0 | I90: 0 | J90: 2002 | K90: 0 | L90: 2152.37 | M90: 2152.37 | O90: 0 | P90: 0 | R90: 2152.37 | S90: 2152.37 | U90: FALSE
A91: 84 | B91: =IFERROR(IF(VLOOKUP(C91,Soggetti_proprietari!C:K,9,0)=0,"",VLOOKUP(C91,Soggetti_proprietari!C:K,9,0)),"") -> 1202_13989-058086- | C91: Rocca di Papa | D91: =IFERROR(IF(VLOOKUP(C91,Soggetti_proprietari!C:K,2,0)=0,"",VLOOKUP(C91,Soggetti_proprietari!C:K,2,0)),"") -> Comune | E91: =IFERROR(IF(VLOOKUP(C91,Soggetti_proprietari!C:K,3,0)=0,"",VLOOKUP(C91,Soggetti_proprietari!C:K,3,0)),"") ->  | F91: =IFERROR(IF(VLOOKUP(C91,Soggetti_proprietari!C:K,4,0)=0,"",VLOOKUP(C91,Soggetti_proprietari!C:K,4,0)),"") -> 058086 | G91: 0 | H91: 0 | I91: 0 | J91: 2002 | K91: 0 | L91: 73834.22 | M91: 73834.22 | O91: 0 | P91: 0 | R91: 73834.22 | S91: 73834.22 | U91: FALSE
A92: 85 | B92: =IFERROR(IF(VLOOKUP(C92,Soggetti_proprietari!C:K,9,0)=0,"",VLOOKUP(C92,Soggetti_proprietari!C:K,9,0)),"") -> 1202_13989-058088- | C92: Rocca Priora | D92: =IFERROR(IF(VLOOKUP(C92,Soggetti_proprietari!C:K,2,0)=0,"",VLOOKUP(C92,Soggetti_proprietari!C:K,2,0)),"") -> Comune | E92: =IFERROR(IF(VLOOKUP(C92,Soggetti_proprietari!C:K,3,0)=0,"",VLOOKUP(C92,Soggetti_proprietari!C:K,3,0)),"") ->  | F92: =IFERROR(IF(VLOOKUP(C92,Soggetti_proprietari!C:K,4,0)=0,"",VLOOKUP(C92,Soggetti_proprietari!C:K,4,0)),"") -> 058088 | G92: 0 | H92: 0 | I92: 0 | J92: 2002 | K92: 0 | L92: 57789.44 | M92: 57789.44 | O92: 0 | P92: 0 | R92: 57789.44 | S92: 57789.44 | U92: FALSE
A93: 86 | B93: =IFERROR(IF(VLOOKUP(C93,Soggetti_proprietari!C:K,9,0)=0,"",VLOOKUP(C93,Soggetti_proprietari!C:K,9,0)),"") -> 1202_13989-058089- | C93: Rocca Santo Stefano | D93: =IFERROR(IF(VLOOKUP(C93,Soggetti_proprietari!C:K,2,0)=0,"",VLOOKUP(C93,Soggetti_proprietari!C:K,2,0)),"") -> Comune | E93: =IFERROR(IF(VLOOKUP(C93,Soggetti_proprietari!C:K,3,0)=0,"",VLOOKUP(C93,Soggetti_proprietari!C:K,3,0)),"") ->  | F93: =IFERROR(IF(VLOOKUP(C93,Soggetti_proprietari!C:K,4,0)=0,"",VLOOKUP(C93,Soggetti_proprietari!C:K,4,0)),"") -> 058089 | G93: 0 | H93: 0 | I93: 0 | J93: 2002 | K93: 0 | L93: 6020.68 | M93: 6020.68 | O93: 0 | P93: 0 | R93: 6020.68 | S93: 6020.68 | U93: FALSE
A94: 87 | B94: =IFERROR(IF(VLOOKUP(C94,Soggetti_proprietari!C:K,9,0)=0,"",VLOOKUP(C94,Soggetti_proprietari!C:K,9,0)),"") -> 1202_13989-058087- | C94: Roccagiovine | D94: =IFERROR(IF(VLOOKUP(C94,Soggetti_proprietari!C:K,2,0)=0,"",VLOOKUP(C94,Soggetti_proprietari!C:K,2,0)),"") -> Comune | E94: =IFERROR(IF(VLOOKUP(C94,Soggetti_proprietari!C:K,3,0)=0,"",VLOOKUP(C94,Soggetti_proprietari!C:K,3,0)),"") ->  | F94: =IFERROR(IF(VLOOKUP(C94,Soggetti_proprietari!C:K,4,0)=0,"",VLOOKUP(C94,Soggetti_proprietari!C:K,4,0)),"") -> 058087 | G94: 0 | H94: 0 | I94: 0 | J94: 2002 | K94: 0 | L94: 0 | M94: 0 | O94: 0 | P94: 0 | R94: 0 | S94: 0 | U94: FALSE
A95: 88 | B95: =IFERROR(IF(VLOOKUP(C95,Soggetti_proprietari!C:K,9,0)=0,"",VLOOKUP(C95,Soggetti_proprietari!C:K,9,0)),"") -> 1202_13989-058090- | C95: Roiate | D95: =IFERROR(IF(VLOOKUP(C95,Soggetti_proprietari!C:K,2,0)=0,"",VLOOKUP(C95,Soggetti_proprietari!C:K,2,0)),"") -> Comune | E95: =IFERROR(IF(VLOOKUP(C95,Soggetti_proprietari!C:K,3,0)=0,"",VLOOKUP(C95,Soggetti_proprietari!C:K,3,0)),"") ->  | F95: =IFERROR(IF(VLOOKUP(C95,Soggetti_proprietari!C:K,4,0)=0,"",VLOOKUP(C95,Soggetti_proprietari!C:K,4,0)),"") -> 058090 | G95: 0 | H95: 0 | I95: 0 | J95: 2002 | K95: 0 | L95: 4870.69 | M95: 4870.69 | O95: 0 | P95: 0 | R95: 4870.69 | S95: 4870.69 | U95: FALSE
A96: 89 | B96: =IFERROR(IF(VLOOKUP(C96,Soggetti_proprietari!C:K,9,0)=0,"",VLOOKUP(C96,Soggetti_proprietari!C:K,9,0)),"") -> 1202_13989-058091- | C96: Roma | D96: =IFERROR(IF(VLOOKUP(C96,Soggetti_proprietari!C:K,2,0)=0,"",VLOOKUP(C96,Soggetti_proprietari!C:K,2,0)),"") -> Comune | E96: =IFERROR(IF(VLOOKUP(C96,Soggetti_proprietari!C:K,3,0)=0,"",VLOOKUP(C96,Soggetti_proprietari!C:K,3,0)),"") ->  | F96: =IFERROR(IF(VLOOKUP(C96,Soggetti_proprietari!C:K,4,0)=0,"",VLOOKUP(C96,Soggetti_proprietari!C:K,4,0)),"") -> 058091 | G96: 0 | H96: 0 | I96: 0 | J96: 2002 | K96: 0 | L96: 25275916.98 | M96: 25275916.98 | O96: 0 | P96: 0 | R96: 25275916.98 | S96: 25275916.98 | U96: FALSE
A97: 90 | B97: =IFERROR(IF(VLOOKUP(C97,Soggetti_proprietari!C:K,9,0)=0,"",VLOOKUP(C97,Soggetti_proprietari!C:K,9,0)),"") -> 1202_13989-058092- | C97: Roviano | D97: =IFERROR(IF(VLOOKUP(C97,Soggetti_proprietari!C:K,2,0)=0,"",VLOOKUP(C97,Soggetti_proprietari!C:K,2,0)),"") -> Comune | E97: =IFERROR(IF(VLOOKUP(C97,Soggetti_proprietari!C:K,3,0)=0,"",VLOOKUP(C97,Soggetti_proprietari!C:K,3,0)),"") ->  | F97: =IFERROR(IF(VLOOKUP(C97,Soggetti_proprietari!C:K,4,0)=0,"",VLOOKUP(C97,Soggetti_proprietari!C:K,4,0)),"") -> 058092 | G97: 0 | H97: 0 | I97: 0 | J97: 2002 | K97: 0 | L97: 2321.152603 | M97: 9109.9 | O97: 0 | P97: 0 | R97: 2321.152603 | S97: 9109.9 | U97: FALSE
A98: 91 | B98: =IFERROR(IF(VLOOKUP(C98,Soggetti_proprietari!C:K,9,0)=0,"",VLOOKUP(C98,Soggetti_proprietari!C:K,9,0)),"") -> 1202_13989-058093- | C98: Sacrofano | D98: =IFERROR(IF(VLOOKUP(C98,Soggetti_proprietari!C:K,2,0)=0,"",VLOOKUP(C98,Soggetti_proprietari!C:K,2,0)),"") -> Comune | E98: =IFERROR(IF(VLOOKUP(C98,Soggetti_proprietari!C:K,3,0)=0,"",VLOOKUP(C98,Soggetti_proprietari!C:K,3,0)),"") ->  | F98: =IFERROR(IF(VLOOKUP(C98,Soggetti_proprietari!C:K,4,0)=0,"",VLOOKUP(C98,Soggetti_proprietari!C:K,4,0)),"") -> 058093 | G98: 0 | H98: 0 | I98: 0 | J98: 2002 | K98: 0 | L98: 32043.45 | M98: 32043.45 | O98: 0 | P98: 0 | R98: 32043.45 | S98: 32043.45 | U98: FALSE
A99: 92 | B99: =IFERROR(IF(VLOOKUP(C99,Soggetti_proprietari!C:K,9,0)=0,"",VLOOKUP(C99,Soggetti_proprietari!C:K,9,0)),"") -> 1202_13989-058094- | C99: Sambuci | D99: =IFERROR(IF(VLOOKUP(C99,Soggetti_proprietari!C:K,2,0)=0,"",VLOOKUP(C99,Soggetti_proprietari!C:K,2,0)),"") -> Comune | E99: =IFERROR(IF(VLOOKUP(C99,Soggetti_proprietari!C:K,3,0)=0,"",VLOOKUP(C99,Soggetti_proprietari!C:K,3,0)),"") ->  | F99: =IFERROR(IF(VLOOKUP(C99,Soggetti_proprietari!C:K,4,0)=0,"",VLOOKUP(C99,Soggetti_proprietari!C:K,4,0)),"") -> 058094 | G99: 0 | H99: 0 | I99: 0 | J99: 2002 | K99: 0 | L99: 5277.58 | M99: 5277.58 | O99: 0 | P99: 0 | R99: 5277.58 | S99: 5277.58 | U99: FALSE
A100: 93 | B100: =IFERROR(IF(VLOOKUP(C100,Soggetti_proprietari!C:K,9,0)=0,"",VLOOKUP(C100,Soggetti_proprietari!C:K,9,0)),"") -> 1202_13989-058119- | C100: San Cesareo | D100: =IFERROR(IF(VLOOKUP(C100,Soggetti_proprietari!C:K,2,0)=0,"",VLOOKUP(C100,Soggetti_proprietari!C:K,2,0)),"") -> Comune | E100: =IFERROR(IF(VLOOKUP(C100,Soggetti_proprietari!C:K,3,0)=0,"",VLOOKUP(C100,Soggetti_proprietari!C:K,3,0)),"") ->  | F100: =IFERROR(IF(VLOOKUP(C100,Soggetti_proprietari!C:K,4,0)=0,"",VLOOKUP(C100,Soggetti_proprietari!C:K,4,0)),"") -> 058119 | G100: 0 | H100: 0 | I100: 0 | J100: 2002 | K100: 0 | L100: 51436.94 | M100: 51436.94 | O100: 0 | P100: 0 | R100: 51436.94 | S100: 51436.94 | U100: FALSE
A101: 94 | B101: =IFERROR(IF(VLOOKUP(C101,Soggetti_proprietari!C:K,9,0)=0,"",VLOOKUP(C101,Soggetti_proprietari!C:K,9,0)),"") -> 1202_13989-058095- | C101: San Gregorio da Sassola | D101: =IFERROR(IF(VLOOKUP(C101,Soggetti_proprietari!C:K,2,0)=0,"",VLOOKUP(C101,Soggetti_proprietari!C:K,2,0)),"") -> Comune | E101: =IFERROR(IF(VLOOKUP(C101,Soggetti_proprietari!C:K,3,0)=0,"",VLOOKUP(C101,Soggetti_proprietari!C:K,3,0)),"") ->  | F101: =IFERROR(IF(VLOOKUP(C101,Soggetti_proprietari!C:K,4,0)=0,"",VLOOKUP(C101,Soggetti_proprietari!C:K,4,0)),"") -> 058095 | G101: 0 | H101: 0 | I101: 0 | J101: 2002 | K101: 0 | L101: 8574.74 | M101: 8574.74 | O101: 0 | P101: 0 | R101: 8574.74 | S101: 8574.74 | U101: FALSE
A102: 95 | B102: =IFERROR(IF(VLOOKUP(C102,Soggetti_proprietari!C:K,9,0)=0,"",VLOOKUP(C102,Soggetti_proprietari!C:K,9,0)),"") -> 1202_13989-058096- | C102: San Polo dei Cavalieri | D102: =IFERROR(IF(VLOOKUP(C102,Soggetti_proprietari!C:K,2,0)=0,"",VLOOKUP(C102,Soggetti_proprietari!C:K,2,0)),"") -> Comune | E102: =IFERROR(IF(VLOOKUP(C102,Soggetti_proprietari!C:K,3,0)=0,"",VLOOKUP(C102,Soggetti_proprietari!C:K,3,0)),"") ->  | F102: =IFERROR(IF(VLOOKUP(C102,Soggetti_proprietari!C:K,4,0)=0,"",VLOOKUP(C102,Soggetti_proprietari!C:K,4,0)),"") -> 058096 | G102: 0 | H102: 0 | I102: 0 | J102: 2002 | K102: 0 | L102: 13391.94 | M102: 13391.94 | O102: 0 | P102: 0 | R102: 13391.94 | S102: 13391.94 | U102: FALSE
A103: 96 | B103: =IFERROR(IF(VLOOKUP(C103,Soggetti_proprietari!C:K,9,0)=0,"",VLOOKUP(C103,Soggetti_proprietari!C:K,9,0)),"") -> 1202_13989-058100- | C103: San Vito Romano | D103: =IFERROR(IF(VLOOKUP(C103,Soggetti_proprietari!C:K,2,0)=0,"",VLOOKUP(C103,Soggetti_proprietari!C:K,2,0)),"") -> Comune | E103: =IFERROR(IF(VLOOKUP(C103,Soggetti_proprietari!C:K,3,0)=0,"",VLOOKUP(C103,Soggetti_proprietari!C:K,3,0)),"") ->  | F103: =IFERROR(IF(VLOOKUP(C103,Soggetti_proprietari!C:K,4,0)=0,"",VLOOKUP(C103,Soggetti_proprietari!C:K,4,0)),"") -> 058100 | G103: 0 | H103: 0 | I103: 0 | J103: 2002 | K103: 0 | L103: 20073.07 | M103: 20073.07 | O103: 0 | P103: 0 | R103: 20073.07 | S103: 20073.07 | U103: FALSE
A104: 97 | B104: =IFERROR(IF(VLOOKUP(C104,Soggetti_proprietari!C:K,9,0)=0,"",VLOOKUP(C104,Soggetti_proprietari!C:K,9,0)),"") -> 1202_13989-058097- | C104: Santa Marinella | D104: =IFERROR(IF(VLOOKUP(C104,Soggetti_proprietari!C:K,2,0)=0,"",VLOOKUP(C104,Soggetti_proprietari!C:K,2,0)),"") -> Comune | E104: =IFERROR(IF(VLOOKUP(C104,Soggetti_proprietari!C:K,3,0)=0,"",VLOOKUP(C104,Soggetti_proprietari!C:K,3,0)),"") ->  | F104: =IFERROR(IF(VLOOKUP(C104,Soggetti_proprietari!C:K,4,0)=0,"",VLOOKUP(C104,Soggetti_proprietari!C:K,4,0)),"") -> 058097 | G104: 0 | H104: 0 | I104: 0 | J104: 2002 | K104: 0 | L104: 91459.6 | M104: 91459.6 | O104: 0 | P104: 0 | R104: 91459.6 | S104: 91459.6 | U104: FALSE
A105: 98 | B105: =IFERROR(IF(VLOOKUP(C105,Soggetti_proprietari!C:K,9,0)=0,"",VLOOKUP(C105,Soggetti_proprietari!C:K,9,0)),"") -> 1202_13989-058098- | C105: Sant'Angelo Romano | D105: =IFERROR(IF(VLOOKUP(C105,Soggetti_proprietari!C:K,2,0)=0,"",VLOOKUP(C105,Soggetti_proprietari!C:K,2,0)),"") -> Comune | E105: =IFERROR(IF(VLOOKUP(C105,Soggetti_proprietari!C:K,3,0)=0,"",VLOOKUP(C105,Soggetti_proprietari!C:K,3,0)),"") ->  | F105: =IFERROR(IF(VLOOKUP(C105,Soggetti_proprietari!C:K,4,0)=0,"",VLOOKUP(C105,Soggetti_proprietari!C:K,4,0)),"") -> 058098 | G105: 0 | H105: 0 | I105: 0 | J105: 2002 | K105: 0 | L105: 4537.602493 | M105: 17808.87 | O105: 0 | P105: 0 | R105: 4537.602493 | S105: 17808.87 | U105: FALSE
A106: 99 | B106: =IFERROR(IF(VLOOKUP(C106,Soggetti_proprietari!C:K,9,0)=0,"",VLOOKUP(C106,Soggetti_proprietari!C:K,9,0)),"") -> 1202_13989-058099- | C106: Sant'Oreste | D106: =IFERROR(IF(VLOOKUP(C106,Soggetti_proprietari!C:K,2,0)=0,"",VLOOKUP(C106,Soggetti_proprietari!C:K,2,0)),"") -> Comune | E106: =IFERROR(IF(VLOOKUP(C106,Soggetti_proprietari!C:K,3,0)=0,"",VLOOKUP(C106,Soggetti_proprietari!C:K,3,0)),"") ->  | F106: =IFERROR(IF(VLOOKUP(C106,Soggetti_proprietari!C:K,4,0)=0,"",VLOOKUP(C106,Soggetti_proprietari!C:K,4,0)),"") -> 058099 | G106: 0 | H106: 0 | I106: 0 | J106: 2002 | K106: 0 | L106: 20373.33 | M106: 20373.33 | O106: 0 | P106: 0 | R106: 20373.33 | S106: 20373.33 | U106: FALSE
A107: 100 | B107: =IFERROR(IF(VLOOKUP(C107,Soggetti_proprietari!C:K,9,0)=0,"",VLOOKUP(C107,Soggetti_proprietari!C:K,9,0)),"") -> 1202_13989-058101- | C107: Saracinesco | D107: =IFERROR(IF(VLOOKUP(C107,Soggetti_proprietari!C:K,2,0)=0,"",VLOOKUP(C107,Soggetti_proprietari!C:K,2,0)),"") -> Comune | E107: =IFERROR(IF(VLOOKUP(C107,Soggetti_proprietari!C:K,3,0)=0,"",VLOOKUP(C107,Soggetti_proprietari!C:K,3,0)),"") ->  | F107: =IFERROR(IF(VLOOKUP(C107,Soggetti_proprietari!C:K,4,0)=0,"",VLOOKUP(C107,Soggetti_proprietari!C:K,4,0)),"") -> 058101 | G107: 0 | H107: 0 | I107: 0 | J107: 2002 | K107: 0 | L107: 890.61 | M107: 890.61 | O107: 0 | P107: 0 | R107: 890.61 | S107: 890.61 | U107: FALSE
A108: 101 | B108: =IFERROR(IF(VLOOKUP(C108,Soggetti_proprietari!C:K,9,0)=0,"",VLOOKUP(C108,Soggetti_proprietari!C:K,9,0)),"") -> 1202_13989-058102- | C108: Segni | D108: =IFERROR(IF(VLOOKUP(C108,Soggetti_proprietari!C:K,2,0)=0,"",VLOOKUP(C108,Soggetti_proprietari!C:K,2,0)),"") -> Comune | E108: =IFERROR(IF(VLOOKUP(C108,Soggetti_proprietari!C:K,3,0)=0,"",VLOOKUP(C108,Soggetti_proprietari!C:K,3,0)),"") ->  | F108: =IFERROR(IF(VLOOKUP(C108,Soggetti_proprietari!C:K,4,0)=0,"",VLOOKUP(C108,Soggetti_proprietari!C:K,4,0)),"") -> 058102 | G108: 0 | H108: 0 | I108: 0 | J108: 2002 | K108: 0 | L108: 51986.12 | M108: 51986.12 | O108: 0 | P108: 0 | R108: 51986.12 | S108: 51986.12 | U108: FALSE
A109: 102 | B109: =IFERROR(IF(VLOOKUP(C109,Soggetti_proprietari!C:K,9,0)=0,"",VLOOKUP(C109,Soggetti_proprietari!C:K,9,0)),"") -> 1202_13989-058103- | C109: Subiaco | D109: =IFERROR(IF(VLOOKUP(C109,Soggetti_proprietari!C:K,2,0)=0,"",VLOOKUP(C109,Soggetti_proprietari!C:K,2,0)),"") -> Comune | E109: =IFERROR(IF(VLOOKUP(C109,Soggetti_proprietari!C:K,3,0)=0,"",VLOOKUP(C109,Soggetti_proprietari!C:K,3,0)),"") ->  | F109: =IFERROR(IF(VLOOKUP(C109,Soggetti_proprietari!C:K,4,0)=0,"",VLOOKUP(C109,Soggetti_proprietari!C:K,4,0)),"") -> 058103 | G109: 0 | H109: 0 | I109: 0 | J109: 2002 | K109: 0 | L109: 51066.11 | M109: 53678.6 | O109: 0 | P109: 0 | R109: 51066.11 | S109: 53678.6 | U109: FALSE
A110: 103 | B110: =IFERROR(IF(VLOOKUP(C110,Soggetti_proprietari!C:K,9,0)=0,"",VLOOKUP(C110,Soggetti_proprietari!C:K,9,0)),"") -> 1202_13989-058104- | C110: Tivoli | D110: =IFERROR(IF(VLOOKUP(C110,Soggetti_proprietari!C:K,2,0)=0,"",VLOOKUP(C110,Soggetti_proprietari!C:K,2,0)),"") -> Comune | E110: =IFERROR(IF(VLOOKUP(C110,Soggetti_proprietari!C:K,3,0)=0,"",VLOOKUP(C110,Soggetti_proprietari!C:K,3,0)),"") ->  | F110: =IFERROR(IF(VLOOKUP(C110,Soggetti_proprietari!C:K,4,0)=0,"",VLOOKUP(C110,Soggetti_proprietari!C:K,4,0)),"") -> 058104 | G110: 0 | H110: 0 | I110: 0 | J110: 2002 | K110: 0 | L110: 310968.14 | M110: 310968.14 | O110: 0 | P110: 0 | R110: 310968.14 | S110: 310968.14 | U110: FALSE
A111: 104 | B111: =IFERROR(IF(VLOOKUP(C111,Soggetti_proprietari!C:K,9,0)=0,"",VLOOKUP(C111,Soggetti_proprietari!C:K,9,0)),"") -> 1202_13989-058105- | C111: Tolfa | D111: =IFERROR(IF(VLOOKUP(C111,Soggetti_proprietari!C:K,2,0)=0,"",VLOOKUP(C111,Soggetti_proprietari!C:K,2,0)),"") -> Comune | E111: =IFERROR(IF(VLOOKUP(C111,Soggetti_proprietari!C:K,3,0)=0,"",VLOOKUP(C111,Soggetti_proprietari!C:K,3,0)),"") ->  | F111: =IFERROR(IF(VLOOKUP(C111,Soggetti_proprietari!C:K,4,0)=0,"",VLOOKUP(C111,Soggetti_proprietari!C:K,4,0)),"") -> 058105 | G111: 0 | H111: 0 | I111: 0 | J111: 2002 | K111: 0 | L111: 29383.63 | M111: 29383.63 | O111: 0 | P111: 0 | R111: 29383.63 | S111: 29383.63 | U111: FALSE
A112: 105 | B112: =IFERROR(IF(VLOOKUP(C112,Soggetti_proprietari!C:K,9,0)=0,"",VLOOKUP(C112,Soggetti_proprietari!C:K,9,0)),"") -> 1202_13989-058106- | C112: Torrita Tiberina | D112: =IFERROR(IF(VLOOKUP(C112,Soggetti_proprietari!C:K,2,0)=0,"",VLOOKUP(C112,Soggetti_proprietari!C:K,2,0)),"") -> Comune | E112: =IFERROR(IF(VLOOKUP(C112,Soggetti_proprietari!C:K,3,0)=0,"",VLOOKUP(C112,Soggetti_proprietari!C:K,3,0)),"") ->  | F112: =IFERROR(IF(VLOOKUP(C112,Soggetti_proprietari!C:K,4,0)=0,"",VLOOKUP(C112,Soggetti_proprietari!C:K,4,0)),"") -> 058106 | G112: 0 | H112: 0 | I112: 0 | J112: 2002 | K112: 0 | L112: 5371.72 | M112: 5371.72 | O112: 0 | P112: 0 | R112: 5371.72 | S112: 5371.72 | U112: FALSE
A113: 106 | B113: =IFERROR(IF(VLOOKUP(C113,Soggetti_proprietari!C:K,9,0)=0,"",VLOOKUP(C113,Soggetti_proprietari!C:K,9,0)),"") -> 1202_13989-060080- | C113: Trevi nel Lazio | D113: =IFERROR(IF(VLOOKUP(C113,Soggetti_proprietari!C:K,2,0)=0,"",VLOOKUP(C113,Soggetti_proprietari!C:K,2,0)),"") -> Comune | E113: =IFERROR(IF(VLOOKUP(C113,Soggetti_proprietari!C:K,3,0)=0,"",VLOOKUP(C113,Soggetti_proprietari!C:K,3,0)),"") ->  | F113: =IFERROR(IF(VLOOKUP(C113,Soggetti_proprietari!C:K,4,0)=0,"",VLOOKUP(C113,Soggetti_proprietari!C:K,4,0)),"") -> 060080 | G113: 0 | H113: 0 | I113: 0 | J113: 2002 | K113: 0 | L113: 7077.567178 | M113: 12230.54 | O113: 0 | P113: 0 | R113: 7077.567178 | S113: 12230.54 | U113: FALSE
A114: 107 | B114: =IFERROR(IF(VLOOKUP(C114,Soggetti_proprietari!C:K,9,0)=0,"",VLOOKUP(C114,Soggetti_proprietari!C:K,9,0)),"") -> 1202_13989-058107- | C114: Trevignano Romano | D114: =IFERROR(IF(VLOOKUP(C114,Soggetti_proprietari!C:K,2,0)=0,"",VLOOKUP(C114,Soggetti_proprietari!C:K,2,0)),"") -> Comune | E114: =IFERROR(IF(VLOOKUP(C114,Soggetti_proprietari!C:K,3,0)=0,"",VLOOKUP(C114,Soggetti_proprietari!C:K,3,0)),"") ->  | F114: =IFERROR(IF(VLOOKUP(C114,Soggetti_proprietari!C:K,4,0)=0,"",VLOOKUP(C114,Soggetti_proprietari!C:K,4,0)),"") -> 058107 | G114: 0 | H114: 0 | I114: 0 | J114: 2002 | K114: 0 | L114: 25332.45 | M114: 25332.45 | O114: 0 | P114: 0 | R114: 25332.45 | S114: 25332.45 | U114: FALSE
A115: 108 | B115: =IFERROR(IF(VLOOKUP(C115,Soggetti_proprietari!C:K,9,0)=0,"",VLOOKUP(C115,Soggetti_proprietari!C:K,9,0)),"") -> 1202_13989-058108- | C115: Vallepietra | D115: =IFERROR(IF(VLOOKUP(C115,Soggetti_proprietari!C:K,2,0)=0,"",VLOOKUP(C115,Soggetti_proprietari!C:K,2,0)),"") -> Comune | E115: =IFERROR(IF(VLOOKUP(C115,Soggetti_proprietari!C:K,3,0)=0,"",VLOOKUP(C115,Soggetti_proprietari!C:K,3,0)),"") ->  | F115: =IFERROR(IF(VLOOKUP(C115,Soggetti_proprietari!C:K,4,0)=0,"",VLOOKUP(C115,Soggetti_proprietari!C:K,4,0)),"") -> 058108 | G115: 0 | H115: 0 | I115: 0 | J115: 2002 | K115: 0 | L115: 0 | M115: 0 | O115: 0 | P115: 0 | R115: 0 | S115: 0 | U115: FALSE
A116: 109 | B116: =IFERROR(IF(VLOOKUP(C116,Soggetti_proprietari!C:K,9,0)=0,"",VLOOKUP(C116,Soggetti_proprietari!C:K,9,0)),"") -> 1202_13989-058110- | C116: Valmontone | D116: =IFERROR(IF(VLOOKUP(C116,Soggetti_proprietari!C:K,2,0)=0,"",VLOOKUP(C116,Soggetti_proprietari!C:K,2,0)),"") -> Comune | E116: =IFERROR(IF(VLOOKUP(C116,Soggetti_proprietari!C:K,3,0)=0,"",VLOOKUP(C116,Soggetti_proprietari!C:K,3,0)),"") ->  | F116: =IFERROR(IF(VLOOKUP(C116,Soggetti_proprietari!C:K,4,0)=0,"",VLOOKUP(C116,Soggetti_proprietari!C:K,4,0)),"") -> 058110 | G116: 0 | H116: 0 | I116: 0 | J116: 2002 | K116: 0 | L116: 70016.51 | M116: 74535.91 | O116: 0 | P116: 0 | R116: 70016.51 | S116: 74535.91 | U116: FALSE
A117: 110 | B117: =IFERROR(IF(VLOOKUP(C117,Soggetti_proprietari!C:K,9,0)=0,"",VLOOKUP(C117,Soggetti_proprietari!C:K,9,0)),"") -> 1202_13989-056056- | C117: Vejano | D117: =IFERROR(IF(VLOOKUP(C117,Soggetti_proprietari!C:K,2,0)=0,"",VLOOKUP(C117,Soggetti_proprietari!C:K,2,0)),"") -> Comune | E117: =IFERROR(IF(VLOOKUP(C117,Soggetti_proprietari!C:K,3,0)=0,"",VLOOKUP(C117,Soggetti_proprietari!C:K,3,0)),"") ->  | F117: =IFERROR(IF(VLOOKUP(C117,Soggetti_proprietari!C:K,4,0)=0,"",VLOOKUP(C117,Soggetti_proprietari!C:K,4,0)),"") -> 056056 | G117: 0 | H117: 0 | I117: 0 | J117: 2002 | K117: 0 | L117: 12530.68 | M117: 12530.68 | O117: 0 | P117: 0 | R117: 12530.68 | S117: 12530.68 | U117: FALSE
A118: 111 | B118: =IFERROR(IF(VLOOKUP(C118,Soggetti_proprietari!C:K,9,0)=0,"",VLOOKUP(C118,Soggetti_proprietari!C:K,9,0)),"") -> 1202_13989-058111- | C118: Velletri | D118: =IFERROR(IF(VLOOKUP(C118,Soggetti_proprietari!C:K,2,0)=0,"",VLOOKUP(C118,Soggetti_proprietari!C:K,2,0)),"") -> Comune | E118: =IFERROR(IF(VLOOKUP(C118,Soggetti_proprietari!C:K,3,0)=0,"",VLOOKUP(C118,Soggetti_proprietari!C:K,3,0)),"") ->  | F118: =IFERROR(IF(VLOOKUP(C118,Soggetti_proprietari!C:K,4,0)=0,"",VLOOKUP(C118,Soggetti_proprietari!C:K,4,0)),"") -> 058111 | G118: 0 | H118: 0 | I118: 0 | J118: 2002 | K118: 0 | L118: 285741.83 | M118: 285741.83 | O118: 0 | P118: 0 | R118: 285741.83 | S118: 285741.83 | U118: FALSE
A119: 112 | B119: =IFERROR(IF(VLOOKUP(C119,Soggetti_proprietari!C:K,9,0)=0,"",VLOOKUP(C119,Soggetti_proprietari!C:K,9,0)),"") -> 1202_13989-058112- | C119: Vicovaro | D119: =IFERROR(IF(VLOOKUP(C119,Soggetti_proprietari!C:K,2,0)=0,"",VLOOKUP(C119,Soggetti_proprietari!C:K,2,0)),"") -> Comune | E119: =IFERROR(IF(VLOOKUP(C119,Soggetti_proprietari!C:K,3,0)=0,"",VLOOKUP(C119,Soggetti_proprietari!C:K,3,0)),"") ->  | F119: =IFERROR(IF(VLOOKUP(C119,Soggetti_proprietari!C:K,4,0)=0,"",VLOOKUP(C119,Soggetti_proprietari!C:K,4,0)),"") -> 058112 | G119: 2002 | H119: 22489.71 | I119: 0 | J119: 2002 | K119: 0 | L119: 0 | M119: 22489.71 | O119: 22489.71 | P119: 0 | R119: 0 | S119: 22489.71 | U119: FALSE
A120: 113 | B120: =IFERROR(IF(VLOOKUP(C120,Soggetti_proprietari!C:K,9,0)=0,"",VLOOKUP(C120,Soggetti_proprietari!C:K,9,0)),"") -> 1202_13989-058114- | C120: Zagarolo | D120: =IFERROR(IF(VLOOKUP(C120,Soggetti_proprietari!C:K,2,0)=0,"",VLOOKUP(C120,Soggetti_proprietari!C:K,2,0)),"") -> Comune | E120: =IFERROR(IF(VLOOKUP(C120,Soggetti_proprietari!C:K,3,0)=0,"",VLOOKUP(C120,Soggetti_proprietari!C:K,3,0)),"") ->  | F120: =IFERROR(IF(VLOOKUP(C120,Soggetti_proprietari!C:K,4,0)=0,"",VLOOKUP(C120,Soggetti_proprietari!C:K,4,0)),"") -> 058114 | G120: 0 | H120: 0 | I120: 0 | J120: 2002 | K120: 0 | L120: 71498.78 | M120: 71498.78 | O120: 0 | P120: 0 | R120: 71498.78 | S120: 71498.78 | U120: FALSE

Sheet Soggetti_Scambio
B1: SCAMBI ALL'INGROSSO
Q2: Sono presenti errori
B3: per ciascun soggetto indicare almeno l'ID gestore oppure la Partita IVA | Q3: =+OR(INDEX(Soggetti_Elenco,0,13)) -> FALSE
B5: 1. Soggetti con cui si hanno scambi di Servizi all'ingrosso (Vendita e/o Acquisto)
B7: IDGestore | C7: Nome soggetto | D7: Partita Iva | H7: nome_soggetto | I7: id_gestore | J7: P.IVA | K7: errore idgestore | L7: errore P.IVA | M7: errore idgestore o Partita Iva
A8: =+ROW(A8)-7 -> 1 | B8: 1 | C8: AGENZIA REGIONALE PER LO SVILUPPO E L'INNOVAZIONE DELL'AGRICOLTURA DEL LAZIO | D8: 04838391003 | H8: =+IFERROR(VLOOKUP(I8,TT_Gestori!A:C,3,FALSE),IFERROR(VLOOKUP(D8,TT_Gestori!B:C,2,FALSE),+C8)) -> AGENZIA REGIONALE PER LO SVILUPPO E L'INNOVAZIONE DELL'AGRICOLTURA DEL LAZIO | I8: =IFERROR(VLOOKUP(B8,TT_Gestori!A:C,1,FALSE),IFERROR(VLOOKUP(D8,TT_Gestori!B:D,3,FALSE),B8)) -> 1 | J8: =IFERROR(VLOOKUP(D8,TT_Gestori!C:C,1,FALSE),IFERROR(VLOOKUP(I8,TT_Gestori!A:C,2,FALSE),D8)) -> 04838391003 | K8: =+OR(I8="",I8=0) -> FALSE | L8: =+OR(J8="",J8=0) -> FALSE | M8: =+IF(AND(B8="",C8="",D8="",ROW(B8)=8),FALSE,IF(OR(H8="",H8=0,K8=TRUE,L8=TRUE),TRUE,FALSE)) -> FALSE
A9: =+ROW(A9)-7 -> 2 | B9: 2 | C9: REGIONE LAZIO | D9: 80143490581 | H9: =+IFERROR(VLOOKUP(I9,TT_Gestori!A:C,3,FALSE),IFERROR(VLOOKUP(D9,TT_Gestori!B:C,2,FALSE),+C9)) -> REGIONE LAZIO | I9: =IFERROR(VLOOKUP(B9,TT_Gestori!A:C,1,FALSE),IFERROR(VLOOKUP(D9,TT_Gestori!B:D,3,FALSE),B9)) -> 2 | J9: =IFERROR(VLOOKUP(D9,TT_Gestori!C:C,1,FALSE),IFERROR(VLOOKUP(I9,TT_Gestori!A:C,2,FALSE),D9)) -> 80143490581 | K9: =+OR(I9="",I9=0) -> FALSE | L9: =+OR(J9="",J9=0) -> FALSE | M9: =+IF(AND(B9="",C9="",D9="",ROW(B9)=8),FALSE,IF(OR(H9="",H9=0,K9=TRUE,L9=TRUE),TRUE,FALSE)) -> FALSE
A10: 3 | B10: 3 | C10: COMUNE DI POGGIO MOIANO | D10: 00121900575 | H10: =+IFERROR(VLOOKUP(I10,TT_Gestori!A:C,3,FALSE),IFERROR(VLOOKUP(D10,TT_Gestori!B:C,2,FALSE),+C10)) -> Comune di Poggio Moiano | I10: =IFERROR(VLOOKUP(B10,TT_Gestori!A:C,1,FALSE),IFERROR(VLOOKUP(D10,TT_Gestori!B:D,3,FALSE),B10)) -> 21378 | J10: =IFERROR(VLOOKUP(D10,TT_Gestori!C:C,1,FALSE),IFERROR(VLOOKUP(I10,TT_Gestori!A:C,2,FALSE),D10)) -> 00121900575 | K10: FALSE | L10: FALSE | M10: FALSE
A11: 4 | B11: 4 | C11: CONSORZIO INTERCOMUNALE ACQUEDOTTO DEL PESCHIERA | D11: 90011590578 | H11: =+IFERROR(VLOOKUP(I11,TT_Gestori!A:C,3,FALSE),IFERROR(VLOOKUP(D11,TT_Gestori!B:C,2,FALSE),+C11)) -> CONSORZIO INTERCOMUNALE ACQUEDOTTO DEL PESCHIERA | I11: =IFERROR(VLOOKUP(B11,TT_Gestori!A:C,1,FALSE),IFERROR(VLOOKUP(D11,TT_Gestori!B:D,3,FALSE),B11)) -> 4 | J11: =IFERROR(VLOOKUP(D11,TT_Gestori!C:C,1,FALSE),IFERROR(VLOOKUP(I11,TT_Gestori!A:C,2,FALSE),D11)) -> 90011590578 | K11: FALSE | L11: FALSE | M11: FALSE
A12: 5 | B12: 5 | C12: COMUNE DI SANT'ANGELO ROMANO | D12: 86002210580 | H12: =+IFERROR(VLOOKUP(I12,TT_Gestori!A:C,3,FALSE),IFERROR(VLOOKUP(D12,TT_Gestori!B:C,2,FALSE),+C12)) -> AZIENDA PUBBLISERVIZI BRUNICO | I12: =IFERROR(VLOOKUP(B12,TT_Gestori!A:C,1,FALSE),IFERROR(VLOOKUP(D12,TT_Gestori!B:D,3,FALSE),B12)) -> 5 | J12: =IFERROR(VLOOKUP(D12,TT_Gestori!C:C,1,FALSE),IFERROR(VLOOKUP(I12,TT_Gestori!A:C,2,FALSE),D12)) -> 00734480213 | K12: FALSE | L12: FALSE | M12: FALSE
A13: 6 | B13: 6 | C13: COMUNE DI AGOSTA | D13: 86002070588 | H13: =+IFERROR(VLOOKUP(I13,TT_Gestori!A:C,3,FALSE),IFERROR(VLOOKUP(D13,TT_Gestori!B:C,2,FALSE),+C13)) -> COMUNE DI AGOSTA | I13: =IFERROR(VLOOKUP(B13,TT_Gestori!A:C,1,FALSE),IFERROR(VLOOKUP(D13,TT_Gestori!B:D,3,FALSE),B13)) -> 6 | J13: =IFERROR(VLOOKUP(D13,TT_Gestori!C:C,1,FALSE),IFERROR(VLOOKUP(I13,TT_Gestori!A:C,2,FALSE),D13)) -> 86002070588 | K13: FALSE | L13: FALSE | M13: FALSE
A14: 7 | B14: 7 | C14: CONS COMUNI MEDIA SABINA COSTRUZ GESTIONE ACQUEDOT SEDE SOC | D14: 00086470572 | H14: =+IFERROR(VLOOKUP(I14,TT_Gestori!A:C,3,FALSE),IFERROR(VLOOKUP(D14,TT_Gestori!B:C,2,FALSE),+C14)) -> CONSORZIO COMUNI DELLA MEDIA SABINA | I14: =IFERROR(VLOOKUP(B14,TT_Gestori!A:C,1,FALSE),IFERROR(VLOOKUP(D14,TT_Gestori!B:D,3,FALSE),B14)) -> 23865 | J14: =IFERROR(VLOOKUP(D14,TT_Gestori!C:C,1,FALSE),IFERROR(VLOOKUP(I14,TT_Gestori!A:C,2,FALSE),D14)) -> 00086470572 | K14: FALSE | L14: FALSE | M14: FALSE
A15: 8 | B15: 8 | C15: COMUNE DI MARANO EQUO | D15: 86001110583 | H15: =+IFERROR(VLOOKUP(I15,TT_Gestori!A:C,3,FALSE),IFERROR(VLOOKUP(D15,TT_Gestori!B:C,2,FALSE),+C15)) -> COMUNE DI MARANO EQUO | I15: =IFERROR(VLOOKUP(B15,TT_Gestori!A:C,1,FALSE),IFERROR(VLOOKUP(D15,TT_Gestori!B:D,3,FALSE),B15)) -> 8 | J15: =IFERROR(VLOOKUP(D15,TT_Gestori!C:C,1,FALSE),IFERROR(VLOOKUP(I15,TT_Gestori!A:C,2,FALSE),D15)) -> 86001110583 | K15: FALSE | L15: FALSE | M15: FALSE
A16: 9 | B16: 9 | C16: COMUNE DI ANGUILLARA SABAZIA | D16: 02120471004 | H16: =+IFERROR(VLOOKUP(I16,TT_Gestori!A:C,3,FALSE),IFERROR(VLOOKUP(D16,TT_Gestori!B:C,2,FALSE),+C16)) -> Comune di Anguillara Sabazia | I16: =IFERROR(VLOOKUP(B16,TT_Gestori!A:C,1,FALSE),IFERROR(VLOOKUP(D16,TT_Gestori!B:D,3,FALSE),B16)) -> 22725 | J16: =IFERROR(VLOOKUP(D16,TT_Gestori!C:C,1,FALSE),IFERROR(VLOOKUP(I16,TT_Gestori!A:C,2,FALSE),D16)) -> 02120471004 | K16: FALSE | L16: FALSE | M16: FALSE
A17: 10 | B17: 10 | C17: IDRICA S.P.A. | D17: 01319611008 | H17: =+IFERROR(VLOOKUP(I17,TT_Gestori!A:C,3,FALSE),IFERROR(VLOOKUP(D17,TT_Gestori!B:C,2,FALSE),+C17)) -> IDRICA | I17: =IFERROR(VLOOKUP(B17,TT_Gestori!A:C,1,FALSE),IFERROR(VLOOKUP(D17,TT_Gestori!B:D,3,FALSE),B17)) -> 14097 | J17: =IFERROR(VLOOKUP(D17,TT_Gestori!C:C,1,FALSE),IFERROR(VLOOKUP(I17,TT_Gestori!A:C,2,FALSE),D17)) -> 01319611008 | K17: FALSE | L17: FALSE | M17: FALSE
A18: 11 | B18: 11 | C18: COMUNE DI CIVITELLA SAN PAOLO | D18: 01100391000 | H18: =+IFERROR(VLOOKUP(I18,TT_Gestori!A:C,3,FALSE),IFERROR(VLOOKUP(D18,TT_Gestori!B:C,2,FALSE),+C18)) -> Comune Civitella San Paolo | I18: =IFERROR(VLOOKUP(B18,TT_Gestori!A:C,1,FALSE),IFERROR(VLOOKUP(D18,TT_Gestori!B:D,3,FALSE),B18)) -> 26012 | J18: =IFERROR(VLOOKUP(D18,TT_Gestori!C:C,1,FALSE),IFERROR(VLOOKUP(I18,TT_Gestori!A:C,2,FALSE),D18)) -> 01100391000 | K18: FALSE | L18: FALSE | M18: FALSE
A19: 12 | B19: 12 | C19: AZIENDA MULTISERVIZI ENERGIA AMBIENTE S.P.A. | D19: 02066710605 | H19: =+IFERROR(VLOOKUP(I19,TT_Gestori!A:C,3,FALSE),IFERROR(VLOOKUP(D19,TT_Gestori!B:C,2,FALSE),+C19)) -> AMEA S.P.A. | I19: =IFERROR(VLOOKUP(B19,TT_Gestori!A:C,1,FALSE),IFERROR(VLOOKUP(D19,TT_Gestori!B:D,3,FALSE),B19)) -> 335 | J19: =IFERROR(VLOOKUP(D19,TT_Gestori!C:C,1,FALSE),IFERROR(VLOOKUP(I19,TT_Gestori!A:C,2,FALSE),D19)) -> 02066710605 | K19: FALSE | L19: FALSE | M19: FALSE
A20: 13 | B20: 13 | C20: COMUNE DI CASAPROTA | D20: 00123140576 | H20: =+IFERROR(VLOOKUP(I20,TT_Gestori!A:C,3,FALSE),IFERROR(VLOOKUP(D20,TT_Gestori!B:C,2,FALSE),+C20)) -> COMUNE DI CASAPROTA | I20: =IFERROR(VLOOKUP(B20,TT_Gestori!A:C,1,FALSE),IFERROR(VLOOKUP(D20,TT_Gestori!B:D,3,FALSE),B20)) -> 13 | J20: =IFERROR(VLOOKUP(D20,TT_Gestori!C:C,1,FALSE),IFERROR(VLOOKUP(I20,TT_Gestori!A:C,2,FALSE),D20)) -> 00123140576 | K20: FALSE | L20: FALSE | M20: FALSE
A21: 14 | B21: 14 | C21: CONSORZIO DEGLI ALTIPIANI DI ARCINAZZO PER DISTRIB.ACQUA | D21: 97161360587 | H21: =+IFERROR(VLOOKUP(I21,TT_Gestori!A:C,3,FALSE),IFERROR(VLOOKUP(D21,TT_Gestori!B:C,2,FALSE),+C21)) -> CONSORZIO DEGLI ALTIPIANI DI ARCINAZZO PER DISTRIB.ACQUA | I21: =IFERROR(VLOOKUP(B21,TT_Gestori!A:C,1,FALSE),IFERROR(VLOOKUP(D21,TT_Gestori!B:D,3,FALSE),B21)) -> 14 | J21: =IFERROR(VLOOKUP(D21,TT_Gestori!C:C,1,FALSE),IFERROR(VLOOKUP(I21,TT_Gestori!A:C,2,FALSE),D21)) -> 97161360587 | K21: FALSE | L21: FALSE | M21: FALSE
A22: 15 | B22: 15 | C22: FLAVIA SERVIZI S.R.L. | D22: 07857381003 | H22: =+IFERROR(VLOOKUP(I22,TT_Gestori!A:C,3,FALSE),IFERROR(VLOOKUP(D22,TT_Gestori!B:C,2,FALSE),+C22)) -> Flavia Servizi S.r.l. | I22: =IFERROR(VLOOKUP(B22,TT_Gestori!A:C,1,FALSE),IFERROR(VLOOKUP(D22,TT_Gestori!B:D,3,FALSE),B22)) -> 14038 | J22: =IFERROR(VLOOKUP(D22,TT_Gestori!C:C,1,FALSE),IFERROR(VLOOKUP(I22,TT_Gestori!A:C,2,FALSE),D22)) -> 07857381003 | K22: FALSE | L22: FALSE | M22: FALSE
A23: 16 | B23: 16 | C23: COMUNE DI LABICO | D23: 01117471001 | H23: =+IFERROR(VLOOKUP(I23,TT_Gestori!A:C,3,FALSE),IFERROR(VLOOKUP(D23,TT_Gestori!B:C,2,FALSE),+C23)) -> COMUNE DI LABICO | I23: =IFERROR(VLOOKUP(B23,TT_Gestori!A:C,1,FALSE),IFERROR(VLOOKUP(D23,TT_Gestori!B:D,3,FALSE),B23)) -> 22755 | J23: =IFERROR(VLOOKUP(D23,TT_Gestori!C:C,1,FALSE),IFERROR(VLOOKUP(I23,TT_Gestori!A:C,2,FALSE),D23)) -> 01117471001 | K23: FALSE | L23: FALSE | M23: FALSE
A24: 17 | B24: 17 | C24: COMUNE DI TREVI NEL LAZIO | D24: 00300630605 | H24: =+IFERROR(VLOOKUP(I24,TT_Gestori!A:C,3,FALSE),IFERROR(VLOOKUP(D24,TT_Gestori!B:C,2,FALSE),+C24)) -> Comune di Trevi nel Lazio | I24: =IFERROR(VLOOKUP(B24,TT_Gestori!A:C,1,FALSE),IFERROR(VLOOKUP(D24,TT_Gestori!B:D,3,FALSE),B24)) -> 19749 | J24: =IFERROR(VLOOKUP(D24,TT_Gestori!C:C,1,FALSE),IFERROR(VLOOKUP(I24,TT_Gestori!A:C,2,FALSE),D24)) -> 00300630605 | K24: FALSE | L24: FALSE | M24: FALSE
A25: 18 | B25: 18 | C25: CONSORZIO PER LO SVILUPPO INDUSTRIALE FROSINONE | D25: 00290890607 | H25: =+IFERROR(VLOOKUP(I25,TT_Gestori!A:C,3,FALSE),IFERROR(VLOOKUP(D25,TT_Gestori!B:C,2,FALSE),+C25)) -> CONSORZIO PER LO SVILUPPO INDUSTRIALE FROSINONE | I25: =IFERROR(VLOOKUP(B25,TT_Gestori!A:C,1,FALSE),IFERROR(VLOOKUP(D25,TT_Gestori!B:D,3,FALSE),B25)) -> 18 | J25: =IFERROR(VLOOKUP(D25,TT_Gestori!C:C,1,FALSE),IFERROR(VLOOKUP(I25,TT_Gestori!A:C,2,FALSE),D25)) -> 00290890607 | K25: FALSE | L25: FALSE | M25: FALSE
A26: 19 | B26: 19 | C26: COMUNE DI CERRETO LAZIALE | D26: 02146061003 | H26: =+IFERROR(VLOOKUP(I26,TT_Gestori!A:C,3,FALSE),IFERROR(VLOOKUP(D26,TT_Gestori!B:C,2,FALSE),+C26)) -> Comune di Cerreto Laziale | I26: =IFERROR(VLOOKUP(B26,TT_Gestori!A:C,1,FALSE),IFERROR(VLOOKUP(D26,TT_Gestori!B:D,3,FALSE),B26)) -> 25953 | J26: =IFERROR(VLOOKUP(D26,TT_Gestori!C:C,1,FALSE),IFERROR(VLOOKUP(I26,TT_Gestori!A:C,2,FALSE),D26)) -> 02146061003 | K26: FALSE | L26: FALSE | M26: FALSE
A27: 20 | B27: 20 | C27: COMUNE DI TIVOLI | D27: 02696630587 | H27: =+IFERROR(VLOOKUP(I27,TT_Gestori!A:C,3,FALSE),IFERROR(VLOOKUP(D27,TT_Gestori!B:C,2,FALSE),+C27)) -> COMUNE DI TIVOLI | I27: =IFERROR(VLOOKUP(B27,TT_Gestori!A:C,1,FALSE),IFERROR(VLOOKUP(D27,TT_Gestori!B:D,3,FALSE),B27)) -> 20 | J27: =IFERROR(VLOOKUP(D27,TT_Gestori!C:C,1,FALSE),IFERROR(VLOOKUP(I27,TT_Gestori!A:C,2,FALSE),D27)) -> 02696630587 | K27: FALSE | L27: FALSE | M27: FALSE
A28: 21 | B28: 21 | C28: ACEA ATO5 SPA | D28: 02267050603 | H28: =+IFERROR(VLOOKUP(I28,TT_Gestori!A:C,3,FALSE),IFERROR(VLOOKUP(D28,TT_Gestori!B:C,2,FALSE),+C28)) -> ACEA ATO 5 SPA | I28: =IFERROR(VLOOKUP(B28,TT_Gestori!A:C,1,FALSE),IFERROR(VLOOKUP(D28,TT_Gestori!B:D,3,FALSE),B28)) -> 13805 | J28: =IFERROR(VLOOKUP(D28,TT_Gestori!C:C,1,FALSE),IFERROR(VLOOKUP(I28,TT_Gestori!A:C,2,FALSE),D28)) -> 02267050603 | K28: FALSE | L28: FALSE | M28: FALSE
A29: 22 | B29: 22 | C29: ACQUALATINA S.P.A. | D29: 02111020596 | H29: =+IFERROR(VLOOKUP(I29,TT_Gestori!A:C,3,FALSE),IFERROR(VLOOKUP(D29,TT_Gestori!B:C,2,FALSE),+C29)) -> ACQUALATINA SPA | I29: =IFERROR(VLOOKUP(B29,TT_Gestori!A:C,1,FALSE),IFERROR(VLOOKUP(D29,TT_Gestori!B:D,3,FALSE),B29)) -> 13761 | J29: =IFERROR(VLOOKUP(D29,TT_Gestori!C:C,1,FALSE),IFERROR(VLOOKUP(I29,TT_Gestori!A:C,2,FALSE),D29)) -> 02111020596 | K29: FALSE | L29: FALSE | M29: FALSE
A30: 23 | B30: 23 | C30: ACQUA PUBBLICA SABINA SPA | D30: 01138990575 | H30: =+IFERROR(VLOOKUP(I30,TT_Gestori!A:C,3,FALSE),IFERROR(VLOOKUP(D30,TT_Gestori!B:C,2,FALSE),+C30)) -> Acqua Pubblica Sabina S.P.A. | I30: =IFERROR(VLOOKUP(B30,TT_Gestori!A:C,1,FALSE),IFERROR(VLOOKUP(D30,TT_Gestori!B:D,3,FALSE),B30)) -> 25320 | J30: =IFERROR(VLOOKUP(D30,TT_Gestori!C:C,1,FALSE),IFERROR(VLOOKUP(I30,TT_Gestori!A:C,2,FALSE),D30)) -> 01138990575 | K30: FALSE | L30: FALSE | M30: FALSE
A31: 24 | B31: 24 | C31: MA.P.R.OL. DI GIORGI SRL | D31: 01672691001 | H31: =+IFERROR(VLOOKUP(I31,TT_Gestori!A:C,3,FALSE),IFERROR(VLOOKUP(D31,TT_Gestori!B:C,2,FALSE),+C31)) -> MA.P.R.OL. DI GIORGI SRL | I31: =IFERROR(VLOOKUP(B31,TT_Gestori!A:C,1,FALSE),IFERROR(VLOOKUP(D31,TT_Gestori!B:D,3,FALSE),B31)) -> 24 | J31: =IFERROR(VLOOKUP(D31,TT_Gestori!C:C,1,FALSE),IFERROR(VLOOKUP(I31,TT_Gestori!A:C,2,FALSE),D31)) -> 01672691001 | K31: FALSE | L31: FALSE | M31: FALSE
A32: 25 | B32: 25 | C32: CONSORZIO ACQUEDOTTO DEL MEDIO TIRRENO | D32: 01259061008 | H32: =+IFERROR(VLOOKUP(I32,TT_Gestori!A:C,3,FALSE),IFERROR(VLOOKUP(D32,TT_Gestori!B:C,2,FALSE),+C32)) -> Consorzio Acquedotto del Medio Tirreno in liquidazione | I32: =IFERROR(VLOOKUP(B32,TT_Gestori!A:C,1,FALSE),IFERROR(VLOOKUP(D32,TT_Gestori!B:D,3,FALSE),B32)) -> 37275 | J32: =IFERROR(VLOOKUP(D32,TT_Gestori!C:C,1,FALSE),IFERROR(VLOOKUP(I32,TT_Gestori!A:C,2,FALSE),D32)) -> 01259061008 | K32: FALSE | L32: FALSE | M32: FALSE
A33: 26 | B33: 26 | C33: TALETE SPA | D33: 01767320565 | H33: =+IFERROR(VLOOKUP(I33,TT_Gestori!A:C,3,FALSE),IFERROR(VLOOKUP(D33,TT_Gestori!B:C,2,FALSE),+C33)) -> TALETE S.P.A. | I33: =IFERROR(VLOOKUP(B33,TT_Gestori!A:C,1,FALSE),IFERROR(VLOOKUP(D33,TT_Gestori!B:D,3,FALSE),B33)) -> 15035 | J33: =IFERROR(VLOOKUP(D33,TT_Gestori!C:C,1,FALSE),IFERROR(VLOOKUP(I33,TT_Gestori!A:C,2,FALSE),D33)) -> 01767320565 | K33: FALSE | L33: FALSE | M33: FALSE
A34: 27 | B34: 27 | C34: COMUNE DI CAPENA | D34: 02652400587 | H34: =+IFERROR(VLOOKUP(I34,TT_Gestori!A:C,3,FALSE),IFERROR(VLOOKUP(D34,TT_Gestori!B:C,2,FALSE),+C34)) -> COMUNE DI CAPENA | I34: =IFERROR(VLOOKUP(B34,TT_Gestori!A:C,1,FALSE),IFERROR(VLOOKUP(D34,TT_Gestori!B:D,3,FALSE),B34)) -> 27 | J34: =IFERROR(VLOOKUP(D34,TT_Gestori!C:C,1,FALSE),IFERROR(VLOOKUP(I34,TT_Gestori!A:C,2,FALSE),D34)) -> 02652400587 | K34: FALSE | L34: FALSE | M34: FALSE
A35: 28 | B35: 28 | C35: COMUNE DI CASTELNUOVO DI FARFA | D35: 00122190572 | H35: =+IFERROR(VLOOKUP(I35,TT_Gestori!A:C,3,FALSE),IFERROR(VLOOKUP(D35,TT_Gestori!B:C,2,FALSE),+C35)) -> COMUNE DI CASTELNUOVO DI FARFA | I35: =IFERROR(VLOOKUP(B35,TT_Gestori!A:C,1,FALSE),IFERROR(VLOOKUP(D35,TT_Gestori!B:D,3,FALSE),B35)) -> 28 | J35: =IFERROR(VLOOKUP(D35,TT_Gestori!C:C,1,FALSE),IFERROR(VLOOKUP(I35,TT_Gestori!A:C,2,FALSE),D35)) -> 00122190572 | K35: FALSE | L35: FALSE | M35: FALSE
A36: 29 | B36: 29 | C36: INFRASTRUTTURE DISTRIBUZIONE GAS S.P.A. | D36: 03586470282 | H36: =+IFERROR(VLOOKUP(I36,TT_Gestori!A:C,3,FALSE),IFERROR(VLOOKUP(D36,TT_Gestori!B:C,2,FALSE),+C36)) -> INFRASTRUTTURE DISTRIBUZIONE GAS S.P.A. | I36: =IFERROR(VLOOKUP(B36,TT_Gestori!A:C,1,FALSE),IFERROR(VLOOKUP(D36,TT_Gestori!B:D,3,FALSE),B36)) -> 29 | J36: =IFERROR(VLOOKUP(D36,TT_Gestori!C:C,1,FALSE),IFERROR(VLOOKUP(I36,TT_Gestori!A:C,2,FALSE),D36)) -> 03586470282 | K36: FALSE | L36: FALSE | M36: FALSE
A37: =+ROW(A37)-7 -> 30 | B37: 30 | C37: CONSORZIO INDUSTRIALE DEL LAZIO | D37: 16452941004 | H37: =+IFERROR(VLOOKUP(I37,TT_Gestori!A:C,3,FALSE),IFERROR(VLOOKUP(D37,TT_Gestori!B:C,2,FALSE),+C37)) -> CONSORZIO INDUSTRIALE DEL LAZIO | I37: =IFERROR(VLOOKUP(B37,TT_Gestori!A:C,1,FALSE),IFERROR(VLOOKUP(D37,TT_Gestori!B:D,3,FALSE),B37)) -> 30 | J37: =IFERROR(VLOOKUP(D37,TT_Gestori!C:C,1,FALSE),IFERROR(VLOOKUP(I37,TT_Gestori!A:C,2,FALSE),D37)) -> 16452941004 | K37: =+OR(I37="",I37=0) -> FALSE | L37: =+OR(J37="",J37=0) -> FALSE | M37: =+IF(AND(B37="",C37="",D37="",ROW(B37)=8),FALSE,IF(OR(H37="",H37=0,K37=TRUE,L37=TRUE),TRUE,FALSE)) -> FALSE

Sheet Vendita_Servizi_ingrosso
B1: SCAMBI ALL'INGROSSO
B3: 2. Ricavi da tariffe applicate nella Vendita all'ingrosso
F4: ANNO 2019 | L4: ANNO 2020 | R4: ANNO 2021 | Z4: J ANNO 2020 | AE4: J ANNO 2021
A5: N_riga | B5: Idgestore | C5: Soggetto a cui si vende | D5: ATO | E5: Servizio | F5: Volumi erogati / trattati (m3/anno) | G5: QV (Euro/m3) | H5: - | I5: Utenze (numero) | J5: QF (Euro/utente/anno) | K5: Importo (Euro/anno) | L5: Volumi erogati / trattati (m3/anno) | M5: QV (Euro/m3) | N5: - | O5: Utenze (numero) | P5: QF (Euro/utente/anno) | Q5: Importo (Euro/anno) | R5: Volumi erogati / trattati (m3/anno) | S5: QV (Euro/m3) | T5: - | U5: Utenze (numero) | V5: QF (Euro/utente/anno) | W5: Importo (Euro/anno) | X5: Le tariffe riportate per il 2020 includono l'applicazione del Teta? | Y5: Teta medio applicato nella fatturazione dell'anno 2020 | Z5: Teta approvato dal soggetto competente per l'anno 2020 | AA5: Teta approvato dall'Autorità per l'anno 2020 | AB5: delibera Autorità | AC5: Le tariffe riportate per il 2021 includono l'applicazione del Teta? | AD5: Teta medio applicato nella fatturazione dell'anno 2021 | AE5: Teta approvato dal soggetto competente per l'anno 2021 | AF5: Teta approvato dall'Autorità per l'anno 2021 | AG5: delibera Autorità | AI5: tar2019*vol2020 | AJ5: tar2019*vol2021 | AK5: tar2020*vol2020 | AL5: tar2021*vol2021
A6: =+ROW(A6)-5 -> 1 | B6: =+IF(ISNA(VLOOKUP(C6,soggetto_j,2,FALSE)),0,VLOOKUP(C6,soggetto_j,2,FALSE)) -> 13805 | C6: ACEA ATO 5 SPA | D6: ATO 5 - LAZIO MERIDIONALE FROSINONE | E6: Adduzione | F6: 6117070 | G6: 0.5620354075 | H6: 0 | I6: 7 | J6: 20.51 | K6: =+F6*G6+I6*J6 -> 3438153.5 | L6: 6236372 | M6: 0.6064485553 | N6: 0 | O6: 7 | P6: 20.99428571 | Q6: =+L6*M6+O6*P6 -> 3782185.75 | R6: 4989716 | S6: 0.6490068092 | T6: 0 | U6: 7 | V6: 22.13142857 | W6: =+U6*V6+R6*S6 -> 3238514.58 | X6: SI | Y6: 1.020264779 | Z6: 1.020264779 | AA6: =+Dati_Anni_precedenti!$E$5 -> 1.02 | AB6: =+Dati_Anni_precedenti!$G$4 -> 197/2021 | AC6: SI | AD6: 1.077851735 | AE6: 1.077851735 | AF6: =+Dati_Anni_precedenti!$F$5 -> 1.078 | AG6: =+Dati_Anni_precedenti!$G$4 -> 197/2021 | AI6: =+O6*$J6+L6*$G6 -> 3505205.448 | AJ6: =+U6*$J6+R6*$G6 -> 2804540.635 | AK6: =+Q6 -> 3782185.75 | AL6: =+W6 -> 3238514.58
A7: =+ROW(A7)-5 -> 2 | B7: 25320 | C7: Acqua Pubblica Sabina S.P.A. | D7: ATO 3 - LAZIO CENTRALE RIETI | E7: Adduzione | F7: 18078216 | G7: 0.04196394506 | H7: 0 | I7: 14 | J7: 12.14428571 | K7: =+F7*G7+I7*J7 -> 758803.283 | L7: 9247502 | M7: 0.1099689322 | N7: 0 | O7: 20 | P7: 19.9355 | Q7: =+L7*M7+O7*P7 -> 1017336.63 | R7: 9915410 | S7: 0.1189231893 | T7: 0 | U7: 20 | V7: 22.1215 | W7: =+U7*V7+R7*S7 -> 1179614.61 | X7: SI | Y7: 1.020264779 | Z7: 1.020264779 | AA7: =+Dati_Anni_precedenti!$E$5 -> 1.02 | AB7: =+Dati_Anni_precedenti!$G$4 -> 197/2021 | AC7: SI | AD7: 1.077851735 | AE7: 1.077851735 | AF7: =+Dati_Anni_precedenti!$F$5 -> 1.078 | AG7: =+Dati_Anni_precedenti!$G$4 -> 197/2021 | AI7: =+O7*$J7+L7*$G7 -> 388304.5516 | AJ7: =+U7*$J7+R7*$G7 -> 416332.6062 | AK7: =+Q7 -> 1017336.63 | AL7: =+W7 -> 1179614.61
A8: 3 | B8: 13761 | C8: ACQUALATINA SPA | D8: ATO 4 - LAZIO MERIDIONALE LATINA | E8: Adduzione | F8: 851062 | G8: 0.3227605744 | H8: 0 | I8: 2 | J8: 20.5 | K8: 274730.26 | L8: 865139 | M8: 0.3290144127 | N8: 0 | O8: 2 | P8: 20.96 | Q8: 284685.12 | R8: 862737 | S8: 0.3473828177 | T8: 0 | U8: 2 | V8: 22.13 | W8: 299744.27 | X8: SI | Y8: 1.020264779 | Z8: 1.020264779 | AA8: =+Dati_Anni_precedenti!$E$5 -> 1.02 | AB8: =+Dati_Anni_precedenti!$G$4 -> 197/2021 | AC8: SI | AD8: 1.077851735 | AE8: 1.077851735 | AF8: =+Dati_Anni_precedenti!$F$5 -> 1.078 | AG8: =+Dati_Anni_precedenti!$G$4 -> 197/2021 | AI8: 279273.7606 | AJ8: 278498.4897 | AK8: 284685.12 | AL8: 299744.27
A9: 4 | B9: 1 | C9: AGENZIA REGIONALE PER LO SVILUPPO E L'INNOVAZIONE DELL'AGRICOLTURA DEL LAZIO | D9: ATO 2 - LAZIO CENTRALE ROMA | E9: Adduzione | F9: 313111 | G9: 0.3485693572 | H9: 0 | I9: 9 | J9: 20.90111111 | K9: 109329.01 | L9: 361537 | M9: 0.40089681 | N9: 0 | O9: 10 | P9: 18.867 | Q9: 145127.7 | R9: 1434973 | S9: 0.3484094335 | T9: 0 | U9: 13 | V9: 22.11307692 | W9: 500245.6 | X9: SI | Y9: 1.020264779 | Z9: 1.020264779 | AA9: =+Dati_Anni_precedenti!$E$5 -> 1.02 | AB9: =+Dati_Anni_precedenti!$G$4 -> 197/2021 | AC9: SI | AD9: 1.077851735 | AE9: 1.077851735 | AF9: =+Dati_Anni_precedenti!$F$5 -> 1.078 | AG9: =+Dati_Anni_precedenti!$G$4 -> 197/2021 | AI9: 126229.7308 | AJ9: 500459.3306 | AK9: 145127.7 | AL9: 500245.6
A10: 5 | B10: 335 | C10: AMEA S.P.A. | D10: ATO 5 - LAZIO MERIDIONALE FROSINONE | E10: Adduzione | F10: 255374 | G10: 0.322000047 | H10: 0 | I10: 1 | J10: 20.51 | K10: 82250.95 | L10: 262121 | M10: 0.3285998833 | N10: 0 | O10: 1 | P10: 20.98 | Q10: 86153.91 | R10: 298490 | S10: 0.3473000101 | T10: 0 | U10: 1 | V10: 22.13 | W10: 103687.71 | X10: SI | Y10: 1.020264779 | Z10: 1.020264779 | AA10: =+Dati_Anni_precedenti!$E$5 -> 1.02 | AB10: =+Dati_Anni_precedenti!$G$4 -> 197/2021 | AC10: SI | AD10: 1.077851735 | AE10: 1.077851735 | AF10: =+Dati_Anni_precedenti!$F$5 -> 1.078 | AG10: =+Dati_Anni_precedenti!$G$4 -> 197/2021 | AI10: 84423.48432 | AJ10: 96134.30403 | AK10: 86153.91 | AL10: 103687.71
A11: 6 | B11: 6 | C11: COMUNE DI AGOSTA | D11: ATO 2 - LAZIO CENTRALE ROMA | E11: Adduzione | F11: 344837 | G11: 0 | H11: 0 | I11: 1 | J11: 20.5 | K11: 20.5 | L11: 359242 | M11: 0 | N11: 0 | O11: 1 | P11: 20.99 | Q11: 20.99 | R11: 357258 | S11: 0 | T11: 0 | U11: 1 | V11: 22.12 | W11: 22.12 | X11: SI | Y11: 1.020264779 | Z11: 1.020264779 | AA11: =+Dati_Anni_precedenti!$E$5 -> 1.02 | AB11: =+Dati_Anni_precedenti!$G$4 -> 197/2021 | AC11: SI | AD11: 1.077851735 | AE11: 1.077851735 | AF11: =+Dati_Anni_precedenti!$F$5 -> 1.078 | AG11: =+Dati_Anni_precedenti!$G$4 -> 197/2021 | AI11: 20.5 | AJ11: 20.5 | AK11: 20.99 | AL11: 22.12
A12: 7 | B12: 22725 | C12: Comune di Anguillara Sabazia | D12: ATO 2 - LAZIO CENTRALE ROMA | E12: Adduzione | F12: 470889 | G12: 0.2614171705 | H12: 0 | I12: 1 | J12: 20.51 | K12: 123118.98 | L12: 463864 | M12: 0.2165938723 | N12: 0 | O12: 1 | P12: 20.99 | Q12: 100491.09 | R12: 463676 | S12: 0.2291954511 | T12: 0 | U12: 1 | V12: 22.13 | W12: 106294.56 | X12: SI | Y12: 1.020264779 | Z12: 1.020264779 | AA12: =+Dati_Anni_precedenti!$E$5 -> 1.02 | AB12: =+Dati_Anni_precedenti!$G$4 -> 197/2021 | AC12: SI | AD12: 1.077851735 | AE12: 1.077851735 | AF12: =+Dati_Anni_precedenti!$F$5 -> 1.078 | AG12: =+Dati_Anni_precedenti!$G$4 -> 197/2021 | AI12: 121282.5244 | AJ12: 121233.3779 | AK12: 100491.09 | AL12: 106294.56
A13: 8 | B13: 13 | C13: COMUNE DI CASAPROTA | D13: ATO 3 - LAZIO CENTRALE RIETI | E13: Adduzione | F13: 134664 | G13: 0.161 | H13: 0 | I13: 1 | J13: 20.51 | K13: 21701.414 | L13: 170165 | M13: 0.1642999442 | N13: 0 | O13: 1 | P13: 21 | Q13: 27979.1 | R13: 0 | S13: 0 | T13: 0 | U13: 0 | V13: 0 | W13: 0 | X13: SI | Y13: 1.020264779 | Z13: 1.020264779 | AA13: =+Dati_Anni_precedenti!$E$5 -> 1.02 | AB13: =+Dati_Anni_precedenti!$G$4 -> 197/2021 | AC13: SI | AD13: 1.077851735 | AE13: 1.077851735 | AF13: =+Dati_Anni_precedenti!$F$5 -> 1.078 | AG13: =+Dati_Anni_precedenti!$G$4 -> 197/2021 | AI13: 27417.075 | AJ13: 0 | AK13: 27979.1 | AL13: 0
A14: 9 | B14: 25953 | C14: Comune di Cerreto Laziale | D14: ATO 2 - LAZIO CENTRALE ROMA | E14: Adduzione | F14: 34727 | G14: 0.3220332882 | H14: 0 | I14: 1 | J14: 20.51 | K14: 11203.76 | L14: 32709 | M14: 0.3363377052 | N14: 0 | O14: 1 | P14: 20.98 | Q14: 11022.25 | R14: 54009 | S14: 0.3984147087 | T14: 0 | U14: 1 | V14: 22.13 | W14: 21540.11 | X14: SI | Y14: 1.020264779 | Z14: 1.020264779 | AA14: =+Dati_Anni_precedenti!$E$5 -> 1.02 | AB14: =+Dati_Anni_precedenti!$G$4 -> 197/2021 | AC14: SI | AD14: 1.077851735 | AE14: 1.077851735 | AF14: =+Dati_Anni_precedenti!$F$5 -> 1.078 | AG14: =+Dati_Anni_precedenti!$G$4 -> 197/2021 | AI14: 10553.89682 | AJ14: 17413.20586 | AK14: 11022.25 | AL14: 21540.11
A15: 10 | B15: 26012 | C15: Comune Civitella San Paolo | D15: ATO 2 - LAZIO CENTRALE ROMA | E15: Adduzione | F15: 79434 | G15: 0.3220000252 | H15: 0 | I15: 1 | J15: 20.52 | K15: 25598.27 | L15: 96092 | M15: 0.3285998834 | N15: 0 | O15: 1 | P15: 20.98 | Q15: 31596.8 | R15: 98237 | S15: 0.347299999 | T15: 0 | U15: 1 | V15: 22.12 | W15: 34139.83 | X15: SI | Y15: 1.020264779 | Z15: 1.020264779 | AA15: =+Dati_Anni_precedenti!$E$5 -> 1.02 | AB15: =+Dati_Anni_precedenti!$G$4 -> 197/2021 | AC15: SI | AD15: 1.077851735 | AE15: 1.077851735 | AF15: =+Dati_Anni_precedenti!$F$5 -> 1.078 | AG15: =+Dati_Anni_precedenti!$G$4 -> 197/2021 | AI15: 30962.14642 | AJ15: 31652.83647 | AK15: 31596.8 | AL15: 34139.83
A16: 11 | B16: 22755 | C16: COMUNE DI LABICO | D16: ATO 2 - LAZIO CENTRALE ROMA | E16: Adduzione | F16: 126437 | G16: 0.3227849443 | H16: 0 | I16: 1 | J16: 20.52 | K16: 40832.48 | L16: 126068 | M16: 0.3297131707 | N16: 0 | O16: 1 | P16: 20.98 | Q16: 41587.26 | R16: 131002 | S16: 0.3550228241 | T16: 0 | U16: 1 | V16: 22.13 | W16: 46530.83 | X16: SI | Y16: 1.020264779 | Z16: 1.020264779 | AA16: =+Dati_Anni_precedenti!$E$5 -> 1.02 | AB16: =+Dati_Anni_precedenti!$G$4 -> 197/2021 | AC16: SI | AD16: 1.077851735 | AE16: 1.077851735 | AF16: =+Dati_Anni_precedenti!$F$5 -> 1.078 | AG16: =+Dati_Anni_precedenti!$G$4 -> 197/2021 | AI16: 40713.37236 | AJ16: 42305.99327 | AK16: 41587.26 | AL16: 46530.83
A17: 12 | B17: 8 | C17: COMUNE DI MARANO EQUO | D17: ATO 2 - LAZIO CENTRALE ROMA | E17: Adduzione | F17: 298136 | G17: 1.416372897 | H17: 0 | I17: 2 | J17: 10.245 | K17: 422292.24 | L17: 304574 | M17: 1.457341467 | N17: 0 | O17: 1 | P17: 20.98 | Q17: 443889.3 | R17: 345258 | S17: 0.4033903342 | T17: 0 | U17: 1 | V17: 22.13 | W17: 139295.87 | X17: SI | Y17: 1.020264779 | Z17: 1.020264779 | AA17: =+Dati_Anni_precedenti!$E$5 -> 1.02 | AB17: =+Dati_Anni_precedenti!$G$4 -> 197/2021 | AC17: SI | AD17: 1.077851735 | AE17: 1.077851735 | AF17: =+Dati_Anni_precedenti!$F$5 -> 1.078 | AG17: =+Dati_Anni_precedenti!$G$4 -> 197/2021 | AI17: 431400.6037 | AJ17: 489024.3186 | AK17: 443889.3 | AL17: 139295.87
A18: 13 | B18: 21378 | C18: Comune di Poggio Moiano | D18: ATO 3 - LAZIO CENTRALE RIETI | E18: Adduzione | F18: 104373 | G18: 0.161 | H18: 0 | I18: 1 | J18: 20.51 | K18: 16824.563 | L18: 115719 | M18: 0.1642999853 | N18: 0 | O18: 1 | P18: 20.99 | Q18: 19033.62 | R18: 122823 | S18: 0.1736997142 | T18: 0 | U18: 1 | V18: 22.12 | W18: 21356.44 | X18: SI | Y18: 1.020264779 | Z18: 1.020264779 | AA18: =+Dati_Anni_precedenti!$E$5 -> 1.02 | AB18: =+Dati_Anni_precedenti!$G$4 -> 197/2021 | AC18: SI | AD18: 1.077851735 | AE18: 1.077851735 | AF18: =+Dati_Anni_precedenti!$F$5 -> 1.078 | AG18: =+Dati_Anni_precedenti!$G$4 -> 197/2021 | AI18: 18651.269 | AJ18: 19795.013 | AK18: 19033.62 | AL18: 21356.44
A19: 14 | B19: 0 | C19: COMUNE DI SANT'ANGELO ROMANO | D19: ATO 2 - LAZIO CENTRALE ROMA | E19: Adduzione | F19: 253355 | G19: 0.161 | H19: 0 | I19: 2 | J19: 20.51 | K19: 40831.175 | L19: 235645 | M19: 0.5637171168 | N19: 0 | O19: 2 | P19: 20.985 | Q19: 132879.09 | R19: 418240 | S19: 0.9246084306 | T19: 0 | U19: 2 | V19: 22.13 | W19: 386752.49 | X19: SI | Y19: 1.020264779 | Z19: 1.020264779 | AA19: =+Dati_Anni_precedenti!$E$5 -> 1.02 | AB19: =+Dati_Anni_precedenti!$G$4 -> 197/2021 | AC19: SI | AD19: 1.077851735 | AE19: 1.077851735 | AF19: =+Dati_Anni_precedenti!$F$5 -> 1.078 | AG19: =+Dati_Anni_precedenti!$G$4 -> 197/2021 | AI19: 37979.865 | AJ19: 67377.66 | AK19: 132879.09 | AL19: 386752.49
A20: 15 | B20: 20 | C20: COMUNE DI TIVOLI | D20: ATO 2 - LAZIO CENTRALE ROMA | E20: Adduzione | F20: 0 | G20: 0 | H20: 0 | I20: 0 | J20: 0 | K20: 0 | L20: 3662 | M20: 0.3288148553 | N20: 0 | O20: 2 | P20: 20.98 | Q20: 1246.08 | R20: 475 | S20: 0.4822315789 | T20: 0 | U20: 2 | V20: 8.305 | W20: 245.67 | X20: SI | Y20: 1.020264779 | Z20: 1.020264779 | AA20: =+Dati_Anni_precedenti!$E$5 -> 1.02 | AB20: =+Dati_Anni_precedenti!$G$4 -> 197/2021 | AC20: SI | AD20: 1.077851735 | AE20: 1.077851735 | AF20: =+Dati_Anni_precedenti!$F$5 -> 1.078 | AG20: =+Dati_Anni_precedenti!$G$4 -> 197/2021 | AI20: 0 | AJ20: 0 | AK20: 1246.08 | AL20: 245.67
A21: 16 | B21: 19749 | C21: Comune di Trevi nel Lazio | D21: ATO 2 - LAZIO CENTRALE ROMA | E21: Adduzione | F21: 227976 | G21: 0 | H21: 0 | I21: 1 | J21: 20.52 | K21: 20.52 | L21: 261009 | M21: 0 | N21: 0 | O21: 1 | P21: 21 | Q21: 21 | R21: 261672 | S21: 0 | T21: 0 | U21: 1 | V21: 22.13 | W21: 22.13 | X21: SI | Y21: 1.020264779 | Z21: 1.020264779 | AA21: =+Dati_Anni_precedenti!$E$5 -> 1.02 | AB21: =+Dati_Anni_precedenti!$G$4 -> 197/2021 | AC21: SI | AD21: 1.077851735 | AE21: 1.077851735 | AF21: =+Dati_Anni_precedenti!$F$5 -> 1.078 | AG21: =+Dati_Anni_precedenti!$G$4 -> 197/2021 | AI21: 20.52 | AJ21: 20.52 | AK21: 21 | AL21: 22.13
A22: 17 | B22: 23865 | C22: CONSORZIO COMUNI DELLA MEDIA SABINA | D22: ATO 3 - LAZIO CENTRALE RIETI | E22: Adduzione | F22: 891190 | G22: 0.003632657458 | H22: 0 | I22: 1 | J22: 20.51 | K22: 3257.898 | L22: 968724 | M22: 0.01319115661 | N22: 0 | O22: 1 | P22: 20.99 | Q22: 12799.58 | R22: 998428 | S22: 0.01733700377 | T22: 0 | U22: 1 | V22: 22.13 | W22: 17331.88 | X22: SI | Y22: 1.020264779 | Z22: 1.020264779 | AA22: =+Dati_Anni_precedenti!$E$5 -> 1.02 | AB22: =+Dati_Anni_precedenti!$G$4 -> 197/2021 | AC22: SI | AD22: 1.077851735 | AE22: 1.077851735 | AF22: =+Dati_Anni_precedenti!$F$5 -> 1.078 | AG22: =+Dati_Anni_precedenti!$G$4 -> 197/2021 | AI22: 3539.552463 | AJ22: 3647.45692 | AK22: 12799.58 | AL22: 17331.88
A23: 18 | B23: 14 | C23: CONSORZIO DEGLI ALTIPIANI DI ARCINAZZO PER DISTRIB.ACQUA | D23: ATO 2 - LAZIO CENTRALE ROMA | E23: Adduzione | F23: 36077 | G23: 0.4236169859 | H23: 0 | I23: 1 | J23: 20.51 | K23: 15303.34 | L23: 42759 | M23: 0.5471402512 | N23: 0 | O23: 1 | P23: 20.98 | Q23: 23416.15 | R23: 25649 | S23: 0.4318702484 | T23: 0 | U23: 1 | V23: 22.13 | W23: 11099.17 | X23: SI | Y23: 1.020264779 | Z23: 1.020264779 | AA23: =+Dati_Anni_precedenti!$E$5 -> 1.02 | AB23: =+Dati_Anni_precedenti!$G$4 -> 197/2021 | AC23: SI | AD23: 1.077851735 | AE23: 1.077851735 | AF23: =+Dati_Anni_precedenti!$F$5 -> 1.078 | AG23: =+Dati_Anni_precedenti!$G$4 -> 197/2021 | AI23: 18133.9487 | AJ23: 10885.86207 | AK23: 23416.15 | AL23: 11099.17
A24: 19 | B24: 4 | C24: CONSORZIO INTERCOMUNALE ACQUEDOTTO DEL PESCHIERA | D24: ATO 3 - LAZIO CENTRALE RIETI | E24: Adduzione | F24: 437544 | G24: 0.002434811128 | H24: 0 | I24: 1 | J24: 20.51 | K24: 1085.847 | L24: 468611 | M24: 0.02694723342 | N24: 0 | O24: 1 | P24: 20.98 | Q24: 12648.75 | R24: 724459 | S24: 0.06784251421 | T24: 0 | U24: 1 | V24: 22.13 | W24: 49171.25 | X24: SI | Y24: 1.020264779 | Z24: 1.020264779 | AA24: =+Dati_Anni_precedenti!$E$5 -> 1.02 | AB24: =+Dati_Anni_precedenti!$G$4 -> 197/2021 | AC24: SI | AD24: 1.077851735 | AE24: 1.077851735 | AF24: =+Dati_Anni_precedenti!$F$5 -> 1.078 | AG24: =+Dati_Anni_precedenti!$G$4 -> 197/2021 | AI24: 1161.489277 | AJ24: 1784.430835 | AK24: 12648.75 | AL24: 49171.25
A25: 20 | B25: 18 | C25: CONSORZIO PER LO SVILUPPO INDUSTRIALE FROSINONE | D25: ATO 3 - LAZIO CENTRALE RIETI | E25: Adduzione | F25: 1676732 | G25: 0.3241967649 | H25: 0 | I25: 1 | J25: 20.51 | K25: 543611.6 | L25: 1607767 | M25: 0.3281066908 | N25: 0 | O25: 1 | P25: 20.9 | Q25: 527540.01 | R25: 1806405 | S25: 0.3751447211 | T25: 0 | U25: 1 | V25: 20.43 | W25: 677683.73 | X25: SI | Y25: 1.020264779 | Z25: 1.020264779 | AA25: =+Dati_Anni_precedenti!$E$5 -> 1.02 | AB25: =+Dati_Anni_precedenti!$G$4 -> 197/2021 | AC25: SI | AD25: 1.077851735 | AE25: 1.077851735 | AF25: =+Dati_Anni_precedenti!$F$5 -> 1.078 | AG25: =+Dati_Anni_precedenti!$G$4 -> 197/2021 | AI25: 521253.3701 | AJ25: 585651.1671 | AK25: 527540.01 | AL25: 677683.73
A26: 21 | B26: 14038 | C26: Flavia Servizi S.r.l. | D26: ATO 2 - LAZIO CENTRALE ROMA | E26: Adduzione | F26: 399207 | G26: 0.3926795622 | H26: 0 | I26: 1 | J26: 20.5 | K26: 156780.93 | L26: 348535 | M26: 0.3286000258 | N26: 0 | O26: 1 | P26: 20.99 | Q26: 114549.6 | R26: 852489 | S26: 0.3601173739 | T26: 0 | U26: 1 | V26: 22.12 | W26: 307018.22 | X26: SI | Y26: 1.020264779 | Z26: 1.020264779 | AA26: =+Dati_Anni_precedenti!$E$5 -> 1.02 | AB26: =+Dati_Anni_precedenti!$G$4 -> 197/2021 | AC26: SI | AD26: 1.077851735 | AE26: 1.077851735 | AF26: =+Dati_Anni_precedenti!$F$5 -> 1.078 | AG26: =+Dati_Anni_precedenti!$G$4 -> 197/2021 | AI26: 136883.0712 | AJ26: 334775.5073 | AK26: 114549.6 | AL26: 307018.22
A27: 22 | B27: 14097 | C27: IDRICA | D27: ATO 2 - LAZIO CENTRALE ROMA | E27: Adduzione | F27: 3468846 | G27: 0.3412990603 | H27: 0 | I27: 1 | J27: 20.5 | K27: 1183934.38 | L27: 3660612 | M27: 0.3578762185 | N27: 0 | O27: 2 | P27: 19.715 | Q27: 1310085.41 | R27: 4000421 | S27: 0.3909758598 | T27: 0 | U27: 2 | V27: 22.12 | W27: 1564112.28 | X27: SI | Y27: 1.020264779 | Z27: 1.020264779 | AA27: =+Dati_Anni_precedenti!$E$5 -> 1.02 | AB27: =+Dati_Anni_precedenti!$G$4 -> 197/2021 | AC27: SI | AD27: 1.077851735 | AE27: 1.077851735 | AF27: =+Dati_Anni_precedenti!$F$5 -> 1.078 | AG27: =+Dati_Anni_precedenti!$G$4 -> 197/2021 | AI27: 1249404.436 | AJ27: 1365380.928 | AK27: 1310085.41 | AL27: 1564112.28
A28: 23 | B28: 2 | C28: REGIONE LAZIO | D28: ATO 2 - LAZIO CENTRALE ROMA | E28: Adduzione | F28: 7955 | G28: 0.3219974859 | H28: 0 | I28: 3 | J28: 20.51 | K28: 2623.02 | L28: 16669 | M28: 0.328599796 | N28: 0 | O28: 3 | P28: 20.97 | Q28: 5540.34 | R28: 9135 | S28: 0.3472993979 | T28: 0 | U28: 3 | V28: 22.11 | W28: 3238.91 | X28: SI | Y28: 1.020264779 | Z28: 1.020264779 | AA28: =+Dati_Anni_precedenti!$E$5 -> 1.02 | AB28: =+Dati_Anni_precedenti!$G$4 -> 197/2021 | AC28: SI | AD28: 1.077851735 | AE28: 1.077851735 | AF28: =+Dati_Anni_precedenti!$F$5 -> 1.078 | AG28: =+Dati_Anni_precedenti!$G$4 -> 197/2021 | AI28: 5428.906092 | AJ28: 3002.977033 | AK28: 5540.34 | AL28: 3238.91
A29: 24 | B29: =+IF(ISNA(VLOOKUP(C29,soggetto_j,2,FALSE)),0,VLOOKUP(C29,soggetto_j,2,FALSE)) -> 28 | C29: COMUNE DI CASTELNUOVO DI FARFA | D29: ATO 3 - LAZIO CENTRALE RIETI | E29: Adduzione | F29: 126146 | G29: 0.161 | H29: 0 | I29: 1 | J29: 20.51 | K29: 20330.016 | L29: 0 | M29: 0 | N29: 0 | O29: 0 | P29: 0 | Q29: 0 | R29: 0 | S29: 0 | T29: 0 | U29: 0 | V29: 0 | W29: 0 | X29: SI | Y29: 1.020264779 | Z29: 1.020264779 | AA29: =+Dati_Anni_precedenti!$E$5 -> 1.02 | AB29: =+Dati_Anni_precedenti!$G$4 -> 197/2021 | AC29: SI | AD29: 1.077851735 | AE29: 1.077851735 | AF29: =+Dati_Anni_precedenti!$F$5 -> 1.078 | AG29: =+Dati_Anni_precedenti!$G$4 -> 197/2021 | AI29: 0 | AJ29: 0 | AK29: 0 | AL29: 0
A30: 25 | B30: 29 | C30: INFRASTRUTTURE DISTRIBUZIONE GAS S.P.A. | D30: ATO 2 - LAZIO CENTRALE ROMA | E30: Adduzione | F30: 18505 | G30: 0.2864431235 | H30: 0 | I30: 1 | J30: 35.69 | K30: 5336.32 | L30: 0 | M30: 0 | N30: 0 | O30: 0 | P30: 0 | Q30: 0 | R30: 0 | S30: 0 | T30: 0 | U30: 0 | V30: 0 | W30: 0 | X30: SI | Y30: 1.020264779 | Z30: 1.020264779 | AA30: =+Dati_Anni_precedenti!$E$5 -> 1.02 | AB30: =+Dati_Anni_precedenti!$G$4 -> 197/2021 | AC30: SI | AD30: 1.077851735 | AE30: 1.077851735 | AF30: =+Dati_Anni_precedenti!$F$5 -> 1.078 | AG30: =+Dati_Anni_precedenti!$G$4 -> 197/2021 | AI30: 0 | AJ30: 0 | AK30: 0 | AL30: 0
A31: =+ROW(A31)-5 -> 26 | B31: 30 | C31: CONSORZIO INDUSTRIALE DEL LAZIO | D31: ATO 5 - LAZIO MERIDIONALE FROSINONE | E31: Adduzione | F31: 0 | G31: 0 | H31: 0 | I31: 0 | J31: 0 | K31: =+F31*G31+I31*J31 -> 0 | L31: 0 | M31: 0 | N31: 0 | O31: 0 | P31: 0 | Q31: =+L31*M31+O31*P31 -> 0 | R31: 167852 | S31: 0.3937633153 | T31: 0 | U31: 1 | V31: 1.7 | W31: =+U31*V31+R31*S31 -> 66095.66 | X31: 0 | Y31: 0 | Z31: 0 | AA31: =+Dati_Anni_precedenti!$E$5 -> 1.02 | AB31: =+Dati_Anni_precedenti!$G$4 -> 197/2021 | AC31: SI | AD31: 1.077851735 | AE31: 1.077851735 | AF31: =+Dati_Anni_precedenti!$F$5 -> 1.078 | AG31: =+Dati_Anni_precedenti!$G$4 -> 197/2021 | AI31: =+O31*$J31+L31*$G31 -> 0 | AJ31: =+U31*$J31+R31*$G31 -> 0 | AK31: =+Q31 -> 0 | AL31: =+W31 -> 66095.66

Sheet Acquisto_Servizi_ingrosso
B1: SCAMBI ALL'INGROSSO
B3: 3. Costi per acquisto all'ingrosso | F3: costi sostenuti di fornitura all'ingrosso, criterio di competenza | Q3: costi a seguito dell'applicazione del J al grossista | W3: costi sostenuti di fornitura all'ingrosso, criterio di competenza | AH3: costi a seguito dell'applicazione del J al grossista
F4: ANNO 2020 - COeffettivo,2020 ai fini del COws comma 21.1 MTI-3 | L4: informazione sui J ANNO 2020 | Q4: ANNO 2020 - COeffettivo,2020 ai fini del RCws comma 27.1 MTI-3 | W4: ANNO 2021 - COeffettivo,2021 ai fini del COws comma 21.1 MTI-3 | AC4: informazione sui J ANNO 2021 | AH4: ANNO 2021 - COeffettivo,2021 ai fini del RCws comma 27.1 MTI-3
A5: N_riga | B5: Idgestore | C5: Soggetto da cui si acquista | D5: ATO | E5: Servizio | F5: Volumi erogati / trattati (m3/anno) | G5: QV (Euro/m3) | H5: - | I5: Utenze (numero) | J5: QF (Euro/utente/anno) | K5: Importo (Euro/anno) | L5: Le tariffe applicate per la fatturazione 2020 includono l'applicazione del Teta? | M5: Teta medio applicato dal grossista nella fatturazione dell'anno 2020 | N5: Teta approvato dal soggetto competente per l'anno 2020 | O5: Teta approvato dall'Autorità per l'anno 2020 | P5: delibera Autorità | Q5: Volumi erogati / trattati (m3/anno) | R5: QV (Euro/m3) | S5: - | T5: Utenze (numero) | U5: QF (Euro/utente/anno) | V5: Importo (Euro/anno) | W5: Volumi erogati / trattati (m3/anno) | X5: QV (Euro/m3) | Y5: - | Z5: Utenze (numero) | AA5: QF (Euro/utente/anno) | AB5: Importo (Euro/anno) | AC5: Le tariffe applicate per la fatturazione 2021 includono l'applicazione del Teta? | AD5: Teta medio applicato dal grossista nella fatturazione dell'anno 2021 | AE5: Teta approvato dal soggetto competente per l'anno 2021 | AF5: Teta approvato dall'Autorità per l'anno 2021 | AG5: delibera Autorità | AH5: Volumi erogati / trattati (m3/anno) | AI5: QV (Euro/m3) | AJ5: - | AK5: Utenze (numero) | AL5: QF (Euro/utente/anno) | AM5: Importo (Euro/anno) | AP5: check per RCws 2020 | AQ5: check per RCws 2021
A6: =+ROW(A6)-5 -> 1 | B6: =+IFERROR(VLOOKUP(C6,soggetto_j,2,FALSE),"") -> 24 | C6: MA.P.R.OL. DI GIORGI SRL | D6: ATO 2 - LAZIO CENTRALE ROMA | E6: Acquedotto distribuzione | F6: 470950 | G6: 0.435839 | H6: 0 | K6: =+F6*G6+I6*J6 -> 205258.377 | Q6: 470950 | R6: 0.435839 | S6: 0 | V6: =+Q6*R6+T6*U6 -> 205258.377 | W6: 500237.7882 | X6: 0.437364 | AB6: =+W6*X6+Z6*AA6 -> 218786 | AH6: 500237.7882 | AI6: 0.437364 | AM6: =+AH6*AI6+AK6*AL6 -> 218786 | AP6: =IF(OR(K6=0,V6=0),0,1) -> 1 | AQ6: =IF(OR(AB6=0,AM6=0),0,1) -> 1
A7: =+ROW(A7)-5 -> 2 | B7: 37275 | C7: Consorzio Acquedotto del Medio Tirreno in liquidazione | D7: ATO 2 - LAZIO CENTRALE ROMA | E7: Acquedotto distribuzione | F7: 1713601 | G7: 0.38 | H7: 0 | K7: =+F7*G7+I7*J7 -> 651168.38 | Q7: 1713601 | R7: 0.38 | S7: 0 | V7: =+Q7*R7+T7*U7 -> 651168.38 | W7: 1776125 | X7: 0.38 | AB7: =+W7*X7+Z7*AA7 -> 674927.5 | AH7: 1776125 | AI7: 0.38 | AM7: =+AH7*AI7+AK7*AL7 -> 674927.5 | AP7: =IF(OR(K7=0,V7=0),0,1) -> 1 | AQ7: =IF(OR(AB7=0,AM7=0),0,1) -> 1
A8: 3 | B8: 15035 | C8: TALETE S.P.A. | D8: ATO 1 - LAZIO NORD VITERBO | E8: Acquedotto distribuzione | F8: 1457080 | G8: 0.57 | H8: 0 | K8: 830535.6 | Q8: 1457080 | R8: 0.57 | S8: 0 | V8: 830535.6 | W8: 1549070 | X8: 0.57 | AB8: 882969.9 | AH8: 1549070 | AI8: 0.57 | AM8: 882969.9 | AP8: 1 | AQ8: 1
A9: 4 | B9: 27 | C9: COMUNE DI CAPENA | D9: ATO 2 - LAZIO CENTRALE ROMA | E9: Captazione | F9: 21000 | G9: 1 | H9: 0 | K9: 21000 | Q9: 21000 | R9: 1 | S9: 0 | V9: 21000 | W9: 21000 | X9: 1 | AB9: 21000 | AH9: 21000 | AI9: 1 | AM9: 21000 | AP9: 1 | AQ9: 1
A10: 5 | B10: 25320 | C10: Acqua Pubblica Sabina S.P.A. | D10: ATO 3 - LAZIO CENTRALE RIETI | E10: Acquedotto distribuzione | F10: 183920.0026 | G10: 0.274584 | H10: 0 | K10: 50501.49 | Q10: 183920.0026 | R10: 0.274584 | S10: 0 | V10: 50501.49 | W10: 440492.8182 | X10: 0.274584 | AB10: 120952.28 | AH10: 440492.8182 | AI10: 0.274584 | AM10: 120952.28 | AP10: 1 | AQ10: 1
A11: 6 | B11: 25320 | C11: Acqua Pubblica Sabina S.P.A. | D11: ATO 3 - LAZIO CENTRALE RIETI | E11: Acquedotto distribuzione | F11: 0 | G11: 0 | H11: 0 | K11: 0 | Q11: 0 | R11: 0 | S11: 0 | V11: 0 | W11: 556872.8736 | X11: 0.288044 | AB11: 160403.89 | AH11: 556872.8736 | AI11: 0.288044 | AM11: 160403.89 | AP11: 0 | AQ11: 1
A12: 7 | B12: 13805 | C12: ACEA ATO 5 SPA | D12: ATO 5 - LAZIO MERIDIONALE FROSINONE | E12: Acquedotto distribuzione | F12: 1763651 | G12: 0.3803 | H12: 0 | K12: 670716.4753 | L12: SI | N12: 1.042 | Q12: 1763651 | R12: 0.3803 | S12: 0 | V12: 670716.4753 | W12: 1753871.755 | X12: 0.3816 | AB12: 669277.4616 | AC12: SI | AE12: 1.081 | AH12: 1753871.755 | AI12: 0.3816 | AM12: 669277.4616 | AP12: 1 | AQ12: 1
A13: 8 | B13: 13805 | C13: ACEA ATO 5 SPA | D13: ATO 5 - LAZIO MERIDIONALE FROSINONE | E13: Acquedotto distribuzione | F13: 874368 | G13: 0.6084 | H13: 0 | K13: 531965.4912 | L13: SI | N13: 1.042 | Q13: 874368 | R13: 0.6084 | S13: 0 | V13: 531965.4912 | W13: 853201.9817 | X13: 0.6104 | AB13: 520794.4896 | AC13: SI | AE13: 1.081 | AH13: 853201.9817 | AI13: 0.6104 | AM13: 520794.4896 | AP13: 1 | AQ13: 1
A14: 9 | B14: 13805 | C14: ACEA ATO 5 SPA | D14: ATO 5 - LAZIO MERIDIONALE FROSINONE | E14: Acquedotto distribuzione | F14: 874368 | G14: 1.2351 | H14: 0 | K14: 1079931.917 | L14: SI | N14: 1.042 | Q14: 874368 | R14: 1.2351 | S14: 0 | V14: 1079931.917 | W14: 584423.644 | X14: 1.2393 | AB14: 724276.222 | AC14: SI | AE14: 1.081 | AH14: 584423.644 | AI14: 1.2393 | AM14: 724276.222 | AP14: 1 | AQ14: 1
A15: 10 | B15: 13805 | C15: ACEA ATO 5 SPA | D15: ATO 5 - LAZIO MERIDIONALE FROSINONE | E15: Acquedotto distribuzione | F15: 1305329.898 | G15: 2.4208 | H15: 0 | K15: 3159942.617 | L15: SI | N15: 1.042 | Q15: 1305329.898 | R15: 2.4208 | S15: 0 | V15: 3159942.617 | W15: 354218.8081 | X15: 2.4291 | AB15: 860432.9068 | AC15: SI | AE15: 1.081 | AH15: 354218.8081 | AI15: 2.4291 | AM15: 860432.9068 | AP15: 1 | AQ15: 1

Sheet Nuovi_Investimenti
B1: IMMOBILIZZAZIONI DEL GESTORE | G1: Tutti i valori si intendono a moneta dell'anno del cespite (2020-2021)
A2: 1. LAVORI IN CORSO | M2: errori_compilazione | N2: errore_PdI | O2: Sono_presenti_errori
D3: 2020 | E3: 2021 | M3: =+OR(INDEX(Nuovi_Investimenti,0,29)) -> FALSE | N3: =+(D10+E10-'PdI-riepilogo'!F4-'PdI-riepilogo'!G4)<>0 -> FALSE | O3: =++OR(M3:N3) -> FALSE
C4: Saldo LICord (al netto dei saldi che risultino invariati da più di 4 anni) | D4: 131386385 | E4: 142244052.6
C5: Saldo LICpos (al netto dei saldi che risultino invariati da più di 5 anni) | D5: 49927452.88 | E5: 88726652.47
A7: 2. NUOVI INVESTIMENTI (2020-2021)
D8: 2020 | E8: 2021 | AA8: =+IF(OR(D8="Acquedotto",D8="Fognatura",D8="Depurazione",D8="Comune"),D8,"") -> 
C9: FoNIa-2 da riportare a CFP | D9: =Altri_dati_eco_fin!E57 -> 55238975.45 | E9: =Altri_dati_eco_fin!F57 -> 69489618.49
C10: Totale nuovi investimenti | D10: =+SUMIF($T:$T,D$8,$U:$U) -> 307059331.8 | E10: =+SUMIF($T:$T,E$8,$U:$U) -> 306913808.8 | K10: Valore | L10: Spazio per eventuale compilazione manuale del valore di incidenza
C11: incidenza ENV (%) | D11: =IF(K11="",IFERROR((SUMIFS($U:$U,$Z:$Z,"Env",$T:$T,D$8))/D10,0),K11) -> 0.1738636588 | E11: =IF(K11="",IFERROR((SUMIFS($U:$U,$Z:$Z,"Env",$T:$T,E$8))/E10,0),K11) -> 0.1977440516 | L11: incidenza ENV (%)
C12: incidenza RES (%) | D12: =IF(K12="",IFERROR((SUMIFS($U:$U,$Z:$Z,"Res",$T:$T,D$8))/D10,0),K12) -> 0.01883802231 | E12: =IF(K12="",IFERROR((SUMIFS($U:$U,$Z:$Z,"Res",$T:$T,E$8))/E10,0),K12) -> 0.01468261595 | L12: incidenza RES (%)
C13: incidenza FoNI (%) | D13: =IFERROR(D9/D10,0) -> 0.1798967487 | E13: =IFERROR(E9/E10,0) -> 0.2264141153
A15: N_riga | B15: Categoria del cespite | C15: Categoria di Immobilizzazione | D15: Attività | E15: Tipologia di costo sotteso ("Env", "Res", "Non ERC") | F15: Anno cespite | G15: IP (Euro) | H15: CFP (Euro) | I15: CFP da FoNI | J15: CFP Totale | K15: IDATO | L15: IDGestore | M15: Gestore_Proprietario | N15: N_prop | O15: Fonte | P15: ID_Categoria_Cespite | Q15: CategoriaCespite | R15: ID_Immobilizzazione | S15: IMMOBILIZZAZIONE | T15: AnnoCespite | U15: IP | V15: FAIP | W15: CFP | X15: FACP | Y15: - | Z15: ERC | AA15: Attività | AB15: foglio di origine | AC15: controllo_errori
A16: =+ROW(A16)-15 -> 1 | B16: Terreni | C16: Servizio idrico integrato | D16: =+IFERROR(VLOOKUP(B16,TT_Tabelle_Riferimento!$G$125:$I$160,3,FALSE),"") -> Comune | E16: Non ERC | F16: 2020 | G16: 489864.55 | H16: 0 | I16: =+IFERROR(HLOOKUP(F16,$D$8:$E$13,6,FALSE)*G16,0) -> 88125.03986 | J16: =+I16+H16 -> 88125.03986 | K16: =idato -> 1202 | L16: =idgestore -> 13989 | M16: Gestore | N16: 0 | O16: IP | P16: =+IFERROR(VLOOKUP(Q16,TT_Tabelle_Riferimento!$G$125:$K$160,5,0),0) -> 1 | Q16: =+IFERROR(VLOOKUP(B16,TT_Tabelle_Riferimento!$G$125:$K$160,1,0),0) -> Terreni | R16: =+IFERROR(VLOOKUP(S16,cat_imm_new,2,0),0) -> 1 | S16: =+IFERROR(VLOOKUP(C16,cat_imm_new,1,0),0) -> Servizio idrico integrato | T16: =F16 -> 2020 | U16: =G16 -> 489864.55 | V16: 0 | W16: =J16 -> 88125.03986 | X16: 0 | Z16: =+IF(OR(E16="Res",E16="Env",E16="Non ERC"),E16,"") -> Non ERC | AA16: =+IF(OR(D16="Acquedotto",D16="Fognatura",D16="Depurazione",D16="Comune"),D16,"") -> Comune | AB16: Nuovi_Investimenti | AC16: =+IF(OR(K16:L16=0,P16=0,R16=0),TRUE,FALSE) -> FALSE
A17: =+ROW(A17)-15 -> 2 | B17: Condotte di acquedotto | C17: Servizio idrico integrato | D17: =+IFERROR(VLOOKUP(B17,TT_Tabelle_Riferimento!$G$125:$I$160,3,FALSE),"") -> Acquedotto | E17: Non ERC | F17: 2020 | G17: 101626706.1 | H17: 3175079.641 | I17: =+IFERROR(HLOOKUP(F17,$D$8:$E$13,6,FALSE)*G17,0) -> 18282314.02 | J17: =+I17+H17 -> 21457393.66 | K17: 1202 | L17: 13989 | M17: Gestore | N17: 0 | O17: IP | P17: =+IFERROR(VLOOKUP(Q17,TT_Tabelle_Riferimento!$G$125:$K$160,5,0),0) -> 2 | Q17: =+IFERROR(VLOOKUP(B17,TT_Tabelle_Riferimento!$G$125:$K$160,1,0),0) -> Condotte di acquedotto | R17: 1 | S17: Servizio idrico integrato | T17: =F17 -> 2020 | U17: =G17 -> 101626706.1 | V17: 0 | W17: =J17 -> 21457393.66 | X17: 0 | Z17: =+IF(OR(E17="Res",E17="Env",E17="Non ERC"),E17,"") -> Non ERC | AA17: =+IF(OR(D17="Acquedotto",D17="Fognatura",D17="Depurazione",D17="Comune"),D17,"") -> Acquedotto | AB17: Nuovi_Investimenti | AC17: =+IF(OR(K17:L17=0,P17=0,R17=0),TRUE,FALSE) -> FALSE
A18: 3 | B18: Opere idrauliche fisse di acquedotto | C18: Servizio idrico integrato | D18: =+IFERROR(VLOOKUP(B18,TT_Tabelle_Riferimento!$G$125:$I$160,3,FALSE),"") -> Acquedotto | E18: Non ERC | F18: 2020 | G18: 230550.7225 | H18: 0 | I18: 41475.32539 | J18: 41475.32539 | K18: 1202 | L18: 13989 | M18: Gestore | N18: 0 | O18: IP | P18: =+IFERROR(VLOOKUP(Q18,TT_Tabelle_Riferimento!$G$125:$K$160,5,0),0) -> 3 | Q18: =+IFERROR(VLOOKUP(B18,TT_Tabelle_Riferimento!$G$125:$K$160,1,0),0) -> Opere idrauliche fisse di acquedotto | R18: 1 | S18: Servizio idrico integrato | T18: 2020 | U18: 230550.7225 | V18: 0 | W18: 41475.32539 | X18: 0 | Z18: Non ERC | AA18: Acquedotto | AB18: Nuovi_Investimenti | AC18: =+IF(OR(K18:L18=0,P18=0,R18=0),TRUE,FALSE) -> FALSE
A19: 4 | B19: Opere idrauliche fisse di acquedotto | C19: Servizio idrico integrato | D19: =+IFERROR(VLOOKUP(B19,TT_Tabelle_Riferimento!$G$125:$I$160,3,FALSE),"") -> Acquedotto | E19: Res | F19: 2020 | G19: 1160581.933 | H19: 0 | I19: 208784.9164 | J19: 208784.9164 | K19: 1202 | L19: 13989 | M19: Gestore | N19: 0 | O19: IP | P19: =+IFERROR(VLOOKUP(Q19,TT_Tabelle_Riferimento!$G$125:$K$160,5,0),0) -> 3 | Q19: =+IFERROR(VLOOKUP(B19,TT_Tabelle_Riferimento!$G$125:$K$160,1,0),0) -> Opere idrauliche fisse di acquedotto | R19: 1 | S19: Servizio idrico integrato | T19: 2020 | U19: 1160581.933 | V19: 0 | W19: 208784.9164 | X19: 0 | Z19: Res | AA19: Acquedotto | AB19: Nuovi_Investimenti | AC19: =+IF(OR(K19:L19=0,P19=0,R19=0),TRUE,FALSE) -> FALSE
A20: 5 | B20: Serbatoi | C20: Servizio idrico integrato | D20: =+IFERROR(VLOOKUP(B20,TT_Tabelle_Riferimento!$G$125:$I$160,3,FALSE),"") -> Acquedotto | E20: Non ERC | F20: 2020 | G20: 38786.33346 | H20: 0 | I20: 6977.535285 | J20: 6977.535285 | K20: 1202 | L20: 13989 | M20: Gestore | N20: 0 | O20: IP | P20: =+IFERROR(VLOOKUP(Q20,TT_Tabelle_Riferimento!$G$125:$K$160,5,0),0) -> 4 | Q20: =+IFERROR(VLOOKUP(B20,TT_Tabelle_Riferimento!$G$125:$K$160,1,0),0) -> Serbatoi | R20: 1 | S20: Servizio idrico integrato | T20: 2020 | U20: 38786.33346 | V20: 0 | W20: 6977.535285 | X20: 0 | Z20: Non ERC | AA20: Acquedotto | AB20: Nuovi_Investimenti | AC20: =+IF(OR(K20:L20=0,P20=0,R20=0),TRUE,FALSE) -> FALSE
A21: 6 | B21: Impianti di sollevamento e pompaggio di acquedotto | C21: Servizio idrico integrato | D21: =+IFERROR(VLOOKUP(B21,TT_Tabelle_Riferimento!$G$125:$I$160,3,FALSE),"") -> Acquedotto | E21: Non ERC | F21: 2020 | G21: 20395940.49 | H21: 0 | I21: 3669163.381 | J21: 3669163.381 | K21: 1202 | L21: 13989 | M21: Gestore | N21: 0 | O21: IP | P21: =+IFERROR(VLOOKUP(Q21,TT_Tabelle_Riferimento!$G$125:$K$160,5,0),0) -> 5 | Q21: =+IFERROR(VLOOKUP(B21,TT_Tabelle_Riferimento!$G$125:$K$160,1,0),0) -> Impianti di sollevamento e pompaggio di acquedotto | R21: 1 | S21: Servizio idrico integrato | T21: 2020 | U21: 20395940.49 | V21: 0 | W21: 3669163.381 | X21: 0 | Z21: Non ERC | AA21: Acquedotto | AB21: Nuovi_Investimenti | AC21: =+IF(OR(K21:L21=0,P21=0,R21=0),TRUE,FALSE) -> FALSE
A22: 7 | B22: Impianti di sollevamento e pompaggio di acquedotto | C22: Servizio idrico integrato | D22: =+IFERROR(VLOOKUP(B22,TT_Tabelle_Riferimento!$G$125:$I$160,3,FALSE),"") -> Acquedotto | E22: Res | F22: 2020 | G22: 1072922.822 | H22: 0 | I22: 193015.3273 | J22: 193015.3273 | K22: 1202 | L22: 13989 | M22: Gestore | N22: 0 | O22: IP | P22: =+IFERROR(VLOOKUP(Q22,TT_Tabelle_Riferimento!$G$125:$K$160,5,0),0) -> 5 | Q22: =+IFERROR(VLOOKUP(B22,TT_Tabelle_Riferimento!$G$125:$K$160,1,0),0) -> Impianti di sollevamento e pompaggio di acquedotto | R22: 1 | S22: Servizio idrico integrato | T22: 2020 | U22: 1072922.822 | V22: 0 | W22: 193015.3273 | X22: 0 | Z22: Res | AA22: Acquedotto | AB22: Nuovi_Investimenti | AC22: =+IF(OR(K22:L22=0,P22=0,R22=0),TRUE,FALSE) -> FALSE
A23: 8 | B23: Impianti di potabilizzazione | C23: Servizio idrico integrato | D23: =+IFERROR(VLOOKUP(B23,TT_Tabelle_Riferimento!$G$125:$I$160,3,FALSE),"") -> Acquedotto | E23: Res | F23: 2020 | G23: 2659032.264 | H23: 0 | I23: 478351.2591 | J23: 478351.2591 | K23: 1202 | L23: 13989 | M23: Gestore | N23: 0 | O23: IP | P23: =+IFERROR(VLOOKUP(Q23,TT_Tabelle_Riferimento!$G$125:$K$160,5,0),0) -> 6 | Q23: =+IFERROR(VLOOKUP(B23,TT_Tabelle_Riferimento!$G$125:$K$160,1,0),0) -> Impianti di potabilizzazione | R23: 1 | S23: Servizio idrico integrato | T23: 2020 | U23: 2659032.264 | V23: 0 | W23: 478351.2591 | X23: 0 | Z23: Res | AA23: Acquedotto | AB23: Nuovi_Investimenti | AC23: =+IF(OR(K23:L23=0,P23=0,R23=0),TRUE,FALSE) -> FALSE
A24: 9 | B24: Altri trattamenti di potabilizzazione (tra cui dispositivi di disinfezione, stacciatura, filtrazione, addolcimento) | C24: Servizio idrico integrato | D24: =+IFERROR(VLOOKUP(B24,TT_Tabelle_Riferimento!$G$125:$I$160,3,FALSE),"") -> Acquedotto | E24: Non ERC | F24: 2020 | G24: 1508007.418 | H24: 0 | I24: 271285.6315 | J24: 271285.6315 | K24: 1202 | L24: 13989 | M24: Gestore | N24: 0 | O24: IP | P24: =+IFERROR(VLOOKUP(Q24,TT_Tabelle_Riferimento!$G$125:$K$160,5,0),0) -> 7 | Q24: =+IFERROR(VLOOKUP(B24,TT_Tabelle_Riferimento!$G$125:$K$160,1,0),0) -> Altri trattamenti di potabilizzazione (tra cui dispositivi di disinfezione, stacciatura, filtrazione, addolcimento) | R24: 1 | S24: Servizio idrico integrato | T24: 2020 | U24: 1508007.418 | V24: 0 | W24: 271285.6315 | X24: 0 | Z24: Non ERC | AA24: Acquedotto | AB24: Nuovi_Investimenti | AC24: =+IF(OR(K24:L24=0,P24=0,R24=0),TRUE,FALSE) -> FALSE
A25: 10 | B25: Gruppi di misura - altre attrezzature di acquedotto | C25: Servizio idrico integrato | D25: =+IFERROR(VLOOKUP(B25,TT_Tabelle_Riferimento!$G$125:$I$160,3,FALSE),"") -> Acquedotto | E25: Non ERC | F25: 2020 | G25: 21780677.55 | H25: 0 | I25: 3918273.076 | J25: 3918273.076 | K25: 1202 | L25: 13989 | M25: Gestore | N25: 0 | O25: IP | P25: =+IFERROR(VLOOKUP(Q25,TT_Tabelle_Riferimento!$G$125:$K$160,5,0),0) -> 8 | Q25: =+IFERROR(VLOOKUP(B25,TT_Tabelle_Riferimento!$G$125:$K$160,1,0),0) -> Gruppi di misura - altre attrezzature di acquedotto | R25: 1 | S25: Servizio idrico integrato | T25: 2020 | U25: 21780677.55 | V25: 0 | W25: 3918273.076 | X25: 0 | Z25: Non ERC | AA25: Acquedotto | AB25: Nuovi_Investimenti | AC25: =+IF(OR(K25:L25=0,P25=0,R25=0),TRUE,FALSE) -> FALSE
A26: 11 | B26: Gruppi di misura - altre attrezzature di acquedotto | C26: Servizio idrico integrato | D26: =+IFERROR(VLOOKUP(B26,TT_Tabelle_Riferimento!$G$125:$I$160,3,FALSE),"") -> Acquedotto | E26: Res | F26: 2020 | G26: 693359.0962 | H26: 0 | I26: 124733.0471 | J26: 124733.0471 | K26: 1202 | L26: 13989 | M26: Gestore | N26: 0 | O26: IP | P26: =+IFERROR(VLOOKUP(Q26,TT_Tabelle_Riferimento!$G$125:$K$160,5,0),0) -> 8 | Q26: =+IFERROR(VLOOKUP(B26,TT_Tabelle_Riferimento!$G$125:$K$160,1,0),0) -> Gruppi di misura - altre attrezzature di acquedotto | R26: 1 | S26: Servizio idrico integrato | T26: 2020 | U26: 693359.0962 | V26: 0 | W26: 124733.0471 | X26: 0 | Z26: Res | AA26: Acquedotto | AB26: Nuovi_Investimenti | AC26: =+IF(OR(K26:L26=0,P26=0,R26=0),TRUE,FALSE) -> FALSE
A27: 12 | B27: Sistemi informativi di acquedotto | C27: Servizio idrico integrato | D27: =+IFERROR(VLOOKUP(B27,TT_Tabelle_Riferimento!$G$125:$I$160,3,FALSE),"") -> Acquedotto | E27: Non ERC | F27: 2020 | G27: 1718357.721 | H27: 0 | I27: 309126.9671 | J27: 309126.9671 | K27: 1202 | L27: 13989 | M27: Gestore | N27: 0 | O27: IP | P27: =+IFERROR(VLOOKUP(Q27,TT_Tabelle_Riferimento!$G$125:$K$160,5,0),0) -> 9 | Q27: =+IFERROR(VLOOKUP(B27,TT_Tabelle_Riferimento!$G$125:$K$160,1,0),0) -> Sistemi informativi di acquedotto | R27: 1 | S27: Servizio idrico integrato | T27: 2020 | U27: 1718357.721 | V27: 0 | W27: 309126.9671 | X27: 0 | Z27: Non ERC | AA27: Acquedotto | AB27: Nuovi_Investimenti | AC27: =+IF(OR(K27:L27=0,P27=0,R27=0),TRUE,FALSE) -> FALSE
A28: 13 | B28: Telecontrollo e teletrasmissione di acquedotto | C28: Servizio idrico integrato | D28: =+IFERROR(VLOOKUP(B28,TT_Tabelle_Riferimento!$G$125:$I$160,3,FALSE),"") -> Acquedotto | E28: Non ERC | F28: 2020 | G28: 3383014.303 | H28: 0 | I28: 608593.274 | J28: 608593.274 | K28: 1202 | L28: 13989 | M28: Gestore | N28: 0 | O28: IP | P28: =+IFERROR(VLOOKUP(Q28,TT_Tabelle_Riferimento!$G$125:$K$160,5,0),0) -> 10 | Q28: =+IFERROR(VLOOKUP(B28,TT_Tabelle_Riferimento!$G$125:$K$160,1,0),0) -> Telecontrollo e teletrasmissione di acquedotto | R28: 1 | S28: Servizio idrico integrato | T28: 2020 | U28: 3383014.303 | V28: 0 | W28: 608593.274 | X28: 0 | Z28: Non ERC | AA28: Acquedotto | AB28: Nuovi_Investimenti | AC28: =+IF(OR(K28:L28=0,P28=0,R28=0),TRUE,FALSE) -> FALSE
A29: 14 | B29: Telecontrollo e teletrasmissione di acquedotto | C29: Servizio idrico integrato | D29: =+IFERROR(VLOOKUP(B29,TT_Tabelle_Riferimento!$G$125:$I$160,3,FALSE),"") -> Acquedotto | E29: Res | F29: 2020 | G29: 198494.4257 | H29: 0 | I29: 35708.50183 | J29: 35708.50183 | K29: 1202 | L29: 13989 | M29: Gestore | N29: 0 | O29: IP | P29: =+IFERROR(VLOOKUP(Q29,TT_Tabelle_Riferimento!$G$125:$K$160,5,0),0) -> 10 | Q29: =+IFERROR(VLOOKUP(B29,TT_Tabelle_Riferimento!$G$125:$K$160,1,0),0) -> Telecontrollo e teletrasmissione di acquedotto | R29: 1 | S29: Servizio idrico integrato | T29: 2020 | U29: 198494.4257 | V29: 0 | W29: 35708.50183 | X29: 0 | Z29: Res | AA29: Acquedotto | AB29: Nuovi_Investimenti | AC29: =+IF(OR(K29:L29=0,P29=0,R29=0),TRUE,FALSE) -> FALSE
A30: 15 | B30: Condotte fognarie | C30: Servizio idrico integrato | D30: =+IFERROR(VLOOKUP(B30,TT_Tabelle_Riferimento!$G$125:$I$160,3,FALSE),"") -> Fognatura | E30: Non ERC | F30: 2020 | G30: 62457206.22 | H30: 0 | I30: 11235848.33 | J30: 11235848.33 | K30: 1202 | L30: 13989 | M30: Gestore | N30: 0 | O30: IP | P30: =+IFERROR(VLOOKUP(Q30,TT_Tabelle_Riferimento!$G$125:$K$160,5,0),0) -> 11 | Q30: =+IFERROR(VLOOKUP(B30,TT_Tabelle_Riferimento!$G$125:$K$160,1,0),0) -> Condotte fognarie | R30: 1 | S30: Servizio idrico integrato | T30: 2020 | U30: 62457206.22 | V30: 0 | W30: 11235848.33 | X30: 0 | Z30: Non ERC | AA30: Fognatura | AB30: Nuovi_Investimenti | AC30: =+IF(OR(K30:L30=0,P30=0,R30=0),TRUE,FALSE) -> FALSE
A31: 16 | B31: Impianti di sollevamento e pompaggio di fognatura | C31: Servizio idrico integrato | D31: =+IFERROR(VLOOKUP(B31,TT_Tabelle_Riferimento!$G$125:$I$160,3,FALSE),"") -> Fognatura | E31: Non ERC | F31: 2020 | G31: 7729841.443 | H31: 0 | I31: 1390573.344 | J31: 1390573.344 | K31: 1202 | L31: 13989 | M31: Gestore | N31: 0 | O31: IP | P31: =+IFERROR(VLOOKUP(Q31,TT_Tabelle_Riferimento!$G$125:$K$160,5,0),0) -> 14 | Q31: =+IFERROR(VLOOKUP(B31,TT_Tabelle_Riferimento!$G$125:$K$160,1,0),0) -> Impianti di sollevamento e pompaggio di fognatura | R31: 1 | S31: Servizio idrico integrato | T31: 2020 | U31: 7729841.443 | V31: 0 | W31: 1390573.344 | X31: 0 | Z31: Non ERC | AA31: Fognatura | AB31: Nuovi_Investimenti | AC31: =+IF(OR(K31:L31=0,P31=0,R31=0),TRUE,FALSE) -> FALSE
A32: 17 | B32: Gruppi di misura - altre attrezzature di fognatura | C32: Servizio idrico integrato | D32: =+IFERROR(VLOOKUP(B32,TT_Tabelle_Riferimento!$G$125:$I$160,3,FALSE),"") -> Fognatura | E32: Non ERC | F32: 2020 | G32: 1187511.86 | H32: 0 | I32: 213629.5226 | J32: 213629.5226 | K32: 1202 | L32: 13989 | M32: Gestore | N32: 0 | O32: IP | P32: =+IFERROR(VLOOKUP(Q32,TT_Tabelle_Riferimento!$G$125:$K$160,5,0),0) -> 15 | Q32: =+IFERROR(VLOOKUP(B32,TT_Tabelle_Riferimento!$G$125:$K$160,1,0),0) -> Gruppi di misura - altre attrezzature di fognatura | R32: 1 | S32: Servizio idrico integrato | T32: 2020 | U32: 1187511.86 | V32: 0 | W32: 213629.5226 | X32: 0 | Z32: Non ERC | AA32: Fognatura | AB32: Nuovi_Investimenti | AC32: =+IF(OR(K32:L32=0,P32=0,R32=0),TRUE,FALSE) -> FALSE
A33: 18 | B33: Sistemi informativi di fognatura | C33: Servizio idrico integrato | D33: =+IFERROR(VLOOKUP(B33,TT_Tabelle_Riferimento!$G$125:$I$160,3,FALSE),"") -> Fognatura | E33: Non ERC | F33: 2020 | G33: 147433.9812 | H33: 0 | I33: 26522.89388 | J33: 26522.89388 | K33: 1202 | L33: 13989 | M33: Gestore | N33: 0 | O33: IP | P33: =+IFERROR(VLOOKUP(Q33,TT_Tabelle_Riferimento!$G$125:$K$160,5,0),0) -> 16 | Q33: =+IFERROR(VLOOKUP(B33,TT_Tabelle_Riferimento!$G$125:$K$160,1,0),0) -> Sistemi informativi di fognatura | R33: 1 | S33: Servizio idrico integrato | T33: 2020 | U33: 147433.9812 | V33: 0 | W33: 26522.89388 | X33: 0 | Z33: Non ERC | AA33: Fognatura | AB33: Nuovi_Investimenti | AC33: =+IF(OR(K33:L33=0,P33=0,R33=0),TRUE,FALSE) -> FALSE
A34: 19 | B34: Telecontrollo e teletrasmissione di fognatura | C34: Servizio idrico integrato | D34: =+IFERROR(VLOOKUP(B34,TT_Tabelle_Riferimento!$G$125:$I$160,3,FALSE),"") -> Fognatura | E34: Non ERC | F34: 2020 | G34: 288926.6527 | H34: 0 | I34: 51976.96544 | J34: 51976.96544 | K34: 1202 | L34: 13989 | M34: Gestore | N34: 0 | O34: IP | P34: =+IFERROR(VLOOKUP(Q34,TT_Tabelle_Riferimento!$G$125:$K$160,5,0),0) -> 18 | Q34: =+IFERROR(VLOOKUP(B34,TT_Tabelle_Riferimento!$G$125:$K$160,1,0),0) -> Telecontrollo e teletrasmissione di fognatura | R34: 1 | S34: Servizio idrico integrato | T34: 2020 | U34: 288926.6527 | V34: 0 | W34: 51976.96544 | X34: 0 | Z34: Non ERC | AA34: Fognatura | AB34: Nuovi_Investimenti | AC34: =+IF(OR(K34:L34=0,P34=0,R34=0),TRUE,FALSE) -> FALSE
A35: 20 | B35: Impianti di sollevamento e pompaggio di depurazione | C35: Servizio idrico integrato | D35: =+IFERROR(VLOOKUP(B35,TT_Tabelle_Riferimento!$G$125:$I$160,3,FALSE),"") -> Depurazione | E35: Env | F35: 2020 | G35: 41955046.1 | H35: 0 | I35: 7547576.385 | J35: 7547576.385 | K35: 1202 | L35: 13989 | M35: Gestore | N35: 0 | O35: IP | P35: =+IFERROR(VLOOKUP(Q35,TT_Tabelle_Riferimento!$G$125:$K$160,5,0),0) -> 19 | Q35: =+IFERROR(VLOOKUP(B35,TT_Tabelle_Riferimento!$G$125:$K$160,1,0),0) -> Impianti di sollevamento e pompaggio di depurazione | R35: 1 | S35: Servizio idrico integrato | T35: 2020 | U35: 41955046.1 | V35: 0 | W35: 7547576.385 | X35: 0 | Z35: Env | AA35: Depurazione | AB35: Nuovi_Investimenti | AC35: =+IF(OR(K35:L35=0,P35=0,R35=0),TRUE,FALSE) -> FALSE
A36: 21 | B36: Tecniche naturali di depurazione (tra cui fitodepurazione e lagunaggio) | C36: Servizio idrico integrato | D36: =+IFERROR(VLOOKUP(B36,TT_Tabelle_Riferimento!$G$125:$I$160,3,FALSE),"") -> Depurazione | E36: Env | F36: 2020 | G36: 125422.9515 | H36: 0 | I36: 22563.18118 | J36: 22563.18118 | K36: 1202 | L36: 13989 | M36: Gestore | N36: 0 | O36: IP | P36: =+IFERROR(VLOOKUP(Q36,TT_Tabelle_Riferimento!$G$125:$K$160,5,0),0) -> 20 | Q36: =+IFERROR(VLOOKUP(B36,TT_Tabelle_Riferimento!$G$125:$K$160,1,0),0) -> Tecniche naturali di depurazione (tra cui fitodepurazione e lagunaggio) | R36: 1 | S36: Servizio idrico integrato | T36: 2020 | U36: 125422.9515 | V36: 0 | W36: 22563.18118 | X36: 0 | Z36: Env | AA36: Depurazione | AB36: Nuovi_Investimenti | AC36: =+IF(OR(K36:L36=0,P36=0,R36=0),TRUE,FALSE) -> FALSE
A37: 22 | B37: Impianti di depurazione – trattamenti sino al secondario | C37: Servizio idrico integrato | D37: =+IFERROR(VLOOKUP(B37,TT_Tabelle_Riferimento!$G$125:$I$160,3,FALSE),"") -> Depurazione | E37: Env | F37: 2020 | G37: 4403682.127 | H37: 0 | I37: 792208.0971 | J37: 792208.0971 | K37: 1202 | L37: 13989 | M37: Gestore | N37: 0 | O37: IP | P37: =+IFERROR(VLOOKUP(Q37,TT_Tabelle_Riferimento!$G$125:$K$160,5,0),0) -> 22 | Q37: =+IFERROR(VLOOKUP(B37,TT_Tabelle_Riferimento!$G$125:$K$160,1,0),0) -> Impianti di depurazione – trattamenti sino al secondario | R37: 1 | S37: Servizio idrico integrato | T37: 2020 | U37: 4403682.127 | V37: 0 | W37: 792208.0971 | X37: 0 | Z37: Env | AA37: Depurazione | AB37: Nuovi_Investimenti | AC37: =+IF(OR(K37:L37=0,P37=0,R37=0),TRUE,FALSE) -> FALSE
A38: 23 | B38: Impianti di depurazione – trattamenti sino al terziario e terziario avanzato | C38: Servizio idrico integrato | D38: =+IFERROR(VLOOKUP(B38,TT_Tabelle_Riferimento!$G$125:$I$160,3,FALSE),"") -> Depurazione | E38: Env | F38: 2020 | G38: 548189.8715 | H38: 0 | I38: 98617.57556 | J38: 98617.57556 | K38: 1202 | L38: 13989 | M38: Gestore | N38: 0 | O38: IP | P38: =+IFERROR(VLOOKUP(Q38,TT_Tabelle_Riferimento!$G$125:$K$160,5,0),0) -> 23 | Q38: =+IFERROR(VLOOKUP(B38,TT_Tabelle_Riferimento!$G$125:$K$160,1,0),0) -> Impianti di depurazione – trattamenti sino al terziario e terziario avanzato | R38: 1 | S38: Servizio idrico integrato | T38: 2020 | U38: 548189.8715 | V38: 0 | W38: 98617.57556 | X38: 0 | Z38: Env | AA38: Depurazione | AB38: Nuovi_Investimenti | AC38: =+IF(OR(K38:L38=0,P38=0,R38=0),TRUE,FALSE) -> FALSE
A39: 24 | B39: Gruppi di misura - altre attrezzature di depurazione | C39: Servizio idrico integrato | D39: =+IFERROR(VLOOKUP(B39,TT_Tabelle_Riferimento!$G$125:$I$160,3,FALSE),"") -> Depurazione | E39: Env | F39: 2020 | G39: 2560275.614 | H39: 0 | I39: 460585.2589 | J39: 460585.2589 | K39: 1202 | L39: 13989 | M39: Gestore | N39: 0 | O39: IP | P39: =+IFERROR(VLOOKUP(Q39,TT_Tabelle_Riferimento!$G$125:$K$160,5,0),0) -> 25 | Q39: =+IFERROR(VLOOKUP(B39,TT_Tabelle_Riferimento!$G$125:$K$160,1,0),0) -> Gruppi di misura - altre attrezzature di depurazione | R39: 1 | S39: Servizio idrico integrato | T39: 2020 | U39: 2560275.614 | V39: 0 | W39: 460585.2589 | X39: 0 | Z39: Env | AA39: Depurazione | AB39: Nuovi_Investimenti | AC39: =+IF(OR(K39:L39=0,P39=0,R39=0),TRUE,FALSE) -> FALSE
A40: 25 | B40: Sistemi informativi di depurazione | C40: Servizio idrico integrato | D40: =+IFERROR(VLOOKUP(B40,TT_Tabelle_Riferimento!$G$125:$I$160,3,FALSE),"") -> Depurazione | E40: Env | F40: 2020 | G40: 280212.3567 | H40: 0 | I40: 50409.29193 | J40: 50409.29193 | K40: 1202 | L40: 13989 | M40: Gestore | N40: 0 | O40: IP | P40: =+IFERROR(VLOOKUP(Q40,TT_Tabelle_Riferimento!$G$125:$K$160,5,0),0) -> 26 | Q40: =+IFERROR(VLOOKUP(B40,TT_Tabelle_Riferimento!$G$125:$K$160,1,0),0) -> Sistemi informativi di depurazione | R40: 1 | S40: Servizio idrico integrato | T40: 2020 | U40: 280212.3567 | V40: 0 | W40: 50409.29193 | X40: 0 | Z40: Env | AA40: Depurazione | AB40: Nuovi_Investimenti | AC40: =+IF(OR(K40:L40=0,P40=0,R40=0),TRUE,FALSE) -> FALSE
A41: 26 | B41: Telecontrollo e teletrasmissione di depurazione | C41: Servizio idrico integrato | D41: =+IFERROR(VLOOKUP(B41,TT_Tabelle_Riferimento!$G$125:$I$160,3,FALSE),"") -> Depurazione | E41: Env | F41: 2020 | G41: 3513629.886 | H41: 0 | I41: 632090.5926 | J41: 632090.5926 | K41: 1202 | L41: 13989 | M41: Gestore | N41: 0 | O41: IP | P41: =+IFERROR(VLOOKUP(Q41,TT_Tabelle_Riferimento!$G$125:$K$160,5,0),0) -> 27 | Q41: =+IFERROR(VLOOKUP(B41,TT_Tabelle_Riferimento!$G$125:$K$160,1,0),0) -> Telecontrollo e teletrasmissione di depurazione | R41: 1 | S41: Servizio idrico integrato | T41: 2020 | U41: 3513629.886 | V41: 0 | W41: 632090.5926 | X41: 0 | Z41: Env | AA41: Depurazione | AB41: Nuovi_Investimenti | AC41: =+IF(OR(K41:L41=0,P41=0,R41=0),TRUE,FALSE) -> FALSE
A42: 27 | B42: Laboratori e attrezzature | C42: Servizio idrico integrato | D42: =+IFERROR(VLOOKUP(B42,TT_Tabelle_Riferimento!$G$125:$I$160,3,FALSE),"") -> Comune | E42: Non ERC | F42: 2020 | G42: 738583.8906 | H42: 0 | I42: 132868.8406 | J42: 132868.8406 | K42: 1202 | L42: 13989 | M42: Gestore | N42: 0 | O42: IP | P42: =+IFERROR(VLOOKUP(Q42,TT_Tabelle_Riferimento!$G$125:$K$160,5,0),0) -> 29 | Q42: =+IFERROR(VLOOKUP(B42,TT_Tabelle_Riferimento!$G$125:$K$160,1,0),0) -> Laboratori e attrezzature | R42: 1 | S42: Servizio idrico integrato | T42: 2020 | U42: 738583.8906 | V42: 0 | W42: 132868.8406 | X42: 0 | Z42: Non ERC | AA42: Comune | AB42: Nuovi_Investimenti | AC42: =+IF(OR(K42:L42=0,P42=0,R42=0),TRUE,FALSE) -> FALSE
A43: 28 | B43: Sistemi informativi | C43: Servizio idrico integrato | D43: =+IFERROR(VLOOKUP(B43,TT_Tabelle_Riferimento!$G$125:$I$160,3,FALSE),"") -> Comune | E43: Non ERC | F43: 2020 | G43: 20765702.75 | H43: 0 | I43: 3735682.41 | J43: 3735682.41 | K43: 1202 | L43: 13989 | M43: Gestore | N43: 0 | O43: IP | P43: =+IFERROR(VLOOKUP(Q43,TT_Tabelle_Riferimento!$G$125:$K$160,5,0),0) -> 30 | Q43: =+IFERROR(VLOOKUP(B43,TT_Tabelle_Riferimento!$G$125:$K$160,1,0),0) -> Sistemi informativi | R43: 1 | S43: Servizio idrico integrato | T43: 2020 | U43: 20765702.75 | V43: 0 | W43: 3735682.41 | X43: 0 | Z43: Non ERC | AA43: Comune | AB43: Nuovi_Investimenti | AC43: =+IF(OR(K43:L43=0,P43=0,R43=0),TRUE,FALSE) -> FALSE
A44: 29 | B44: Telecontrollo e teletrasmissione | C44: Servizio idrico integrato | D44: =+IFERROR(VLOOKUP(B44,TT_Tabelle_Riferimento!$G$125:$I$160,3,FALSE),"") -> Comune | E44: Non ERC | F44: 2020 | G44: 94277.17448 | H44: 0 | I44: 16960.15717 | J44: 16960.15717 | K44: 1202 | L44: 13989 | M44: Gestore | N44: 0 | O44: IP | P44: =+IFERROR(VLOOKUP(Q44,TT_Tabelle_Riferimento!$G$125:$K$160,5,0),0) -> 31 | Q44: =+IFERROR(VLOOKUP(B44,TT_Tabelle_Riferimento!$G$125:$K$160,1,0),0) -> Telecontrollo e teletrasmissione | R44: 1 | S44: Servizio idrico integrato | T44: 2020 | U44: 94277.17448 | V44: 0 | W44: 16960.15717 | X44: 0 | Z44: Non ERC | AA44: Comune | AB44: Nuovi_Investimenti | AC44: =+IF(OR(K44:L44=0,P44=0,R44=0),TRUE,FALSE) -> FALSE
A45: 30 | B45: Autoveicoli - automezzi | C45: Servizio idrico integrato | D45: =+IFERROR(VLOOKUP(B45,TT_Tabelle_Riferimento!$G$125:$I$160,3,FALSE),"") -> Comune | E45: Non ERC | F45: 2020 | G45: 1714918.62 | H45: 0 | I45: 308508.284 | J45: 308508.284 | K45: 1202 | L45: 13989 | M45: Gestore | N45: 0 | O45: IP | P45: =+IFERROR(VLOOKUP(Q45,TT_Tabelle_Riferimento!$G$125:$K$160,5,0),0) -> 32 | Q45: =+IFERROR(VLOOKUP(B45,TT_Tabelle_Riferimento!$G$125:$K$160,1,0),0) -> Autoveicoli - automezzi | R45: 1 | S45: Servizio idrico integrato | T45: 2020 | U45: 1714918.62 | V45: 0 | W45: 308508.284 | X45: 0 | Z45: Non ERC | AA45: Comune | AB45: Nuovi_Investimenti | AC45: =+IF(OR(K45:L45=0,P45=0,R45=0),TRUE,FALSE) -> FALSE
A46: 31 | B46: Fabbricati industriali | C46: Servizio idrico integrato | D46: =+IFERROR(VLOOKUP(B46,TT_Tabelle_Riferimento!$G$125:$I$160,3,FALSE),"") -> Comune | E46: Non ERC | F46: 2020 | G46: 3496.351287 | H46: 0 | I46: 628.9822289 | J46: 628.9822289 | K46: 1202 | L46: 13989 | M46: Gestore | N46: 0 | O46: IP | P46: =+IFERROR(VLOOKUP(Q46,TT_Tabelle_Riferimento!$G$125:$K$160,5,0),0) -> 34 | Q46: =+IFERROR(VLOOKUP(B46,TT_Tabelle_Riferimento!$G$125:$K$160,1,0),0) -> Fabbricati industriali | R46: 1 | S46: Servizio idrico integrato | T46: 2020 | U46: 3496.351287 | V46: 0 | W46: 628.9822289 | X46: 0 | Z46: Non ERC | AA46: Comune | AB46: Nuovi_Investimenti | AC46: =+IF(OR(K46:L46=0,P46=0,R46=0),TRUE,FALSE) -> FALSE
A47: 32 | B47: Altre immobilizzazioni materiali e immateriali | C47: Servizio idrico integrato | D47: =+IFERROR(VLOOKUP(B47,TT_Tabelle_Riferimento!$G$125:$I$160,3,FALSE),"") -> Comune | E47: Non ERC | F47: 2020 | G47: 1529949.14 | H47: 0 | I47: 275232.876 | J47: 275232.876 | K47: 1202 | L47: 13989 | M47: Gestore | N47: 0 | O47: IP | P47: =+IFERROR(VLOOKUP(Q47,TT_Tabelle_Riferimento!$G$125:$K$160,5,0),0) -> 37 | Q47: =+IFERROR(VLOOKUP(B47,TT_Tabelle_Riferimento!$G$125:$K$160,1,0),0) -> Altre immobilizzazioni materiali e immateriali | R47: 1 | S47: Servizio idrico integrato | T47: 2020 | U47: 1529949.14 | V47: 0 | W47: 275232.876 | X47: 0 | Z47: Non ERC | AA47: Comune | AB47: Nuovi_Investimenti | AC47: =+IF(OR(K47:L47=0,P47=0,R47=0),TRUE,FALSE) -> FALSE
A48: 33 | B48: Opere idrauliche fisse di acquedotto | C48: Altri servizi idrici | D48: =+IFERROR(VLOOKUP(B48,TT_Tabelle_Riferimento!$G$125:$I$160,3,FALSE),"") -> Acquedotto | E48: Non ERC | F48: 2020 | G48: 195.3960891 | H48: 0 | I48: 35.15112114 | J48: 35.15112114 | K48: =idato -> 1202 | L48: =idgestore -> 13989 | M48: Gestore | N48: 0 | O48: IP | P48: =+IFERROR(VLOOKUP(Q48,TT_Tabelle_Riferimento!$G$125:$K$160,5,0),0) -> 3 | Q48: =+IFERROR(VLOOKUP(B48,TT_Tabelle_Riferimento!$G$125:$K$160,1,0),0) -> Opere idrauliche fisse di acquedotto | R48: =+IFERROR(VLOOKUP(S48,cat_imm_new,2,0),0) -> 3 | S48: =+IFERROR(VLOOKUP(C48,cat_imm_new,1,0),0) -> Altri servizi idrici | T48: 2020 | U48: 195.3960891 | V48: 0 | W48: 35.15112114 | X48: 0 | Z48: Non ERC | AA48: Acquedotto | AB48: Nuovi_Investimenti | AC48: =+IF(OR(K48:L48=0,P48=0,R48=0),TRUE,FALSE) -> FALSE
A49: 34 | B49: Impianti di sollevamento e pompaggio di acquedotto | C49: Altri servizi idrici | D49: =+IFERROR(VLOOKUP(B49,TT_Tabelle_Riferimento!$G$125:$I$160,3,FALSE),"") -> Acquedotto | E49: Non ERC | F49: 2020 | G49: 52598.23967 | H49: 0 | I49: 9462.252305 | J49: 9462.252305 | K49: 1202 | L49: 13989 | M49: Gestore | N49: 0 | O49: IP | P49: =+IFERROR(VLOOKUP(Q49,TT_Tabelle_Riferimento!$G$125:$K$160,5,0),0) -> 5 | Q49: =+IFERROR(VLOOKUP(B49,TT_Tabelle_Riferimento!$G$125:$K$160,1,0),0) -> Impianti di sollevamento e pompaggio di acquedotto | R49: 3 | S49: Altri servizi idrici | T49: 2020 | U49: 52598.23967 | V49: 0 | W49: 9462.252305 | X49: 0 | Z49: Non ERC | AA49: Acquedotto | AB49: Nuovi_Investimenti | AC49: =+IF(OR(K49:L49=0,P49=0,R49=0),TRUE,FALSE) -> FALSE
A50: 35 | B50: Gruppi di misura - altre attrezzature di acquedotto | C50: Altri servizi idrici | D50: =+IFERROR(VLOOKUP(B50,TT_Tabelle_Riferimento!$G$125:$I$160,3,FALSE),"") -> Acquedotto | E50: Non ERC | F50: 2020 | G50: 484.3944969 | H50: 0 | I50: 87.14099509 | J50: 87.14099509 | K50: 1202 | L50: 13989 | M50: Gestore | N50: 0 | O50: IP | P50: =+IFERROR(VLOOKUP(Q50,TT_Tabelle_Riferimento!$G$125:$K$160,5,0),0) -> 8 | Q50: =+IFERROR(VLOOKUP(B50,TT_Tabelle_Riferimento!$G$125:$K$160,1,0),0) -> Gruppi di misura - altre attrezzature di acquedotto | R50: 3 | S50: Altri servizi idrici | T50: 2020 | U50: 484.3944969 | V50: 0 | W50: 87.14099509 | X50: 0 | Z50: Non ERC | AA50: Acquedotto | AB50: Nuovi_Investimenti | AC50: =+IF(OR(K50:L50=0,P50=0,R50=0),TRUE,FALSE) -> FALSE
A51: 36 | B51: Sistemi informativi di acquedotto | C51: Altri servizi idrici | D51: =+IFERROR(VLOOKUP(B51,TT_Tabelle_Riferimento!$G$125:$I$160,3,FALSE),"") -> Acquedotto | E51: Non ERC | F51: 2020 | G51: 1415.82248 | H51: 0 | I51: 254.7018609 | J51: 254.7018609 | K51: 1202 | L51: 13989 | M51: Gestore | N51: 0 | O51: IP | P51: =+IFERROR(VLOOKUP(Q51,TT_Tabelle_Riferimento!$G$125:$K$160,5,0),0) -> 9 | Q51: =+IFERROR(VLOOKUP(B51,TT_Tabelle_Riferimento!$G$125:$K$160,1,0),0) -> Sistemi informativi di acquedotto | R51: 3 | S51: Altri servizi idrici | T51: 2020 | U51: 1415.82248 | V51: 0 | W51: 254.7018609 | X51: 0 | Z51: Non ERC | AA51: Acquedotto | AB51: Nuovi_Investimenti | AC51: =+IF(OR(K51:L51=0,P51=0,R51=0),TRUE,FALSE) -> FALSE
A52: 37 | B52: Telecontrollo e teletrasmissione di acquedotto | C52: Altri servizi idrici | D52: =+IFERROR(VLOOKUP(B52,TT_Tabelle_Riferimento!$G$125:$I$160,3,FALSE),"") -> Acquedotto | E52: Non ERC | F52: 2020 | G52: 4035.168989 | H52: 0 | I52: 725.9137817 | J52: 725.9137817 | K52: 1202 | L52: 13989 | M52: Gestore | N52: 0 | O52: IP | P52: =+IFERROR(VLOOKUP(Q52,TT_Tabelle_Riferimento!$G$125:$K$160,5,0),0) -> 10 | Q52: =+IFERROR(VLOOKUP(B52,TT_Tabelle_Riferimento!$G$125:$K$160,1,0),0) -> Telecontrollo e teletrasmissione di acquedotto | R52: 3 | S52: Altri servizi idrici | T52: 2020 | U52: 4035.168989 | V52: 0 | W52: 725.9137817 | X52: 0 | Z52: Non ERC | AA52: Acquedotto | AB52: Nuovi_Investimenti | AC52: =+IF(OR(K52:L52=0,P52=0,R52=0),TRUE,FALSE) -> FALSE
A53: 38 | B53: Terreni | C53: Servizio idrico integrato | D53: =+IFERROR(VLOOKUP(B53,TT_Tabelle_Riferimento!$G$125:$I$160,3,FALSE),"") -> Comune | E53: Non Erc | F53: 2021 | G53: 607731.21 | H53: 0 | I53: 137598.9243 | J53: 137598.9243 | K53: 1202 | L53: 13989 | M53: Gestore | N53: 0 | O53: IP | P53: =+IFERROR(VLOOKUP(Q53,TT_Tabelle_Riferimento!$G$125:$K$160,5,0),0) -> 1 | Q53: =+IFERROR(VLOOKUP(B53,TT_Tabelle_Riferimento!$G$125:$K$160,1,0),0) -> Terreni | R53: 1 | S53: Servizio idrico integrato | T53: 2021 | U53: 607731.21 | V53: 0 | W53: 137598.9243 | X53: 0 | Z53: Non Erc | AA53: Comune | AB53: Nuovi_Investimenti | AC53: =+IF(OR(K53:L53=0,P53=0,R53=0),TRUE,FALSE) -> FALSE
A54: 39 | B54: Condotte di acquedotto | C54: Servizio idrico integrato | D54: =+IFERROR(VLOOKUP(B54,TT_Tabelle_Riferimento!$G$125:$I$160,3,FALSE),"") -> Acquedotto | E54: Non Erc | F54: 2021 | G54: 103948008.6 | H54: 3712033.629 | I54: 23535296.41 | J54: 27247330.04 | K54: 1202 | L54: 13989 | M54: Gestore | N54: 0 | O54: IP | P54: =+IFERROR(VLOOKUP(Q54,TT_Tabelle_Riferimento!$G$125:$K$160,5,0),0) -> 2 | Q54: =+IFERROR(VLOOKUP(B54,TT_Tabelle_Riferimento!$G$125:$K$160,1,0),0) -> Condotte di acquedotto | R54: 1 | S54: Servizio idrico integrato | T54: 2021 | U54: 103948008.6 | V54: 0 | W54: 27247330.04 | X54: 0 | Z54: Non Erc | AA54: Acquedotto | AB54: Nuovi_Investimenti | AC54: =+IF(OR(K54:L54=0,P54=0,R54=0),TRUE,FALSE) -> FALSE
A55: 40 | B55: Condotte di acquedotto | C55: Servizio idrico integrato | D55: =+IFERROR(VLOOKUP(B55,TT_Tabelle_Riferimento!$G$125:$I$160,3,FALSE),"") -> Acquedotto | E55: Res | F55: 2021 | G55: 13196.07405 | H55: 0 | I55: 2987.777431 | J55: 2987.777431 | K55: 1202 | L55: 13989 | M55: Gestore | N55: 0 | O55: IP | P55: =+IFERROR(VLOOKUP(Q55,TT_Tabelle_Riferimento!$G$125:$K$160,5,0),0) -> 2 | Q55: =+IFERROR(VLOOKUP(B55,TT_Tabelle_Riferimento!$G$125:$K$160,1,0),0) -> Condotte di acquedotto | R55: 1 | S55: Servizio idrico integrato | T55: 2021 | U55: 13196.07405 | V55: 0 | W55: 2987.777431 | X55: 0 | Z55: Res | AA55: Acquedotto | AB55: Nuovi_Investimenti | AC55: =+IF(OR(K55:L55=0,P55=0,R55=0),TRUE,FALSE) -> FALSE
A56: 41 | B56: Opere idrauliche fisse di acquedotto | C56: Servizio idrico integrato | D56: =+IFERROR(VLOOKUP(B56,TT_Tabelle_Riferimento!$G$125:$I$160,3,FALSE),"") -> Acquedotto | E56: Non Erc | F56: 2021 | G56: 702128.3004 | H56: 0 | I56: 158971.758 | J56: 158971.758 | K56: 1202 | L56: 13989 | M56: Gestore | N56: 0 | O56: IP | P56: =+IFERROR(VLOOKUP(Q56,TT_Tabelle_Riferimento!$G$125:$K$160,5,0),0) -> 3 | Q56: =+IFERROR(VLOOKUP(B56,TT_Tabelle_Riferimento!$G$125:$K$160,1,0),0) -> Opere idrauliche fisse di acquedotto | R56: 1 | S56: Servizio idrico integrato | T56: 2021 | U56: 702128.3004 | V56: 0 | W56: 158971.758 | X56: 0 | Z56: Non Erc | AA56: Acquedotto | AB56: Nuovi_Investimenti | AC56: =+IF(OR(K56:L56=0,P56=0,R56=0),TRUE,FALSE) -> FALSE
A57: 42 | B57: Opere idrauliche fisse di acquedotto | C57: Servizio idrico integrato | D57: =+IFERROR(VLOOKUP(B57,TT_Tabelle_Riferimento!$G$125:$I$160,3,FALSE),"") -> Acquedotto | E57: Res | F57: 2021 | G57: 106674.9932 | H57: 0 | I57: 24152.72421 | J57: 24152.72421 | K57: 1202 | L57: 13989 | M57: Gestore | N57: 0 | O57: IP | P57: =+IFERROR(VLOOKUP(Q57,TT_Tabelle_Riferimento!$G$125:$K$160,5,0),0) -> 3 | Q57: =+IFERROR(VLOOKUP(B57,TT_Tabelle_Riferimento!$G$125:$K$160,1,0),0) -> Opere idrauliche fisse di acquedotto | R57: 1 | S57: Servizio idrico integrato | T57: 2021 | U57: 106674.9932 | V57: 0 | W57: 24152.72421 | X57: 0 | Z57: Res | AA57: Acquedotto | AB57: Nuovi_Investimenti | AC57: =+IF(OR(K57:L57=0,P57=0,R57=0),TRUE,FALSE) -> FALSE
A58: 43 | B58: Serbatoi | C58: Servizio idrico integrato | D58: =+IFERROR(VLOOKUP(B58,TT_Tabelle_Riferimento!$G$125:$I$160,3,FALSE),"") -> Acquedotto | E58: Non Erc | F58: 2021 | G58: 5303896.532 | H58: 0 | I58: 1200877.041 | J58: 1200877.041 | K58: 1202 | L58: 13989 | M58: Gestore | N58: 0 | O58: IP | P58: =+IFERROR(VLOOKUP(Q58,TT_Tabelle_Riferimento!$G$125:$K$160,5,0),0) -> 4 | Q58: =+IFERROR(VLOOKUP(B58,TT_Tabelle_Riferimento!$G$125:$K$160,1,0),0) -> Serbatoi | R58: 1 | S58: Servizio idrico integrato | T58: 2021 | U58: 5303896.532 | V58: 0 | W58: 1200877.041 | X58: 0 | Z58: Non Erc | AA58: Acquedotto | AB58: Nuovi_Investimenti | AC58: =+IF(OR(K58:L58=0,P58=0,R58=0),TRUE,FALSE) -> FALSE
A59: 44 | B59: Impianti di sollevamento e pompaggio di acquedotto | C59: Servizio idrico integrato | D59: =+IFERROR(VLOOKUP(B59,TT_Tabelle_Riferimento!$G$125:$I$160,3,FALSE),"") -> Acquedotto | E59: Non Erc | F59: 2021 | G59: 23383450.2 | H59: 1307578.5 | I59: 5294343.19 | J59: 6601921.69 | K59: 1202 | L59: 13989 | M59: Gestore | N59: 0 | O59: IP | P59: =+IFERROR(VLOOKUP(Q59,TT_Tabelle_Riferimento!$G$125:$K$160,5,0),0) -> 5 | Q59: =+IFERROR(VLOOKUP(B59,TT_Tabelle_Riferimento!$G$125:$K$160,1,0),0) -> Impianti di sollevamento e pompaggio di acquedotto | R59: 1 | S59: Servizio idrico integrato | T59: 2021 | U59: 23383450.2 | V59: 0 | W59: 6601921.69 | X59: 0 | Z59: Non Erc | AA59: Acquedotto | AB59: Nuovi_Investimenti | AC59: =+IF(OR(K59:L59=0,P59=0,R59=0),TRUE,FALSE) -> FALSE
A60: 45 | B60: Impianti di sollevamento e pompaggio di acquedotto | C60: Servizio idrico integrato | D60: =+IFERROR(VLOOKUP(B60,TT_Tabelle_Riferimento!$G$125:$I$160,3,FALSE),"") -> Acquedotto | E60: Res | F60: 2021 | G60: 1241532.803 | H60: 147694.3572 | I60: 281100.5511 | J60: 428794.9084 | K60: 1202 | L60: 13989 | M60: Gestore | N60: 0 | O60: IP | P60: =+IFERROR(VLOOKUP(Q60,TT_Tabelle_Riferimento!$G$125:$K$160,5,0),0) -> 5 | Q60: =+IFERROR(VLOOKUP(B60,TT_Tabelle_Riferimento!$G$125:$K$160,1,0),0) -> Impianti di sollevamento e pompaggio di acquedotto | R60: 1 | S60: Servizio idrico integrato | T60: 2021 | U60: 1241532.803 | V60: 0 | W60: 428794.9084 | X60: 0 | Z60: Res | AA60: Acquedotto | AB60: Nuovi_Investimenti | AC60: =+IF(OR(K60:L60=0,P60=0,R60=0),TRUE,FALSE) -> FALSE
A61: 46 | B61: Impianti di potabilizzazione | C61: Servizio idrico integrato | D61: =+IFERROR(VLOOKUP(B61,TT_Tabelle_Riferimento!$G$125:$I$160,3,FALSE),"") -> Acquedotto | E61: Res | F61: 2021 | G61: 2336676.118 | H61: 0 | I61: 529056.4559 | J61: 529056.4559 | K61: 1202 | L61: 13989 | M61: Gestore | N61: 0 | O61: IP | P61: =+IFERROR(VLOOKUP(Q61,TT_Tabelle_Riferimento!$G$125:$K$160,5,0),0) -> 6 | Q61: =+IFERROR(VLOOKUP(B61,TT_Tabelle_Riferimento!$G$125:$K$160,1,0),0) -> Impianti di potabilizzazione | R61: 1 | S61: Servizio idrico integrato | T61: 2021 | U61: 2336676.118 | V61: 0 | W61: 529056.4559 | X61: 0 | Z61: Res | AA61: Acquedotto | AB61: Nuovi_Investimenti | AC61: =+IF(OR(K61:L61=0,P61=0,R61=0),TRUE,FALSE) -> FALSE
A62: 47 | B62: Altri trattamenti di potabilizzazione (tra cui dispositivi di disinfezione, stacciatura, filtrazione, addolcimento) | C62: Servizio idrico integrato | D62: =+IFERROR(VLOOKUP(B62,TT_Tabelle_Riferimento!$G$125:$I$160,3,FALSE),"") -> Acquedotto | E62: Non Erc | F62: 2021 | G62: 1950826.901 | H62: 0 | I62: 441694.747 | J62: 441694.747 | K62: 1202 | L62: 13989 | M62: Gestore | N62: 0 | O62: IP | P62: =+IFERROR(VLOOKUP(Q62,TT_Tabelle_Riferimento!$G$125:$K$160,5,0),0) -> 7 | Q62: =+IFERROR(VLOOKUP(B62,TT_Tabelle_Riferimento!$G$125:$K$160,1,0),0) -> Altri trattamenti di potabilizzazione (tra cui dispositivi di disinfezione, stacciatura, filtrazione, addolcimento) | R62: 1 | S62: Servizio idrico integrato | T62: 2021 | U62: 1950826.901 | V62: 0 | W62: 441694.747 | X62: 0 | Z62: Non Erc | AA62: Acquedotto | AB62: Nuovi_Investimenti | AC62: =+IF(OR(K62:L62=0,P62=0,R62=0),TRUE,FALSE) -> FALSE
A63: 48 | B63: Gruppi di misura - altre attrezzature di acquedotto | C63: Servizio idrico integrato | D63: =+IFERROR(VLOOKUP(B63,TT_Tabelle_Riferimento!$G$125:$I$160,3,FALSE),"") -> Acquedotto | E63: Non Erc | F63: 2021 | G63: 22800415.61 | H63: 671132.1891 | I63: 5162335.929 | J63: 5833468.118 | K63: 1202 | L63: 13989 | M63: Gestore | N63: 0 | O63: IP | P63: =+IFERROR(VLOOKUP(Q63,TT_Tabelle_Riferimento!$G$125:$K$160,5,0),0) -> 8 | Q63: =+IFERROR(VLOOKUP(B63,TT_Tabelle_Riferimento!$G$125:$K$160,1,0),0) -> Gruppi di misura - altre attrezzature di acquedotto | R63: 1 | S63: Servizio idrico integrato | T63: 2021 | U63: 22800415.61 | V63: 0 | W63: 5833468.118 | X63: 0 | Z63: Non Erc | AA63: Acquedotto | AB63: Nuovi_Investimenti | AC63: =+IF(OR(K63:L63=0,P63=0,R63=0),TRUE,FALSE) -> FALSE
A64: 49 | B64: Gruppi di misura - altre attrezzature di acquedotto | C64: Servizio idrico integrato | D64: =+IFERROR(VLOOKUP(B64,TT_Tabelle_Riferimento!$G$125:$I$160,3,FALSE),"") -> Acquedotto | E64: Res | F64: 2021 | G64: 619964.195 | H64: 0 | I64: 140368.6447 | J64: 140368.6447 | K64: 1202 | L64: 13989 | M64: Gestore | N64: 0 | O64: IP | P64: =+IFERROR(VLOOKUP(Q64,TT_Tabelle_Riferimento!$G$125:$K$160,5,0),0) -> 8 | Q64: =+IFERROR(VLOOKUP(B64,TT_Tabelle_Riferimento!$G$125:$K$160,1,0),0) -> Gruppi di misura - altre attrezzature di acquedotto | R64: 1 | S64: Servizio idrico integrato | T64: 2021 | U64: 619964.195 | V64: 0 | W64: 140368.6447 | X64: 0 | Z64: Res | AA64: Acquedotto | AB64: Nuovi_Investimenti | AC64: =+IF(OR(K64:L64=0,P64=0,R64=0),TRUE,FALSE) -> FALSE
A65: 50 | B65: Sistemi informativi di acquedotto | C65: Servizio idrico integrato | D65: =+IFERROR(VLOOKUP(B65,TT_Tabelle_Riferimento!$G$125:$I$160,3,FALSE),"") -> Acquedotto | E65: Non Erc | F65: 2021 | G65: 1009161.315 | H65: 29138.81951 | I65: 228488.3664 | J65: 257627.1859 | K65: 1202 | L65: 13989 | M65: Gestore | N65: 0 | O65: IP | P65: =+IFERROR(VLOOKUP(Q65,TT_Tabelle_Riferimento!$G$125:$K$160,5,0),0) -> 9 | Q65: =+IFERROR(VLOOKUP(B65,TT_Tabelle_Riferimento!$G$125:$K$160,1,0),0) -> Sistemi informativi di acquedotto | R65: 1 | S65: Servizio idrico integrato | T65: 2021 | U65: 1009161.315 | V65: 0 | W65: 257627.1859 | X65: 0 | Z65: Non Erc | AA65: Acquedotto | AB65: Nuovi_Investimenti | AC65: =+IF(OR(K65:L65=0,P65=0,R65=0),TRUE,FALSE) -> FALSE
A66: 51 | B66: Sistemi informativi di acquedotto | C66: Servizio idrico integrato | D66: =+IFERROR(VLOOKUP(B66,TT_Tabelle_Riferimento!$G$125:$I$160,3,FALSE),"") -> Acquedotto | E66: Res | F66: 2021 | G66: 22817.60156 | H66: 0 | I66: 5166.22707 | J66: 5166.22707 | K66: 1202 | L66: 13989 | M66: Gestore | N66: 0 | O66: IP | P66: =+IFERROR(VLOOKUP(Q66,TT_Tabelle_Riferimento!$G$125:$K$160,5,0),0) -> 9 | Q66: =+IFERROR(VLOOKUP(B66,TT_Tabelle_Riferimento!$G$125:$K$160,1,0),0) -> Sistemi informativi di acquedotto | R66: 1 | S66: Servizio idrico integrato | T66: 2021 | U66: 22817.60156 | V66: 0 | W66: 5166.22707 | X66: 0 | Z66: Res | AA66: Acquedotto | AB66: Nuovi_Investimenti | AC66: =+IF(OR(K66:L66=0,P66=0,R66=0),TRUE,FALSE) -> FALSE
A67: 52 | B67: Telecontrollo e teletrasmissione di acquedotto | C67: Servizio idrico integrato | D67: =+IFERROR(VLOOKUP(B67,TT_Tabelle_Riferimento!$G$125:$I$160,3,FALSE),"") -> Acquedotto | E67: Non Erc | F67: 2021 | G67: 2956539.663 | H67: 0 | I67: 669402.3121 | J67: 669402.3121 | K67: 1202 | L67: 13989 | M67: Gestore | N67: 0 | O67: IP | P67: =+IFERROR(VLOOKUP(Q67,TT_Tabelle_Riferimento!$G$125:$K$160,5,0),0) -> 10 | Q67: =+IFERROR(VLOOKUP(B67,TT_Tabelle_Riferimento!$G$125:$K$160,1,0),0) -> Telecontrollo e teletrasmissione di acquedotto | R67: 1 | S67: Servizio idrico integrato | T67: 2021 | U67: 2956539.663 | V67: 0 | W67: 669402.3121 | X67: 0 | Z67: Non Erc | AA67: Acquedotto | AB67: Nuovi_Investimenti | AC67: =+IF(OR(K67:L67=0,P67=0,R67=0),TRUE,FALSE) -> FALSE
A68: 53 | B68: Telecontrollo e teletrasmissione di acquedotto | C68: Servizio idrico integrato | D68: =+IFERROR(VLOOKUP(B68,TT_Tabelle_Riferimento!$G$125:$I$160,3,FALSE),"") -> Acquedotto | E68: Res | F68: 2021 | G68: 165435.8013 | H68: 0 | I68: 37457.0006 | J68: 37457.0006 | K68: 1202 | L68: 13989 | M68: Gestore | N68: 0 | O68: IP | P68: =+IFERROR(VLOOKUP(Q68,TT_Tabelle_Riferimento!$G$125:$K$160,5,0),0) -> 10 | Q68: =+IFERROR(VLOOKUP(B68,TT_Tabelle_Riferimento!$G$125:$K$160,1,0),0) -> Telecontrollo e teletrasmissione di acquedotto | R68: 1 | S68: Servizio idrico integrato | T68: 2021 | U68: 165435.8013 | V68: 0 | W68: 37457.0006 | X68: 0 | Z68: Res | AA68: Acquedotto | AB68: Nuovi_Investimenti | AC68: =+IF(OR(K68:L68=0,P68=0,R68=0),TRUE,FALSE) -> FALSE
A69: 54 | B69: Condotte fognarie | C69: Servizio idrico integrato | D69: =+IFERROR(VLOOKUP(B69,TT_Tabelle_Riferimento!$G$125:$I$160,3,FALSE),"") -> Fognatura | E69: Non Erc | F69: 2021 | G69: 33718122.18 | H69: 471333.44 | I69: 7634258.803 | J69: 8105592.243 | K69: 1202 | L69: 13989 | M69: Gestore | N69: 0 | O69: IP | P69: =+IFERROR(VLOOKUP(Q69,TT_Tabelle_Riferimento!$G$125:$K$160,5,0),0) -> 11 | Q69: =+IFERROR(VLOOKUP(B69,TT_Tabelle_Riferimento!$G$125:$K$160,1,0),0) -> Condotte fognarie | R69: 1 | S69: Servizio idrico integrato | T69: 2021 | U69: 33718122.18 | V69: 0 | W69: 8105592.243 | X69: 0 | Z69: Non Erc | AA69: Fognatura | AB69: Nuovi_Investimenti | AC69: =+IF(OR(K69:L69=0,P69=0,R69=0),TRUE,FALSE) -> FALSE
A70: 55 | B70: Sifoni e scaricatori di piena e altre opere idrauliche fisse di fognatura | C70: Servizio idrico integrato | D70: =+IFERROR(VLOOKUP(B70,TT_Tabelle_Riferimento!$G$125:$I$160,3,FALSE),"") -> Fognatura | E70: Non Erc | F70: 2021 | G70: 4169.159637 | H70: 0 | I70: 943.9565908 | J70: 943.9565908 | K70: 1202 | L70: 13989 | M70: Gestore | N70: 0 | O70: IP | P70: =+IFERROR(VLOOKUP(Q70,TT_Tabelle_Riferimento!$G$125:$K$160,5,0),0) -> 12 | Q70: =+IFERROR(VLOOKUP(B70,TT_Tabelle_Riferimento!$G$125:$K$160,1,0),0) -> Sifoni e scaricatori di piena e altre opere idrauliche fisse di fognatura | R70: 1 | S70: Servizio idrico integrato | T70: 2021 | U70: 4169.159637 | V70: 0 | W70: 943.9565908 | X70: 0 | Z70: Non Erc | AA70: Fognatura | AB70: Nuovi_Investimenti | AC70: =+IF(OR(K70:L70=0,P70=0,R70=0),TRUE,FALSE) -> FALSE
A71: 56 | B71: Vasche di laminazione e vasche di prima pioggia | C71: Servizio idrico integrato | D71: =+IFERROR(VLOOKUP(B71,TT_Tabelle_Riferimento!$G$125:$I$160,3,FALSE),"") -> Fognatura | E71: Env | F71: 2021 | G71: 56927.79346 | H71: 0 | I71: 12889.25599 | J71: 12889.25599 | K71: 1202 | L71: 13989 | M71: Gestore | N71: 0 | O71: IP | P71: =+IFERROR(VLOOKUP(Q71,TT_Tabelle_Riferimento!$G$125:$K$160,5,0),0) -> 13 | Q71: =+IFERROR(VLOOKUP(B71,TT_Tabelle_Riferimento!$G$125:$K$160,1,0),0) -> Vasche di laminazione e vasche di prima pioggia | R71: 1 | S71: Servizio idrico integrato | T71: 2021 | U71: 56927.79346 | V71: 0 | W71: 12889.25599 | X71: 0 | Z71: Env | AA71: Fognatura | AB71: Nuovi_Investimenti | AC71: =+IF(OR(K71:L71=0,P71=0,R71=0),TRUE,FALSE) -> FALSE
A72: 57 | B72: Impianti di sollevamento e pompaggio di fognatura | C72: Servizio idrico integrato | D72: =+IFERROR(VLOOKUP(B72,TT_Tabelle_Riferimento!$G$125:$I$160,3,FALSE),"") -> Fognatura | E72: Non Erc | F72: 2021 | G72: 9057483.926 | H72: 0 | I72: 2050742.21 | J72: 2050742.21 | K72: 1202 | L72: 13989 | M72: Gestore | N72: 0 | O72: IP | P72: =+IFERROR(VLOOKUP(Q72,TT_Tabelle_Riferimento!$G$125:$K$160,5,0),0) -> 14 | Q72: =+IFERROR(VLOOKUP(B72,TT_Tabelle_Riferimento!$G$125:$K$160,1,0),0) -> Impianti di sollevamento e pompaggio di fognatura | R72: 1 | S72: Servizio idrico integrato | T72: 2021 | U72: 9057483.926 | V72: 0 | W72: 2050742.21 | X72: 0 | Z72: Non Erc | AA72: Fognatura | AB72: Nuovi_Investimenti | AC72: =+IF(OR(K72:L72=0,P72=0,R72=0),TRUE,FALSE) -> FALSE
A73: 58 | B73: Gruppi di misura - altre attrezzature di fognatura | C73: Servizio idrico integrato | D73: =+IFERROR(VLOOKUP(B73,TT_Tabelle_Riferimento!$G$125:$I$160,3,FALSE),"") -> Fognatura | E73: Non Erc | F73: 2021 | G73: 873201.2447 | H73: 0 | I73: 197705.0873 | J73: 197705.0873 | K73: 1202 | L73: 13989 | M73: Gestore | N73: 0 | O73: IP | P73: =+IFERROR(VLOOKUP(Q73,TT_Tabelle_Riferimento!$G$125:$K$160,5,0),0) -> 15 | Q73: =+IFERROR(VLOOKUP(B73,TT_Tabelle_Riferimento!$G$125:$K$160,1,0),0) -> Gruppi di misura - altre attrezzature di fognatura | R73: 1 | S73: Servizio idrico integrato | T73: 2021 | U73: 873201.2447 | V73: 0 | W73: 197705.0873 | X73: 0 | Z73: Non Erc | AA73: Fognatura | AB73: Nuovi_Investimenti | AC73: =+IF(OR(K73:L73=0,P73=0,R73=0),TRUE,FALSE) -> FALSE
A74: 59 | B74: Sistemi informativi di fognatura | C74: Servizio idrico integrato | D74: =+IFERROR(VLOOKUP(B74,TT_Tabelle_Riferimento!$G$125:$I$160,3,FALSE),"") -> Fognatura | E74: Non Erc | F74: 2021 | G74: 106786.3501 | H74: 0 | I74: 24177.93698 | J74: 24177.93698 | K74: 1202 | L74: 13989 | M74: Gestore | N74: 0 | O74: IP | P74: =+IFERROR(VLOOKUP(Q74,TT_Tabelle_Riferimento!$G$125:$K$160,5,0),0) -> 16 | Q74: =+IFERROR(VLOOKUP(B74,TT_Tabelle_Riferimento!$G$125:$K$160,1,0),0) -> Sistemi informativi di fognatura | R74: 1 | S74: Servizio idrico integrato | T74: 2021 | U74: 106786.3501 | V74: 0 | W74: 24177.93698 | X74: 0 | Z74: Non Erc | AA74: Fognatura | AB74: Nuovi_Investimenti | AC74: =+IF(OR(K74:L74=0,P74=0,R74=0),TRUE,FALSE) -> FALSE
A75: 60 | B75: Telecontrollo e teletrasmissione di fognatura | C75: Servizio idrico integrato | D75: =+IFERROR(VLOOKUP(B75,TT_Tabelle_Riferimento!$G$125:$I$160,3,FALSE),"") -> Fognatura | E75: Non Erc | F75: 2021 | G75: 263892.9494 | H75: 0 | I75: 59749.08868 | J75: 59749.08868 | K75: 1202 | L75: 13989 | M75: Gestore | N75: 0 | O75: IP | P75: =+IFERROR(VLOOKUP(Q75,TT_Tabelle_Riferimento!$G$125:$K$160,5,0),0) -> 18 | Q75: =+IFERROR(VLOOKUP(B75,TT_Tabelle_Riferimento!$G$125:$K$160,1,0),0) -> Telecontrollo e teletrasmissione di fognatura | R75: 1 | S75: Servizio idrico integrato | T75: 2021 | U75: 263892.9494 | V75: 0 | W75: 59749.08868 | X75: 0 | Z75: Non Erc | AA75: Fognatura | AB75: Nuovi_Investimenti | AC75: =+IF(OR(K75:L75=0,P75=0,R75=0),TRUE,FALSE) -> FALSE
A76: 61 | B76: Impianti di sollevamento e pompaggio di depurazione | C76: Servizio idrico integrato | D76: =+IFERROR(VLOOKUP(B76,TT_Tabelle_Riferimento!$G$125:$I$160,3,FALSE),"") -> Depurazione | E76: Env | F76: 2021 | G76: 41660120.51 | H76: 0 | I76: 9432439.33 | J76: 9432439.33 | K76: 1202 | L76: 13989 | M76: Gestore | N76: 0 | O76: IP | P76: =+IFERROR(VLOOKUP(Q76,TT_Tabelle_Riferimento!$G$125:$K$160,5,0),0) -> 19 | Q76: =+IFERROR(VLOOKUP(B76,TT_Tabelle_Riferimento!$G$125:$K$160,1,0),0) -> Impianti di sollevamento e pompaggio di depurazione | R76: 1 | S76: Servizio idrico integrato | T76: 2021 | U76: 41660120.51 | V76: 0 | W76: 9432439.33 | X76: 0 | Z76: Env | AA76: Depurazione | AB76: Nuovi_Investimenti | AC76: =+IF(OR(K76:L76=0,P76=0,R76=0),TRUE,FALSE) -> FALSE
A77: 62 | B77: Tecniche naturali di depurazione (tra cui fitodepurazione e lagunaggio) | C77: Servizio idrico integrato | D77: =+IFERROR(VLOOKUP(B77,TT_Tabelle_Riferimento!$G$125:$I$160,3,FALSE),"") -> Depurazione | E77: Env | F77: 2021 | G77: 142660.1173 | H77: 0 | I77: 32300.26425 | J77: 32300.26425 | K77: 1202 | L77: 13989 | M77: Gestore | N77: 0 | O77: IP | P77: =+IFERROR(VLOOKUP(Q77,TT_Tabelle_Riferimento!$G$125:$K$160,5,0),0) -> 20 | Q77: =+IFERROR(VLOOKUP(B77,TT_Tabelle_Riferimento!$G$125:$K$160,1,0),0) -> Tecniche naturali di depurazione (tra cui fitodepurazione e lagunaggio) | R77: 1 | S77: Servizio idrico integrato | T77: 2021 | U77: 142660.1173 | V77: 0 | W77: 32300.26425 | X77: 0 | Z77: Env | AA77: Depurazione | AB77: Nuovi_Investimenti | AC77: =+IF(OR(K77:L77=0,P77=0,R77=0),TRUE,FALSE) -> FALSE
A78: 63 | B78: Impianti di depurazione – trattamenti sino al secondario | C78: Servizio idrico integrato | D78: =+IFERROR(VLOOKUP(B78,TT_Tabelle_Riferimento!$G$125:$I$160,3,FALSE),"") -> Depurazione | E78: Env | F78: 2021 | G78: 13732316.71 | H78: 0 | I78: 3109190.339 | J78: 3109190.339 | K78: 1202 | L78: 13989 | M78: Gestore | N78: 0 | O78: IP | P78: =+IFERROR(VLOOKUP(Q78,TT_Tabelle_Riferimento!$G$125:$K$160,5,0),0) -> 22 | Q78: =+IFERROR(VLOOKUP(B78,TT_Tabelle_Riferimento!$G$125:$K$160,1,0),0) -> Impianti di depurazione – trattamenti sino al secondario | R78: 1 | S78: Servizio idrico integrato | T78: 2021 | U78: 13732316.71 | V78: 0 | W78: 3109190.339 | X78: 0 | Z78: Env | AA78: Depurazione | AB78: Nuovi_Investimenti | AC78: =+IF(OR(K78:L78=0,P78=0,R78=0),TRUE,FALSE) -> FALSE
A79: 64 | B79: Impianti di depurazione – trattamenti sino al terziario e terziario avanzato | C79: Servizio idrico integrato | D79: =+IFERROR(VLOOKUP(B79,TT_Tabelle_Riferimento!$G$125:$I$160,3,FALSE),"") -> Depurazione | E79: Env | F79: 2021 | G79: 29903.24351 | H79: 0 | I79: 6770.516425 | J79: 6770.516425 | K79: 1202 | L79: 13989 | M79: Gestore | N79: 0 | O79: IP | P79: =+IFERROR(VLOOKUP(Q79,TT_Tabelle_Riferimento!$G$125:$K$160,5,0),0) -> 23 | Q79: =+IFERROR(VLOOKUP(B79,TT_Tabelle_Riferimento!$G$125:$K$160,1,0),0) -> Impianti di depurazione – trattamenti sino al terziario e terziario avanzato | R79: 1 | S79: Servizio idrico integrato | T79: 2021 | U79: 29903.24351 | V79: 0 | W79: 6770.516425 | X79: 0 | Z79: Env | AA79: Depurazione | AB79: Nuovi_Investimenti | AC79: =+IF(OR(K79:L79=0,P79=0,R79=0),TRUE,FALSE) -> FALSE
A80: 65 | B80: Gruppi di misura - altre attrezzature di depurazione | C80: Servizio idrico integrato | D80: =+IFERROR(VLOOKUP(B80,TT_Tabelle_Riferimento!$G$125:$I$160,3,FALSE),"") -> Depurazione | E80: Env | F80: 2021 | G80: 2392708.198 | H80: 0 | I80: 541742.9097 | J80: 541742.9097 | K80: =idato -> 1202 | L80: =idgestore -> 13989 | M80: Gestore | N80: 0 | O80: IP | P80: =+IFERROR(VLOOKUP(Q80,TT_Tabelle_Riferimento!$G$125:$K$160,5,0),0) -> 25 | Q80: =+IFERROR(VLOOKUP(B80,TT_Tabelle_Riferimento!$G$125:$K$160,1,0),0) -> Gruppi di misura - altre attrezzature di depurazione | R80: =+IFERROR(VLOOKUP(S80,cat_imm_new,2,0),0) -> 1 | S80: =+IFERROR(VLOOKUP(C80,cat_imm_new,1,0),0) -> Servizio idrico integrato | T80: 2021 | U80: 2392708.198 | V80: 0 | W80: 541742.9097 | X80: 0 | Z80: Env | AA80: Depurazione | AB80: Nuovi_Investimenti | AC80: =+IF(OR(K80:L80=0,P80=0,R80=0),TRUE,FALSE) -> FALSE
A81: =+ROW(A81)-15 -> 66 | B81: Sistemi informativi di depurazione | C81: Servizio idrico integrato | D81: =+IFERROR(VLOOKUP(B81,TT_Tabelle_Riferimento!$G$125:$I$160,3,FALSE),"") -> Depurazione | E81: Env | F81: 2021 | G81: 104773.249 | H81: 0 | I81: =+IFERROR(HLOOKUP(F81,$D$8:$E$13,6,FALSE)*G81,0) -> 23722.14248 | J81: =+I81+H81 -> 23722.14248 | K81: 1202 | L81: 13989 | M81: Gestore | N81: 0 | O81: IP | P81: =+IFERROR(VLOOKUP(Q81,TT_Tabelle_Riferimento!$G$125:$K$160,5,0),0) -> 26 | Q81: =+IFERROR(VLOOKUP(B81,TT_Tabelle_Riferimento!$G$125:$K$160,1,0),0) -> Sistemi informativi di depurazione | R81: 1 | S81: Servizio idrico integrato | T81: =F81 -> 2021 | U81: =G81 -> 104773.249 | V81: 0 | W81: =J81 -> 23722.14248 | X81: 0 | Z81: =+IF(OR(E81="Res",E81="Env",E81="Non ERC"),E81,"") -> Env | AA81: =+IF(OR(D81="Acquedotto",D81="Fognatura",D81="Depurazione",D81="Comune"),D81,"") -> Depurazione | AB81: Nuovi_Investimenti | AC81: =+IF(OR(K81:L81=0,P81=0,R81=0),TRUE,FALSE) -> FALSE
A82: 67 | B82: Telecontrollo e teletrasmissione di depurazione | C82: Servizio idrico integrato | D82: =+IFERROR(VLOOKUP(B82,TT_Tabelle_Riferimento!$G$125:$I$160,3,FALSE),"") -> Depurazione | E82: Env | F82: 2021 | G82: 2570970.213 | H82: 0 | I82: 582103.9462 | J82: 582103.9462 | K82: 1202 | L82: 13989 | M82: Gestore | N82: 0 | O82: IP | P82: =+IFERROR(VLOOKUP(Q82,TT_Tabelle_Riferimento!$G$125:$K$160,5,0),0) -> 27 | Q82: =+IFERROR(VLOOKUP(B82,TT_Tabelle_Riferimento!$G$125:$K$160,1,0),0) -> Telecontrollo e teletrasmissione di depurazione | R82: 1 | S82: Servizio idrico integrato | T82: 2021 | U82: 2570970.213 | V82: 0 | W82: 582103.9462 | X82: 0 | Z82: Env | AA82: Depurazione | AB82: Nuovi_Investimenti | AC82: =+IF(OR(K82:L82=0,P82=0,R82=0),TRUE,FALSE) -> FALSE
A83: 68 | B83: Laboratori e attrezzature | C83: Servizio idrico integrato | D83: =+IFERROR(VLOOKUP(B83,TT_Tabelle_Riferimento!$G$125:$I$160,3,FALSE),"") -> Comune | E83: Non Erc | F83: 2021 | G83: 1195035.486 | H83: 0 | I83: 270572.9023 | J83: 270572.9023 | K83: 1202 | L83: 13989 | M83: Gestore | N83: 0 | O83: IP | P83: =+IFERROR(VLOOKUP(Q83,TT_Tabelle_Riferimento!$G$125:$K$160,5,0),0) -> 29 | Q83: =+IFERROR(VLOOKUP(B83,TT_Tabelle_Riferimento!$G$125:$K$160,1,0),0) -> Laboratori e attrezzature | R83: 1 | S83: Servizio idrico integrato | T83: 2021 | U83: 1195035.486 | V83: 0 | W83: 270572.9023 | X83: 0 | Z83: Non Erc | AA83: Comune | AB83: Nuovi_Investimenti | AC83: =+IF(OR(K83:L83=0,P83=0,R83=0),TRUE,FALSE) -> FALSE
A84: 69 | B84: Sistemi informativi | C84: Servizio idrico integrato | D84: =+IFERROR(VLOOKUP(B84,TT_Tabelle_Riferimento!$G$125:$I$160,3,FALSE),"") -> Comune | E84: Non Erc | F84: 2021 | G84: 22438632.84 | H84: 0 | I84: 5080423.204 | J84: 5080423.204 | K84: 1202 | L84: 13989 | M84: Gestore | N84: 0 | O84: IP | P84: =+IFERROR(VLOOKUP(Q84,TT_Tabelle_Riferimento!$G$125:$K$160,5,0),0) -> 30 | Q84: =+IFERROR(VLOOKUP(B84,TT_Tabelle_Riferimento!$G$125:$K$160,1,0),0) -> Sistemi informativi | R84: 1 | S84: Servizio idrico integrato | T84: 2021 | U84: 22438632.84 | V84: 0 | W84: 5080423.204 | X84: 0 | Z84: Non Erc | AA84: Comune | AB84: Nuovi_Investimenti | AC84: =+IF(OR(K84:L84=0,P84=0,R84=0),TRUE,FALSE) -> FALSE
A85: 70 | B85: Telecontrollo e teletrasmissione | C85: Servizio idrico integrato | D85: =+IFERROR(VLOOKUP(B85,TT_Tabelle_Riferimento!$G$125:$I$160,3,FALSE),"") -> Comune | E85: Non Erc | F85: 2021 | G85: 45170.60133 | H85: 0 | I85: 10227.26174 | J85: 10227.26174 | K85: 1202 | L85: 13989 | M85: Gestore | N85: 0 | O85: IP | P85: =+IFERROR(VLOOKUP(Q85,TT_Tabelle_Riferimento!$G$125:$K$160,5,0),0) -> 31 | Q85: =+IFERROR(VLOOKUP(B85,TT_Tabelle_Riferimento!$G$125:$K$160,1,0),0) -> Telecontrollo e teletrasmissione | R85: 1 | S85: Servizio idrico integrato | T85: 2021 | U85: 45170.60133 | V85: 0 | W85: 10227.26174 | X85: 0 | Z85: Non Erc | AA85: Comune | AB85: Nuovi_Investimenti | AC85: =+IF(OR(K85:L85=0,P85=0,R85=0),TRUE,FALSE) -> FALSE
A86: 71 | B86: Autoveicoli - automezzi | C86: Servizio idrico integrato | D86: =+IFERROR(VLOOKUP(B86,TT_Tabelle_Riferimento!$G$125:$I$160,3,FALSE),"") -> Comune | E86: Non Erc | F86: 2021 | G86: 3119373.168 | H86: 0 | I86: 706270.1162 | J86: 706270.1162 | K86: 1202 | L86: 13989 | M86: Gestore | N86: 0 | O86: IP | P86: =+IFERROR(VLOOKUP(Q86,TT_Tabelle_Riferimento!$G$125:$K$160,5,0),0) -> 32 | Q86: =+IFERROR(VLOOKUP(B86,TT_Tabelle_Riferimento!$G$125:$K$160,1,0),0) -> Autoveicoli - automezzi | R86: 1 | S86: Servizio idrico integrato | T86: 2021 | U86: 3119373.168 | V86: 0 | W86: 706270.1162 | X86: 0 | Z86: Non Erc | AA86: Comune | AB86: Nuovi_Investimenti | AC86: =+IF(OR(K86:L86=0,P86=0,R86=0),TRUE,FALSE) -> FALSE
A87: 72 | B87: Fabbricati industriali | C87: Servizio idrico integrato | D87: =+IFERROR(VLOOKUP(B87,TT_Tabelle_Riferimento!$G$125:$I$160,3,FALSE),"") -> Comune | E87: Non Erc | F87: 2021 | G87: 1159971.918 | H87: 0 | I87: 262634.0155 | J87: 262634.0155 | K87: 1202 | L87: 13989 | M87: Gestore | N87: 0 | O87: IP | P87: =+IFERROR(VLOOKUP(Q87,TT_Tabelle_Riferimento!$G$125:$K$160,5,0),0) -> 34 | Q87: =+IFERROR(VLOOKUP(B87,TT_Tabelle_Riferimento!$G$125:$K$160,1,0),0) -> Fabbricati industriali | R87: 1 | S87: Servizio idrico integrato | T87: 2021 | U87: 1159971.918 | V87: 0 | W87: 262634.0155 | X87: 0 | Z87: Non Erc | AA87: Comune | AB87: Nuovi_Investimenti | AC87: =+IF(OR(K87:L87=0,P87=0,R87=0),TRUE,FALSE) -> FALSE
A88: 73 | B88: Altre immobilizzazioni materiali e immateriali | C88: Servizio idrico integrato | D88: =+IFERROR(VLOOKUP(B88,TT_Tabelle_Riferimento!$G$125:$I$160,3,FALSE),"") -> Comune | E88: Non Erc | F88: 2021 | G88: 1748394.577 | H88: 0 | I88: 395861.2113 | J88: 395861.2113 | K88: 1202 | L88: 13989 | M88: Gestore | N88: 0 | O88: IP | P88: =+IFERROR(VLOOKUP(Q88,TT_Tabelle_Riferimento!$G$125:$K$160,5,0),0) -> 37 | Q88: =+IFERROR(VLOOKUP(B88,TT_Tabelle_Riferimento!$G$125:$K$160,1,0),0) -> Altre immobilizzazioni materiali e immateriali | R88: 1 | S88: Servizio idrico integrato | T88: 2021 | U88: 1748394.577 | V88: 0 | W88: 395861.2113 | X88: 0 | Z88: Non Erc | AA88: Comune | AB88: Nuovi_Investimenti | AC88: =+IF(OR(K88:L88=0,P88=0,R88=0),TRUE,FALSE) -> FALSE
A89: 74 | B89: Condotte di acquedotto | C89: Altri servizi idrici | D89: =+IFERROR(VLOOKUP(B89,TT_Tabelle_Riferimento!$G$125:$I$160,3,FALSE),"") -> Acquedotto | E89: Non Erc | F89: 2021 | G89: 5199721.266 | H89: 0 | I89: 1177290.29 | J89: 1177290.29 | K89: 1202 | L89: 13989 | M89: Gestore | N89: 0 | O89: IP | P89: =+IFERROR(VLOOKUP(Q89,TT_Tabelle_Riferimento!$G$125:$K$160,5,0),0) -> 2 | Q89: =+IFERROR(VLOOKUP(B89,TT_Tabelle_Riferimento!$G$125:$K$160,1,0),0) -> Condotte di acquedotto | R89: 3 | S89: Altri servizi idrici | T89: 2021 | U89: 5199721.266 | V89: 0 | W89: 1177290.29 | X89: 0 | Z89: Non Erc | AA89: Acquedotto | AB89: Nuovi_Investimenti | AC89: =+IF(OR(K89:L89=0,P89=0,R89=0),TRUE,FALSE) -> FALSE
A90: 75 | B90: Impianti di sollevamento e pompaggio di acquedotto | C90: Altri servizi idrici | D90: =+IFERROR(VLOOKUP(B90,TT_Tabelle_Riferimento!$G$125:$I$160,3,FALSE),"") -> Acquedotto | E90: Non Erc | F90: 2021 | G90: 117148.8671 | H90: 0 | I90: 26524.15711 | J90: 26524.15711 | K90: 1202 | L90: 13989 | M90: Gestore | N90: 0 | O90: IP | P90: =+IFERROR(VLOOKUP(Q90,TT_Tabelle_Riferimento!$G$125:$K$160,5,0),0) -> 5 | Q90: =+IFERROR(VLOOKUP(B90,TT_Tabelle_Riferimento!$G$125:$K$160,1,0),0) -> Impianti di sollevamento e pompaggio di acquedotto | R90: 3 | S90: Altri servizi idrici | T90: 2021 | U90: 117148.8671 | V90: 0 | W90: 26524.15711 | X90: 0 | Z90: Non Erc | AA90: Acquedotto | AB90: Nuovi_Investimenti | AC90: =+IF(OR(K90:L90=0,P90=0,R90=0),TRUE,FALSE) -> FALSE
A91: 76 | B91: Sistemi informativi di acquedotto | C91: Altri servizi idrici | D91: =+IFERROR(VLOOKUP(B91,TT_Tabelle_Riferimento!$G$125:$I$160,3,FALSE),"") -> Acquedotto | E91: Non Erc | F91: 2021 | G91: 278.9270167 | H91: 0 | I91: 63.15301371 | J91: 63.15301371 | K91: 1202 | L91: 13989 | M91: Gestore | N91: 0 | O91: IP | P91: =+IFERROR(VLOOKUP(Q91,TT_Tabelle_Riferimento!$G$125:$K$160,5,0),0) -> 9 | Q91: =+IFERROR(VLOOKUP(B91,TT_Tabelle_Riferimento!$G$125:$K$160,1,0),0) -> Sistemi informativi di acquedotto | R91: 3 | S91: Altri servizi idrici | T91: 2021 | U91: 278.9270167 | V91: 0 | W91: 63.15301371 | X91: 0 | Z91: Non Erc | AA91: Acquedotto | AB91: Nuovi_Investimenti | AC91: =+IF(OR(K91:L91=0,P91=0,R91=0),TRUE,FALSE) -> FALSE
A92: 77 | B92: Telecontrollo e teletrasmissione di acquedotto | C92: Altri servizi idrici | D92: =+IFERROR(VLOOKUP(B92,TT_Tabelle_Riferimento!$G$125:$I$160,3,FALSE),"") -> Acquedotto | E92: Non Erc | F92: 2021 | G92: 7589.322108 | H92: 0 | I92: 1718.329651 | J92: 1718.329651 | K92: 1202 | L92: 13989 | M92: Gestore | N92: 0 | O92: IP | P92: =+IFERROR(VLOOKUP(Q92,TT_Tabelle_Riferimento!$G$125:$K$160,5,0),0) -> 10 | Q92: =+IFERROR(VLOOKUP(B92,TT_Tabelle_Riferimento!$G$125:$K$160,1,0),0) -> Telecontrollo e teletrasmissione di acquedotto | R92: 3 | S92: Altri servizi idrici | T92: 2021 | U92: 7589.322108 | V92: 0 | W92: 1718.329651 | X92: 0 | Z92: Non Erc | AA92: Acquedotto | AB92: Nuovi_Investimenti | AC92: =+IF(OR(K92:L92=0,P92=0,R92=0),TRUE,FALSE) -> FALSE

Sheet Dismissioni
B1: IMMOBILIZZAZIONI DEL GESTORE | G1: Tutti i valori si intendono a moneta dell'anno del cespite
A2: 3. DISMISSIONI
M3: Sono presenti errori
M4: =+OR(INDEX(Dismissioni,0,32)) -> FALSE
A7: N_riga | B7: Categoria del cespite | C7: Categoria di Immobilizzazione | D7: Attività | E7: Tipologia di costo sotteso ("Env", "Res", "Non ERC") | F7: Anno dismissione | G7: Anno cespite | H7: IP (Euro) | I7: FA (Euro) | J7: CFP (Euro) | K7: FA cfp (Euro) | M7: IDATO | N7: IDGESTORE | O7: Gestore_Proprietario | P7: N_prop | Q7: Fonte | R7: ID_Categoria_Cespite | S7: CategoriaCespite | T7: ID_Immobilizzazione | U7: IMMOBILIZZAZIONE | V7: AnnoDismissione | W7: IP | X7: FAIP | Y7: CFP | Z7: FACFP | AA7: - | AB7: ERC | AC7: Attività | AD7: foglio di origine | AE7: AnnoCespite | AF7: controllo_errori
A8: =+ROW(A8)-8 -> 0 | D8: =+IFERROR(IF(G8>=2020,VLOOKUP(B8,TT_Tabelle_Riferimento!$G$125:$I$160,3,FALSE),""),"") ->  | M8: =idato -> 1202 | N8: =idgestore -> 13989 | O8: Gestore | P8: 0 | Q8: IP | R8: =+IFERROR(IF(G8<2020,VLOOKUP(B8,id_cat_ces,2,FALSE),VLOOKUP(B8,TT_Tabelle_Riferimento!$G$125:$K$160,5,FALSE)),0) -> 0 | S8: =+IFERROR(IF(G8<2020,VLOOKUP(B8,id_cat_ces,1,FALSE),VLOOKUP(B8,TT_Tabelle_Riferimento!$G$125:$K$160,1,FALSE)),0) -> 0 | T8: =+IFERROR(VLOOKUP(U8,cat_imm_new,2,0),0) -> 0 | U8: =+IFERROR(VLOOKUP(C8,cat_imm_new,1,0),0) -> 0 | V8: =+F8 -> 0 | W8: =+IFERROR(IP(ABS($H8),$R8,$T8,$G8,V8+2,ifl),0)*-1 -> 0 | X8: =+IFERROR(FondoAmm(ABS($H8),ABS($I8),$G8,$R8,$T8,V8+2,vite_regolatorie,ifl),0)*-1 -> 0 | Y8: =+IFERROR(CFP_A(ABS($J8),$R8,$T8,$G8,V8+2,ifl),0)*-1 -> 0 | Z8: =+IFERROR(FACFP(ABS($J8),ABS($K8),$G8,$R8,$T8,V8+2,vite_regolatorie,ifl),0)*-1 -> 0 | AB8: =+IF(OR(E8="Res",E8="Env",E8="Non ERC"),E8,"") ->  | AC8: =+IF(OR(D8="Acquedotto",D8="Fognatura",D8="Depurazione",D8="Comune"),D8,"") ->  | AD8: Dismissioni | AE8: =+G8 -> 0 | AF8: =+IF(OR(M8:N8=0,R8=0,T8=0),IF(COUNTA(A:A)>3,TRUE,FALSE),FALSE) -> FALSE

Sheet Ammortamento_Finanziario
B1: IMMOBILIZZAZIONI DEL GESTORE
A2: 4. VITE UTILI PER LO SVILUPPO DELLA RAB | E2: area dati storici MTT - MTI | N2: area dati storici MTI-2 - MTI-2 aggiornamento | Z2: area MTI-3 | AK2: area MTI-3 aggiornamento
D3: Anno del Cespite | E3: ANNI 1967 - 2011 | H3: ANNO 2012 | K3: ANNO 2013 | N3: ANNO 2014 | Q3: ANNO 2015 | T3: ANNO 2016 | W3: ANNO 2017 | Z3: ANNO 2018 | AC3: ANNO 2019 | AK3: ANNO 2020 | AN3: ANNO 2021
E4: =+IF(iAF="SI","SI","NO") -> SI | H4: =+IF(OR(iAF="SI",Dati_Anni_precedenti!E110="SI"),"SI","NO") -> SI | K4: =+IF(OR(iAF="SI",Dati_Anni_precedenti!F110="SI"),"SI","NO") -> SI | N4: =+IF(OR(iAF="SI",Dati_Anni_precedenti!E102="SI"),"SI","NO") -> SI | Q4: =+IF(OR(iAF="SI",Dati_Anni_precedenti!F102="SI"),"SI","NO") -> SI | T4: =+IF(OR(iAF="SI",Dati_Anni_precedenti!E93="SI"),"SI","NO") -> SI | W4: =+IF(OR(iAF="SI",Dati_Anni_precedenti!F93="SI"),"SI","NO") -> SI | Z4: =+IF(OR(iAF="SI",schema="IV",schema="V",schema="VI"),"SI","NO") -> SI | AC4: =+IF(OR(iAF="SI",schema="IV",schema="V",schema="VI"),"SI","NO") -> SI | AK4: =+IF(OR(iAF="SI",schema="IV",schema="V",schema="VI"),"SI","NO") -> SI | AN4: =+IF(OR(iAF="SI",schema="IV",schema="V",schema="VI"),"SI","NO") -> SI
D5: Anno di calcolo | F5: 2022 | G5: 2023 | I5: 2022 | J5: 2023 | L5: 2022 | M5: 2023 | O5: 2022 | P5: 2023 | R5: 2022 | S5: 2023 | U5: 2022 | V5: 2023 | X5: 2022 | Y5: 2023 | AA5: 2022 | AB5: 2023 | AD5: 2022 | AE5: 2023 | AL5: 2022 | AM5: 2023 | AO5: 2023
E6: Periodo di ammortamento: | H6: Periodo di ammortamento: | K6: Periodo di ammortamento: | N6: Periodo di ammortamento: | Q6: Periodo di ammortamento: | T6: Periodo di ammortamento: | W6: Periodo di ammortamento: | Z6: Periodo di ammortamento: | AC6: Periodo di ammortamento: | AK6: Periodo di ammortamento: | AN6: Periodo di ammortamento:
B7: ID | C7: Categoria Cespite | E7: vite utili regolatorie (MTT) | F7: durata ammortamento finanziario | G7: durata ammortamento finanziario | H7: vite utili regolatorie (MTI) | I7: durata ammortamento finanziario | J7: durata ammortamento finanziario | K7: vite utili regolatorie (MTI) | L7: durata ammortamento finanziario | M7: durata ammortamento finanziario | N7: vite utili regolatorie (MTI-2) | O7: durata ammortamento finanziario | P7: durata ammortamento finanziario | Q7: vite utili regolatorie (MTI-2) | R7: durata ammortamento finanziario | S7: durata ammortamento finanziario | T7: vite utili regolatorie (MTI-2) | U7: durata ammortamento finanziario | V7: durata ammortamento finanziario | W7: vite utili regolatorie (MTI-2) | X7: durata ammortamento finanziario | Y7: durata ammortamento finanziario | Z7: vite utili regolatorie (MTI-3) | AA7: durata ammortamento finanziario | AB7: durata ammortamento finanziario | AC7: vite utili regolatorie (MTI-3) | AD7: durata ammortamento finanziario | AE7: durata ammortamento finanziario | AG7: ID | AH7: Categoria Cespite | AI7: Macro-indicatore di riferimento* | AJ7: Categoria di immobilizzazioni | AK7: vite utili regolatorie (MTI-3) | AL7: durata ammortamento finanziario | AM7: durata ammortamento finanziario | AN7: vite utili regolatorie (MTI-3) | AO7: durata ammortamento finanziario
B8: 1 | C8: Terreni | AG8: 1 | AH8: Terreni | AI8: - | AJ8: Comune
B9: 2 | C9: Fabbricati non industriali | E9: 40 | F9: 40 | G9: 40 | H9: 40 | I9: 40 | J9: 40 | K9: 40 | L9: 40 | M9: 40 | N9: 40 | O9: 40 | P9: 40 | Q9: 40 | R9: 40 | S9: 40 | T9: 40 | U9: 40 | V9: 40 | W9: 40 | X9: 40 | Y9: 40 | Z9: 40 | AA9: 40 | AB9: 40 | AC9: 40 | AD9: 40 | AE9: 40 | AG9: 2 | AH9: Condotte di acquedotto | AI9: M1-M2-MC1 | AJ9: Acquedotto | AK9: 40 | AL9: 22.222222 | AM9: 22.222222 | AN9: 40 | AO9: 22.222222
B10: 3 | C10: Fabbricati industriali | E10: 40 | F10: 22.222222 | G10: 22.222222 | H10: 40 | I10: 22.222222 | J10: 22.222222 | K10: 40 | L10: 22.222222 | M10: 22.222222 | N10: 40 | O10: 22.222222 | P10: 22.222222 | Q10: 40 | R10: 22.222222 | S10: 22.222222 | T10: 40 | U10: 22.222222 | V10: 22.222222 | W10: 40 | X10: 22.222222 | Y10: 22.222222 | Z10: 40 | AA10: 22.222222 | AB10: 22.222222 | AC10: 40 | AD10: 22.222222 | AE10: 22.222222 | AG10: 3 | AH10: Opere idrauliche fisse di acquedotto | AI10: M1-M2-M3 | AJ10: Acquedotto | AK10: 40 | AL10: 22.222222 | AM10: 22.222222 | AN10: 40 | AO10: 22.222222
B11: 4 | C11: Costruzioni leggere | E11: 40 | F11: 40 | G11: 40 | H11: 40 | I11: 40 | J11: 40 | K11: 40 | L11: 40 | M11: 40 | N11: 40 | O11: 40 | P11: 40 | Q11: 40 | R11: 40 | S11: 40 | T11: 40 | U11: 40 | V11: 40 | W11: 40 | X11: 40 | Y11: 40 | Z11: 40 | AA11: 40 | AB11: 40 | AC11: 40 | AD11: 40 | AE11: 40 | AG11: 4 | AH11: Serbatoi | AI11: M1-M2 | AJ11: Acquedotto | AK11: 40 | AL11: 27.777777 | AM11: 27.777777 | AN11: 40 | AO11: 27.777777
B12: 5 | C12: Condutture e opere idrauliche fisse | E12: 40 | F12: 22.222222 | G12: 22.222222 | H12: 40 | I12: 22.222222 | J12: 22.222222 | K12: 40 | L12: 22.222222 | M12: 22.222222 | N12: 40 | O12: 22.222222 | P12: 22.222222 | Q12: 40 | R12: 22.222222 | S12: 22.222222 | T12: 40 | U12: 22.222222 | V12: 22.222222 | W12: 40 | X12: 22.222222 | Y12: 22.222222 | Z12: 40 | AA12: 22.222222 | AB12: 22.222222 | AC12: 40 | AD12: 22.222222 | AE12: 22.222222 | AG12: 5 | AH12: Impianti di sollevamento e pompaggio di acquedotto | AI12: M1-M2-M3 | AJ12: Acquedotto | AK12: 8 | AL12: 8 | AM12: 8 | AN12: 8 | AO12: 8
B13: 6 | C13: Serbatoi | E13: 50 | F13: 27.777777 | G13: 27.777777 | H13: 50 | I13: 27.777777 | J13: 27.777777 | K13: 50 | L13: 27.777777 | M13: 27.777777 | N13: 50 | O13: 27.777777 | P13: 27.777777 | Q13: 50 | R13: 27.777777 | S13: 27.777777 | T13: 50 | U13: 27.777777 | V13: 27.777777 | W13: 50 | X13: 27.777777 | Y13: 27.777777 | Z13: 50 | AA13: 27.777777 | AB13: 27.777777 | AC13: 50 | AD13: 27.777777 | AE13: 27.777777 | AG13: 6 | AH13: Impianti di potabilizzazione | AI13: M3 | AJ13: Acquedotto | AK13: 20 | AL13: 20 | AM13: 20 | AN13: 20 | AO13: 20
B14: 7 | C14: Impianti di trattamento | E14: 12 | F14: 12 | G14: 12 | H14: 12 | I14: 12 | J14: 12 | K14: 12 | L14: 12 | M14: 12 | N14: 12 | O14: 12 | P14: 12 | Q14: 12 | R14: 12 | S14: 12 | T14: 12 | U14: 12 | V14: 12 | W14: 12 | X14: 12 | Y14: 12 | Z14: 12 | AA14: 12 | AB14: 12 | AC14: 12 | AD14: 12 | AE14: 12 | AG14: 7 | AH14: Altri trattamenti di potabilizzazione (tra cui dispositivi di disinfezione, stacciatura, filtrazione, addolcimento) | AI14: M3 | AJ14: Acquedotto | AK14: 12 | AL14: 12 | AM14: 12 | AN14: 12 | AO14: 12
B15: 8 | C15: Impianti di sollevamento e pompaggio | E15: 8 | F15: 8 | G15: 8 | H15: 8 | I15: 8 | J15: 8 | K15: 8 | L15: 8 | M15: 8 | N15: 8 | O15: 8 | P15: 8 | Q15: 8 | R15: 8 | S15: 8 | T15: 8 | U15: 8 | V15: 8 | W15: 8 | X15: 8 | Y15: 8 | Z15: 8 | AA15: 8 | AB15: 8 | AC15: 8 | AD15: 8 | AE15: 8 | AG15: 8 | AH15: Gruppi di misura - altre attrezzature di acquedotto | AI15: M1-MC1-MC2 | AJ15: Acquedotto | AK15: 10 | AL15: 10 | AM15: 10 | AN15: 10 | AO15: 10
B16: 9 | C16: Gruppi di misura meccanici | E16: 15 | F16: 15 | G16: 15 | H16: 15 | I16: 15 | J16: 15 | K16: 15 | L16: 15 | M16: 15 | N16: 15 | O16: 15 | P16: 15 | Q16: 15 | R16: 15 | S16: 15 | T16: 15 | U16: 15 | V16: 15 | W16: 15 | X16: 15 | Y16: 15 | Z16: 15 | AA16: 15 | AB16: 15 | AC16: 15 | AD16: 15 | AE16: 15 | AG16: 9 | AH16: Sistemi informativi di acquedotto | AI16: M1-M2-M3 | AJ16: Acquedotto | AK16: 5 | AL16: 5 | AM16: 5 | AN16: 5 | AO16: 5
B17: 10 | C17: Gruppi di misura elettronici | E17: 15 | F17: 15 | G17: 15 | H17: 15 | I17: 15 | J17: 15 | K17: 15 | L17: 15 | M17: 15 | N17: 15 | O17: 15 | P17: 15 | Q17: 15 | R17: 15 | S17: 15 | T17: 15 | U17: 15 | V17: 15 | W17: 15 | X17: 15 | Y17: 15 | Z17: 15 | AA17: 15 | AB17: 15 | AC17: 15 | AD17: 15 | AE17: 15 | AG17: 10 | AH17: Telecontrollo e teletrasmissione di acquedotto | AI17: M1-M2-M3 | AJ17: Acquedotto | AK17: 8 | AL17: 8 | AM17: 8 | AN17: 8 | AO17: 8
B18: 11 | C18: Altri impianti | E18: 20 | F18: 20 | G18: 20 | H18: 20 | I18: 20 | J18: 20 | K18: 20 | L18: 20 | M18: 20 | N18: 20 | O18: 17 | P18: 17 | Q18: 20 | R18: 16 | S18: 16 | T18: 20 | U18: 15 | V18: 15 | W18: 20 | X18: 14 | Y18: 14 | Z18: 20 | AA18: 13 | AB18: 13 | AC18: 20 | AD18: 12 | AE18: 12 | AG18: 11 | AH18: Condotte fognarie | AI18: M4 | AJ18: Fognatura | AK18: 50 | AL18: 22.222222 | AM18: 22.222222 | AN18: 50 | AO18: 22.222222
B19: 12 | C19: Laboratori | E19: 10 | F19: 10 | G19: 10 | H19: 10 | I19: 10 | J19: 10 | K19: 10 | L19: 10 | M19: 10 | N19: 10 | O19: 10 | P19: 10 | Q19: 10 | R19: 10 | S19: 10 | T19: 10 | U19: 10 | V19: 10 | W19: 10 | X19: 10 | Y19: 10 | Z19: 10 | AA19: 10 | AB19: 10 | AC19: 10 | AD19: 10 | AE19: 10 | AG19: 12 | AH19: Sifoni e scaricatori di piena e altre opere idrauliche fisse di fognatura | AI19: M4 | AJ19: Fognatura | AK19: 40 | AL19: 22.222222 | AM19: 22.222222 | AN19: 40 | AO19: 22.222222
B20: 13 | C20: Telecontrollo | E20: 8 | F20: 8 | G20: 8 | H20: 8 | I20: 8 | J20: 8 | K20: 8 | L20: 8 | M20: 8 | N20: 8 | O20: 8 | P20: 8 | Q20: 8 | R20: 8 | S20: 8 | T20: 8 | U20: 8 | V20: 8 | W20: 8 | X20: 8 | Y20: 8 | Z20: 8 | AA20: 8 | AB20: 8 | AC20: 8 | AD20: 8 | AE20: 8 | AG20: 13 | AH20: Vasche di laminazione e vasche di prima pioggia | AI20: M4 | AJ20: Fognatura | AK20: 40 | AL20: 22.222222 | AM20: 22.222222 | AN20: 40 | AO20: 22.222222
B21: 14 | C21: Autoveicoli | E21: 5 | F21: 5 | G21: 5 | H21: 5 | I21: 5 | J21: 5 | K21: 5 | L21: 5 | M21: 5 | N21: 5 | O21: 5 | P21: 5 | Q21: 5 | R21: 5 | S21: 5 | T21: 5 | U21: 5 | V21: 5 | W21: 5 | X21: 5 | Y21: 5 | Z21: 5 | AA21: 5 | AB21: 5 | AC21: 5 | AD21: 5 | AE21: 5 | AG21: 14 | AH21: Impianti di sollevamento e pompaggio di fognatura | AI21: M4 | AJ21: Fognatura | AK21: 8 | AL21: 8 | AM21: 8 | AN21: 8 | AO21: 8
B22: 15 | C22: Studi, ricerche, brevetti, diritti di utilizzazione | E22: 5 | F22: 5 | G22: 5 | H22: 5 | I22: 5 | J22: 5 | K22: 5 | L22: 5 | M22: 5 | N22: 5 | O22: 5 | P22: 5 | Q22: 5 | R22: 5 | S22: 5 | T22: 5 | U22: 5 | V22: 5 | W22: 5 | X22: 5 | Y22: 5 | Z22: 5 | AA22: 5 | AB22: 5 | AC22: 5 | AD22: 5 | AE22: 5 | AG22: 15 | AH22: Gruppi di misura - altre attrezzature di fognatura | AI22: M4 | AJ22: Fognatura | AK22: 10 | AL22: 10 | AM22: 10 | AN22: 10 | AO22: 10
B23: 16 | C23: Altre immobilizzazioni materiali e immateriali | E23: 7 | F23: 7 | G23: 7 | H23: 7 | I23: 7 | J23: 7 | K23: 7 | L23: 7 | M23: 7 | N23: 7 | O23: 7 | P23: 7 | Q23: 7 | R23: 7 | S23: 7 | T23: 7 | U23: 7 | V23: 7 | W23: 7 | X23: 7 | Y23: 7 | Z23: 7 | AA23: 7 | AB23: 7 | AC23: 7 | AD23: 7 | AE23: 7 | AG23: 16 | AH23: Sistemi informativi di fognatura | AI23: M4 | AJ23: Fognatura | AK23: 5 | AL23: 5 | AM23: 5 | AN23: 5 | AO23: 5
B24: 17 | C24: Immobilizzazioni immateriali: avviamenti, capitalizzazione concessione, etc. | AG24: 18 | AH24: Telecontrollo e teletrasmissione di fognatura | AI24: M4 | AJ24: Fognatura | AK24: 8 | AL24: 8 | AM24: 8 | AN24: 8 | AO24: 8
AG25: 19 | AH25: Impianti di sollevamento e pompaggio di depurazione | AI25: M5-M6 | AJ25: Depurazione | AK25: 8 | AL25: 8 | AM25: 8 | AN25: 8 | AO25: 8
AG26: 20 | AH26: Tecniche naturali di depurazione (tra cui fitodepurazione e lagunaggio) | AI26: M6 | AJ26: Depurazione | AK26: 40 | AL26: 40 | AM26: 40 | AN26: 40 | AO26: 40
AG27: 21 | AH27: Impianti di depurazione – trattamenti sino al preliminare, integrativo, primario - fosse settiche e fosse Imhoff | AI27: M6 | AJ27: Depurazione | AK27: 20 | AL27: 20 | AM27: 20 | AN27: 20 | AO27: 20
AG28: 22 | AH28: Impianti di depurazione – trattamenti sino al secondario | AI28: M5-M6 | AJ28: Depurazione | AK28: 20 | AL28: 20 | AM28: 20 | AN28: 20 | AO28: 20
AG29: 23 | AH29: Impianti di depurazione – trattamenti sino al terziario e terziario avanzato | AI29: M5-M6 | AJ29: Depurazione | AK29: 20 | AL29: 20 | AM29: 20 | AN29: 20 | AO29: 20
AG30: 24 | AH30: Impianti di essiccamento fanghi e di valorizzazione dei fanghi (tra cui mono-incenerimento, pirolisi, gassificazione) | AI30: M5 | AJ30: Depurazione | AK30: 20 | AL30: 20 | AM30: 20 | AN30: 20 | AO30: 20
AG31: 25 | AH31: Gruppi di misura - altre attrezzature di depurazione | AI31: M5-M6 | AJ31: Depurazione | AK31: 10 | AL31: 10 | AM31: 10 | AN31: 10 | AO31: 10
AG32: 26 | AH32: Sistemi informativi di depurazione | AI32: M5-M6 | AJ32: Depurazione | AK32: 5 | AL32: 5 | AM32: 5 | AN32: 5 | AO32: 5
AG33: 27 | AH33: Telecontrollo e teletrasmissione di depurazione | AI33: M6 | AJ33: Depurazione | AK33: 8 | AL33: 8 | AM33: 8 | AN33: 8 | AO33: 8
AG34: 28 | AH34: Altri impianti | AI34: M1-M2-M3-M4-M5-M6 | AJ34: Comune | AK34: 20 | AL34: 11 | AM34: 11 | AN34: 20 | AO34: 10
AG35: 29 | AH35: Laboratori e attrezzature | AI35: M3-M6 | AJ35: Comune | AK35: 10 | AL35: 10 | AM35: 10 | AN35: 10 | AO35: 10
AG36: 30 | AH36: Sistemi informativi | AI36: MC1-MC2-M1-M2-M3-M4-M5-M6 | AJ36: Comune | AK36: 5 | AL36: 5 | AM36: 5 | AN36: 5 | AO36: 5
AG37: 31 | AH37: Telecontrollo e teletrasmissione | AI37: M1-M2-M3-M4-M5-M6 | AJ37: Comune | AK37: 8 | AL37: 8 | AM37: 8 | AN37: 8 | AO37: 8
AG38: 32 | AH38: Autoveicoli - automezzi | AI38: MC1-MC2- M1-M2-M3-M4-M5-M6 | AJ38: Comune | AK38: 5 | AL38: 5 | AM38: 5 | AN38: 5 | AO38: 5
AG39: 33 | AH39: Fabbricati non industriali | AI39: MC1-MC2 | AJ39: Comune | AK39: 40 | AL39: 40 | AM39: 40 | AN39: 40 | AO39: 40
AG40: 34 | AH40: Fabbricati industriali | AI40: M1-M2-M3-M4-M5-M6 | AJ40: Comune | AK40: 40 | AL40: 22.222222 | AM40: 22.222222 | AN40: 40 | AO40: 22.222222
AG41: 35 | AH41: Costruzioni leggere | AI41: - | AJ41: Comune | AK41: 20 | AL41: 20 | AM41: 20 | AN41: 20 | AO41: 20
AG42: 36 | AH42: Studi, ricerche, brevetti, diritti di utilizzazione | AI42: M1-M2-M3-M4-M5-M6 | AJ42: Comune | AK42: 5 | AL42: 5 | AM42: 5 | AN42: 5 | AO42: 5
AG43: 37 | AH43: Altre immobilizzazioni materiali e immateriali | AI43: M3-M6-MC1-MC2 | AJ43: Comune | AK43: 7 | AL43: 7 | AM43: 7 | AN43: 7 | AO43: 7

Sheet Info_eventuali_aggregazioni
B1: AGGREGAZIONI
M2: Sono presenti errori
M3: =+OR(R:R) -> FALSE
B4: In caso di compilazione, fornire tutte le informazioni richieste
B5: 1. INFORMAZIONI SUI SOGGETTI AGGREGATI
B9: Nome del soggetto | C9: IDGestore della gestione aggregata | D9: Tipologia di gestione | E9: P. IVA | F9: Codice Istat Comune | G9: gestore esercente il servizio di Acquedotto | H9: gestore esercente il servizio di Fognatura | I9: gestore esercente il servizio di Depurazione | J9: popolazione servita (la maggiore tra i servizi forniti in origine) | K9: grado di completezza dei dati | M9: Nome soggetto | N9: idgestore | O9: popolazione | P9: Regolazione tariffaria applicabile | R9: Sono presenti errori
A10: =+ROW(A10)-9 -> 1 | M10: =+IF(B10="","-",B10) -> - | N10: =+IF(C10="","-",C10) -> - | O10: =+IF(J10="","-",J10) -> - | P10: =+IF(Input_per_calcoli_finali!$K$24="","",Input_per_calcoli_finali!$K$24) -> Matrice di schemi regolatori | R10: =+AND((COUNTA(B10:E10)+COUNTA(G10:K10))<>9,COUNTA(B10:K10)>0) -> FALSE

Sheet Elenco_Bacini_Tariffari
B1: RICAVI TARIFFARI
G2: Sono presenti errori
G3: =+OR(F:F) -> FALSE
B5: 1 - Bacini Tariffari
B7: N_Riga | C7: Bacino Tariffario | D7: N_Riga bis | F7: Errore denominazione Ambito
B8: =+ROW(A8)-7 -> 1 | C8: ATO2 LAZIO CENTRALE ROMA | D8: =+B8 -> 1 | F8: =+C8="" -> FALSE

Sheet Bacini_Tariffari_Comuni
B1: RICAVI TARIFFARI
H2: Sono presenti errori
H3: =+OR(F:G) -> FALSE
B5: 2 - Comuni per ciascun Bacino Tariffario
A7: N_Riga | B7: Ambito tariffario | C7: Comune | D7: Codice ISTAT | F7: Errore denominazione Ambito | G7: Errore Codice ISTAT
A8: =+ROW(A8)-7 -> 1 | B8: ATO2 LAZIO CENTRALE ROMA | C8: Affile (RM) | D8: =IFERROR(VLOOKUP(C8,TT_Comuni_ATO!X:Y,2,0),"") -> 058001 | F8: =+IF(ISNA(VLOOKUP(B8,Elenco_Bacini_Tariffari!C:C,1,FALSE)),TRUE,FALSE) -> FALSE | G8: =+IF(AND(B8="",C8="",D8=""),FALSE,IF(COUNTA(B8:D8)<>3,TRUE,FALSE)) -> FALSE
A9: =+ROW(A9)-7 -> 2 | B9: ATO2 LAZIO CENTRALE ROMA | C9: Albano Laziale (RM) | D9: =IFERROR(VLOOKUP(C9,TT_Comuni_ATO!X:Y,2,0),"") -> 058003 | F9: =+IF(ISNA(VLOOKUP(B9,Elenco_Bacini_Tariffari!C:C,1,FALSE)),TRUE,FALSE) -> FALSE | G9: =+IF(AND(B9="",C9="",D9=""),FALSE,IF(COUNTA(B9:D9)<>3,TRUE,FALSE)) -> FALSE
A10: 3 | B10: ATO2 LAZIO CENTRALE ROMA | C10: Allumiere (RM) | D10: =IFERROR(VLOOKUP(C10,TT_Comuni_ATO!X:Y,2,0),"") -> 058004 | F10: =+IF(ISNA(VLOOKUP(B10,Elenco_Bacini_Tariffari!C:C,1,FALSE)),TRUE,FALSE) -> FALSE | G10: FALSE
A11: 4 | B11: ATO2 LAZIO CENTRALE ROMA | C11: Arcinazzo Romano (RM) | D11: =IFERROR(VLOOKUP(C11,TT_Comuni_ATO!X:Y,2,0),"") -> 058008 | F11: =+IF(ISNA(VLOOKUP(B11,Elenco_Bacini_Tariffari!C:C,1,FALSE)),TRUE,FALSE) -> FALSE | G11: FALSE
A12: 5 | B12: ATO2 LAZIO CENTRALE ROMA | C12: Ariccia (RM) | D12: =IFERROR(VLOOKUP(C12,TT_Comuni_ATO!X:Y,2,0),"") -> 058009 | F12: =+IF(ISNA(VLOOKUP(B12,Elenco_Bacini_Tariffari!C:C,1,FALSE)),TRUE,FALSE) -> FALSE | G12: FALSE
A13: 6 | B13: ATO2 LAZIO CENTRALE ROMA | C13: Arsoli (RM) | D13: =IFERROR(VLOOKUP(C13,TT_Comuni_ATO!X:Y,2,0),"") -> 058010 | F13: =+IF(ISNA(VLOOKUP(B13,Elenco_Bacini_Tariffari!C:C,1,FALSE)),TRUE,FALSE) -> FALSE | G13: FALSE
A14: 7 | B14: ATO2 LAZIO CENTRALE ROMA | C14: Artena (RM) | D14: =IFERROR(VLOOKUP(C14,TT_Comuni_ATO!X:Y,2,0),"") -> 058011 | F14: =+IF(ISNA(VLOOKUP(B14,Elenco_Bacini_Tariffari!C:C,1,FALSE)),TRUE,FALSE) -> FALSE | G14: FALSE
A15: 8 | B15: ATO2 LAZIO CENTRALE ROMA | C15: Bellegra (RM) | D15: =IFERROR(VLOOKUP(C15,TT_Comuni_ATO!X:Y,2,0),"") -> 058012 | F15: =+IF(ISNA(VLOOKUP(B15,Elenco_Bacini_Tariffari!C:C,1,FALSE)),TRUE,FALSE) -> FALSE | G15: FALSE
A16: 9 | B16: ATO2 LAZIO CENTRALE ROMA | C16: Bracciano (RM) | D16: =IFERROR(VLOOKUP(C16,TT_Comuni_ATO!X:Y,2,0),"") -> 058013 | F16: =+IF(ISNA(VLOOKUP(B16,Elenco_Bacini_Tariffari!C:C,1,FALSE)),TRUE,FALSE) -> FALSE | G16: FALSE
A17: 10 | B17: ATO2 LAZIO CENTRALE ROMA | C17: Canterano (RM) | D17: =IFERROR(VLOOKUP(C17,TT_Comuni_ATO!X:Y,2,0),"") -> 058017 | F17: =+IF(ISNA(VLOOKUP(B17,Elenco_Bacini_Tariffari!C:C,1,FALSE)),TRUE,FALSE) -> FALSE | G17: FALSE
A18: 11 | B18: ATO2 LAZIO CENTRALE ROMA | C18: Capena (RM) | D18: =IFERROR(VLOOKUP(C18,TT_Comuni_ATO!X:Y,2,0),"") -> 058018 | F18: =+IF(ISNA(VLOOKUP(B18,Elenco_Bacini_Tariffari!C:C,1,FALSE)),TRUE,FALSE) -> FALSE | G18: FALSE
A19: 12 | B19: ATO2 LAZIO CENTRALE ROMA | C19: Capranica Prenestina (RM) | D19: =IFERROR(VLOOKUP(C19,TT_Comuni_ATO!X:Y,2,0),"") -> 058019 | F19: =+IF(ISNA(VLOOKUP(B19,Elenco_Bacini_Tariffari!C:C,1,FALSE)),TRUE,FALSE) -> FALSE | G19: FALSE
A20: 13 | B20: ATO2 LAZIO CENTRALE ROMA | C20: Carpineto Romano (RM) | D20: =IFERROR(VLOOKUP(C20,TT_Comuni_ATO!X:Y,2,0),"") -> 058020 | F20: =+IF(ISNA(VLOOKUP(B20,Elenco_Bacini_Tariffari!C:C,1,FALSE)),TRUE,FALSE) -> FALSE | G20: FALSE
A21: 14 | B21: ATO2 LAZIO CENTRALE ROMA | C21: Casape (RM) | D21: =IFERROR(VLOOKUP(C21,TT_Comuni_ATO!X:Y,2,0),"") -> 058021 | F21: =+IF(ISNA(VLOOKUP(B21,Elenco_Bacini_Tariffari!C:C,1,FALSE)),TRUE,FALSE) -> FALSE | G21: FALSE
A22: 15 | B22: ATO2 LAZIO CENTRALE ROMA | C22: Castel Gandolfo (RM) | D22: =IFERROR(VLOOKUP(C22,TT_Comuni_ATO!X:Y,2,0),"") -> 058022 | F22: =+IF(ISNA(VLOOKUP(B22,Elenco_Bacini_Tariffari!C:C,1,FALSE)),TRUE,FALSE) -> FALSE | G22: FALSE
A23: 16 | B23: ATO2 LAZIO CENTRALE ROMA | C23: Castel Madama (RM) | D23: =IFERROR(VLOOKUP(C23,TT_Comuni_ATO!X:Y,2,0),"") -> 058023 | F23: =+IF(ISNA(VLOOKUP(B23,Elenco_Bacini_Tariffari!C:C,1,FALSE)),TRUE,FALSE) -> FALSE | G23: FALSE
A24: 17 | B24: ATO2 LAZIO CENTRALE ROMA | C24: Castel San Pietro Romano (RM) | D24: =IFERROR(VLOOKUP(C24,TT_Comuni_ATO!X:Y,2,0),"") -> 058025 | F24: =+IF(ISNA(VLOOKUP(B24,Elenco_Bacini_Tariffari!C:C,1,FALSE)),TRUE,FALSE) -> FALSE | G24: FALSE
A25: 18 | B25: ATO2 LAZIO CENTRALE ROMA | C25: Castelnuovo di Porto (RM) | D25: =IFERROR(VLOOKUP(C25,TT_Comuni_ATO!X:Y,2,0),"") -> 058024 | F25: =+IF(ISNA(VLOOKUP(B25,Elenco_Bacini_Tariffari!C:C,1,FALSE)),TRUE,FALSE) -> FALSE | G25: FALSE
A26: 19 | B26: ATO2 LAZIO CENTRALE ROMA | C26: Cave (RM) | D26: =IFERROR(VLOOKUP(C26,TT_Comuni_ATO!X:Y,2,0),"") -> 058026 | F26: =+IF(ISNA(VLOOKUP(B26,Elenco_Bacini_Tariffari!C:C,1,FALSE)),TRUE,FALSE) -> FALSE | G26: FALSE
A27: 20 | B27: ATO2 LAZIO CENTRALE ROMA | C27: Cervara di Roma (RM) | D27: =IFERROR(VLOOKUP(C27,TT_Comuni_ATO!X:Y,2,0),"") -> 058028 | F27: =+IF(ISNA(VLOOKUP(B27,Elenco_Bacini_Tariffari!C:C,1,FALSE)),TRUE,FALSE) -> FALSE | G27: FALSE
A28: 21 | B28: ATO2 LAZIO CENTRALE ROMA | C28: Cerveteri (RM) | D28: =IFERROR(VLOOKUP(C28,TT_Comuni_ATO!X:Y,2,0),"") -> 058029 | F28: =+IF(ISNA(VLOOKUP(B28,Elenco_Bacini_Tariffari!C:C,1,FALSE)),TRUE,FALSE) -> FALSE | G28: FALSE
A29: 22 | B29: ATO2 LAZIO CENTRALE ROMA | C29: Ciampino (RM) | D29: =IFERROR(VLOOKUP(C29,TT_Comuni_ATO!X:Y,2,0),"") -> 058118 | F29: =+IF(ISNA(VLOOKUP(B29,Elenco_Bacini_Tariffari!C:C,1,FALSE)),TRUE,FALSE) -> FALSE | G29: FALSE
A30: 23 | B30: ATO2 LAZIO CENTRALE ROMA | C30: Ciciliano (RM) | D30: =IFERROR(VLOOKUP(C30,TT_Comuni_ATO!X:Y,2,0),"") -> 058030 | F30: =+IF(ISNA(VLOOKUP(B30,Elenco_Bacini_Tariffari!C:C,1,FALSE)),TRUE,FALSE) -> FALSE | G30: FALSE
A31: 24 | B31: ATO2 LAZIO CENTRALE ROMA | C31: Civitavecchia (RM) | D31: =IFERROR(VLOOKUP(C31,TT_Comuni_ATO!X:Y,2,0),"") -> 058032 | F31: =+IF(ISNA(VLOOKUP(B31,Elenco_Bacini_Tariffari!C:C,1,FALSE)),TRUE,FALSE) -> FALSE | G31: FALSE
A32: 25 | B32: ATO2 LAZIO CENTRALE ROMA | C32: Colleferro (RM) | D32: =IFERROR(VLOOKUP(C32,TT_Comuni_ATO!X:Y,2,0),"") -> 058034 | F32: =+IF(ISNA(VLOOKUP(B32,Elenco_Bacini_Tariffari!C:C,1,FALSE)),TRUE,FALSE) -> FALSE | G32: FALSE
A33: 26 | B33: ATO2 LAZIO CENTRALE ROMA | C33: Colonna (RM) | D33: =IFERROR(VLOOKUP(C33,TT_Comuni_ATO!X:Y,2,0),"") -> 058035 | F33: =+IF(ISNA(VLOOKUP(B33,Elenco_Bacini_Tariffari!C:C,1,FALSE)),TRUE,FALSE) -> FALSE | G33: FALSE
A34: 27 | B34: ATO2 LAZIO CENTRALE ROMA | C34: Fiano Romano (RM) | D34: =IFERROR(VLOOKUP(C34,TT_Comuni_ATO!X:Y,2,0),"") -> 058036 | F34: =+IF(ISNA(VLOOKUP(B34,Elenco_Bacini_Tariffari!C:C,1,FALSE)),TRUE,FALSE) -> FALSE | G34: FALSE
A35: 28 | B35: ATO2 LAZIO CENTRALE ROMA | C35: Filacciano (RM) | D35: =IFERROR(VLOOKUP(C35,TT_Comuni_ATO!X:Y,2,0),"") -> 058037 | F35: =+IF(ISNA(VLOOKUP(B35,Elenco_Bacini_Tariffari!C:C,1,FALSE)),TRUE,FALSE) -> FALSE | G35: FALSE
A36: 29 | B36: ATO2 LAZIO CENTRALE ROMA | C36: Fiumicino (RM) | D36: =IFERROR(VLOOKUP(C36,TT_Comuni_ATO!X:Y,2,0),"") -> 058120 | F36: =+IF(ISNA(VLOOKUP(B36,Elenco_Bacini_Tariffari!C:C,1,FALSE)),TRUE,FALSE) -> FALSE | G36: FALSE
A37: 30 | B37: ATO2 LAZIO CENTRALE ROMA | C37: Fonte Nuova (RM) | D37: =IFERROR(VLOOKUP(C37,TT_Comuni_ATO!X:Y,2,0),"") -> 058122 | F37: =+IF(ISNA(VLOOKUP(B37,Elenco_Bacini_Tariffari!C:C,1,FALSE)),TRUE,FALSE) -> FALSE | G37: FALSE
A38: 31 | B38: ATO2 LAZIO CENTRALE ROMA | C38: Formello (RM) | D38: =IFERROR(VLOOKUP(C38,TT_Comuni_ATO!X:Y,2,0),"") -> 058038 | F38: =+IF(ISNA(VLOOKUP(B38,Elenco_Bacini_Tariffari!C:C,1,FALSE)),TRUE,FALSE) -> FALSE | G38: FALSE
A39: 32 | B39: ATO2 LAZIO CENTRALE ROMA | C39: Frascati (RM) | D39: =IFERROR(VLOOKUP(C39,TT_Comuni_ATO!X:Y,2,0),"") -> 058039 | F39: =+IF(ISNA(VLOOKUP(B39,Elenco_Bacini_Tariffari!C:C,1,FALSE)),TRUE,FALSE) -> FALSE | G39: FALSE
A40: 33 | B40: ATO2 LAZIO CENTRALE ROMA | C40: Gallicano nel Lazio (RM) | D40: =IFERROR(VLOOKUP(C40,TT_Comuni_ATO!X:Y,2,0),"") -> 058040 | F40: =+IF(ISNA(VLOOKUP(B40,Elenco_Bacini_Tariffari!C:C,1,FALSE)),TRUE,FALSE) -> FALSE | G40: FALSE
A41: 34 | B41: ATO2 LAZIO CENTRALE ROMA | C41: Gavignano (RM) | D41: =IFERROR(VLOOKUP(C41,TT_Comuni_ATO!X:Y,2,0),"") -> 058041 | F41: =+IF(ISNA(VLOOKUP(B41,Elenco_Bacini_Tariffari!C:C,1,FALSE)),TRUE,FALSE) -> FALSE | G41: FALSE
A42: 35 | B42: ATO2 LAZIO CENTRALE ROMA | C42: Genazzano (RM) | D42: =IFERROR(VLOOKUP(C42,TT_Comuni_ATO!X:Y,2,0),"") -> 058042 | F42: =+IF(ISNA(VLOOKUP(B42,Elenco_Bacini_Tariffari!C:C,1,FALSE)),TRUE,FALSE) -> FALSE | G42: FALSE
A43: 36 | B43: ATO2 LAZIO CENTRALE ROMA | C43: Genzano di Roma (RM) | D43: =IFERROR(VLOOKUP(C43,TT_Comuni_ATO!X:Y,2,0),"") -> 058043 | F43: =+IF(ISNA(VLOOKUP(B43,Elenco_Bacini_Tariffari!C:C,1,FALSE)),TRUE,FALSE) -> FALSE | G43: FALSE
A44: 37 | B44: ATO2 LAZIO CENTRALE ROMA | C44: Gerano (RM) | D44: =IFERROR(VLOOKUP(C44,TT_Comuni_ATO!X:Y,2,0),"") -> 058044 | F44: =+IF(ISNA(VLOOKUP(B44,Elenco_Bacini_Tariffari!C:C,1,FALSE)),TRUE,FALSE) -> FALSE | G44: FALSE
A45: 38 | B45: ATO2 LAZIO CENTRALE ROMA | C45: Gorga (RM) | D45: =IFERROR(VLOOKUP(C45,TT_Comuni_ATO!X:Y,2,0),"") -> 058045 | F45: =+IF(ISNA(VLOOKUP(B45,Elenco_Bacini_Tariffari!C:C,1,FALSE)),TRUE,FALSE) -> FALSE | G45: FALSE
A46: 39 | B46: ATO2 LAZIO CENTRALE ROMA | C46: Grottaferrata (RM) | D46: =IFERROR(VLOOKUP(C46,TT_Comuni_ATO!X:Y,2,0),"") -> 058046 | F46: =+IF(ISNA(VLOOKUP(B46,Elenco_Bacini_Tariffari!C:C,1,FALSE)),TRUE,FALSE) -> FALSE | G46: FALSE
A47: 40 | B47: ATO2 LAZIO CENTRALE ROMA | C47: Guidonia Montecelio (RM) | D47: =IFERROR(VLOOKUP(C47,TT_Comuni_ATO!X:Y,2,0),"") -> 058047 | F47: =+IF(ISNA(VLOOKUP(B47,Elenco_Bacini_Tariffari!C:C,1,FALSE)),TRUE,FALSE) -> FALSE | G47: FALSE
A48: 41 | B48: ATO2 LAZIO CENTRALE ROMA | C48: Jenne (RM) | D48: =IFERROR(VLOOKUP(C48,TT_Comuni_ATO!X:Y,2,0),"") -> 058048 | F48: =+IF(ISNA(VLOOKUP(B48,Elenco_Bacini_Tariffari!C:C,1,FALSE)),TRUE,FALSE) -> FALSE | G48: FALSE
A49: 42 | B49: ATO2 LAZIO CENTRALE ROMA | C49: Lanuvio (RM) | D49: =IFERROR(VLOOKUP(C49,TT_Comuni_ATO!X:Y,2,0),"") -> 058050 | F49: =+IF(ISNA(VLOOKUP(B49,Elenco_Bacini_Tariffari!C:C,1,FALSE)),TRUE,FALSE) -> FALSE | G49: FALSE
A50: 43 | B50: ATO2 LAZIO CENTRALE ROMA | C50: Lariano (RM) | D50: =IFERROR(VLOOKUP(C50,TT_Comuni_ATO!X:Y,2,0),"") -> 058115 | F50: =+IF(ISNA(VLOOKUP(B50,Elenco_Bacini_Tariffari!C:C,1,FALSE)),TRUE,FALSE) -> FALSE | G50: FALSE
A51: 44 | B51: ATO2 LAZIO CENTRALE ROMA | C51: Manziana (RM) | D51: =IFERROR(VLOOKUP(C51,TT_Comuni_ATO!X:Y,2,0),"") -> 058054 | F51: =+IF(ISNA(VLOOKUP(B51,Elenco_Bacini_Tariffari!C:C,1,FALSE)),TRUE,FALSE) -> FALSE | G51: FALSE
A52: 45 | B52: ATO2 LAZIO CENTRALE ROMA | C52: Marano Equo (RM) | D52: =IFERROR(VLOOKUP(C52,TT_Comuni_ATO!X:Y,2,0),"") -> 058055 | F52: =+IF(ISNA(VLOOKUP(B52,Elenco_Bacini_Tariffari!C:C,1,FALSE)),TRUE,FALSE) -> FALSE | G52: FALSE
A53: 46 | B53: ATO2 LAZIO CENTRALE ROMA | C53: Marcellina (RM) | D53: =IFERROR(VLOOKUP(C53,TT_Comuni_ATO!X:Y,2,0),"") -> 058056 | F53: =+IF(ISNA(VLOOKUP(B53,Elenco_Bacini_Tariffari!C:C,1,FALSE)),TRUE,FALSE) -> FALSE | G53: FALSE
A54: 47 | B54: ATO2 LAZIO CENTRALE ROMA | C54: Marino (RM) | D54: =IFERROR(VLOOKUP(C54,TT_Comuni_ATO!X:Y,2,0),"") -> 058057 | F54: =+IF(ISNA(VLOOKUP(B54,Elenco_Bacini_Tariffari!C:C,1,FALSE)),TRUE,FALSE) -> FALSE | G54: FALSE
A55: 48 | B55: ATO2 LAZIO CENTRALE ROMA | C55: Mentana (RM) | D55: =IFERROR(VLOOKUP(C55,TT_Comuni_ATO!X:Y,2,0),"") -> 058059 | F55: =+IF(ISNA(VLOOKUP(B55,Elenco_Bacini_Tariffari!C:C,1,FALSE)),TRUE,FALSE) -> FALSE | G55: FALSE
A56: 49 | B56: ATO2 LAZIO CENTRALE ROMA | C56: Monte Compatri (RM) | D56: =IFERROR(VLOOKUP(C56,TT_Comuni_ATO!X:Y,2,0),"") -> 058060 | F56: =+IF(ISNA(VLOOKUP(B56,Elenco_Bacini_Tariffari!C:C,1,FALSE)),TRUE,FALSE) -> FALSE | G56: FALSE
A57: 50 | B57: ATO2 LAZIO CENTRALE ROMA | C57: Monte Porzio Catone (RM) | D57: =IFERROR(VLOOKUP(C57,TT_Comuni_ATO!X:Y,2,0),"") -> 058064 | F57: =+IF(ISNA(VLOOKUP(B57,Elenco_Bacini_Tariffari!C:C,1,FALSE)),TRUE,FALSE) -> FALSE | G57: FALSE
A58: 51 | B58: ATO2 LAZIO CENTRALE ROMA | C58: Montelanico (RM) | D58: =IFERROR(VLOOKUP(C58,TT_Comuni_ATO!X:Y,2,0),"") -> 058062 | F58: =+IF(ISNA(VLOOKUP(B58,Elenco_Bacini_Tariffari!C:C,1,FALSE)),TRUE,FALSE) -> FALSE | G58: FALSE
A59: 52 | B59: ATO2 LAZIO CENTRALE ROMA | C59: Monterotondo (RM) | D59: =IFERROR(VLOOKUP(C59,TT_Comuni_ATO!X:Y,2,0),"") -> 058065 | F59: =+IF(ISNA(VLOOKUP(B59,Elenco_Bacini_Tariffari!C:C,1,FALSE)),TRUE,FALSE) -> FALSE | G59: FALSE
A60: 53 | B60: ATO2 LAZIO CENTRALE ROMA | C60: Morlupo (RM) | D60: =IFERROR(VLOOKUP(C60,TT_Comuni_ATO!X:Y,2,0),"") -> 058068 | F60: =+IF(ISNA(VLOOKUP(B60,Elenco_Bacini_Tariffari!C:C,1,FALSE)),TRUE,FALSE) -> FALSE | G60: FALSE
A61: 54 | B61: ATO2 LAZIO CENTRALE ROMA | C61: Nazzano (RM) | D61: =IFERROR(VLOOKUP(C61,TT_Comuni_ATO!X:Y,2,0),"") -> 058069 | F61: =+IF(ISNA(VLOOKUP(B61,Elenco_Bacini_Tariffari!C:C,1,FALSE)),TRUE,FALSE) -> FALSE | G61: FALSE
A62: 55 | B62: ATO2 LAZIO CENTRALE ROMA | C62: Nemi (RM) | D62: =IFERROR(VLOOKUP(C62,TT_Comuni_ATO!X:Y,2,0),"") -> 058070 | F62: =+IF(ISNA(VLOOKUP(B62,Elenco_Bacini_Tariffari!C:C,1,FALSE)),TRUE,FALSE) -> FALSE | G62: FALSE
A63: 56 | B63: ATO2 LAZIO CENTRALE ROMA | C63: Olevano Romano (RM) | D63: =IFERROR(VLOOKUP(C63,TT_Comuni_ATO!X:Y,2,0),"") -> 058073 | F63: =+IF(ISNA(VLOOKUP(B63,Elenco_Bacini_Tariffari!C:C,1,FALSE)),TRUE,FALSE) -> FALSE | G63: FALSE
A64: 57 | B64: ATO2 LAZIO CENTRALE ROMA | C64: Oriolo Romano (VT) | D64: =IFERROR(VLOOKUP(C64,TT_Comuni_ATO!X:Y,2,0),"") -> 056041 | F64: =+IF(ISNA(VLOOKUP(B64,Elenco_Bacini_Tariffari!C:C,1,FALSE)),TRUE,FALSE) -> FALSE | G64: FALSE
A65: 58 | B65: ATO2 LAZIO CENTRALE ROMA | C65: Palestrina (RM) | D65: =IFERROR(VLOOKUP(C65,TT_Comuni_ATO!X:Y,2,0),"") -> 058074 | F65: =+IF(ISNA(VLOOKUP(B65,Elenco_Bacini_Tariffari!C:C,1,FALSE)),TRUE,FALSE) -> FALSE | G65: FALSE
A66: 59 | B66: ATO2 LAZIO CENTRALE ROMA | C66: Percile (RM) | D66: =IFERROR(VLOOKUP(C66,TT_Comuni_ATO!X:Y,2,0),"") -> 058076 | F66: =+IF(ISNA(VLOOKUP(B66,Elenco_Bacini_Tariffari!C:C,1,FALSE)),TRUE,FALSE) -> FALSE | G66: FALSE
A67: 60 | B67: ATO2 LAZIO CENTRALE ROMA | C67: Pisoniano (RM) | D67: =IFERROR(VLOOKUP(C67,TT_Comuni_ATO!X:Y,2,0),"") -> 058077 | F67: =+IF(ISNA(VLOOKUP(B67,Elenco_Bacini_Tariffari!C:C,1,FALSE)),TRUE,FALSE) -> FALSE | G67: FALSE
A68: 61 | B68: ATO2 LAZIO CENTRALE ROMA | C68: Poli (RM) | D68: =IFERROR(VLOOKUP(C68,TT_Comuni_ATO!X:Y,2,0),"") -> 058078 | F68: =+IF(ISNA(VLOOKUP(B68,Elenco_Bacini_Tariffari!C:C,1,FALSE)),TRUE,FALSE) -> FALSE | G68: FALSE
A69: 62 | B69: ATO2 LAZIO CENTRALE ROMA | C69: Pomezia (RM) | D69: =IFERROR(VLOOKUP(C69,TT_Comuni_ATO!X:Y,2,0),"") -> 058079 | F69: =+IF(ISNA(VLOOKUP(B69,Elenco_Bacini_Tariffari!C:C,1,FALSE)),TRUE,FALSE) -> FALSE | G69: FALSE
A70: 63 | B70: ATO2 LAZIO CENTRALE ROMA | C70: Ponzano Romano (RM) | D70: =IFERROR(VLOOKUP(C70,TT_Comuni_ATO!X:Y,2,0),"") -> 058080 | F70: =+IF(ISNA(VLOOKUP(B70,Elenco_Bacini_Tariffari!C:C,1,FALSE)),TRUE,FALSE) -> FALSE | G70: FALSE
A71: 64 | B71: ATO2 LAZIO CENTRALE ROMA | C71: Riano (RM) | D71: =IFERROR(VLOOKUP(C71,TT_Comuni_ATO!X:Y,2,0),"") -> 058081 | F71: =+IF(ISNA(VLOOKUP(B71,Elenco_Bacini_Tariffari!C:C,1,FALSE)),TRUE,FALSE) -> FALSE | G71: FALSE
A72: 65 | B72: ATO2 LAZIO CENTRALE ROMA | C72: Rignano Flaminio (RM) | D72: =IFERROR(VLOOKUP(C72,TT_Comuni_ATO!X:Y,2,0),"") -> 058082 | F72: =+IF(ISNA(VLOOKUP(B72,Elenco_Bacini_Tariffari!C:C,1,FALSE)),TRUE,FALSE) -> FALSE | G72: FALSE
A73: =+ROW(A73)-7 -> 66 | B73: ATO2 LAZIO CENTRALE ROMA | C73: Rocca Canterano (RM) | D73: =IFERROR(VLOOKUP(C73,TT_Comuni_ATO!X:Y,2,0),"") -> 058084 | F73: =+IF(ISNA(VLOOKUP(B73,Elenco_Bacini_Tariffari!C:C,1,FALSE)),TRUE,FALSE) -> FALSE | G73: =+IF(AND(B73="",C73="",D73=""),FALSE,IF(COUNTA(B73:D73)<>3,TRUE,FALSE)) -> FALSE
A74: 67 | B74: ATO2 LAZIO CENTRALE ROMA | C74: Rocca di Cave (RM) | D74: =IFERROR(VLOOKUP(C74,TT_Comuni_ATO!X:Y,2,0),"") -> 058085 | F74: =+IF(ISNA(VLOOKUP(B74,Elenco_Bacini_Tariffari!C:C,1,FALSE)),TRUE,FALSE) -> FALSE | G74: FALSE
A75: 68 | B75: ATO2 LAZIO CENTRALE ROMA | C75: Rocca di Papa (RM) | D75: =IFERROR(VLOOKUP(C75,TT_Comuni_ATO!X:Y,2,0),"") -> 058086 | F75: =+IF(ISNA(VLOOKUP(B75,Elenco_Bacini_Tariffari!C:C,1,FALSE)),TRUE,FALSE) -> FALSE | G75: FALSE
A76: 69 | B76: ATO2 LAZIO CENTRALE ROMA | C76: Rocca Priora (RM) | D76: =IFERROR(VLOOKUP(C76,TT_Comuni_ATO!X:Y,2,0),"") -> 058088 | F76: =+IF(ISNA(VLOOKUP(B76,Elenco_Bacini_Tariffari!C:C,1,FALSE)),TRUE,FALSE) -> FALSE | G76: FALSE
A77: 70 | B77: ATO2 LAZIO CENTRALE ROMA | C77: Rocca Santo Stefano (RM) | D77: =IFERROR(VLOOKUP(C77,TT_Comuni_ATO!X:Y,2,0),"") -> 058089 | F77: =+IF(ISNA(VLOOKUP(B77,Elenco_Bacini_Tariffari!C:C,1,FALSE)),TRUE,FALSE) -> FALSE | G77: FALSE
A78: 71 | B78: ATO2 LAZIO CENTRALE ROMA | C78: Roiate (RM) | D78: =IFERROR(VLOOKUP(C78,TT_Comuni_ATO!X:Y,2,0),"") -> 058090 | F78: =+IF(ISNA(VLOOKUP(B78,Elenco_Bacini_Tariffari!C:C,1,FALSE)),TRUE,FALSE) -> FALSE | G78: FALSE
A79: 72 | B79: ATO2 LAZIO CENTRALE ROMA | C79: Roma (RM) | D79: =IFERROR(VLOOKUP(C79,TT_Comuni_ATO!X:Y,2,0),"") -> 058091 | F79: =+IF(ISNA(VLOOKUP(B79,Elenco_Bacini_Tariffari!C:C,1,FALSE)),TRUE,FALSE) -> FALSE | G79: FALSE
A80: 73 | B80: ATO2 LAZIO CENTRALE ROMA | C80: Sacrofano (RM) | D80: =IFERROR(VLOOKUP(C80,TT_Comuni_ATO!X:Y,2,0),"") -> 058093 | F80: =+IF(ISNA(VLOOKUP(B80,Elenco_Bacini_Tariffari!C:C,1,FALSE)),TRUE,FALSE) -> FALSE | G80: FALSE
A81: 74 | B81: ATO2 LAZIO CENTRALE ROMA | C81: Sambuci (RM) | D81: =IFERROR(VLOOKUP(C81,TT_Comuni_ATO!X:Y,2,0),"") -> 058094 | F81: =+IF(ISNA(VLOOKUP(B81,Elenco_Bacini_Tariffari!C:C,1,FALSE)),TRUE,FALSE) -> FALSE | G81: FALSE
A82: 75 | B82: ATO2 LAZIO CENTRALE ROMA | C82: San Cesareo (RM) | D82: =IFERROR(VLOOKUP(C82,TT_Comuni_ATO!X:Y,2,0),"") -> 058119 | F82: =+IF(ISNA(VLOOKUP(B82,Elenco_Bacini_Tariffari!C:C,1,FALSE)),TRUE,FALSE) -> FALSE | G82: FALSE
A83: 76 | B83: ATO2 LAZIO CENTRALE ROMA | C83: San Gregorio da Sassola (RM) | D83: =IFERROR(VLOOKUP(C83,TT_Comuni_ATO!X:Y,2,0),"") -> 058095 | F83: =+IF(ISNA(VLOOKUP(B83,Elenco_Bacini_Tariffari!C:C,1,FALSE)),TRUE,FALSE) -> FALSE | G83: FALSE
A84: 77 | B84: ATO2 LAZIO CENTRALE ROMA | C84: San Polo dei Cavalieri (RM) | D84: =IFERROR(VLOOKUP(C84,TT_Comuni_ATO!X:Y,2,0),"") -> 058096 | F84: =+IF(ISNA(VLOOKUP(B84,Elenco_Bacini_Tariffari!C:C,1,FALSE)),TRUE,FALSE) -> FALSE | G84: FALSE
A85: 78 | B85: ATO2 LAZIO CENTRALE ROMA | C85: San Vito Romano (RM) | D85: =IFERROR(VLOOKUP(C85,TT_Comuni_ATO!X:Y,2,0),"") -> 058100 | F85: =+IF(ISNA(VLOOKUP(B85,Elenco_Bacini_Tariffari!C:C,1,FALSE)),TRUE,FALSE) -> FALSE | G85: FALSE
A86: 79 | B86: ATO2 LAZIO CENTRALE ROMA | C86: Santa Marinella (RM) | D86: =IFERROR(VLOOKUP(C86,TT_Comuni_ATO!X:Y,2,0),"") -> 058097 | F86: =+IF(ISNA(VLOOKUP(B86,Elenco_Bacini_Tariffari!C:C,1,FALSE)),TRUE,FALSE) -> FALSE | G86: FALSE
A87: 80 | B87: ATO2 LAZIO CENTRALE ROMA | C87: Sant'Oreste (RM) | D87: =IFERROR(VLOOKUP(C87,TT_Comuni_ATO!X:Y,2,0),"") -> 058099 | F87: =+IF(ISNA(VLOOKUP(B87,Elenco_Bacini_Tariffari!C:C,1,FALSE)),TRUE,FALSE) -> FALSE | G87: FALSE
A88: 81 | B88: ATO2 LAZIO CENTRALE ROMA | C88: Saracinesco (RM) | D88: =IFERROR(VLOOKUP(C88,TT_Comuni_ATO!X:Y,2,0),"") -> 058101 | F88: =+IF(ISNA(VLOOKUP(B88,Elenco_Bacini_Tariffari!C:C,1,FALSE)),TRUE,FALSE) -> FALSE | G88: FALSE
A89: 82 | B89: ATO2 LAZIO CENTRALE ROMA | C89: Segni (RM) | D89: =IFERROR(VLOOKUP(C89,TT_Comuni_ATO!X:Y,2,0),"") -> 058102 | F89: =+IF(ISNA(VLOOKUP(B89,Elenco_Bacini_Tariffari!C:C,1,FALSE)),TRUE,FALSE) -> FALSE | G89: FALSE
A90: 83 | B90: ATO2 LAZIO CENTRALE ROMA | C90: Subiaco (RM) | D90: =IFERROR(VLOOKUP(C90,TT_Comuni_ATO!X:Y,2,0),"") -> 058103 | F90: =+IF(ISNA(VLOOKUP(B90,Elenco_Bacini_Tariffari!C:C,1,FALSE)),TRUE,FALSE) -> FALSE | G90: FALSE
A91: 84 | B91: ATO2 LAZIO CENTRALE ROMA | C91: Tivoli (RM) | D91: =IFERROR(VLOOKUP(C91,TT_Comuni_ATO!X:Y,2,0),"") -> 058104 | F91: =+IF(ISNA(VLOOKUP(B91,Elenco_Bacini_Tariffari!C:C,1,FALSE)),TRUE,FALSE) -> FALSE | G91: FALSE
A92: 85 | B92: ATO2 LAZIO CENTRALE ROMA | C92: Tolfa (RM) | D92: =IFERROR(VLOOKUP(C92,TT_Comuni_ATO!X:Y,2,0),"") -> 058105 | F92: =+IF(ISNA(VLOOKUP(B92,Elenco_Bacini_Tariffari!C:C,1,FALSE)),TRUE,FALSE) -> FALSE | G92: FALSE
A93: 86 | B93: ATO2 LAZIO CENTRALE ROMA | C93: Torrita Tiberina (RM) | D93: =IFERROR(VLOOKUP(C93,TT_Comuni_ATO!X:Y,2,0),"") -> 058106 | F93: =+IF(ISNA(VLOOKUP(B93,Elenco_Bacini_Tariffari!C:C,1,FALSE)),TRUE,FALSE) -> FALSE | G93: FALSE
A94: 87 | B94: ATO2 LAZIO CENTRALE ROMA | C94: Trevignano Romano (RM) | D94: =IFERROR(VLOOKUP(C94,TT_Comuni_ATO!X:Y,2,0),"") -> 058107 | F94: =+IF(ISNA(VLOOKUP(B94,Elenco_Bacini_Tariffari!C:C,1,FALSE)),TRUE,FALSE) -> FALSE | G94: FALSE
A95: 88 | B95: ATO2 LAZIO CENTRALE ROMA | C95: Valmontone (RM) | D95: =IFERROR(VLOOKUP(C95,TT_Comuni_ATO!X:Y,2,0),"") -> 058110 | F95: =+IF(ISNA(VLOOKUP(B95,Elenco_Bacini_Tariffari!C:C,1,FALSE)),TRUE,FALSE) -> FALSE | G95: FALSE
A96: 89 | B96: ATO2 LAZIO CENTRALE ROMA | C96: Vejano (VT) | D96: =IFERROR(VLOOKUP(C96,TT_Comuni_ATO!X:Y,2,0),"") -> 056056 | F96: =+IF(ISNA(VLOOKUP(B96,Elenco_Bacini_Tariffari!C:C,1,FALSE)),TRUE,FALSE) -> FALSE | G96: FALSE
A97: 90 | B97: ATO2 LAZIO CENTRALE ROMA | C97: Velletri (RM) | D97: =IFERROR(VLOOKUP(C97,TT_Comuni_ATO!X:Y,2,0),"") -> 058111 | F97: =+IF(ISNA(VLOOKUP(B97,Elenco_Bacini_Tariffari!C:C,1,FALSE)),TRUE,FALSE) -> FALSE | G97: FALSE
A98: 91 | B98: ATO2 LAZIO CENTRALE ROMA | C98: Vicovaro (RM) | D98: =IFERROR(VLOOKUP(C98,TT_Comuni_ATO!X:Y,2,0),"") -> 058112 | F98: =+IF(ISNA(VLOOKUP(B98,Elenco_Bacini_Tariffari!C:C,1,FALSE)),TRUE,FALSE) -> FALSE | G98: FALSE
A99: 92 | B99: ATO2 LAZIO CENTRALE ROMA | C99: Zagarolo (RM) | D99: =IFERROR(VLOOKUP(C99,TT_Comuni_ATO!X:Y,2,0),"") -> 058114 | F99: =+IF(ISNA(VLOOKUP(B99,Elenco_Bacini_Tariffari!C:C,1,FALSE)),TRUE,FALSE) -> FALSE | G99: FALSE

Sheet Struttura_corrispettivi
B1: RICAVI TARIFFARI
AK2: Sono presenti errori | AL2: eorri bacino_tariffario | AM2: errori_tipologia
AK3: =+OR(AL3:AM3) -> FALSE | AL3: =+IFERROR(OR(W:W),FALSE) -> FALSE | AM3: =+IFERROR(OR(X:X),FALSE) -> FALSE
B5: 3 - Articolazione Tariffaria
I8: vigente al 31/12/2015 | K8: vigente al 31/12/2015
B9: Bacino tariffario | C9: Tipologia d'uso | D9: Sottotipologia | E9: 1° scaglione a tariffa agevolata | F9: Servizio idrico | G9: Min di scaglione (m3/2019) | H9: Max di scaglione (m3/2019) | I9: Min di scaglione (m3/2020) | J9: Max di scaglione (m3/2020) | K9: Min di scaglione (m3/2021) | L9: Max di scaglione (m3/2021) | M9: QV (Euro/m3) 2019 | N9: QV (Euro/m3) 2020 | O9: QV (Euro/m3) 2021 | P9: Volumi (m3/anno) 2020 | Q9: Volumi (m3/anno) 2021 | R9: QF (Euro/utenti/anno) 2019 | S9: QF (Euro/utenti/anno) 2020 | T9: QF (Euro/utenti/anno) 2021 | U9: Utenze (numero/anno) 2020 | V9: Utenze (numero/anno) 2021 | W9: Bacino_Tariffario | X9: Tipologia | Y9: Sottotipologia | Z9: Servizio | AA9: tar2019*vscal2020 | AB9: tar2019*vscal2021 | AC9: tar2020*vscal2020 | AD9: tar2021*vscal2021 | AE9: num_scaglione | AF9: n_riga_blocco | AG9: blocco | AH9: agevolata
I10: Min_Scaglione | J10: Max_Scaglione | K10: Min_Scaglione | L10: Max_Scaglione | W10: Ambito_Tariffario
B11: ATO2 LAZIO CENTRALE ROMA | C11: a) uso domestico | D11: uso domestico residente (procapite standard) | E11: SI | F11: Acquedotto | G11: 0 | H11: 90 | I11: 0 | J11: 90 | K11: 0 | L11: 90 | M11: 0.3945 | N11: 0.4026 | O11: 0.4255 | P11: 30350635.8 | Q11: 29982068.03 | R11: 6.777 | S11: 6.9159 | T11: 7.3092 | U11: 1250833.28 | V11: 1222838.725 | W11: =+IFERROR(VLOOKUP(B11,Elenco_Bacini_Tariffari!C:C,1,FALSE),TRUE) -> ATO2 LAZIO CENTRALE ROMA | X11: =+IFERROR(VLOOKUP(C11,ticsi_tipol,1,FALSE),TRUE) -> a) uso domestico | Y11: =+D11 -> uso domestico residente (procapite standard) | Z11: Acquedotto | AA11: =+$M11*P11+$R11*U11 -> 20450222.96 | AB11: =+$M11*Q11+$R11*V11 -> 20115103.88 | AC11: =+N11*P11+S11*U11 -> 20869803.85 | AD11: =+O11*Q11+T11*V11 -> 21695342.76 | AE11: 1 | AF11: 1 | AG11: =+IF(ROW()=11,1,(ROW()+1)/12) -> 1 | AH11: =+IF(E11="SI",1,IF(E11="NO",0,"")) -> 1
G12: =+IF(H11=0,"",H11+1) -> 91 | H12: 180 | I12: =+IF(J11=0,"",J11+1) -> 91 | J12: 180 | K12: =+IF(L11=0,"",L11+1) -> 91 | L12: 180 | M12: 0.7888 | N12: 0.805 | O12: 0.8508 | P12: 18077838.11 | Q12: 18038639.35 | W12: =W11 -> ATO2 LAZIO CENTRALE ROMA | X12: =+X11 -> a) uso domestico | Y12: =+Y11 -> uso domestico residente (procapite standard) | Z12: Acquedotto | AA12: =+$M12*P12 -> 14259798.7 | AB12: =+$M12*Q12 -> 14228878.72 | AC12: =+N12*P12 -> 14552659.67 | AD12: =+O12*Q12 -> 15347274.36 | AE12: =+IF(OR(K12<>"",ISNUMBER(K12)=TRUE),AE11+1,0) -> 2 | AF12: 2 | AG12: =+AG11 -> 1 | AH12: =+AH11 -> 1
G13: =+IF(H12=0,"",H12+1) -> 181 | H13: 270 | I13: 181 | J13: 270 | K13: =+IF(L12=0,"",L12+1) -> 181 | L13: 270 | M13: 1.3148 | N13: 1.3417 | O13: 1.418 | P13: 6231764 | Q13: 6227549 | W13: ATO2 LAZIO CENTRALE ROMA | X13: =+X12 -> a) uso domestico | Y13: =+Y12 -> uso domestico residente (procapite standard) | Z13: Acquedotto | AA13: =+$M13*P13 -> 8193523.307 | AB13: 8187981.425 | AC13: 8361157.759 | AD13: 8830664.482 | AE13: =+IF(OR(K13<>"",ISNUMBER(K13)=TRUE),AE12+1,0) -> 3 | AF13: 3 | AG13: =+AG12 -> 1 | AH13: 1
G14: 271 | H14: 360 | I14: 271 | J14: 360 | K14: 271 | L14: 360 | M14: 1.8408 | N14: 1.8785 | O14: 1.9853 | P14: 2385576 | Q14: 2434253 | W14: ATO2 LAZIO CENTRALE ROMA | X14: a) uso domestico | Y14: uso domestico residente (procapite standard) | Z14: Acquedotto | AA14: 4391368.301 | AB14: 4480972.922 | AC14: 4481304.516 | AD14: 4832722.481 | AE14: 4 | AF14: 4 | AG14: 1 | AH14: 1
G15: 361 | I15: 361 | K15: 361 | M15: 2.3668 | N15: 2.4153 | O15: 2.5526 | P15: 2835949 | Q15: 3333134 | W15: ATO2 LAZIO CENTRALE ROMA | X15: a) uso domestico | Y15: uso domestico residente (procapite standard) | Z15: Acquedotto | AA15: 6712124.093 | AB15: 7888861.551 | AC15: 6849667.62 | AD15: 8508157.848 | AE15: 5 | AF15: 5 | AG15: 1 | AH15: 1
G16: =+IF(H15=0,"",H15+1) ->  | I16: =+IF(J15=0,"",J15+1) ->  | W16: ATO2 LAZIO CENTRALE ROMA | X16: a) uso domestico | Y16: uso domestico residente (procapite standard) | Z16: Acquedotto | AA16: 0 | AB16: 0 | AC16: 0 | AD16: 0 | AE16: 0 | AF16: 6 | AG16: 1 | AH16: 1
G17: =+IF(H16=0,"",H16+1) ->  | I17: =+IF(J16=0,"",J16+1) ->  | W17: ATO2 LAZIO CENTRALE ROMA | X17: a) uso domestico | Y17: uso domestico residente (procapite standard) | Z17: Acquedotto | AA17: 0 | AB17: 0 | AC17: 0 | AD17: 0 | AE17: 0 | AF17: 7 | AG17: 1 | AH17: 1
G18: =+IF(H17=0,"",H17+1) ->  | I18: =+IF(J17=0,"",J17+1) ->  | W18: ATO2 LAZIO CENTRALE ROMA | X18: a) uso domestico | Y18: uso domestico residente (procapite standard) | Z18: Acquedotto | AA18: 0 | AB18: 0 | AC18: 0 | AD18: 0 | AE18: 0 | AF18: 8 | AG18: 1 | AH18: 1
G19: =+IF(H18=0,"",H18+1) ->  | I19: =+IF(J18=0,"",J18+1) ->  | W19: ATO2 LAZIO CENTRALE ROMA | X19: a) uso domestico | Y19: uso domestico residente (procapite standard) | Z19: Acquedotto | AA19: 0 | AB19: 0 | AC19: 0 | AD19: 0 | AE19: 0 | AF19: 9 | AG19: 1 | AH19: 1
G20: =+IF(H19=0,"",H19+1) ->  | I20: =+IF(J19=0,"",J19+1) ->  | W20: ATO2 LAZIO CENTRALE ROMA | X20: a) uso domestico | Y20: uso domestico residente (procapite standard) | Z20: Acquedotto | AA20: 0 | AB20: 0 | AC20: 0 | AD20: 0 | AE20: 0 | AF20: 10 | AG20: 1 | AH20: 1
F21: Fognatura | M21: 0.2272 | N21: 0.2319 | O21: 0.2451 | P21: 47347532.6 | Q21: 47051686.96 | R21: 1.9226 | S21: 1.962 | T21: 2.0736 | U21: 1015653.532 | V21: 995070.7899 | W21: ATO2 LAZIO CENTRALE ROMA | X21: a) uso domestico | Y21: uso domestico residente (procapite standard) | Z21: Fognatura | AA21: =+$M21*P21+$R21*U21 -> 12710054.89 | AB21: 12603266.38 | AC21: =+N21*P21+S21*U21 -> 12972605.04 | AD21: 13595747.26 | AE21: 1 | AF21: 11 | AG21: 1 | AH21: 1
F22: Depurazione | M22: 0.6553 | N22: 0.6687 | O22: 0.7067 | P22: 45660858.32 | Q22: 45373052.8 | R22: 5.6785 | S22: 5.7949 | T22: 6.1244 | U22: 978336.3043 | V22: 955246.7115 | W22: ATO2 LAZIO CENTRALE ROMA | X22: a) uso domestico | Y22: uso domestico residente (procapite standard) | Z22: Depurazione | AA22: 35477043.16 | AB22: 35157329.95 | AC22: 36202777.01 | AD22: 37915449.37 | AE22: 1 | AF22: 12 | AG22: 1 | AH22: 1
B23: ATO2 LAZIO CENTRALE ROMA | C23: a) uso domestico | D23: uso domestico non residente | E23: NO | F23: Acquedotto | G23: 0 | H23: 180 | I23: 0 | J23: 180 | K23: 0 | L23: 180 | M23: 0.7888 | N23: 0.805 | O23: 0.8508 | P23: 2901418.304 | Q23: 3411392.274 | R23: 20.331 | S23: 20.7477 | T23: 21.9275 | U23: 39531.07766 | V23: 46091.82032 | W23: =+IFERROR(VLOOKUP(B23,Elenco_Bacini_Tariffari!C:C,1,FALSE),TRUE) -> ATO2 LAZIO CENTRALE ROMA | X23: =+IFERROR(VLOOKUP(C23,ticsi_tipol,1,FALSE),TRUE) -> a) uso domestico | Y23: =+D23 -> uso domestico non residente | Z23: Acquedotto | AA23: 3092345.098 | AB23: 3627999.025 | AC23: 3155820.675 | AD23: 3913090.937 | AE23: 1 | AF23: 1 | AG23: =+IF(ROW()=11,1,(ROW()+1)/12) -> 2 | AH23: =+IF(E23="SI",1,IF(E23="NO",0,"")) -> 0
G24: =+IF(H23=0,"",H23+1) -> 181 | H24: 270 | I24: =+IF(J23=0,"",J23+1) -> 181 | J24: 270 | K24: =+IF(L23=0,"",L23+1) -> 181 | L24: 270 | M24: 1.3148 | N24: 1.3417 | O24: 1.418 | P24: 278227 | Q24: 335669 | W24: =W23 -> ATO2 LAZIO CENTRALE ROMA | X24: =+X23 -> a) uso domestico | Y24: =+Y23 -> uso domestico non residente | Z24: Acquedotto | AA24: =+$M24*P24 -> 365812.8596 | AB24: =+$M24*Q24 -> 441337.6012 | AC24: =+N24*P24 -> 373297.1659 | AD24: =+O24*Q24 -> 475978.642 | AE24: =+IF(OR(K24<>"",ISNUMBER(K24)=TRUE),AE23+1,0) -> 2 | AF24: 2 | AG24: =+AG23 -> 2 | AH24: =+AH23 -> 0
G25: =+IF(H24=0,"",H24+1) -> 271 | H25: 360 | I25: 271 | J25: 360 | K25: =+IF(L24=0,"",L24+1) -> 271 | L25: 360 | M25: 1.8408 | N25: 1.8785 | O25: 1.9853 | P25: 117363 | Q25: 148039 | W25: ATO2 LAZIO CENTRALE ROMA | X25: =+X24 -> a) uso domestico | Y25: uso domestico non residente | Z25: Acquedotto | AA25: =+$M25*P25 -> 216041.8104 | AB25: =+$M25*Q25 -> 272510.1912 | AC25: 220466.3955 | AD25: 293901.8267 | AE25: =+IF(OR(K25<>"",ISNUMBER(K25)=TRUE),AE24+1,0) -> 3 | AF25: 3 | AG25: =+AG24 -> 2 | AH25: 0
G26: 361 | I26: 361 | K26: 361 | M26: 2.3668 | N26: 2.4153 | O26: 2.5526 | P26: 202594 | Q26: 295955 | W26: ATO2 LAZIO CENTRALE ROMA | X26: a) uso domestico | Y26: uso domestico non residente | Z26: Acquedotto | AA26: 479499.4792 | AB26: 700466.294 | AC26: 489325.2882 | AD26: 755454.733 | AE26: 4 | AF26: 4 | AG26: =+AG25 -> 2 | AH26: 0
G27: =+IF(H26=0,"",H26+1) ->  | I27: =+IF(J26=0,"",J26+1) ->  | W27: ATO2 LAZIO CENTRALE ROMA | X27: a) uso domestico | Y27: uso domestico non residente | Z27: Acquedotto | AA27: 0 | AB27: 0 | AC27: 0 | AD27: 0 | AE27: 0 | AF27: 5 | AG27: =+AG26 -> 2 | AH27: 0
W28: ATO2 LAZIO CENTRALE ROMA | X28: a) uso domestico | Y28: uso domestico non residente | Z28: Acquedotto | AA28: 0 | AB28: 0 | AC28: 0 | AD28: 0 | AE28: 0 | AF28: 6 | AG28: =+AG27 -> 2 | AH28: 0
W29: ATO2 LAZIO CENTRALE ROMA | X29: a) uso domestico | Y29: uso domestico non residente | Z29: Acquedotto | AA29: 0 | AB29: 0 | AC29: 0 | AD29: 0 | AE29: 0 | AF29: 7 | AG29: =+AG28 -> 2 | AH29: 0
W30: ATO2 LAZIO CENTRALE ROMA | X30: a) uso domestico | Y30: uso domestico non residente | Z30: Acquedotto | AA30: 0 | AB30: 0 | AC30: 0 | AD30: 0 | AE30: 0 | AF30: 8 | AG30: =+AG29 -> 2 | AH30: 0
W31: ATO2 LAZIO CENTRALE ROMA | X31: a) uso domestico | Y31: uso domestico non residente | Z31: Acquedotto | AA31: 0 | AB31: 0 | AC31: 0 | AD31: 0 | AE31: 0 | AF31: 9 | AG31: =+AG30 -> 2 | AH31: 0
W32: ATO2 LAZIO CENTRALE ROMA | X32: a) uso domestico | Y32: uso domestico non residente | Z32: Acquedotto | AA32: 0 | AB32: 0 | AC32: 0 | AD32: 0 | AE32: 0 | AF32: 10 | AG32: =+AG31 -> 2 | AH32: 0
F33: Fognatura | M33: 0.2272 | N33: 0.2319 | O33: 0.2451 | P33: 2725459 | Q33: 3243319.152 | R33: 5.7678 | S33: 5.886 | T33: 6.2207 | U33: 32163.20761 | V33: 37592.66964 | W33: ATO2 LAZIO CENTRALE ROMA | X33: a) uso domestico | Y33: uso domestico non residente | Z33: Fognatura | AA33: =+$M33*P33+$R33*U33 -> 804735.2337 | AB33: 953709.1113 | AC33: =+N33*P33+S33*U33 -> 821346.5821 | AD33: 1028790.244 | AE33: 1 | AF33: 11 | AG33: =+AG32 -> 2 | AH33: 0
F34: Depurazione | M34: 0.6553 | N34: 0.6687 | O34: 0.7067 | P34: 2640483 | Q34: 3137836.422 | R34: 17.0355 | S34: 17.3846 | T34: 18.3731 | U34: 30841.05185 | V34: 35977.4627 | W34: ATO2 LAZIO CENTRALE ROMA | X34: a) uso domestico | Y34: uso domestico non residente | Z34: Depurazione | AA34: 2255701.249 | AB34: 2669118.273 | AC34: 2301850.332 | AD34: 2878526.519 | AE34: 1 | AF34: 12 | AG34: =+AG33 -> 2 | AH34: 0
B35: ATO2 LAZIO CENTRALE ROMA | C35: a) uso domestico | D35: uso condominiale | E35: SI | F35: Acquedotto | G35: 0 | H35: 90 | I35: 0 | J35: 90 | K35: 0 | L35: 90 | M35: 0.3945 | N35: 0.4026 | O35: 0.4255 | P35: 110370687.3 | Q35: 109677107 | R35: 18.2979 | S35: 18.6729 | T35: 19.7347 | U35: 1290167.768 | V35: 1286949.257 | W35: =+IFERROR(VLOOKUP(B35,Elenco_Bacini_Tariffari!C:C,1,FALSE),TRUE) -> ATO2 LAZIO CENTRALE ROMA | X35: =+IFERROR(VLOOKUP(C35,ticsi_tipol,1,FALSE),TRUE) -> a) uso domestico | Y35: =+D35 -> uso condominiale | Z35: Acquedotto | AA35: 67148596.93 | AB35: 66816087.52 | AC35: 68526412.41 | AD35: 72065166.53 | AE35: 1 | AF35: 1 | AG35: =+IF(ROW()=11,1,(ROW()+1)/12) -> 3 | AH35: =+IF(E35="SI",1,IF(E35="NO",0,"")) -> 1
G36: =+IF(H35=0,"",H35+1) -> 91 | H36: 180 | I36: =+IF(J35=0,"",J35+1) -> 91 | J36: 180 | K36: =+IF(L35=0,"",L35+1) -> 91 | L36: 180 | M36: 0.7888 | N36: 0.805 | O36: 0.8508 | P36: 49738005.36 | Q36: 46456508.16 | W36: =W35 -> ATO2 LAZIO CENTRALE ROMA | X36: =+X35 -> a) uso domestico | Y36: =+Y35 -> uso condominiale | Z36: Acquedotto | AA36: =+$M36*P36 -> 39233338.63 | AB36: =+$M36*Q36 -> 36644893.63 | AC36: =+N36*P36 -> 40039094.32 | AD36: =+O36*Q36 -> 39525197.14 | AE36: =+IF(OR(K36<>"",ISNUMBER(K36)=TRUE),AE35+1,0) -> 2 | AF36: 2 | AG36: =+AG35 -> 3 | AH36: =+AH35 -> 1
G37: =+IF(H36=0,"",H36+1) -> 181 | H37: 270 | I37: 181 | J37: 270 | K37: =+IF(L36=0,"",L36+1) -> 181 | L37: 270 | M37: 1.3148 | N37: 1.3417 | O37: 1.418 | P37: 6507306 | Q37: 6102994 | W37: ATO2 LAZIO CENTRALE ROMA | X37: =+X36 -> a) uso domestico | Y37: uso condominiale | Z37: Acquedotto | AA37: =+$M37*P37 -> 8555805.929 | AB37: =+$M37*Q37 -> 8024216.511 | AC37: 8730852.46 | AD37: 8654045.492 | AE37: =+IF(OR(K37<>"",ISNUMBER(K37)=TRUE),AE36+1,0) -> 3 | AF37: 3 | AG37: =+AG36 -> 3 | AH37: 1
G38: 271 | H38: 360 | I38: 271 | J38: 360 | K38: 271 | L38: 360 | M38: 1.8408 | N38: 1.8785 | O38: 1.9853 | P38: 1513163 | Q38: 1511584 | W38: ATO2 LAZIO CENTRALE ROMA | X38: a) uso domestico | Y38: uso condominiale | Z38: Acquedotto | AA38: 2785430.45 | AB38: 2782523.827 | AC38: 2842476.695 | AD38: 3000947.715 | AE38: 4 | AF38: 4 | AG38: =+AG37 -> 3 | AH38: 1
G39: 361 | I39: 361 | K39: 361 | M39: 2.3668 | N39: 2.4153 | O39: 2.5526 | P39: 1599460 | Q39: 1585103 | W39: ATO2 LAZIO CENTRALE ROMA | X39: a) uso domestico | Y39: uso condominiale | Z39: Acquedotto | AA39: 3785601.928 | AB39: 3751621.78 | AC39: 3863175.738 | AD39: 4046133.918 | AE39: 5 | AF39: 5 | AG39: =+AG38 -> 3 | AH39: 1
G40: =+IF(H39=0,"",H39+1) ->  | I40: =+IF(J39=0,"",J39+1) ->  | W40: ATO2 LAZIO CENTRALE ROMA | X40: a) uso domestico | Y40: uso condominiale | Z40: Acquedotto | AA40: 0 | AB40: 0 | AC40: 0 | AD40: 0 | AE40: 0 | AF40: 6 | AG40: =+AG39 -> 3 | AH40: 1
G41: =+IF(H40=0,"",H40+1) ->  | I41: =+IF(J40=0,"",J40+1) ->  | W41: ATO2 LAZIO CENTRALE ROMA | X41: a) uso domestico | Y41: uso condominiale | Z41: Acquedotto | AA41: 0 | AB41: 0 | AC41: 0 | AD41: 0 | AE41: 0 | AF41: 7 | AG41: =+AG40 -> 3 | AH41: 1
G42: =+IF(H41=0,"",H41+1) ->  | I42: =+IF(J41=0,"",J41+1) ->  | W42: ATO2 LAZIO CENTRALE ROMA | X42: a) uso domestico | Y42: uso condominiale | Z42: Acquedotto | AA42: 0 | AB42: 0 | AC42: 0 | AD42: 0 | AE42: 0 | AF42: 8 | AG42: =+AG41 -> 3 | AH42: 1
G43: =+IF(H42=0,"",H42+1) ->  | I43: =+IF(J42=0,"",J42+1) ->  | W43: ATO2 LAZIO CENTRALE ROMA | X43: a) uso domestico | Y43: uso condominiale | Z43: Acquedotto | AA43: 0 | AB43: 0 | AC43: 0 | AD43: 0 | AE43: 0 | AF43: 9 | AG43: =+AG42 -> 3 | AH43: 1
G44: =+IF(H43=0,"",H43+1) ->  | I44: =+IF(J43=0,"",J43+1) ->  | W44: ATO2 LAZIO CENTRALE ROMA | X44: a) uso domestico | Y44: uso condominiale | Z44: Acquedotto | AA44: 0 | AB44: 0 | AC44: 0 | AD44: 0 | AE44: 0 | AF44: 10 | AG44: =+AG43 -> 3 | AH44: 1
